Workbook

Sheet App & Instructions
A2: Commercial & Industrial Retrofit Program
A3: Lighting Systems & Controls Application
A6: The Retrofit Program is designed for Commercial and Industrial (C&I) customers to help replace aging and inefficient equipment and systems with more energy efficient technologies. This type of prescriptive application provides a predetermined incentive amount based on calculated energy savings to help expedite a customer’s incentive processing and improve their return on investment as a result of improved energy savings, increased safety, and improved productivity that comes with more energy efficient lighting.
A8: Application and Instructions
A9: This application is designed for the replacement of existing operating equipment:
A11: Eligibility:
A12: • Must be an Upstate New York National Grid Commercial Electric Account holder and pay into the System Benefits Charge (SBC).
A13: • IRS recognized farms and religious organizations may also be eligible if they pay into the SBC. Please verify with a copy of a National Grid electric utility bill.
A14: • Product types eligible for prescriptive lighting retrofit and controls incentives are included in Tables 1A (Lighting Systems Eligibility and Incentives) and 1B (Lighting Controls Eligibility and Incentives) attached to this application. Measures not listed on this application may be eligible for incentives under our Custom C&I Retrofit program. Please contact your National Grid Representative for additional details.
A16: Pre-Approval Requirements:
A17: • Only completed applications will be considered and reviewed for incentive eligibility.
A18: • All projects require a pre-inspection prior to National Grid issuing an incentive offer letter.
A19: • BEFORE purchasing and installing the equipment, ensure the project is eligible for an incentive.
A20: • National Grid account number, Federal Tax ID numbers and a W-9 form for the customer must be provided.
A21: • Be sure to identify the customer or installation contractor receiving the incentive and where the check is to be sent.
A23: Application Steps:
A24: • Complete the Excel file of the lighting systems and controls application. If you do not have access to Excel or use a version older than 2010, please contact your National Grid representative to obtain a copy. Return the completed excel application as part of your complete package submitted to National Grid. Please refer to the NYS Device Codes chart or speak with your National Grid Representative for accepted codes and wattages.
A25: • Proposed equipment manufacturer’s technical specification sheets (“cut sheets”) for each type of installed equipment must be provided with the application.
A26: • Project must include labor and material cost.
A27: • All LED fixtures must be Design Lights Consortium (DLC) qualified and LED bulbs must be ENERGY STAR™ qualified. A link or screen shot of the qualified product must be included in the excel file or as a separate attachment.
A29: Installation and Payment Steps:
A30: • Once a completed application is reviewed and meets program requirements, an incentive is calculated and offer letter is provided to the customer and/or installation contractor for review and signature.
A31: • The customer and/or installation contractor must:
A32: • Purchase and install equipment within 180 days upon receipt of the pre-approval letter.
A33: • Verify installation by providing a signed signature page from the customer report (“Certification of Installation”)
A34: • Provide a copy of a paid invoice on company letterhead indicating type, size, make, model and quantity of equipment and include burdened project labor costs.
A35: • Return all required information to National Grid within 30 days of the installation.
A37: Program Details:
A38: • This Retrofit program covers applications created on or after January 1 of the current year. Details of this Program, including incentive levels, are subject to change without prior notice. The prescriptive application and all required documents must be provided as a complete package in one email to your NG Representative, otherwise it will be placed on hold.
A42: 1-855-236-7052 | energysavings@nationalgrid.com | www.ngrid.com/unybiz | K42: ="Rev "&$K$45 -> Rev 1 (1/1/21)
A45: Directions and Tips in using Spreadsheet | K45: 1 (1/1/21)
A46: This spreadsheet can be used for a prescriptive OR custom lighting and/or controls project
A47: If using for custom, the measure code selected on the lighting worksheet should say custom
A48: Created in Excel 2010. May not be compatible with earlier versions of Excel.
A50: Lighting Worksheet-2A
A51: 1. | B51: Be sure to complete the App Cust Info tab first before entering any lighting measures.
B52: ~ Many entries will auto fill in the other worksheets
A53: 2. | B53: Lighting Worksheet 2A should be completed next (dark blue tab)
A54: 3. | B54: Complete the necessary # of rows on the lighting worksheet for each area in a building being retrofitted with new lights
B55: ~ be as specific as possible with the areas and the lighting descriptions (ex. Office 102, 3 lamp T-8 32W NB 2x4 parabolic troffers)
A56: 4. | B56: Be sure to identify in column B & C on the lighting worksheet if the area is an interior or exterior space (I or E) and whether or not it is an air conditioned space (Y, N, or R)
A57: 5. | B57: Specify in column E the annual operating hours of the lights for the area outlined in each row
A58: 6. | B58: Identify the quantity of existing and proposed lights in columns H & S. Next build the device code based on the type of light, number of lamps and type of ballast.
A59: 7. | B59: The NY Device Codes in columns M for existing and Z for proposed should populate based on the previous column entries
B60: ~ Refer to the NY Device Codes & Rated Wattage table (can be filtered) on this spreadsheet to find the correct device code. This will auto populate columns J & O for the wattage of the fixture
A61: 8. | B61: In column S & T enter model number for proposed unit and select whether it would be qualified under DLC, Energy Star or other
A62: 9. | B62: In column AF select the appropriate measure code (if using for prescriptive application). Refer to Table 1A on the lighting and Controls Application
A63: 10. | B63: If completing for a prescriptive application the incentives per fixture and total incentives will auto calculate
A64: 11. | B64: The columns to the right outlining the energy usage and savings will auto calculate based on inputs outlined above
A66: Controls Worksheet-2B
A67: 1. | B67: If the proposed lighting project includes controls complete all the lighting details first on the Lighting Worksheet
A68: 2. | B68: Click on the Controls Worksheet and you will see the lighting details entered in the Lighting Worksheet
A69: 3. | B69: In column C select the appropriate measure code (if using for prescriptive application). Refer to Table 1B on the app.
A70: 4. | B70: For those areas and lights being controlled, in column D select the type of control to be used if directed (ex. Occupancy, daylight, etc.)
A71: 5. | B71: In column J enter the number of controls being installed for that area
A72: 6. | B72: In column K, the quantity of fixtures being controlled, is auto populated from the lighting worksheet. If the quantity of fixtures being controlled differs, change the number to the correct amount
A73: 7. | B73: The Total Watts controlled will auto calculate based on the % savings as outlined in the NYS Tech Manual
A75: Custom Applications
A76: 1. | B76: If using the spreadsheet for custom applications please complete the steps above as applicable, select "Custom" from the drop down in Measure Code (Column AF) on the Lighting Worksheet-2A for all line items to be reviewed custom.
A77: 2. | B77: In column AS on the lighting worksheet-2A select the appropriate Effective Useful Life for the proposed product in the row. 15000 hrs. for decorative LED lamps, 25000 hrs. for all other LED lamps as well as uncertified LEDs, 35000 hrs. for Energy Star LED Fixtures, and 50000 hrs. for DLC qualified LEDs.

Sheet App Cust Info
A2: ='App & Instructions'!A2 -> Commercial & Industrial Retrofit Program
A3: Lighting Systems & Controls Application
A6: *ALL FIELDS ON THIS PAGE ARE REQUIRED
A7: CUSTOMER/ACCOUNT HOLDER INFORMATION (Customer must submit a W-9 Form)
A8: CUSTOMER FACILITY NAME | E8: CONTACT PERSON | I8: APPLICATION DATE
A10: PHONE NUMBER | E10: FAX NUMBER | H10: CUSTOMER FEDERAL TAX ID NUMBER
A12: INSTALL SITE | E12: EMAIL ADDRESS | H12: SQUARE FEET (COVERED BY THIS APPLICATION)
A14: STREET ADDRESS | E14: CITY | H14: STATE | J14: ZIP
H15: NY
A16: MAILING ADDRESS (IF DIFFERENT) | E16: CITY | H16: STATE | J16: ZIP
A18: COMPANY TYPE: | E18: CLASSIFICATION TYPE:
A20: CUSTOMER OF RECORD: BILLING ACCOUNT NO.: | E20: ANNUAL KWH USAGE: | H20: AVE. DELIVERY COST: | J20: AVE. SUPPLY COST:
A22: BUILDING TYPE (SELECT ONE) | G22: BUILDING HVAC SYSTEM (SELECT ONE)
A25: INCENTIVE PAYMENT
A28: BUSINESS NAME | E28: CONTACT PERSON
A30: STREET ADDRESS | E30: CITY | H30: STATE | J30: ZIP
A32: PHONE | E32: EMAIL ADDRESS
A34: COMPANY TYPE | E34: FEDERAL TAX ID NUMBER (REQUIRED IF RECEIVING INCENTIVE)
A37: INSTALLATION CONTRACTOR/ PROJECT EXPEDITER INFORMATION
A38: INSTALLATION CONTRACTOR COMPANY | F38: PROJECT EXPEDITER | H38: CONTACT PERSON
A40: STREET ADDRESS | E40: CITY | H40: STATE | J40: ZIP
A41: =IFERROR(IF(A39=0," ",VLOOKUP("*"&A39&"*",PEX,3,FALSE)),"") ->  | E41: =IFERROR(IF(A39=0," ",VLOOKUP("*"&A39&"*",PEX,4,FALSE)),"") ->  | H41: =IFERROR(IF(A39=0,"NY",VLOOKUP("*"&A39&"*",PEX,5,FALSE)),"NY") -> NY | J41: =IFERROR(IF(A39=0," ",VLOOKUP("*"&A39&"*",PEX,6,FALSE)),"") -> 
A42: PHONE | E42: EMAIL ADDRESS
A43: =IFERROR(IF(A39=0," ",VLOOKUP("*"&A39&"*",PEX,7,FALSE)),"") ->  | E43: =IFERROR(IF(A39=0," ",VLOOKUP("*"&A39&"*",PEX,8,FALSE)),"") -> 
A44: COMPANY TYPE | E44: FEDERAL TAX ID NUMBER (REQUIRED IF RECEIVING INCENTIVE)
E45: =IFERROR(IF(A39=0," ",VLOOKUP("*"&A39&"*",PEX,9,FALSE)),"") -> 
A47: EQUIPMENT VENDOR INFORMATION
A48: EQUIPMENT VENDOR | E48: COMPANY CONTACT PERSON
A50: STREET ADDRESS | E50: CITY | H50: STATE | J50: ZIP
H51: NY
A52: PHONE | E52: EMAIL ADDRESS
A54: COMPANY TYPE | E54: FEDERAL TAX ID NUMBER (REQUIRED IF RECEIVING INCENTIVE)
A57: ADDITIONAL APPLICATION INFORMATION
A58: EXPECTED COMPLETION DATE OF PROJECT
A60: TOTAL COST OF LABOR AND MATERIALS FOR INSTALLED LIGHTING AND/OR CONTROL EQUIPMENT*
A61: * AN ACTUAL INVOICE ON COMPANY LETTERHEAD IS REQUIRED TO BE SUBMITTED TO NATIONAL GRID BEFORE FINAL PAYMENT OF INCENTIVE | H61: Labor Costs
H62: Material Costs
A64: CUSTOMER ACCEPTANCE OF TERMS
A68: BY (AUTHORIZED SIGNATUIRE)
A70: PRINTED NAME
A72: TITLE
A74: COMPANY
A76: DATE
A106: 1-855-236-7052 | energysavings@nationalgrid.com | www.ngrid.com/unybiz | J106: ="Rev "&'App & Instructions'!$K$45 -> Rev 1 (1/1/21)

Sheet Terms & Conditions
A2: ='App & Instructions'!A2 -> Commercial & Industrial Retrofit Program
A3: Lighting Systems & Controls Application
A6: 1. Incentives
A7: Subject to these terms and conditions (“Terms and Conditions”) of the Program, the Program Administrator will pay an Incentive to the Customer for the installation of EEM(s).
A8: 2. Definitions
A9: (a) “Customer” means the customer who has an account for service with the Program Administrator and who satisfies the Program eligibility requirements established by the Program Administrator under the Program Materials and these Terms and Conditions.
A10: (b) “EEM” means the energy efficiency measure(s) described in the Program Materials or other custom measures that may be approved by the Program Administrator.
A11: (c) “Facility” means the Customer’s premises or location served by the Program Administrator where EEM(s) will be installed.
A12: (d) “Incentive” means the payment(s) to be paid by the Program Administrator to the Customer for the installation of the EEM(s) pursuant to the Program and these Terms and Conditions.
A13: (e) “Program” means the Commercial and Industrial Electric Program as approved by the New York Public Service Commission and offered by the Program Administrator to Customers.
A14: (f) “Program Administrator” means Niagara Mohawk Power Corporation d/b/a/ National Grid.
A15: (g) “Program Materials” means the documents and information provided by the Program Administrator specifying the qualifying EEM(s), technology requirements, costs and other Program requirements, which include, without limitation, Program guidelines and requirements, application forms and approval letters.
A16: 3. Application Process and Requirement for Program Administrator Approval
A17: (a) The Customer shall submit a completed application in the form provided by the Program Administrator. In addition, at the Program Administrator’s discretion, the Customer may be required to provide to the Program Administrator, for its approval, a copy of the detailed specifications and scope of work as well as an analysis of the energy savings and/or demand reduction for the EEM(s) proposed by the Customer to the Program Administrator. To the extent required by law, this analysis shall be prepared by a professional engineer licensed in the state where the Facility is located. After the installation of the EEM(s), the Customer shall also, upon request by the Program Administrator, provide to the Program Administrator with a copy of the as-built drawings and installed EEM(s) for the Facility.
A18: (b) Subject to Sections 8, 10 and 14, the Program Administrator will review the Customer’s application and supporting documentation to determine the energy savings and/or demand reduction potential. The Program Administrator may, in its sole discretion, reject or modify any calculations, based on the Program Administrator’s own analysis.
A19: (c) The Program Administrator is not obligated to pay any Incentive unless the Program Administrator issues an approval letter regarding the EEM(s) proposed by the Customer, and any necessary pre- and/or post- installation verification(s) is/are successfully completed by the Program Administrator. The Program Administrator’s approval letter shall state the maximum approved Incentive amount and the date by which the EEM(s) must be fully installed and operational to qualify for the Incentive. The Program Administrator may also require the Customer to execute additional agreements or provide additional documentation regarding the proposed installation of the EEM(s) and for determination of Incentive(s).
A20: (d) The Customer shall have no right to receive, and the Program Administrator shall have no obligation to pay, Incentives for any EEM(s) that have not been approved in advance in writing by the Program Administrator, unless the Program Materials state that such prior approval is not required. Further, the Program Administrator shall not pay Incentives for EEM(s) which may have been pre-approved, but are subsequently determined after the installation, to be not in compliance with the Program requirements.
A21: (e) The Program Administrator reserves the right to approve or disapprove of any Program application or proposed EEM(s).
A22: 4. Equipment and Contractor Selection and Contracting
A23: Customer is responsible for selecting and purchasing the EEM(s) and selecting and contracting with the design and installation contractor(s). The Customer shall be responsible for enforcing all such contracts and for assuring that the EEM(s) meet the Program requirements and applicable laws, regulations and codes, and that the contractor(s) are properly qualified, licensed and insured. Notwithstanding the foregoing, the Program Administrator may exclude certain EEM from the Program.
A24: 5. Pre- and Post-Installation Verification
A25: The Program Administrator shall not pay an Incentive until the Program Administrator has performed a satisfactory pre-installation inspection (unless the Program Materials state such pre-inspection is not required) and post-installation verification of the installation. If the Program Administrator determines that any EEM(s) were not installed in accordance with these Terms and Conditions and the Program Materials, the Program Administrator may require modifications to the EEM(s) before it pays any Incentive(s). The Program Administrator may, at its sole discretion, withhold payment of Incentives until it has been verified that (i) the Customer has received, as appropriate, final drawings, operations and maintenance manuals, and operator training; and (ii) the Program Administrator has received documentation detailing that the installation of the EEM(s) has been completed in accordance with these Terms and Conditions, the Program Materials, and the Program Administrator’s approval.
A26: 6. Monitoring and Inspection
A27: The Program Administrator reserves the right to perform monitoring and inspection of the EEM(s) to determine the actual demand reduction and energy savings. As a condition of receiving an Incentive, the Customer agrees to provide access and information to the Program Administrator and to cooperate with the Program Administrator regarding such monitoring and inspection. By participating in the Program, the Customer acknowledges and agrees that no such activity by the Program Administrator includes any kind of safety, code or other compliance review. All safety, code or other compliance reviews are the sole responsibility of the Customer.
A28: 7. Customer Measures
A29: The Program Administrator will only approve of the EEM(s) that has/have cost-effective energy savings as calculated by the Program Administrator. The Program Administrator reserves the right to approve or disapprove of any specific EEM(s) proposed by the Customer.
A30: 8. Incentive Amounts
A31: (a) Once an Incentive amount is pre-approved, the Program Administrator shall pay to the Customer no more than the cost of purchasing and installing the EEM(s), or the pre-approved Incentive amount, whichever is less.
A32: (b) The Program Administrator reserves the right to reduce or eliminate the Incentive amount if the EEM(s) are not installed in accordance with these Terms and Conditions and the Program Materials. Customer shall be obligated to refund such Incentives paid by the Program Administrator if the projected energy savings have not been achieved as a result of the foregoing circumstances. The Customer shall be obligated to refund the Incentive paid by the Program Administrator when EEM(s) that have been installed have not been properly maintained, have been altered or disconnected, or in the event of a shutdown or significant reduction of operations at facility where the EEM’s) are located.
A33: 9. Equipment and Installation
A34: The Customer shall be responsible for ensuring that the EEM(s) are installed and operated in accordance with applicable laws, regulations and codes and that all applicable permits, approvals and inspections are obtained. The Customer shall provide the Program Administrator with copies of all invoices and related documents (including all materials, labor, and equipment discounts) relating to the purchase and installation of the EEM(s). The itemized invoices shall include the details of all EEM(s) including the model, quantity and cost for each EEM, and shall identify any applicable discounts or other incentives received by the Customer, or for which the Customer is eligible. The Customer shall provide the Program Administrator with the details on the installation location(s) of the EEM(s) in the format specified by the Program Administrator, and such other documentation and information as the Program Administrator may request, including, without limitation, copies of permits and contractor and supplier invoices, orders and records. The Program Administrator shall, in its sole discretion, determine the appropriate costs of EEM(s) in order to calculate the Incentive amount.
A35: 10. Installation Schedule Requirements
A36: If the Customer does not complete installation of the approved EEM(s) within the earlier of the completion date specified in the Program Administrator’s approval letter or six (6) months from the date the Program Administrator provides its prior written approval of the EEM installation, the Program Administrator may terminate any obligation to issue Incentives or any Incentive amount agreed to in an approval letter issued by the Program Administrator.
A37: 11. Incentive Issue Conditions
A38: Subject to these Terms and Conditions and provided that the Program Administrator is satisfied that the Customer has satisfied all of the conditions and requirements of the Program, , the Program Administrator will use commercially reasonable efforts to pay the Incentive amount to the Customer within forty-five (45) days after all of the following conditions are met: (i) Program Administrator’s approval of the EEM installation has been provided; (ii) all applicable permits, licenses and inspections have been obtained by the Customer; (iii) installation of the EEM(s) has been completed in accordance with the requirements hereof; and (iv) the Program Administrator has verified all project and installation costs and the satisfactory installation of the EEM(s), all in accordance with the Terms and Conditions hereof. The Customer shall not assign any of its rights or obligations referenced in these Terms and Conditions or in the Program Materials (including, without limitation, the right to receive Incentives) without the prior written consent of the Program Administrator.
A39: 12. Maintenance of EEM(s)
A40: The Customer acknowledges and agrees that Customer shall operate and maintain the EEM(s) in accordance with the manufacturer’s recommendations and the terms hereof, and shall replace consumable parts and other components with comparable or superior efficient products at the Customer’s expense.
A41: 13. Participation in Other Energy Efficiency Programs
A42: The Customer shall not receive Incentives from the Program Administrator for the same EEM(s) if the Customer has received incentives already from other System Benefits Charge (“SBC”)-funded New York State utilities or the New York State Energy Research and Development Authority (“NYSERDA”). A Customer enrolled in the Self-Direct Program for 2017-2019 offered by National Grid is not eligible to receive an Incentive amount under this Program for any electric EEMs installed during the Customer’s enrollment in the Self-Direct Program cycle. The Company’s Self-Direct Program requirements address eligibility requirements under this Program in the event a Customer withdraws from the Self-Direct Program mid-cycle.
A43: 14. Program/Terms and Conditions Changes
A44: Program expenditures, requirements and eligibility, and these Terms and Conditions, may be changed by the Program Administrator at any time without notice. The Program Administrator reserves the right to withhold approval of projects and any EEM(s) for which the Customer may apply for an Incentive for any reason and to cancel or alter the Program at any time without notice. Approved applications for EEM(s) will be processed under the Terms and Conditions and Program Materials in effect at the time of such approval by the Program Administrator.
A45: 15. Indemnification and Limitation of the Program Administrator’s Liability
A46: The Customer shall indemnify, defend and hold harmless the Program Administrator, its affiliates and their respective contractors, officers, directors, employees, agents, representatives and assigns (“Indemnified Parties”) from and against any and all claims, damages, losses and expenses, including reasonable attorneys’ fees and costs incurred to enforce this indemnity arising out of the acts and/or omissions of the Customer or the Customer’s agent(s) in connection with the Customer’s participation in the Program (“Damages”) brought by or for a third party except to the extent that Damages are caused by the negligence of any of the Indemnified Parties. To the fullest extent allowed by law, the Program Administrator’s liability will be limited to paying approved Incentives in accordance with these Terms and Conditions and the Program Materials, and the Program Administrator and its affiliates and their respective contractors, officers, directors, employees, agents, representatives and assigns shall not be liable to the Customer or any other party for any other obligation except to the extent liability is caused by the negligence of the Program Administrator and its affiliates and their respective contractors, officers, directors, employees, agents, representatives and assigns. The Program Administrator shall not be liable to the Customer for any special, indirect, incidental, penal, punitive, or consequential damages of any nature in connection with Customer’s participation in the Program or these Terms and Conditions.
A47: 16. No Warranties or Representations by the Program Administrator
A48: (a) THE PROGRAM ADMINISTRATOR DOES NOT ENDORSE, GUARANTEE, OR WARRANT ANY CONTRACTOR, MANUFACTURER OR PRODUCT, AND THE PROGRAM ADMINISTRATOR MAKES NO REPRESENTATIONS, WARRANTIES OR GUARANTEES IN CONNECTION WITH THE PROGRAM, EEM(s) OR ANY SERVICES PERFORMED IN CONNECTION HEREWITH OR THEREWITH, WHETHER STATUTORY, ORAL, WRITTEN, EXPRESS, OR IMPLIED, INCLUDING, WITHOUT LIMITATION, WARRANTIES OF MERCHANTABILITY AND FITNESS FOR A PARTICULAR PURPOSE. THIS DISCLAIMER SHALL SURVIVE ANY CANCELLATION, COMPLETION, TERMINATION OR EXPIRATION OF THE CUSTOMER’S PARTICIPATION IN THE PROGRAM. CUSTOMER ACKNOWLEDGES AND AGREES THAT ANY WARRANTIES PROVIDED BY ORIGINAL MANUFACTURERS, LICENSORS, OR PROVIDERS OF MATERIAL, EQUIPMENT, OR OTHER ITEMS PROVIDED OR USED IN CONNECTION WITH THE PROGRAM IN CONNECTION WITH THESE TERMS AND CONDITIONS, INCLUDING ITEMS INCORPORATED IN THE PROGRAM (“THIRD PARTY WARRANTIES”), ARE NOT TO BE CONSIDERED WARRANTIES OF THE PROGRAM ADMINISTRATOR AND THE PROGRAM ADMINISTRATOR MAKES NO REPRESENTATIONS, GUARANTEES, OR WARRANTIES AS TO THE APPLICABILITY OR ENFORCEABILITY OF ANY SUCH THIRD PARTY WARRANTIES. THE TERMS OF THIS SECTION SHALL GOVERN OVER ANY CONTRARY VERBAL STATEMENTS OR LANGUAGE APPEARING IN ANY PROGRAM ADMINISTRATOR’S OTHER DOCUMENTS.
A49: (b) Neither the Program Administrator nor any of its employees, contractors, agents, representatives or assigns is/are responsible for determining that the design, engineering or installation of the EEM(s) is proper or complies with any particular laws, codes, or industry standards. The Program Administrator does not make any representations of any kind regarding the benefits, demand reduction, or energy savings to be achieved by the EEM(s) or the adequacy or safety of the EEMs.
A50: (c) The Customer acknowledges and agrees that it is solely responsible (directly-based on its own judgment or indirectly-based on the advice of an independent expert, not the Program Administrator) for all aspects of the EEM(s) and related work including, but not limited to: selecting the EEM(s); selecting contractors to perform the work; inspecting the work and the EEM(s); ensuring that the EEM(s) is/are in good working order and condition; ensuring that the equipment is of the manufacture, design specifications, size and capacity selected by the Customer and that the same is properly installed and suitable for the Customer’s purposes; and determining if work was properly performed.
A51: (d) The Customer agrees and acknowledges that the Program Administrator is not a manufacturer of, or regularly engaged in the sale or distribution of, or an expert with regard to, any equipment or work which might be used to install the EEM(s) under the Program.
A52: (e) The provisions of this Section shall survive the termination, cancellation or completion of the Customer’s participation in the Program.
A53: 17. Customer Confidentiality
A54: The Customer consents to the release by the Company of the Customer’s energy use information to authorized representatives of the Program Administrator performing evaluations and/or determining eligibility, demand reduction, or energy savings in connection with the Program provided that the Program Administrator requires that the Customer’s energy use information is kept confidential and used only for the purposes of evaluation and/or determining eligibility, demand reduction, or energy savings in connection with the Program. The Customer further grants to the Program Administrator the right to use and reference the Customer’s participation in the Program and the energy savings relating to the Customer’s participation in the Program for regulatory purposes. The Program Administrator shall keep the Customer’s information in strict confidence, shall exercise reasonable care to maintain the confidentiality, and shall not divulge the Customer’s information to any third party without the prior written consent of the Customer, except to the extent expressly permitted by these Terms and Conditions.
A55: 18. Customer Must Declare and Pay All Taxes
A56: The benefits conferred upon the Customer through participation in this Program, including the receipt of the Incentive, may be taxable by the federal, state, and/or local government. The Customer is responsible for declaring and paying all such taxes. The Program Administrator is not responsible for the payment of any such taxes.
A57: 19. Counterpart Execution; Scanned Copy.
A58: Any and all agreements and documents requiring signature related hereto may be executed in several counterparts, each of which, when executed, shall be deemed to be an original, but all of which together shall constitute one and the same instrument. A scanned or electronically reproduced copy or image of such agreements and documents bearing the signatures of the parties shall be deemed an original and may be introduced or submitted in any action or proceeding as competent evidence of the execution, terms and existence of such agreements and documents notwithstanding the failure or inability to produce or tender an original, executed counterpart of the same and without the requirement that the unavailability of such original, executed counterpart of the same first be proven.
A59: 20. Miscellaneous
A60: (a) If any provision of these Terms and Conditions is deemed invalid by any court or administrative body having jurisdiction, such ruling shall not invalidate any other provision, and the remaining provisions shall remain in full force and effect in accordance with their terms.
A61: (b) These Terms and Conditions shall be interpreted and enforced according to the laws of the State of New York.
A62: (c) In the event of any conflict or inconsistency between these Terms and Conditions and any Program Materials, these Terms and Conditions shall be controlling.
A63: (d) Except as expressly provided herein, there shall be no modification or amendment to these Terms and Conditions or the Program Materials unless such modification or amendment is in writing and duly authorized by the Program Administrator.
A64: (e) Sections 15, 16, 17, 18 and 20(b) shall survive the termination or expiration of the Customer’s participation in the Program.
A75: 1-855-236-7052 |energysavings@nationalgrid.com | www.ngrid.com/unybiz | K75: ="Rev "&'App & Instructions'!$K$45 -> Rev 1 (1/1/21)

Sheet Prscp Lighting Measures-1A
A2: ='App & Instructions'!A2 -> Commercial & Industrial Retrofit Program
A3: Lighting Systems & Controls Application
A5: Table 1A: Lighting Systems Eligibility and Incentive Levels ( Complete Table 2A for Lighting System Installations)
A6: Measure Code | B6: Measure Description | C6: Per Unit Incentive | D6: Eligibility Criteria | E6: Representative Images
A7: Table 1A.1: Re-lamp & Re-ballast Replacement Options
A8: 81A | B8: Integral LED Screw-in and Pin Based Directional Replacement Lamps | C8: 5 | D8: LED screw-in and pin based directional integral replacement lamps include: MR16, PAR16, and PAR20, A-line, candle, and decorative globe lamps. Please check with your National Grid representative for eligibility of other omnidirectional and decorative lamp types. Required to be listed by Energy Star.
A9: 81B | B9: Integral LED screw-in Directional Replacement PAR Lamps | C9: 10 | D9: LED screw-in directional integral replacement lamps include: PAR30, BR30, and PAR38. Required to be listed by Energy Star.
A10: 81C | B10: LED Linear T8, T5, and U-Bend Replacement Lamps with Internal Driver (UL Type A) | C10: 4 | D10: LED T8 & T5 2 ft., 3 ft., 4 ft. & 8 ft. Ballast Compatible Linear and U-Bend Replacement Lamps (UL Type A) with Internal Driver are required to be listed by the DesignLights Consortium® and must be listed in the DLC category of Linear Replacement Lamp. LED Lamps with Internal Driver using Line Voltage to tombstones (UL Type B) are NOT eligible, see measure code 81F. | E10: UL Type A
A11: 81D | B11: LED Linear T8, T5, and U-Bend Replacement Lamps with External Driver (UL Type C) | C11: 6 | D11: LED T8 & T5 2 ft., & 3 ft. Linear Replacement Lamp with 1-, 2-, 3-, & 4-Lamp External Driver (UL Type C) and 4 ft. Linear Replacement Lamps with 1- & 2-Lamp External Driver (UL Type C) are required to be listed by the DesignLights Consortium® and must be listed in the DLC category of Linear Replacement Lamp. LED Linear Replacement Lamps with Internal Driver - Ballast Compatible (UL Type A) or using Line Voltage to sockets (UL Type B) are NOT eligible, see measure codes 81C or 81F.
A12: 81E | B12: LED Linear T8 & T5 - 4 ft. & 8 ft. Replacement Lamps with External Driver (UL Type C) | C12: 8 | D12: LED T8 & T5 4 ft. Linear Replacement Lamps with 3- & 4-Lamp External Driver (UL Type C) and 8 ft. Linear Replacement Lamps with 1- & 2-Lamp External Driver (UL Type C) are required to be listed by the DesignLights Consortium® and must be listed in the DLC category of Linear Replacement Lamp. LED Linear Replacement Lamps with Internal Driver - Ballast Compatible (UL Type A) or using Line Voltage to sockets (UL Type B) are NOT eligible, see measure codes 81C or 81F.
A13: 81F | B13: LED Linear T8 & T5 and U-Bend Replacement Lamps with Internal Driver using Line Voltage to Tombstones (UL Type B) ONLY | C13: 4 | D13: LED 2 ft., 3 ft., 4 ft. & 8 ft. Linear and U-Bend Replacement Lamps with line voltage (UL Type B) are required to be listed by the DesignLights Consortium® and must be listed in the DLC category of Linear Replacement Lamp. Existing lamp holders shall be replaced when installing single ended lamps or if deemed necessary. Fixtures being retrofitted shall be clearly labeled to alert of alterations with line voltage to lamp holder. In-line fuse kits or other safety measures are advised as recommented by manufacturer. Safety training and/or installation instructions must be provided to customer. | E13: UL Type B
A14: 81G | B14: LED T5HO - 4 ft. Linear Replacement Lamp (UL Type A, B, or C) T5HO ONLY | C14: 8 | D14: LED 4 ft. Linear Replacement Lamps T5HO that are ballast compatible (UL Type A), with line voltage (UL Type B), or with external driver (UL Type C) are required to be listed by the DesignLights Consortium® and must be listed in the DLC category of Linear Replacement Lamp. For UL Type B lamps existing lamp holders shall be replaced when installing single ended lamps or if deemed necessary. Fixtures being retrofitted shall be clearly labeled to alert of alterations with line voltage to lamp holder. In-line fuse kits or other safety measures are advised as recommented by manufacturer. Safety training and/or installation instructions must be provided to customer. | E14: UL Type A, B or C
A15: 81H | B15: LED 2-pin or 4-pin Replacement Lamps for CFLs | C15: 4 | D15: LED 2-pin or 4-pin CFL Replacement Lamps - vertical or horizontal installation with integral driver (UL Type A) are required to be listed by the DesignLights Consortium® and must be listed in the DLC category of Pin-Base Replacement Lamps for CFL.
A16: 81HG | B16: LED 4-pin Replacement Lamps for CFLs (PLL) | C16: 6 | D16: LED 4-pin 2G11 Base CFL Replacement Lamps (PLL) can either be "Plug & Play" (UL Type A), internal driver/line voltage (UL Type B), or 2- or 3-lamp with external driver (UL Type C) are required to be listed by the DesignLights Consortium® and must be listed in the DLC category of Four Pin-Base Replacement Lamps for CFL. For UL Type B lamps; fixtures being retrofitted shall be clearly labeled to alert of alterations with line voltage to lamp holder. Safety training and/or installation instructions must be provided to customer.
A17: 81M | B17: LED Mogel Screw-Base (E39) Replacement Lamp < 10,000 lumens for HID Lamp | C17: 30 | D17: LED Mogel Screw-Base (E39) Replacement Lamp < 10,000 lumens for HID Lamp are required to be listed by the DesignLights Consortium® and must be listed in the DLC category of Mogul Screw-Base Replacements for HID.
A18: 81MH | B18: LED Mogel Screw-Base (E39) Replacement Lamp ≥ 10,000 lumens for HID Lamp | C18: 70 | D18: LED Mogel ScrewBase (E39) Replacement Lamp ≥ 10,000 lumens for HID Lamp are required to be listed by the DesignLights Consortium® and must be listed in the DLC category of Mogul Screw-Base Replacements for HID.
A19: Table 1A.2: Commercial/Industrial Interior Fixture Options
A20: 25 | B20: LED or LEC (Electroluminescence) Exit Fixtures | C20: 10 | D20: All units shall comply with applicable codes and standards; including (but not limited to) Federal/State/Local building, fire, and electrical codes and may require designated egress lighting to comply with such codes. Retrofit kits are not eligible.
A21: 80A | B21: LED Reccessed Down Light Luminaires - Hard Wired & Retrofit Kits | C21: 10 | D21: Down Lights are required to be hardwired or retrofit kits and listed as a commercial LED product by Energy Star.
A22: 80B | B22: LED Surface Mount Down Light Luminaires and Interior Wall Sconces | C22: 8 | D22: Surface Mount Luminaires and Wall Sconces are required to be hardwired and listed as a commercial LED product by Energy Star.
A23: 84 | B23: LED Track or Mono-Point Directional Luminaires | C23: 15 | D23: LED track or mono-point directional fixtures must be listed by Energy Star or the DesignLights Consortium® with DLC Standard Classification and must have the DLC primary use designation of track or mono-point luminaire.
A24: 84P | C24: 20 | D24: LED track or mono-point directional fixtures must be listed by the DesignLights Consortium® with DLC Premium Classification and must have the DLC primary use designation of track or mono-point luminaire.
A25: 88A | B25: LED Interior 1x4, 2x2, and 2x4 Linear Retrofit Kits | C25: 10 | D25: LED Interior 1x4, 2x2, and 2x4 linear retrofit kits are required to be listed by the DesignLights Consortium® with Standard Classification and must have the DLC primary use designation of Linear Retrofit kits for 1x4, 2x2, or 2x4.
A26: 88AP | C26: 15 | D26: LED Interior 1x4, 2x2, and 2x4 linear retrofit kits are required to be listed by the DesignLights Consortium® with Premium Classification and must have the DLC primary use designation of Linear Retrofit kits for 1x4, 2x2, or 2x4.
A27: 88B | B27: LED Interior 1x4 and 2x2 Luminaires or Integrated Retrofit Kits | C27: 20 | D27: LED Interior 1x4 and 2x2 luminaires or integrated retrofit kits are required to be listed by the DesignLights Consortium® with Standard Classification and must have the DLC primary use designation of Luminaire for ambient lighting of interior commercial spaces or integrated retrofit kits for 1x4 or 2x2.
A28: 88BP | C28: 30 | D28: LED Interior 1x4 and 2x2 luminaires or integrated retrofit kits are required to be listed by the DesignLights Consortium® with Premium Classification and must have the DLC primary use designation of Luminaire for ambient lighting of interior commercial spaces or integrated retrofit kits for 1x4 or 2x2.
A29: 88C | B29: LED Interior 2x4 Luminaires or Integrated Retrofit Kits | C29: 30 | D29: LED Interior 2x4 luminaire or integrated retrofit kits are required to be listed by the DesignLights Consortium® with Standard Classification and must have the DLC primary use designation of Luminaire for ambient lighting of interior commercial spaces or integrated retrofit kits for 2x4.
A30: 88CP | C30: 40 | D30: LED Interior 2x4 luminaires or integrated retrofit kits are required to be listed by the DesignLights Consortium® with Premium Classification and must have the DLC primary use designation of Luminaire for ambient lighting of interior commercial spaces or integrated retrofit kits for 2x4.
A31: 89 | B31: LED Direct Linear Ambient Luminaires or Integrated Retrofit Kits - 4 ft. sections | C31: 15 | D31: LED Direct Linear Ambient luminaires or integrated retrofit kits are required to be listed by the DesignLights Consortium® with Standard Classification and must have the DLC primary use designation of Direct Linear Ambient Luminaire, Linear Ambient Luminaire w/ Indirect Component, or Retrofit Kits for Direct Linear Ambient Luminaires.
A32: 89P | C32: 20 | D32: LED Direct Linear Ambient luminaires or integrated retrofit kits are required to be listed by the DesignLights Consortium® with Premium Classification and must have the DLC primary use designation of Direct Linear Ambient Luminaire, Linear Ambient Luminaire w/ Indirect Component, or Retrofit Kits for Direct Linear Ambient Luminaires.
A33: 90 | B33: LED Cove Mounted Fixtures - 12 in. sections | C33: 5 | D33: LED cove mounted fixtures are required to be listed by Energy Star as a commercial product with a fixture type designation of Cove Mount. Must have 3,000 annual hours of operation.
A34: 82A | B34: LED Display Case: Cooler, Freezer, or Refrigerated Shelving Lumianires - 3 ft. and 4 ft. Units | C34: 30 | D34: LED 3 ft. And 4 ft. Display Case Luminaires are required to be listed by the DesignLights Consortium® with Standard Classification under the DLC general applicaiton of Case Lighting for Indoor Luminaires. For verticle cases please specify quantity of end and/or center mount fixtures in Table 2A.
A35: 82AP | C35: 35 | D35: LED 3 ft. And 4 ft. Display Case Luminaires are required to be listed by the DesignLights Consortium® with Premium Classification under the DLC general applicaiton of Case Lighting for Indoor Luminaires. For verticle cases please specify quantity of end and/or center mount fixtures in Table 2A.
A36: 82B | B36: LED Display Case: Cooler, Freezer, or Refrigerated Shelving Luminaires - 5 ft. and 6 ft. Units | C36: 40 | D36: LED 5 ft. And 6 ft. Display Case Luminaires are required to be listed by the DesignLights Consortium® with Standard Classification under the DLC general applicaiton of Case Lighting for Indoor Luminaires. For verticle cases please specify quantity of end and/or center mount fixtures in Table 2A.
A37: 82BP | C37: 45 | D37: LED 5 ft. And 6 ft. Display Case Luminaires are required to be listed by the DesignLights Consortium® with Premium Classification under the DLC general applicaiton of Case Lighting for Indoor Luminaires. For verticle cases please specify quantity of end and/or center mount fixtures in Table 2A.
A38: 86A | B38: LED Interior Low-Bay Luminaires or Retrofit Kits - (5,000 - 10,000 lumens) | C38: 60 | D38: LED interior low-bay luminaires or retrofit kits for low-bay luminaires with 5,000 - 10,000 lumens are required to be listed by the DesignLights Consortium® with Standard classification and must have the DLC primary use designation of low-bay luminaires or retrofit kits for low-bay luminaires for commercial and industrial buildings. Integral ballast screw-based lamp retrofit products are NOT eligible for this incentive, see measure code 81M or 81MH.
A39: 86AP | C39: 70 | D39: LED interior low-bay luminaires or retrofit kits for low-bay luminaires with 5,000 - 10,000 lumens are required to be listed by the DesignLights Consortium® with Premium classification and must have the DLC primary use designation of low-bay luminaires or retrofit kits for low-bay luminaires for commercial and industrial buildings. Integral ballast screw-based lamp retrofit products are NOT eligible for this incentive, see measure code 81M or 81MH.
A40: 86B | B40: LED Interior High-Bay Luminaires or Retrofit Kits - (10,000 - 20,000 lumens) | C40: 75 | D40: LED interior high-bay luminaires or retrofit kits for high-bay luminaires with 10,000 - 20,000 lumens are required to be listed by the DesignLights Consortium® with Standard classification and must have the DLC primary use designation of high-bay, high-bay aisle luminaires, or retrofit kits for high-bay luminaires for commercial and industrial buildings. Integral ballast screw-based lamp retrofit products are NOT eligible for this incentive, see measure code 81M or 81MH.
A41: 86BP | C41: 85 | D41: LED interior high-bay luminaires or retrofit kits for high-bay luminaires with 10,000 - 20,000 lumens are required to be listed by the DesignLights Consortium® with Premium classification and must have the DLC primary use designation of high bay, high bay aisle luminaires, or retrofit kits for high-bay luminaires for commercial and industrial buildings. Integral ballast screw-based lamp retrofit products are NOT eligible for this incentive, see measure code 81M or 81MH.
A42: 86C | B42: LED Interior High-Bay Luminaires or Retrofit Kits - (20,001 - 28,000 lumens) | C42: 100 | D42: LED interior high-bay luminaires or retrofit kits for high-bay luminaires with 20,001 - 28,000 lumens are required to be listed by the DesignLights Consortium® with Standard classification and must have the DLC primary use designation of high bay, high bay aisle luminaires, or retrofit kits for high-bay luminaires for commercial and industrial buildings. Integral ballast screw-based lamp retrofit products are NOT eligible for this incentive, see measure code 81M or 81MH.
A43: 86CP | C43: 115 | D43: LED interior high-bay luminaires or retrofit kits for high-bay luminaires with 20,001 - 28,000 lumens are required to be listed by the DesignLights Consortium® with Premium classification and must have the DLC primary use designation of high bay, high bay aisle luminaires, or retrofit kits for high-bay luminaires for commercial and industrial buildings. Integral ballast screw-based lamp retrofit products are NOT eligible for this incentive, see measure code 81M or 81MH.
A44: 86D | B44: LED Interior High Bay Luminaires - (> 28,000 lumens) | C44: 180 | D44: LED interior high-bay luminaires greater than 28,000 lumens are required to be listed by the DesignLights Consortium® with Standard classification and must have the DLC primary use designation of high-bay or high-bay aisle luminaires for commercial and industrial buildings. Retrofit kits are NOT eligible for this incentive, see measure code 86A, B or C for retrofit eligibility.
A45: 86DP | C45: 200 | D45: LED interior high-bay luminaires greater than 28,000 lumens are required to be listed by the DesignLights Consortium® with Premium classification and must have the DLC primary use designation of high-bay or high-bay aisle luminaires for commercial and industrial buildings. Retrofit kits are NOT eligible for this incentive, see measure code 86A, B or C for retrofit eligibility.
A46: Table 1A.3: Outdoor / Exterior / Harsh Environment Fixture Options
A47: 93 | B47: LED Bi-Level Stairwell & Passageway Luminaires - 24/7 operation | C47: 45 | D47: LED bi-level stairwell & passageway luminaires must be listed by the DesignLights Consortium® with Standard Classification and must have the DLC primary use designation of stairwell & passageway luminaires under outdoor luminaires. Must have 8,760 annual hours of operation.
A48: 93P | C48: 55 | D48: LED bi-level stairwell & passageway luminaires must be listed by the DesignLights Consortium® with Premium Classification and must have the DLC primary use designation of stairwell & passageway luminaires under outdoor luminaires. Must have 8,760 annual hours of operation.
A49: 94 | B49: LED Horticultural Luminaires with NO Summer Peak Demand | C49: 150 | D49: LED horticultural luminaires that DO NOT operate during the summer month, these would include green houses that use natural sunlight. Horticultural luminaires must be listed by the DesignLights Consortium® on the Horticultural Lighting QPL. Additional considerations should be considered in LED horticultural lighting retrofits such as photosynthetic phton flux density (PPFD), photosynthetically active radiation (PAR), daily light integral (DAL) and other plant/application-specific requirements. A one-for-one reaplcement of legacy fixtures may not be possible, appropriate lighting design is encouraged.* Must have a minimum of 3,000 annual hours of operation.
A50: 94D | B50: LED Horticultural Luminaires with Summer Peak Demand | C50: 150 | D50: LED horticultural luminaires that operate during the summer month, these would include indoor grow facilities with no natural sunlight used. Horticultural luminaires must be listed by the DesignLights Consortium® on the Horticultural Lighting QPL. Additional considerations should be considered in LED horticultural lighting retrofits such as photosynthetic phton flux density (PPFD), photosynthetically active radiation (PAR), daily light integral (DAL) and other plant/application-specific requirements. A one-for-one reaplcement of legacy fixtures may not be possible, appropriate lighting design is encouraged.* Must have a minimum of 3,000 annual hours of operation.
A51: 83A | B51: LED Exterior Luminaires - Parking Garage & Canopy - 24/7 Operation | C51: 150 | D51: LED luminaires for surface, recessed, or canopy mounted must be listed by the DesignLights Consortium® with Standard Classification and must have the DLC primary use designation of parking garage or fuel pump canopy luminaires in the outdoor category. Must have 8,760 annual hours of operation. LED retrofit kits are NOT eligible for incentives, see measure code 83B.
A52: 83AP | C52: 160 | D52: LED luminaires for surface, recessed, or canopy mounted must be listed by the DesignLights Consortium® with Premium Classification and must have the DLC primary use designation of parking garage or fuel pump canopy luminaires in the outdoor category. Must have 8,760 annual hours of operation. LED retrofit kits are NOT eligible for incentives, see measure code 83B.
A53: 83B | B53: LED Exterior Luminaires & Retrofit Kits - Parking Garage & Canopy - Dusk to Dawn Operation | C53: 100 | D53: LED luminaires or retrofit kits for surface, recessed, or canopy mounted must be listed by the DesignLights Consortium® with Standard Classification and must have the DLC primary use designation of parking garage or fuel pump canopy luminaires or retrofit kit for those luminaires in the outdoor category. Must have a minimum of 4,380 annual hours of operation.
A54: 83BP | C54: 110 | D54: LED fixtures or retrofit kits for surface, recessed, or canopy mounted must be listed by the DesignLights Consortium® with Premium Classification and must have the DLC primary use designation of parking garage or fuel pump canopy luminaires or retrofit kit for those luminaires in the outdoor category. Must have a minimum of 4,380 annual hours of operation.
A55: 85A | B55: LED Exterior Wall/Pole/Arm Mounted Area and Flood Luminaires & Retrofit Kits - LOW, MID, HIGH, & VERY HIGH OUTPUT - < 4,380 hrs. | C55: 25 | D55: LED exterior wall/pole/arm mounted area or flood luminaires or retrofit kits are required to be listed by the DesignLights Consortium® with Standard Classification and must have the DLC primary use designation of outdoor pole/arm-mounted area and roadway, or decorative luminaires or retrofit kits, outdoor full-, semi-, or non-cutoff wall-mounted area luminaires or full-cutoff wall-mounted area retrofit kits, or landscape/accent or architectural flood and spot luminaires with the general application of either low, mid, high, or very high output. Must have a minimum of 2,000 annual hours of operation.
A56: 85AP | C56: 35 | D56: LED exterior wall/pole/arm mounted area or flood luminaires or retrofit kits are required to be listed by the DesignLights Consortium® with Premium Classification and must have the DLC primary use designation of outdoor pole/arm-mounted area and roadway, or decorative luminaires or retrofit kits, outdoor full-, semi-, or non-cutoff wall-mounted area luminaires or full-cutoff wall-mounted area retrofit kits, or landscape/accent or architectural flood and spot luminaires with the general application of either low, mid, high, or very high output. Must have a minimum of 2,000 annual hours of operation.
A57: 87A | B57: LED Exterior Wall/Pole/Arm Mounted Area and Flood LOW OUTPUT Luminaire & Retrofit Kits - Dusk to Dawn Operation | C57: 75 | D57: LED exterior wall/pole/arm mounted area or flood luminaires or retrofit kits are required to be listed by the DesignLights Consortium® with Standard Classification and must have the DLC primary use designation of outdoor pole/arm-mounted area and roadway, or decorative luminaires or retrofit kits, outdoor full-, semi-, or non-cutoff wall-mounted area luminaires or full-cutoff wall-mounted area retrofit kits, or landscape/accent or architectural flood and spot luminaires with the general application of low output. Must have a minimum of 4,380 annual hours of operation.
A58: 87AP | C58: 85 | D58: LED exterior wall/pole/arm mounted area or flood luminaires or retrofit kits are required to be listed by the DesignLights Consortium® with Premium Classification and must have the DLC primary use designation of outdoor pole/arm-mounted area and roadway, or decorative luminaires or retrofit kits, outdoor full-, semi-, or non-cutoff wall-mounted area luminaires or full-cutoff wall-mounted area retrofit kits, or landscape/accent or architectural flood and spot luminaires with the general application of low output. Must have a minimum of 4,380 annual hours of operation.
A59: 87B | B59: LED Exterior Wall/Pole/Arm Mounted Area and Flood MID OUTPUT Luminaires & Retrofit Kits - Dusk to Dawn Operation | C59: 145 | D59: LED exterior wall/pole/arm mounted area or flood luminaires or retrofit kits are required to be listed by the DesignLights Consortium® with Standard Classification and must have the DLC primary use designation of outdoor pole/arm-mounted area and roadway, or decorative luminaires or retrofit kits, outdoor full-, semi-, or non-cutoff wall-mounted area luminaires or full-cutoff wall-mounted area retrofit kits, or landscape/accent or architectural flood and spot luminaires with the general application of mid output. Must have a minimum of 4,380 annual hours of operation.
A60: 87BP | C60: 155 | D60: LED exterior wall/pole/arm mounted area or flood luminaires or retrofit kits are required to be listed by the DesignLights Consortium® with Premium Classification and must have the DLC primary use designation of outdoor pole/arm-mounted area and roadway, or decorative luminaires or retrofit kits, outdoor full-, semi-, or non-cutoff wall-mounted area luminaires or full-cutoff wall-mounted area retrofit kits, or landscape/accent or architectural flood and spot luminaires with the general application of mid output. Must have a minimum of 4,380 annual hours of operation.
A61: 87C | B61: LED Exterior Wall/Pole/Arm Mounted Area and Flood HIGH or VERY HIGH OUTPUT Luminaires & Retrofit Kits - Dusk to Dawn Operation | C61: 265 | D61: LED exterior wall/pole/arm mounted area or flood luminaires or retrofit kits are required to be listed by the DesignLights Consortium® with Standard Classification and must have the DLC primary use designation of outdoor pole/arm-mounted area and roadway, or decorative luminaires or retrofit kits, outdoor full-, semi-, or non-cutoff wall-mounted area luminaires or full-cutoff wall-mounted area retrofit kits, or landscape/accent or architectural flood and spot luminaires with the general application of high or very high output. Must have a minimum of 4,380 annual hours of operation.
A62: 87CP | C62: 275 | D62: LED exterior wall/pole/arm mounted area or flood fixtures or retrofit kits are required to be listed by the DesignLights Consortium® with Premium Classification and must have the DLC primary use designation of outdoor pole/arm-mounted area and roadway, or decorative luminaires or retrofit kits, outdoor full-, semi-, or non-cutoff wall-mounted area luminaires or full-cutoff wall-mounted area retrofit kits, or landscape/accent or architectural flood and spot luminaires with the general application of high or very high output. Must have a minimum of 4,380 annual hours of operation.
A63: Notes:
A64: * DLC Horticultural Lighting Resources: Horticultural Lighting & Application Design | E64: www.DLC-HorticulturalLtgDesign.com
A65: • Facility lighting must average a minimum of 2,000 hours per year, except Municipal Facilities and churches which must average a minimum of 1,000 hours.
A66: • All LED's that meet the current Energy Star or DLC Technical Requirements are eligible for incentives
A67: • Energy Star® qualified LED products listings and technical requirements can be found at: | E67: www.energystar.gov/LED
A68: • DesignLights Consortium® (DLC) qualified LED products listing and technical requirements can be found at: | E68: www.designlights.org
A69: • Total prescriptive incentives shall not exceed 100% of the total project cost
A71: National Grid does not warrant or accept any liability whatsoever for LED 2ft., 3ft., 4ft., or 8ft. Linear Replacement Lamps or Retrofit Kits that receive incentives through our energy efficiency programs. Customers are responsible for the proper modification and installation of LED Linear Replacement Lamps or Retrofit Kits in existing fixtures in accordance with manufacturer’s instructions. Customers should be aware that fixture modifications may void warranty. Customers are responsible for proper labeling of all modified fixtures.
A72: It is the responsibility of the lighting installers to meet current Illuminating Engineering Society standards for light levels, light distribution, uniformity, and lighting quality for all installations.
A90: 1-855-236-7052 | energysavings@nationalgrid.com | www.ngrid.com/unybiz | E90: ="Rev "&'App & Instructions'!$K$45 -> Rev 1 (1/1/21)

Sheet Prscp Ltg Control Measures-1B
A2: ='App & Instructions'!A2 -> Commercial & Industrial Retrofit Program
A3: Lighting Systems & Controls Application
A5: Table 1B: Lighting Controls Eligibility and Incentive Levels ( Complete Table 2B for Lighting Control Installations)
A6: Measure Code | B6: Measure Description | C6: Per Unit Incentive | D6: Eligibility Criteria | E6: Image
A7: 61 | B7: Remote Mounted Occupancy Sensor | C7: 20 | D7: Remote Mounted Control. Comply with manufacturer coverage recommendations. Manual "ON" overrides are not eligible.
A8: 62 | B8: Daylight and/or Occupancy Dimming System | C8: 15 | D8: Ballast or LED drivers must be automatically controlled based on daylight or occupancy levels.
A9: 63 | B9: Luminaire Level Lighting Control (LLLC, Integrated) | C9: 25 | D9: Integral luminaire or retrofit-kit mounted or embedded networked control are required to be listed on DesignLights Consortium® Qualified Controls List as an LLLC. Control must be addressable, have occupancy sensor and ambient light sensor, and components must have control persistence capabilities.
A10: 64 | B10: Wall Mounted Occupancy Sensor | C10: 10 | D10: Occupancy sensor must operate as Automatic On and Off. Sensors must be wall mounted devices only. Vacancy sensors with Manual On, Automatic OFF options are allowed. Manual "ON" overrides are not eligible.
A11: 65 | B11: Photocell Sensor - Lighting applications operating 24/7 | C11: 15 | D11: Photocell sensor or hard-wired astronomical timer controller for lighting systems that operate 24 hours per day, 7 days per week (8,760 annual hours).
A12: 68 | B12: Occupancy Sensor for High Bay Fixtures | C12: 20 | D12: Ballasts or LED drivers must be automatically controlled based on occupancy. Sensors must be integral or permanently attached to each fixture. Manual "ON" or overrides are not eligible.
A13: Notes:
A14: • Control incentives are in addition to LED incentives if coupled with an LED luminaire, retrofit kit, or LED linear replacement lamps
A15: • DesignLights Consortium® (DLC) qualified controls listing and technical requirements can be found at: | E15: https://www.designlights.org/lighting-controls/
A26: 1-855-236-7052 | energysavings@nationalgrid.com | www.ngrid.com/unybiz | E26: ="Rev "&'App & Instructions'!$K$45 -> Rev 1 (1/1/21)

Sheet Lighting Worksheet-2A
AI1: Facility Type | AJ1: ='App Cust Info'!$A$23 -> 0 | AL1: =VLOOKUP(AJ1,BuildingCodeLookup, 2, FALSE) ->  | AM1: =VLOOKUP(AJ1, 'Operation Hours'!B2:D70, 3, FALSE) ->  | AN1: Building Type | AO1: Refrigeration | AQ1: RW
A2: ='App & Instructions'!A2 -> Commercial & Industrial Retrofit Program | AI2: Type of Building | AJ2: =IFERROR(VLOOKUP(AL1,FacilityLookup,2,FALSE),0) -> 0 | AL2: =VLOOKUP(AJ2, HVAC!J2:K26, 2, FALSE) ->  | AN2: City | AO2: =AJ3 -> 
A3: Lighting Systems & Controls Application | AI3: City | AJ3: =D8 ->  | AN3: HVAC System | AO3: Refrigerated | AQ3: =AQ1&AJ3&"H2O Cooled Ammonia Screw Compressor" -> RW H2O Cooled Ammonia Screw Compressor
A4: Table 2A: Lighting Systems Inventory Worksheet | AI4: HVAC System | AJ4: ='App Cust Info'!G23 -> 0 | AL4: =AL1&AJ3&AJ4 ->  | AN4: HVAC-c | AO4: =IFERROR(VLOOKUP($AQ$3, HVAC!A4:H710, 6, FALSE),0) -> 0
AI5: HVACc | AJ5: =IFERROR(VLOOKUP($AL$4,HVAC!A4:H710, 6, FALSE),0) -> 0 | AN5: HVAC-d | AO5: =IFERROR(VLOOKUP($AQ$3, HVAC!A4:H710, 7, FALSE),0) -> 0
AI6: HVACd | AJ6: =IFERROR(VLOOKUP($AL$4, HVAC!A4:H710, 7, FALSE),0) -> 0 | AN6: HVAC-g | AO6: =IFERROR(VLOOKUP($AQ$3, HVAC!A4:H710, 8, FALSE),0) -> 0
A7: ='App Cust Info'!A9 -> 0 | AI7: HVACff | AJ7: =IFERROR(VLOOKUP($AL$4, HVAC!A4:H710, 8, FALSE),0) -> 0
C8: City Facility is Closest to: | D8: =IFERROR(VLOOKUP('App Cust Info'!J15,Zip,4,FALSE)," ") ->  | F8: Complete Grey | H8: cells in each applicable row
F9: EXISTING | Q9: PROPOSED
A10: Line Item | B10: Interior or Exterior (I or E) | C10: Air Conditioned Location (Yes, No or Refrigerated) | D10: Location (Area/ Room) | E10: Annual Operating Hours1 | F10: Fixture Description | G10: Lighting Type | H10: Quantity of Fixtures | I10: # of Lamps per Fixture | J10: Lamp Wattage | K10: Ballast Type | L10: Column2 | M10: Fixture NY Device Code3 | N10: Watts per Fixt./ Luminaire | O10: Annual kWh | P10: Annual kW | Q10: Fixture Description | R10: Lighting Type | S10: Quantity of Fixtures | T10: # of Lamps per Fixture | U10: Lamp/Fixt Wattage2 (SEE NOTE) | V10: Column2 | W10: Column3 | X10: Prescrip. InDemand Qty | Y10: Prescrip. InDemand Device Code | Z10: Fixture NY Device Code3 | AA10: Watts per Fixt./ Luminaire | AB10: Annual kWh | AC10: Annual kW | AD10: Proposed LED Manufacturer/ Model Number | AE10: DLC or Energy Star Listed | AF10: Measure Code | AG10: Prescriptive Per Unit Incentive | AH10: Total Pres. Lighting Incentive | AI10: Annual Lighting kWh Savings | AJ10: Annual Lighting kW Savings | AK10: Lighting HVAC kWh Savings | AL10: Lighting HVAC kW Savings | AM10: Lighting HVAC MMBTU Savings | AN10: Control kWh Savings | AO10: Control kW Savings | AP10: Control HVAC kWh Savings | AQ10: Control HVAC kW Savings | AR10: Control HVAC MMBTU Savings | AS10: Effective Useful Life (EUL) | AT10: Rated Measure Life (yrs) | AU10: Lifetime Savings | AV10: Notes | AW10: Custom Incentive Total
A11: Ex. | B11: I | C11: Y | D11: office | E11: 3200 | F11: 2x4 lensed troffer | G11: Fluor 48" | H11: 10 | I11: 3 | J11: 32 | K11: Elec-Instant Start NLO | L11: =IF(G11="LED Integral Lamp",G11&1&(I11*J11)&K11,G11&I11&J11&K11) -> Fluor 48"332Elec-Instant Start NLO | M11: =IFERROR(VLOOKUP($L11,NYDevCodes, 3, FALSE),0) -> F43ILL | N11: =IFERROR(VLOOKUP(M11,NYDevCodesWatts, 7, FALSE),0) -> 89 | O11: =IFERROR(E11*H11*N11/1000,0) -> 2848 | P11: =IFERROR(H11*N11/1000,0) -> 0.89 | Q11: 2x4 lensed troffer | R11: LED Integral Lamp | S11: 10 | T11: 3 | U11: 12 | V11: =IF(R11="LED Integral Lamp",R11&1&(T11*U11),R11&T11&U11) -> LED Integral Lamp136 | W11: =IF(R11="LED Integral Lamp",R11&1&U11,R11&T11&U11) -> LED Integral Lamp112 | X11: =IF(R11="LED Integral Lamp",T11*S11,S11) -> 30 | Y11: =IFERROR(VLOOKUP($W11,NYDevCodes, 3, FALSE),0) -> ILED012 | Z11: =IFERROR(VLOOKUP($V11,NYDevCodes, 3, FALSE),0) -> ILED036 | AA11: =IFERROR(VLOOKUP(Z11,NYDevCodesWatts, 7, FALSE),0) -> 36 | AB11: =IFERROR(E11*S11*AA11/1000,0) -> 1152 | AC11: =IFERROR(S11*AA11/1000,0) -> 0.36 | AD11: LED Manuf/ ABC45T8LED | AE11: DLC | AF11: 81C - LED Linear T8, T5, and U-Bend Replacement Lamps with Internal Driver (UL Type A) | AG11: =IFERROR(VLOOKUP(AF11,LightMeasEUL,2,FALSE),0) -> 4 | AH11: =IFERROR(AG11*X11,0) -> 120 | AI11: =IF(LEFT(AF11,2)="93",((P11*E11)-((AC11*438)+(AC11*0.5*8322))),O11-AB11) -> 1696 | AJ11: =IF(LEFT(AF11,2)="93",((P11-AC11)+(AC11-AC11*0.5)*(8322/E11))*1,IF(OR(AND(B11="E",E11=8760),B11="I"),(P11-AC11),0)) -> 0.53 | AK11: =IFERROR(IF(AND(B11="I",C11="Y"),($AJ$5*AI11),IF(AND(B11="I",C11="R"),($AO$4*AI11),0)),0) -> 0 | AL11: =IFERROR(IF(AND(B11="I",C11="Y"),($AJ$6*AJ11),IF(AND(B11="I",C11="R"),($AO$5*AJ11),0)),0) -> 0 | AM11: =IFERROR(IF(B11="I",($AJ$7*AI11),0),0) -> 0 | AN11: ='Controls Worksheet-2B'!$AF11 -> 230.4 | AO11: ='Controls Worksheet-2B'!$AG11 -> 0.072 | AP11: =IFERROR(IF(AND($B11="I",$C11="Y"),($AJ$5*$AN11),IF(AND($B11="I",$C11="R"),($AO$4*$AN11),0)),0) -> 0 | AQ11: =IFERROR(IF(AND($B11="I",$C11="Y"),($AJ$6*$AO11),IF(AND($B11="I",$C11="R"),($AO$5*$AO11),0)),0) -> 0 | AR11: =IFERROR(IF($B11="I",($AJ$7*$AN11),0),0) -> 0 | AS11: =IFERROR(VLOOKUP(AF11,LightMeasEUL,3,FALSE),0) -> 50000 | AT11: =IF(AND('Controls Worksheet-2B'!J11<>" ",$AS11>15000),MIN(10,$AS11/'Controls Worksheet-2B'!$S11),IF($AS11<15000,$AS11,MIN(VLOOKUP($AS11,Table51[],2),$AS11/$E11))) -> 10 | AU11: =(IFERROR($AT11*($AI12+$AK11+$AN11+$AP11),0)) -> 2304 | AW11: =IF(AF11="Custom",(AI11+AK11)*0.131,0) -> 0
A12: 1 | C12: =IF(B12="e","N"," ") ->  | E12: =IF(B12="E",4380,0) -> 0 | L12: =IF(G12="LED Integral Lamp",G12&1&(I12*J12)&K12,G12&I12&J12&K12) ->  | M12: 0 | N12: 0 | O12: =IFERROR(E12*H12*N12/1000,0) -> 0 | P12: =IFERROR(H12*N12/1000,0) -> 0 | S12: =H12 -> 0 | T12: =IF(R12="LED Fixture",1,I12) -> 0 | V12: =IF(R12="LED Integral Lamp",R12&1&(T12*ROUNDUP(U12,0)),R12&T12&ROUNDUP(U12,0)) -> 00 | W12: =IF(R12="LED Integral Lamp",R12&1&ROUNDUP(U12,0),R12&T12&ROUNDUP(U12,0)) -> 00 | X12: 0 | Y12: 0 | Z12: 0 | AA12: 0 | AB12: 0 | AC12: 0 | AG12: =IFERROR(IF(AI12>=0,VLOOKUP(AF12,LightMeasEUL,2,FALSE),"Negative Energy Savings"),0) -> 0 | AH12: =IFERROR(AG12*X12,0) -> 0 | AI12: =IF(LEFT(AF12,2)="93",((P12*E12)-((AC12*438)+(AC12*0.5*8322))),O12-AB12) -> 0 | AJ12: =IF(LEFT(AF12,2)="93",((P12-AC12)+(AC12-AC12*0.5)*(8322/E12))*1,IF(OR(AND(B12="E",E12=8760),B12="I"),(P12-AC12),0)) -> 0 | AK12: 0 | AL12: 0 | AM12: 0 | AN12: ='Controls Worksheet-2B'!$AF12 -> 0 | AO12: ='Controls Worksheet-2B'!$AG12 -> 0 | AP12: 0 | AQ12: 0 | AR12: =IFERROR(IF($B12="I",($AJ$7*AN12),0),0) -> 0 | AS12: 0 | AT12: =IF(AND('Controls Worksheet-2B'!J12<>" ",$AS12>15000),MIN(10,$AS12/'Controls Worksheet-2B'!$S12),IF($AS12<15000,$AS12,MIN(VLOOKUP($AS12,Table51[],2),$AS12/$E12))) -> 0 | AU12: =(IFERROR($AT12*($AI12+$AK12+$AN12+$AP12),0)) -> 0 | AW12: 0
A13: 2 | E13: 0 | L13: =IF(G13="LED Integral Lamp",G13&1&(I13*J13)&K13,G13&I13&J13&K13) ->  | M13: 0 | N13: 0 | O13: =IFERROR(E13*H13*N13/1000,0) -> 0 | P13: =IFERROR(H13*N13/1000,0) -> 0 | S13: 0 | T13: 0 | V13: =IF(R13="LED Integral Lamp",R13&1&(T13*ROUNDUP(U13,0)),R13&T13&ROUNDUP(U13,0)) -> 00 | W13: =IF(R13="LED Integral Lamp",R13&1&ROUNDUP(U13,0),R13&T13&ROUNDUP(U13,0)) -> 00 | X13: 0 | Y13: 0 | Z13: 0 | AA13: 0 | AB13: 0 | AC13: 0 | AG13: 0 | AH13: =IFERROR(AG13*X13,0) -> 0 | AI13: =IF(LEFT(AF13,2)="93",((P13*E13)-((AC13*438)+(AC13*0.5*8322))),O13-AB13) -> 0 | AJ13: =IF(LEFT(AF13,2)="93",((P13-AC13)+(AC13-AC13*0.5)*(8322/E13))*1,IF(OR(AND(B13="E",E13=8760),B13="I"),(P13-AC13),0)) -> 0 | AK13: 0 | AL13: 0 | AM13: 0 | AN13: ='Controls Worksheet-2B'!$AF13 -> 0 | AO13: ='Controls Worksheet-2B'!$AG13 -> 0 | AP13: 0 | AQ13: 0 | AR13: =IFERROR(IF($B13="I",($AJ$7*AN13),0),0) -> 0 | AS13: 0 | AT13: =IF(AND('Controls Worksheet-2B'!J13<>" ",$AS13>15000),MIN(10,$AS13/'Controls Worksheet-2B'!$S13),IF($AS13<15000,$AS13,MIN(VLOOKUP($AS13,Table51[],2),$AS13/$E13))) -> 0 | AU13: =(IFERROR($AT13*($AI13+$AK13+$AN13+$AP13),0)) -> 0 | AW13: 0
A14: 3 | E14: 0 | M14: 0 | N14: 0 | O14: 0 | P14: 0 | S14: 0 | T14: 0 | V14: 00 | W14: 00 | X14: 0 | Y14: 0 | Z14: 0 | AA14: 0 | AB14: 0 | AC14: 0 | AG14: 0 | AH14: 0 | AI14: 0 | AJ14: 0 | AK14: 0 | AL14: 0 | AM14: 0 | AN14: ='Controls Worksheet-2B'!$AF14 -> 0 | AO14: ='Controls Worksheet-2B'!$AG14 -> 0 | AP14: 0 | AQ14: 0 | AR14: 0 | AS14: 0 | AT14: =IF(AND('Controls Worksheet-2B'!J14<>" ",$AS14>15000),MIN(10,$AS14/'Controls Worksheet-2B'!$S14),IF($AS14<15000,$AS14,MIN(VLOOKUP($AS14,Table51[],2),$AS14/$E14))) -> 0 | AU14: 0 | AW14: 0
A15: 4 | E15: 0 | M15: 0 | N15: 0 | O15: 0 | P15: 0 | S15: 0 | T15: 0 | V15: 00 | W15: 00 | X15: 0 | Y15: 0 | Z15: 0 | AA15: 0 | AB15: 0 | AC15: 0 | AG15: 0 | AH15: 0 | AI15: 0 | AJ15: 0 | AK15: 0 | AL15: 0 | AM15: 0 | AN15: ='Controls Worksheet-2B'!$AF15 -> 0 | AO15: ='Controls Worksheet-2B'!$AG15 -> 0 | AP15: 0 | AQ15: 0 | AR15: 0 | AS15: 0 | AT15: =IF(AND('Controls Worksheet-2B'!J15<>" ",$AS15>15000),MIN(10,$AS15/'Controls Worksheet-2B'!$S15),IF($AS15<15000,$AS15,MIN(VLOOKUP($AS15,Table51[],2),$AS15/$E15))) -> 0 | AU15: 0 | AW15: 0
A16: 5 | E16: 0 | M16: 0 | N16: 0 | O16: 0 | P16: 0 | S16: 0 | T16: 0 | V16: 00 | W16: 00 | X16: 0 | Y16: 0 | Z16: 0 | AA16: 0 | AB16: 0 | AC16: 0 | AG16: 0 | AH16: 0 | AI16: 0 | AJ16: 0 | AK16: 0 | AL16: 0 | AM16: 0 | AN16: ='Controls Worksheet-2B'!$AF16 -> 0 | AO16: ='Controls Worksheet-2B'!$AG16 -> 0 | AP16: 0 | AQ16: 0 | AR16: 0 | AS16: 0 | AT16: =IF(AND('Controls Worksheet-2B'!J16<>" ",$AS16>15000),MIN(10,$AS16/'Controls Worksheet-2B'!$S16),IF($AS16<15000,$AS16,MIN(VLOOKUP($AS16,Table51[],2),$AS16/$E16))) -> 0 | AU16: 0 | AW16: 0
A17: 6 | E17: 0 | M17: 0 | N17: 0 | O17: 0 | P17: 0 | S17: 0 | T17: 0 | V17: 00 | W17: 00 | X17: 0 | Y17: 0 | Z17: 0 | AA17: 0 | AB17: 0 | AC17: 0 | AG17: 0 | AH17: 0 | AI17: 0 | AJ17: 0 | AK17: 0 | AL17: 0 | AM17: 0 | AN17: ='Controls Worksheet-2B'!$AF17 -> 0 | AO17: ='Controls Worksheet-2B'!$AG17 -> 0 | AP17: 0 | AQ17: 0 | AR17: 0 | AS17: 0 | AT17: =IF(AND('Controls Worksheet-2B'!J17<>" ",$AS17>15000),MIN(10,$AS17/'Controls Worksheet-2B'!$S17),IF($AS17<15000,$AS17,MIN(VLOOKUP($AS17,Table51[],2),$AS17/$E17))) -> 0 | AU17: 0 | AW17: 0
A18: 7 | E18: 0 | M18: 0 | N18: 0 | O18: 0 | P18: 0 | S18: 0 | T18: 0 | V18: 00 | W18: 00 | X18: 0 | Y18: 0 | Z18: 0 | AA18: 0 | AB18: 0 | AC18: 0 | AG18: 0 | AH18: 0 | AI18: 0 | AJ18: 0 | AK18: 0 | AL18: 0 | AM18: 0 | AN18: ='Controls Worksheet-2B'!$AF18 -> 0 | AO18: ='Controls Worksheet-2B'!$AG18 -> 0 | AP18: 0 | AQ18: 0 | AR18: 0 | AS18: 0 | AT18: =IF(AND('Controls Worksheet-2B'!J18<>" ",$AS18>15000),MIN(10,$AS18/'Controls Worksheet-2B'!$S18),IF($AS18<15000,$AS18,MIN(VLOOKUP($AS18,Table51[],2),$AS18/$E18))) -> 0 | AU18: 0 | AW18: 0
A19: 8 | E19: 0 | M19: 0 | N19: 0 | O19: 0 | P19: 0 | S19: 0 | T19: 0 | V19: 00 | W19: 00 | X19: 0 | Y19: 0 | Z19: 0 | AA19: 0 | AB19: 0 | AC19: 0 | AG19: 0 | AH19: 0 | AI19: 0 | AJ19: 0 | AK19: 0 | AL19: 0 | AM19: 0 | AN19: ='Controls Worksheet-2B'!$AF19 -> 0 | AO19: ='Controls Worksheet-2B'!$AG19 -> 0 | AP19: 0 | AQ19: 0 | AR19: 0 | AS19: 0 | AT19: =IF(AND('Controls Worksheet-2B'!J19<>" ",$AS19>15000),MIN(10,$AS19/'Controls Worksheet-2B'!$S19),IF($AS19<15000,$AS19,MIN(VLOOKUP($AS19,Table51[],2),$AS19/$E19))) -> 0 | AU19: 0 | AW19: 0
A20: 9 | E20: 0 | M20: 0 | N20: 0 | O20: 0 | P20: 0 | S20: 0 | T20: 0 | V20: 00 | W20: 00 | X20: 0 | Y20: 0 | Z20: 0 | AA20: 0 | AB20: 0 | AC20: 0 | AG20: 0 | AH20: 0 | AI20: 0 | AJ20: 0 | AK20: 0 | AL20: 0 | AM20: 0 | AN20: ='Controls Worksheet-2B'!$AF20 -> 0 | AO20: ='Controls Worksheet-2B'!$AG20 -> 0 | AP20: 0 | AQ20: 0 | AR20: 0 | AS20: 0 | AT20: =IF(AND('Controls Worksheet-2B'!J20<>" ",$AS20>15000),MIN(10,$AS20/'Controls Worksheet-2B'!$S20),IF($AS20<15000,$AS20,MIN(VLOOKUP($AS20,Table51[],2),$AS20/$E20))) -> 0 | AU20: 0 | AW20: 0
A21: 10 | E21: 0 | M21: 0 | N21: 0 | O21: 0 | P21: 0 | S21: 0 | T21: 0 | V21: 00 | W21: 00 | X21: 0 | Y21: 0 | Z21: 0 | AA21: 0 | AB21: 0 | AC21: 0 | AG21: 0 | AH21: 0 | AI21: 0 | AJ21: 0 | AK21: 0 | AL21: 0 | AM21: 0 | AN21: ='Controls Worksheet-2B'!$AF21 -> 0 | AO21: ='Controls Worksheet-2B'!$AG21 -> 0 | AP21: 0 | AQ21: 0 | AR21: 0 | AS21: 0 | AT21: =IF(AND('Controls Worksheet-2B'!J21<>" ",$AS21>15000),MIN(10,$AS21/'Controls Worksheet-2B'!$S21),IF($AS21<15000,$AS21,MIN(VLOOKUP($AS21,Table51[],2),$AS21/$E21))) -> 0 | AU21: 0 | AW21: 0
A22: 11 | E22: 0 | M22: 0 | N22: 0 | O22: 0 | P22: 0 | S22: 0 | T22: 0 | V22: 00 | W22: 00 | X22: 0 | Y22: 0 | Z22: 0 | AA22: 0 | AB22: 0 | AC22: 0 | AG22: 0 | AH22: 0 | AI22: 0 | AJ22: 0 | AK22: 0 | AL22: 0 | AM22: 0 | AN22: ='Controls Worksheet-2B'!$AF22 -> 0 | AO22: ='Controls Worksheet-2B'!$AG22 -> 0 | AP22: 0 | AQ22: 0 | AR22: 0 | AS22: 0 | AT22: =IF(AND('Controls Worksheet-2B'!J22<>" ",$AS22>15000),MIN(10,$AS22/'Controls Worksheet-2B'!$S22),IF($AS22<15000,$AS22,MIN(VLOOKUP($AS22,Table51[],2),$AS22/$E22))) -> 0 | AU22: 0 | AW22: 0
A23: 12 | E23: 0 | M23: 0 | N23: 0 | O23: 0 | P23: 0 | S23: 0 | T23: 0 | V23: 00 | W23: 00 | X23: 0 | Y23: 0 | Z23: 0 | AA23: 0 | AB23: 0 | AC23: 0 | AG23: 0 | AH23: 0 | AI23: 0 | AJ23: 0 | AK23: 0 | AL23: 0 | AM23: 0 | AN23: ='Controls Worksheet-2B'!$AF23 -> 0 | AO23: ='Controls Worksheet-2B'!$AG23 -> 0 | AP23: 0 | AQ23: 0 | AR23: 0 | AS23: 0 | AT23: =IF(AND('Controls Worksheet-2B'!J23<>" ",$AS23>15000),MIN(10,$AS23/'Controls Worksheet-2B'!$S23),IF($AS23<15000,$AS23,MIN(VLOOKUP($AS23,Table51[],2),$AS23/$E23))) -> 0 | AU23: 0 | AW23: 0
A24: 13 | E24: 0 | M24: 0 | N24: 0 | O24: 0 | P24: 0 | S24: 0 | T24: 0 | V24: 00 | W24: 00 | X24: 0 | Y24: 0 | Z24: 0 | AA24: 0 | AB24: 0 | AC24: 0 | AG24: 0 | AH24: 0 | AI24: 0 | AJ24: 0 | AK24: 0 | AL24: 0 | AM24: 0 | AN24: ='Controls Worksheet-2B'!$AF24 -> 0 | AO24: ='Controls Worksheet-2B'!$AG24 -> 0 | AP24: 0 | AQ24: 0 | AR24: 0 | AS24: 0 | AT24: =IF(AND('Controls Worksheet-2B'!J24<>" ",$AS24>15000),MIN(10,$AS24/'Controls Worksheet-2B'!$S24),IF($AS24<15000,$AS24,MIN(VLOOKUP($AS24,Table51[],2),$AS24/$E24))) -> 0 | AU24: 0 | AW24: 0
A25: 14 | E25: 0 | M25: 0 | N25: 0 | O25: 0 | P25: 0 | S25: 0 | T25: 0 | V25: 00 | W25: 00 | X25: 0 | Y25: 0 | Z25: 0 | AA25: 0 | AB25: 0 | AC25: 0 | AG25: 0 | AH25: 0 | AI25: 0 | AJ25: 0 | AK25: 0 | AL25: 0 | AM25: 0 | AN25: ='Controls Worksheet-2B'!$AF25 -> 0 | AO25: ='Controls Worksheet-2B'!$AG25 -> 0 | AP25: 0 | AQ25: 0 | AR25: 0 | AS25: 0 | AT25: =IF(AND('Controls Worksheet-2B'!J25<>" ",$AS25>15000),MIN(10,$AS25/'Controls Worksheet-2B'!$S25),IF($AS25<15000,$AS25,MIN(VLOOKUP($AS25,Table51[],2),$AS25/$E25))) -> 0 | AU25: 0 | AW25: 0
A26: 15 | E26: 0 | M26: 0 | N26: 0 | O26: 0 | P26: 0 | S26: 0 | T26: 0 | V26: 00 | W26: 00 | X26: 0 | Y26: 0 | Z26: 0 | AA26: 0 | AB26: 0 | AC26: 0 | AG26: 0 | AH26: 0 | AI26: 0 | AJ26: 0 | AK26: 0 | AL26: 0 | AM26: 0 | AN26: ='Controls Worksheet-2B'!$AF26 -> 0 | AO26: ='Controls Worksheet-2B'!$AG26 -> 0 | AP26: 0 | AQ26: 0 | AR26: 0 | AS26: 0 | AT26: =IF(AND('Controls Worksheet-2B'!J26<>" ",$AS26>15000),MIN(10,$AS26/'Controls Worksheet-2B'!$S26),IF($AS26<15000,$AS26,MIN(VLOOKUP($AS26,Table51[],2),$AS26/$E26))) -> 0 | AU26: 0 | AW26: 0
A27: 16 | E27: 0 | M27: 0 | N27: 0 | O27: 0 | P27: 0 | S27: 0 | T27: 0 | V27: 00 | W27: 00 | X27: 0 | Y27: 0 | Z27: 0 | AA27: 0 | AB27: 0 | AC27: 0 | AG27: 0 | AH27: 0 | AI27: 0 | AJ27: 0 | AK27: 0 | AL27: 0 | AM27: 0 | AN27: ='Controls Worksheet-2B'!$AF27 -> 0 | AO27: ='Controls Worksheet-2B'!$AG27 -> 0 | AP27: 0 | AQ27: 0 | AR27: 0 | AS27: 0 | AT27: =IF(AND('Controls Worksheet-2B'!J27<>" ",$AS27>15000),MIN(10,$AS27/'Controls Worksheet-2B'!$S27),IF($AS27<15000,$AS27,MIN(VLOOKUP($AS27,Table51[],2),$AS27/$E27))) -> 0 | AU27: 0 | AW27: 0
A28: 17 | E28: 0 | M28: 0 | N28: 0 | O28: 0 | P28: 0 | S28: 0 | T28: 0 | V28: 00 | W28: 00 | X28: 0 | Y28: 0 | Z28: 0 | AA28: 0 | AB28: 0 | AC28: 0 | AG28: 0 | AH28: 0 | AI28: 0 | AJ28: 0 | AK28: 0 | AL28: 0 | AM28: 0 | AN28: ='Controls Worksheet-2B'!$AF28 -> 0 | AO28: ='Controls Worksheet-2B'!$AG28 -> 0 | AP28: 0 | AQ28: 0 | AR28: 0 | AS28: 0 | AT28: =IF(AND('Controls Worksheet-2B'!J28<>" ",$AS28>15000),MIN(10,$AS28/'Controls Worksheet-2B'!$S28),IF($AS28<15000,$AS28,MIN(VLOOKUP($AS28,Table51[],2),$AS28/$E28))) -> 0 | AU28: 0 | AW28: 0
A29: 18 | E29: 0 | M29: 0 | N29: 0 | O29: 0 | P29: 0 | S29: 0 | T29: 0 | V29: 00 | W29: 00 | X29: 0 | Y29: 0 | Z29: 0 | AA29: 0 | AB29: 0 | AC29: 0 | AG29: 0 | AH29: 0 | AI29: 0 | AJ29: 0 | AK29: 0 | AL29: 0 | AM29: 0 | AN29: ='Controls Worksheet-2B'!$AF29 -> 0 | AO29: ='Controls Worksheet-2B'!$AG29 -> 0 | AP29: 0 | AQ29: 0 | AR29: 0 | AS29: 0 | AT29: =IF(AND('Controls Worksheet-2B'!J29<>" ",$AS29>15000),MIN(10,$AS29/'Controls Worksheet-2B'!$S29),IF($AS29<15000,$AS29,MIN(VLOOKUP($AS29,Table51[],2),$AS29/$E29))) -> 0 | AU29: 0 | AW29: 0
A30: 19 | E30: 0 | M30: 0 | N30: 0 | O30: 0 | P30: 0 | S30: 0 | T30: 0 | V30: 00 | W30: 00 | X30: 0 | Y30: 0 | Z30: 0 | AA30: 0 | AB30: 0 | AC30: 0 | AG30: 0 | AH30: 0 | AI30: 0 | AJ30: 0 | AK30: 0 | AL30: 0 | AM30: 0 | AN30: ='Controls Worksheet-2B'!$AF30 -> 0 | AO30: ='Controls Worksheet-2B'!$AG30 -> 0 | AP30: 0 | AQ30: 0 | AR30: 0 | AS30: 0 | AT30: =IF(AND('Controls Worksheet-2B'!J30<>" ",$AS30>15000),MIN(10,$AS30/'Controls Worksheet-2B'!$S30),IF($AS30<15000,$AS30,MIN(VLOOKUP($AS30,Table51[],2),$AS30/$E30))) -> 0 | AU30: 0 | AW30: 0
A31: 20 | E31: 0 | M31: 0 | N31: 0 | O31: 0 | P31: 0 | S31: 0 | T31: 0 | V31: 00 | W31: 00 | X31: 0 | Y31: 0 | Z31: 0 | AA31: 0 | AB31: 0 | AC31: 0 | AG31: 0 | AH31: 0 | AI31: 0 | AJ31: 0 | AK31: 0 | AL31: 0 | AM31: 0 | AN31: ='Controls Worksheet-2B'!$AF31 -> 0 | AO31: ='Controls Worksheet-2B'!$AG31 -> 0 | AP31: 0 | AQ31: 0 | AR31: 0 | AS31: 0 | AT31: =IF(AND('Controls Worksheet-2B'!J31<>" ",$AS31>15000),MIN(10,$AS31/'Controls Worksheet-2B'!$S31),IF($AS31<15000,$AS31,MIN(VLOOKUP($AS31,Table51[],2),$AS31/$E31))) -> 0 | AU31: 0 | AW31: 0
A32: 21 | E32: 0 | M32: 0 | N32: 0 | O32: 0 | P32: 0 | S32: 0 | T32: 0 | V32: 00 | W32: 00 | X32: 0 | Y32: 0 | Z32: 0 | AA32: 0 | AB32: 0 | AC32: 0 | AG32: 0 | AH32: 0 | AI32: 0 | AJ32: 0 | AK32: 0 | AL32: 0 | AM32: 0 | AN32: ='Controls Worksheet-2B'!$AF32 -> 0 | AO32: ='Controls Worksheet-2B'!$AG32 -> 0 | AP32: 0 | AQ32: 0 | AR32: 0 | AS32: 0 | AT32: =IF(AND('Controls Worksheet-2B'!J32<>" ",$AS32>15000),MIN(10,$AS32/'Controls Worksheet-2B'!$S32),IF($AS32<15000,$AS32,MIN(VLOOKUP($AS32,Table51[],2),$AS32/$E32))) -> 0 | AU32: 0 | AW32: 0
A33: 22 | E33: 0 | M33: 0 | N33: 0 | O33: 0 | P33: 0 | S33: 0 | T33: 0 | V33: 00 | W33: 00 | X33: 0 | Y33: 0 | Z33: 0 | AA33: 0 | AB33: 0 | AC33: 0 | AG33: 0 | AH33: 0 | AI33: 0 | AJ33: 0 | AK33: 0 | AL33: 0 | AM33: 0 | AN33: ='Controls Worksheet-2B'!$AF33 -> 0 | AO33: ='Controls Worksheet-2B'!$AG33 -> 0 | AP33: 0 | AQ33: 0 | AR33: 0 | AS33: 0 | AT33: =IF(AND('Controls Worksheet-2B'!J33<>" ",$AS33>15000),MIN(10,$AS33/'Controls Worksheet-2B'!$S33),IF($AS33<15000,$AS33,MIN(VLOOKUP($AS33,Table51[],2),$AS33/$E33))) -> 0 | AU33: 0 | AW33: 0
A34: 23 | E34: 0 | M34: 0 | N34: 0 | O34: 0 | P34: 0 | S34: 0 | T34: 0 | V34: 00 | W34: 00 | X34: 0 | Y34: 0 | Z34: 0 | AA34: 0 | AB34: 0 | AC34: 0 | AG34: 0 | AH34: 0 | AI34: 0 | AJ34: 0 | AK34: 0 | AL34: 0 | AM34: 0 | AN34: ='Controls Worksheet-2B'!$AF34 -> 0 | AO34: ='Controls Worksheet-2B'!$AG34 -> 0 | AP34: 0 | AQ34: 0 | AR34: 0 | AS34: 0 | AT34: =IF(AND('Controls Worksheet-2B'!J34<>" ",$AS34>15000),MIN(10,$AS34/'Controls Worksheet-2B'!$S34),IF($AS34<15000,$AS34,MIN(VLOOKUP($AS34,Table51[],2),$AS34/$E34))) -> 0 | AU34: 0 | AW34: 0
A35: 24 | E35: 0 | M35: 0 | N35: 0 | O35: 0 | P35: 0 | S35: 0 | T35: 0 | V35: 00 | W35: 00 | X35: 0 | Y35: 0 | Z35: 0 | AA35: 0 | AB35: 0 | AC35: 0 | AG35: 0 | AH35: 0 | AI35: 0 | AJ35: 0 | AK35: 0 | AL35: 0 | AM35: 0 | AN35: ='Controls Worksheet-2B'!$AF35 -> 0 | AO35: ='Controls Worksheet-2B'!$AG35 -> 0 | AP35: 0 | AQ35: 0 | AR35: 0 | AS35: 0 | AT35: =IF(AND('Controls Worksheet-2B'!J35<>" ",$AS35>15000),MIN(10,$AS35/'Controls Worksheet-2B'!$S35),IF($AS35<15000,$AS35,MIN(VLOOKUP($AS35,Table51[],2),$AS35/$E35))) -> 0 | AU35: 0 | AW35: 0
A36: 25 | E36: 0 | M36: 0 | N36: 0 | O36: 0 | P36: 0 | S36: 0 | T36: 0 | V36: 00 | W36: 00 | X36: 0 | Y36: 0 | Z36: 0 | AA36: 0 | AB36: 0 | AC36: 0 | AG36: 0 | AH36: 0 | AI36: 0 | AJ36: 0 | AK36: 0 | AL36: 0 | AM36: 0 | AN36: ='Controls Worksheet-2B'!$AF36 -> 0 | AO36: ='Controls Worksheet-2B'!$AG36 -> 0 | AP36: 0 | AQ36: 0 | AR36: 0 | AS36: 0 | AT36: =IF(AND('Controls Worksheet-2B'!J36<>" ",$AS36>15000),MIN(10,$AS36/'Controls Worksheet-2B'!$S36),IF($AS36<15000,$AS36,MIN(VLOOKUP($AS36,Table51[],2),$AS36/$E36))) -> 0 | AU36: 0 | AW36: 0
A37: 26 | E37: 0 | M37: 0 | N37: 0 | O37: 0 | P37: 0 | S37: 0 | T37: 0 | V37: 00 | W37: 00 | X37: 0 | Y37: 0 | Z37: 0 | AA37: 0 | AB37: 0 | AC37: 0 | AG37: 0 | AH37: 0 | AI37: 0 | AJ37: 0 | AK37: 0 | AL37: 0 | AM37: 0 | AN37: ='Controls Worksheet-2B'!$AF37 -> 0 | AO37: ='Controls Worksheet-2B'!$AG37 -> 0 | AP37: 0 | AQ37: 0 | AR37: 0 | AS37: 0 | AT37: =IF(AND('Controls Worksheet-2B'!J37<>" ",$AS37>15000),MIN(10,$AS37/'Controls Worksheet-2B'!$S37),IF($AS37<15000,$AS37,MIN(VLOOKUP($AS37,Table51[],2),$AS37/$E37))) -> 0 | AU37: 0 | AW37: 0
A38: 27 | E38: 0 | M38: 0 | N38: 0 | O38: 0 | P38: 0 | S38: 0 | T38: 0 | V38: 00 | W38: 00 | X38: 0 | Y38: 0 | Z38: 0 | AA38: 0 | AB38: 0 | AC38: 0 | AG38: 0 | AH38: 0 | AI38: 0 | AJ38: 0 | AK38: 0 | AL38: 0 | AM38: 0 | AN38: ='Controls Worksheet-2B'!$AF38 -> 0 | AO38: ='Controls Worksheet-2B'!$AG38 -> 0 | AP38: 0 | AQ38: 0 | AR38: 0 | AS38: 0 | AT38: =IF(AND('Controls Worksheet-2B'!J38<>" ",$AS38>15000),MIN(10,$AS38/'Controls Worksheet-2B'!$S38),IF($AS38<15000,$AS38,MIN(VLOOKUP($AS38,Table51[],2),$AS38/$E38))) -> 0 | AU38: 0 | AW38: 0
A39: 28 | E39: 0 | M39: 0 | N39: 0 | O39: 0 | P39: 0 | S39: 0 | T39: 0 | V39: 00 | W39: 00 | X39: 0 | Y39: 0 | Z39: 0 | AA39: 0 | AB39: 0 | AC39: 0 | AG39: 0 | AH39: 0 | AI39: 0 | AJ39: 0 | AK39: 0 | AL39: 0 | AM39: 0 | AN39: ='Controls Worksheet-2B'!$AF39 -> 0 | AO39: ='Controls Worksheet-2B'!$AG39 -> 0 | AP39: 0 | AQ39: 0 | AR39: 0 | AS39: 0 | AT39: =IF(AND('Controls Worksheet-2B'!J39<>" ",$AS39>15000),MIN(10,$AS39/'Controls Worksheet-2B'!$S39),IF($AS39<15000,$AS39,MIN(VLOOKUP($AS39,Table51[],2),$AS39/$E39))) -> 0 | AU39: 0 | AW39: 0
A40: 29 | E40: 0 | M40: 0 | N40: 0 | O40: 0 | P40: 0 | S40: 0 | T40: 0 | V40: 00 | W40: 00 | X40: 0 | Y40: 0 | Z40: 0 | AA40: 0 | AB40: 0 | AC40: 0 | AG40: 0 | AH40: 0 | AI40: 0 | AJ40: 0 | AK40: 0 | AL40: 0 | AM40: 0 | AN40: ='Controls Worksheet-2B'!$AF40 -> 0 | AO40: ='Controls Worksheet-2B'!$AG40 -> 0 | AP40: 0 | AQ40: 0 | AR40: 0 | AS40: 0 | AT40: =IF(AND('Controls Worksheet-2B'!J40<>" ",$AS40>15000),MIN(10,$AS40/'Controls Worksheet-2B'!$S40),IF($AS40<15000,$AS40,MIN(VLOOKUP($AS40,Table51[],2),$AS40/$E40))) -> 0 | AU40: 0 | AW40: 0
A41: 30 | E41: 0 | M41: 0 | N41: 0 | O41: 0 | P41: 0 | S41: 0 | T41: 0 | V41: 00 | W41: 00 | X41: 0 | Y41: 0 | Z41: 0 | AA41: 0 | AB41: 0 | AC41: 0 | AG41: 0 | AH41: 0 | AI41: 0 | AJ41: 0 | AK41: 0 | AL41: 0 | AM41: 0 | AN41: ='Controls Worksheet-2B'!$AF41 -> 0 | AO41: ='Controls Worksheet-2B'!$AG41 -> 0 | AP41: 0 | AQ41: 0 | AR41: 0 | AS41: 0 | AT41: =IF(AND('Controls Worksheet-2B'!J41<>" ",$AS41>15000),MIN(10,$AS41/'Controls Worksheet-2B'!$S41),IF($AS41<15000,$AS41,MIN(VLOOKUP($AS41,Table51[],2),$AS41/$E41))) -> 0 | AU41: 0 | AW41: 0
A42: 31 | E42: 0 | M42: 0 | N42: 0 | O42: 0 | P42: 0 | S42: 0 | T42: 0 | V42: 00 | W42: 00 | X42: 0 | Y42: 0 | Z42: 0 | AA42: 0 | AB42: 0 | AC42: 0 | AG42: 0 | AH42: 0 | AI42: 0 | AJ42: 0 | AK42: 0 | AL42: 0 | AM42: 0 | AN42: ='Controls Worksheet-2B'!$AF42 -> 0 | AO42: ='Controls Worksheet-2B'!$AG42 -> 0 | AP42: 0 | AQ42: 0 | AR42: 0 | AS42: 0 | AT42: =IF(AND('Controls Worksheet-2B'!J42<>" ",$AS42>15000),MIN(10,$AS42/'Controls Worksheet-2B'!$S42),IF($AS42<15000,$AS42,MIN(VLOOKUP($AS42,Table51[],2),$AS42/$E42))) -> 0 | AU42: 0 | AW42: 0
A43: 32 | E43: 0 | M43: 0 | N43: 0 | O43: 0 | P43: 0 | S43: 0 | T43: 0 | V43: 00 | W43: 00 | X43: 0 | Y43: 0 | Z43: 0 | AA43: 0 | AB43: 0 | AC43: 0 | AG43: 0 | AH43: 0 | AI43: 0 | AJ43: 0 | AK43: 0 | AL43: 0 | AM43: 0 | AN43: ='Controls Worksheet-2B'!$AF43 -> 0 | AO43: ='Controls Worksheet-2B'!$AG43 -> 0 | AP43: 0 | AQ43: 0 | AR43: 0 | AS43: 0 | AT43: =IF(AND('Controls Worksheet-2B'!J43<>" ",$AS43>15000),MIN(10,$AS43/'Controls Worksheet-2B'!$S43),IF($AS43<15000,$AS43,MIN(VLOOKUP($AS43,Table51[],2),$AS43/$E43))) -> 0 | AU43: 0 | AW43: 0
A44: 33 | E44: 0 | M44: 0 | N44: 0 | O44: 0 | P44: 0 | S44: 0 | T44: 0 | V44: 00 | W44: 00 | X44: 0 | Y44: 0 | Z44: 0 | AA44: 0 | AB44: 0 | AC44: 0 | AG44: 0 | AH44: 0 | AI44: 0 | AJ44: 0 | AK44: 0 | AL44: 0 | AM44: 0 | AN44: ='Controls Worksheet-2B'!$AF44 -> 0 | AO44: ='Controls Worksheet-2B'!$AG44 -> 0 | AP44: 0 | AQ44: 0 | AR44: 0 | AS44: 0 | AT44: =IF(AND('Controls Worksheet-2B'!J44<>" ",$AS44>15000),MIN(10,$AS44/'Controls Worksheet-2B'!$S44),IF($AS44<15000,$AS44,MIN(VLOOKUP($AS44,Table51[],2),$AS44/$E44))) -> 0 | AU44: 0 | AW44: 0
A45: 34 | E45: 0 | M45: 0 | N45: 0 | O45: 0 | P45: 0 | S45: 0 | T45: 0 | V45: 00 | W45: 00 | X45: 0 | Y45: 0 | Z45: 0 | AA45: 0 | AB45: 0 | AC45: 0 | AG45: 0 | AH45: 0 | AI45: 0 | AJ45: 0 | AK45: 0 | AL45: 0 | AM45: 0 | AN45: ='Controls Worksheet-2B'!$AF45 -> 0 | AO45: ='Controls Worksheet-2B'!$AG45 -> 0 | AP45: 0 | AQ45: 0 | AR45: 0 | AS45: 0 | AT45: =IF(AND('Controls Worksheet-2B'!J45<>" ",$AS45>15000),MIN(10,$AS45/'Controls Worksheet-2B'!$S45),IF($AS45<15000,$AS45,MIN(VLOOKUP($AS45,Table51[],2),$AS45/$E45))) -> 0 | AU45: 0 | AW45: 0
A46: 35 | E46: 0 | M46: 0 | N46: 0 | O46: 0 | P46: 0 | S46: 0 | T46: 0 | V46: 00 | W46: 00 | X46: 0 | Y46: 0 | Z46: 0 | AA46: 0 | AB46: 0 | AC46: 0 | AG46: 0 | AH46: 0 | AI46: 0 | AJ46: 0 | AK46: 0 | AL46: 0 | AM46: 0 | AN46: ='Controls Worksheet-2B'!$AF46 -> 0 | AO46: ='Controls Worksheet-2B'!$AG46 -> 0 | AP46: 0 | AQ46: 0 | AR46: 0 | AS46: 0 | AT46: =IF(AND('Controls Worksheet-2B'!J46<>" ",$AS46>15000),MIN(10,$AS46/'Controls Worksheet-2B'!$S46),IF($AS46<15000,$AS46,MIN(VLOOKUP($AS46,Table51[],2),$AS46/$E46))) -> 0 | AU46: 0 | AW46: 0
A47: 36 | E47: 0 | M47: 0 | N47: 0 | O47: 0 | P47: 0 | S47: 0 | T47: 0 | V47: 00 | W47: 00 | X47: 0 | Y47: 0 | Z47: 0 | AA47: 0 | AB47: 0 | AC47: 0 | AG47: 0 | AH47: 0 | AI47: 0 | AJ47: 0 | AK47: 0 | AL47: 0 | AM47: 0 | AN47: ='Controls Worksheet-2B'!$AF47 -> 0 | AO47: ='Controls Worksheet-2B'!$AG47 -> 0 | AP47: 0 | AQ47: 0 | AR47: 0 | AS47: 0 | AT47: =IF(AND('Controls Worksheet-2B'!J47<>" ",$AS47>15000),MIN(10,$AS47/'Controls Worksheet-2B'!$S47),IF($AS47<15000,$AS47,MIN(VLOOKUP($AS47,Table51[],2),$AS47/$E47))) -> 0 | AU47: 0 | AW47: 0
A48: 37 | E48: 0 | M48: 0 | N48: 0 | O48: 0 | P48: 0 | S48: 0 | T48: 0 | V48: 00 | W48: 00 | X48: 0 | Y48: 0 | Z48: 0 | AA48: 0 | AB48: 0 | AC48: 0 | AG48: 0 | AH48: 0 | AI48: 0 | AJ48: 0 | AK48: 0 | AL48: 0 | AM48: 0 | AN48: ='Controls Worksheet-2B'!$AF48 -> 0 | AO48: ='Controls Worksheet-2B'!$AG48 -> 0 | AP48: 0 | AQ48: 0 | AR48: 0 | AS48: 0 | AT48: =IF(AND('Controls Worksheet-2B'!J48<>" ",$AS48>15000),MIN(10,$AS48/'Controls Worksheet-2B'!$S48),IF($AS48<15000,$AS48,MIN(VLOOKUP($AS48,Table51[],2),$AS48/$E48))) -> 0 | AU48: 0 | AW48: 0
A49: 38 | E49: 0 | M49: 0 | N49: 0 | O49: 0 | P49: 0 | S49: 0 | T49: 0 | V49: 00 | W49: 00 | X49: 0 | Y49: 0 | Z49: 0 | AA49: 0 | AB49: 0 | AC49: 0 | AG49: 0 | AH49: 0 | AI49: 0 | AJ49: 0 | AK49: 0 | AL49: 0 | AM49: 0 | AN49: ='Controls Worksheet-2B'!$AF49 -> 0 | AO49: ='Controls Worksheet-2B'!$AG49 -> 0 | AP49: 0 | AQ49: 0 | AR49: 0 | AS49: 0 | AT49: =IF(AND('Controls Worksheet-2B'!J49<>" ",$AS49>15000),MIN(10,$AS49/'Controls Worksheet-2B'!$S49),IF($AS49<15000,$AS49,MIN(VLOOKUP($AS49,Table51[],2),$AS49/$E49))) -> 0 | AU49: 0 | AW49: 0
A50: 39 | E50: 0 | M50: 0 | N50: 0 | O50: 0 | P50: 0 | S50: 0 | T50: 0 | V50: 00 | W50: 00 | X50: 0 | Y50: 0 | Z50: 0 | AA50: 0 | AB50: 0 | AC50: 0 | AG50: 0 | AH50: 0 | AI50: 0 | AJ50: 0 | AK50: 0 | AL50: 0 | AM50: 0 | AN50: ='Controls Worksheet-2B'!$AF50 -> 0 | AO50: ='Controls Worksheet-2B'!$AG50 -> 0 | AP50: 0 | AQ50: 0 | AR50: 0 | AS50: 0 | AT50: =IF(AND('Controls Worksheet-2B'!J50<>" ",$AS50>15000),MIN(10,$AS50/'Controls Worksheet-2B'!$S50),IF($AS50<15000,$AS50,MIN(VLOOKUP($AS50,Table51[],2),$AS50/$E50))) -> 0 | AU50: 0 | AW50: 0
A51: 40 | E51: 0 | M51: 0 | N51: 0 | O51: 0 | P51: 0 | S51: 0 | T51: 0 | V51: 00 | W51: 00 | X51: 0 | Y51: 0 | Z51: 0 | AA51: 0 | AB51: 0 | AC51: 0 | AG51: 0 | AH51: 0 | AI51: 0 | AJ51: 0 | AK51: 0 | AL51: 0 | AM51: 0 | AN51: ='Controls Worksheet-2B'!$AF51 -> 0 | AO51: ='Controls Worksheet-2B'!$AG51 -> 0 | AP51: 0 | AQ51: 0 | AR51: 0 | AS51: 0 | AT51: =IF(AND('Controls Worksheet-2B'!J51<>" ",$AS51>15000),MIN(10,$AS51/'Controls Worksheet-2B'!$S51),IF($AS51<15000,$AS51,MIN(VLOOKUP($AS51,Table51[],2),$AS51/$E51))) -> 0 | AU51: 0 | AW51: 0
A52: 41 | E52: 0 | M52: 0 | N52: 0 | O52: 0 | P52: 0 | S52: 0 | T52: 0 | V52: 00 | W52: 00 | X52: 0 | Y52: 0 | Z52: 0 | AA52: 0 | AB52: 0 | AC52: 0 | AG52: 0 | AH52: 0 | AI52: 0 | AJ52: 0 | AK52: 0 | AL52: 0 | AM52: 0 | AN52: ='Controls Worksheet-2B'!$AF52 -> 0 | AO52: ='Controls Worksheet-2B'!$AG52 -> 0 | AP52: 0 | AQ52: 0 | AR52: 0 | AS52: 0 | AT52: =IF(AND('Controls Worksheet-2B'!J52<>" ",$AS52>15000),MIN(10,$AS52/'Controls Worksheet-2B'!$S52),IF($AS52<15000,$AS52,MIN(VLOOKUP($AS52,Table51[],2),$AS52/$E52))) -> 0 | AU52: 0 | AW52: 0
A53: 42 | E53: 0 | M53: 0 | N53: 0 | O53: 0 | P53: 0 | S53: 0 | T53: 0 | V53: 00 | W53: 00 | X53: 0 | Y53: 0 | Z53: 0 | AA53: 0 | AB53: 0 | AC53: 0 | AG53: 0 | AH53: 0 | AI53: 0 | AJ53: 0 | AK53: 0 | AL53: 0 | AM53: 0 | AN53: ='Controls Worksheet-2B'!$AF53 -> 0 | AO53: ='Controls Worksheet-2B'!$AG53 -> 0 | AP53: 0 | AQ53: 0 | AR53: 0 | AS53: 0 | AT53: =IF(AND('Controls Worksheet-2B'!J53<>" ",$AS53>15000),MIN(10,$AS53/'Controls Worksheet-2B'!$S53),IF($AS53<15000,$AS53,MIN(VLOOKUP($AS53,Table51[],2),$AS53/$E53))) -> 0 | AU53: 0 | AW53: 0
A54: 43 | E54: 0 | M54: 0 | N54: 0 | O54: 0 | P54: 0 | S54: 0 | T54: 0 | V54: 00 | W54: 00 | X54: 0 | Y54: 0 | Z54: 0 | AA54: 0 | AB54: 0 | AC54: 0 | AG54: 0 | AH54: 0 | AI54: 0 | AJ54: 0 | AK54: 0 | AL54: 0 | AM54: 0 | AN54: ='Controls Worksheet-2B'!$AF54 -> 0 | AO54: ='Controls Worksheet-2B'!$AG54 -> 0 | AP54: 0 | AQ54: 0 | AR54: 0 | AS54: 0 | AT54: =IF(AND('Controls Worksheet-2B'!J54<>" ",$AS54>15000),MIN(10,$AS54/'Controls Worksheet-2B'!$S54),IF($AS54<15000,$AS54,MIN(VLOOKUP($AS54,Table51[],2),$AS54/$E54))) -> 0 | AU54: 0 | AW54: 0
A55: 44 | E55: 0 | M55: 0 | N55: 0 | O55: 0 | P55: 0 | S55: 0 | T55: 0 | V55: 00 | W55: 00 | X55: 0 | Y55: 0 | Z55: 0 | AA55: 0 | AB55: 0 | AC55: 0 | AG55: 0 | AH55: 0 | AI55: 0 | AJ55: 0 | AK55: 0 | AL55: 0 | AM55: 0 | AN55: ='Controls Worksheet-2B'!$AF55 -> 0 | AO55: ='Controls Worksheet-2B'!$AG55 -> 0 | AP55: 0 | AQ55: 0 | AR55: 0 | AS55: 0 | AT55: =IF(AND('Controls Worksheet-2B'!J55<>" ",$AS55>15000),MIN(10,$AS55/'Controls Worksheet-2B'!$S55),IF($AS55<15000,$AS55,MIN(VLOOKUP($AS55,Table51[],2),$AS55/$E55))) -> 0 | AU55: 0 | AW55: 0
A56: 45 | E56: 0 | M56: 0 | N56: 0 | O56: 0 | P56: 0 | S56: 0 | T56: 0 | V56: 00 | W56: 00 | X56: 0 | Y56: 0 | Z56: 0 | AA56: 0 | AB56: 0 | AC56: 0 | AG56: 0 | AH56: 0 | AI56: 0 | AJ56: 0 | AK56: 0 | AL56: 0 | AM56: 0 | AN56: ='Controls Worksheet-2B'!$AF56 -> 0 | AO56: ='Controls Worksheet-2B'!$AG56 -> 0 | AP56: 0 | AQ56: 0 | AR56: 0 | AS56: 0 | AT56: =IF(AND('Controls Worksheet-2B'!J56<>" ",$AS56>15000),MIN(10,$AS56/'Controls Worksheet-2B'!$S56),IF($AS56<15000,$AS56,MIN(VLOOKUP($AS56,Table51[],2),$AS56/$E56))) -> 0 | AU56: 0 | AW56: 0
A57: 46 | E57: 0 | M57: 0 | N57: 0 | O57: 0 | P57: 0 | S57: 0 | T57: 0 | V57: 00 | W57: 00 | X57: 0 | Y57: 0 | Z57: 0 | AA57: 0 | AB57: 0 | AC57: 0 | AG57: 0 | AH57: 0 | AI57: 0 | AJ57: 0 | AK57: 0 | AL57: 0 | AM57: 0 | AN57: ='Controls Worksheet-2B'!$AF57 -> 0 | AO57: ='Controls Worksheet-2B'!$AG57 -> 0 | AP57: 0 | AQ57: 0 | AR57: 0 | AS57: 0 | AT57: =IF(AND('Controls Worksheet-2B'!J57<>" ",$AS57>15000),MIN(10,$AS57/'Controls Worksheet-2B'!$S57),IF($AS57<15000,$AS57,MIN(VLOOKUP($AS57,Table51[],2),$AS57/$E57))) -> 0 | AU57: 0 | AW57: 0
A58: 47 | E58: 0 | M58: 0 | N58: 0 | O58: 0 | P58: 0 | S58: 0 | T58: 0 | V58: 00 | W58: 00 | X58: 0 | Y58: 0 | Z58: 0 | AA58: 0 | AB58: 0 | AC58: 0 | AG58: 0 | AH58: 0 | AI58: 0 | AJ58: 0 | AK58: 0 | AL58: 0 | AM58: 0 | AN58: ='Controls Worksheet-2B'!$AF58 -> 0 | AO58: ='Controls Worksheet-2B'!$AG58 -> 0 | AP58: 0 | AQ58: 0 | AR58: 0 | AS58: 0 | AT58: =IF(AND('Controls Worksheet-2B'!J58<>" ",$AS58>15000),MIN(10,$AS58/'Controls Worksheet-2B'!$S58),IF($AS58<15000,$AS58,MIN(VLOOKUP($AS58,Table51[],2),$AS58/$E58))) -> 0 | AU58: 0 | AW58: 0
A59: 48 | E59: 0 | M59: 0 | N59: 0 | O59: 0 | P59: 0 | S59: 0 | T59: 0 | V59: 00 | W59: 00 | X59: 0 | Y59: 0 | Z59: 0 | AA59: 0 | AB59: 0 | AC59: 0 | AG59: 0 | AH59: 0 | AI59: 0 | AJ59: 0 | AK59: 0 | AL59: 0 | AM59: 0 | AN59: ='Controls Worksheet-2B'!$AF59 -> 0 | AO59: ='Controls Worksheet-2B'!$AG59 -> 0 | AP59: 0 | AQ59: 0 | AR59: 0 | AS59: 0 | AT59: =IF(AND('Controls Worksheet-2B'!J59<>" ",$AS59>15000),MIN(10,$AS59/'Controls Worksheet-2B'!$S59),IF($AS59<15000,$AS59,MIN(VLOOKUP($AS59,Table51[],2),$AS59/$E59))) -> 0 | AU59: 0 | AW59: 0
A60: 49 | E60: 0 | M60: 0 | N60: 0 | O60: 0 | P60: 0 | S60: 0 | T60: 0 | V60: 00 | W60: 00 | X60: 0 | Y60: 0 | Z60: 0 | AA60: 0 | AB60: 0 | AC60: 0 | AG60: 0 | AH60: 0 | AI60: 0 | AJ60: 0 | AK60: 0 | AL60: 0 | AM60: 0 | AN60: ='Controls Worksheet-2B'!$AF60 -> 0 | AO60: ='Controls Worksheet-2B'!$AG60 -> 0 | AP60: 0 | AQ60: 0 | AR60: 0 | AS60: 0 | AT60: =IF(AND('Controls Worksheet-2B'!J60<>" ",$AS60>15000),MIN(10,$AS60/'Controls Worksheet-2B'!$S60),IF($AS60<15000,$AS60,MIN(VLOOKUP($AS60,Table51[],2),$AS60/$E60))) -> 0 | AU60: 0 | AW60: 0
A61: 50 | E61: 0 | M61: 0 | N61: 0 | O61: 0 | P61: 0 | S61: 0 | T61: 0 | V61: 00 | W61: 00 | X61: 0 | Y61: 0 | Z61: 0 | AA61: 0 | AB61: 0 | AC61: 0 | AG61: 0 | AH61: 0 | AI61: 0 | AJ61: 0 | AK61: 0 | AL61: 0 | AM61: 0 | AN61: ='Controls Worksheet-2B'!$AF61 -> 0 | AO61: ='Controls Worksheet-2B'!$AG61 -> 0 | AP61: 0 | AQ61: 0 | AR61: 0 | AS61: 0 | AT61: =IF(AND('Controls Worksheet-2B'!J61<>" ",$AS61>15000),MIN(10,$AS61/'Controls Worksheet-2B'!$S61),IF($AS61<15000,$AS61,MIN(VLOOKUP($AS61,Table51[],2),$AS61/$E61))) -> 0 | AU61: 0 | AW61: 0
A62: 51 | E62: 0 | M62: 0 | N62: 0 | O62: 0 | P62: 0 | S62: 0 | T62: 0 | V62: 00 | W62: 00 | X62: 0 | Y62: 0 | Z62: 0 | AA62: 0 | AB62: 0 | AC62: 0 | AG62: 0 | AH62: 0 | AI62: 0 | AJ62: 0 | AK62: 0 | AL62: 0 | AM62: 0 | AN62: ='Controls Worksheet-2B'!$AF62 -> 0 | AO62: ='Controls Worksheet-2B'!$AG62 -> 0 | AP62: 0 | AQ62: 0 | AR62: 0 | AS62: 0 | AT62: =IF(AND('Controls Worksheet-2B'!J62<>" ",$AS62>15000),MIN(10,$AS62/'Controls Worksheet-2B'!$S62),IF($AS62<15000,$AS62,MIN(VLOOKUP($AS62,Table51[],2),$AS62/$E62))) -> 0 | AU62: 0 | AW62: 0
A63: 52 | E63: 0 | M63: 0 | N63: 0 | O63: 0 | P63: 0 | S63: 0 | T63: 0 | V63: 00 | W63: 00 | X63: 0 | Y63: 0 | Z63: 0 | AA63: 0 | AB63: 0 | AC63: 0 | AG63: 0 | AH63: 0 | AI63: 0 | AJ63: 0 | AK63: 0 | AL63: 0 | AM63: 0 | AN63: ='Controls Worksheet-2B'!$AF63 -> 0 | AO63: ='Controls Worksheet-2B'!$AG63 -> 0 | AP63: 0 | AQ63: 0 | AR63: 0 | AS63: 0 | AT63: =IF(AND('Controls Worksheet-2B'!J63<>" ",$AS63>15000),MIN(10,$AS63/'Controls Worksheet-2B'!$S63),IF($AS63<15000,$AS63,MIN(VLOOKUP($AS63,Table51[],2),$AS63/$E63))) -> 0 | AU63: 0 | AW63: 0
A64: 53 | E64: 0 | M64: 0 | N64: 0 | O64: 0 | P64: 0 | S64: 0 | T64: 0 | V64: 00 | W64: 00 | X64: 0 | Y64: 0 | Z64: 0 | AA64: 0 | AB64: 0 | AC64: 0 | AG64: 0 | AH64: 0 | AI64: 0 | AJ64: 0 | AK64: 0 | AL64: 0 | AM64: 0 | AN64: ='Controls Worksheet-2B'!$AF64 -> 0 | AO64: ='Controls Worksheet-2B'!$AG64 -> 0 | AP64: 0 | AQ64: 0 | AR64: 0 | AS64: 0 | AT64: =IF(AND('Controls Worksheet-2B'!J64<>" ",$AS64>15000),MIN(10,$AS64/'Controls Worksheet-2B'!$S64),IF($AS64<15000,$AS64,MIN(VLOOKUP($AS64,Table51[],2),$AS64/$E64))) -> 0 | AU64: 0 | AW64: 0
A65: 54 | E65: 0 | M65: 0 | N65: 0 | O65: 0 | P65: 0 | S65: 0 | T65: 0 | V65: 00 | W65: 00 | X65: 0 | Y65: 0 | Z65: 0 | AA65: 0 | AB65: 0 | AC65: 0 | AG65: 0 | AH65: 0 | AI65: 0 | AJ65: 0 | AK65: 0 | AL65: 0 | AM65: 0 | AN65: ='Controls Worksheet-2B'!$AF65 -> 0 | AO65: ='Controls Worksheet-2B'!$AG65 -> 0 | AP65: 0 | AQ65: 0 | AR65: 0 | AS65: 0 | AT65: =IF(AND('Controls Worksheet-2B'!J65<>" ",$AS65>15000),MIN(10,$AS65/'Controls Worksheet-2B'!$S65),IF($AS65<15000,$AS65,MIN(VLOOKUP($AS65,Table51[],2),$AS65/$E65))) -> 0 | AU65: 0 | AW65: 0
A66: 55 | E66: 0 | M66: 0 | N66: 0 | O66: 0 | P66: 0 | S66: 0 | T66: 0 | V66: 00 | W66: 00 | X66: 0 | Y66: 0 | Z66: 0 | AA66: 0 | AB66: 0 | AC66: 0 | AG66: 0 | AH66: 0 | AI66: 0 | AJ66: 0 | AK66: 0 | AL66: 0 | AM66: 0 | AN66: ='Controls Worksheet-2B'!$AF66 -> 0 | AO66: ='Controls Worksheet-2B'!$AG66 -> 0 | AP66: 0 | AQ66: 0 | AR66: 0 | AS66: 0 | AT66: =IF(AND('Controls Worksheet-2B'!J66<>" ",$AS66>15000),MIN(10,$AS66/'Controls Worksheet-2B'!$S66),IF($AS66<15000,$AS66,MIN(VLOOKUP($AS66,Table51[],2),$AS66/$E66))) -> 0 | AU66: 0 | AW66: 0
A67: 56 | E67: 0 | M67: 0 | N67: 0 | O67: 0 | P67: 0 | S67: 0 | T67: 0 | V67: 00 | W67: 00 | X67: 0 | Y67: 0 | Z67: 0 | AA67: 0 | AB67: 0 | AC67: 0 | AG67: 0 | AH67: 0 | AI67: 0 | AJ67: 0 | AK67: 0 | AL67: 0 | AM67: 0 | AN67: ='Controls Worksheet-2B'!$AF67 -> 0 | AO67: ='Controls Worksheet-2B'!$AG67 -> 0 | AP67: 0 | AQ67: 0 | AR67: 0 | AS67: 0 | AT67: =IF(AND('Controls Worksheet-2B'!J67<>" ",$AS67>15000),MIN(10,$AS67/'Controls Worksheet-2B'!$S67),IF($AS67<15000,$AS67,MIN(VLOOKUP($AS67,Table51[],2),$AS67/$E67))) -> 0 | AU67: 0 | AW67: 0
A68: 57 | E68: 0 | M68: 0 | N68: 0 | O68: 0 | P68: 0 | S68: 0 | T68: 0 | V68: 00 | W68: 00 | X68: 0 | Y68: 0 | Z68: 0 | AA68: 0 | AB68: 0 | AC68: 0 | AG68: 0 | AH68: 0 | AI68: 0 | AJ68: 0 | AK68: 0 | AL68: 0 | AM68: 0 | AN68: ='Controls Worksheet-2B'!$AF68 -> 0 | AO68: ='Controls Worksheet-2B'!$AG68 -> 0 | AP68: 0 | AQ68: 0 | AR68: 0 | AS68: 0 | AT68: =IF(AND('Controls Worksheet-2B'!J68<>" ",$AS68>15000),MIN(10,$AS68/'Controls Worksheet-2B'!$S68),IF($AS68<15000,$AS68,MIN(VLOOKUP($AS68,Table51[],2),$AS68/$E68))) -> 0 | AU68: 0 | AW68: 0
A69: 58 | E69: 0 | M69: 0 | N69: 0 | O69: 0 | P69: 0 | S69: 0 | T69: 0 | V69: 00 | W69: 00 | X69: 0 | Y69: 0 | Z69: 0 | AA69: 0 | AB69: 0 | AC69: 0 | AG69: 0 | AH69: 0 | AI69: 0 | AJ69: 0 | AK69: 0 | AL69: 0 | AM69: 0 | AN69: ='Controls Worksheet-2B'!$AF69 -> 0 | AO69: ='Controls Worksheet-2B'!$AG69 -> 0 | AP69: 0 | AQ69: 0 | AR69: 0 | AS69: 0 | AT69: =IF(AND('Controls Worksheet-2B'!J69<>" ",$AS69>15000),MIN(10,$AS69/'Controls Worksheet-2B'!$S69),IF($AS69<15000,$AS69,MIN(VLOOKUP($AS69,Table51[],2),$AS69/$E69))) -> 0 | AU69: 0 | AW69: 0
A70: 59 | E70: 0 | M70: 0 | N70: 0 | O70: 0 | P70: 0 | S70: 0 | T70: 0 | V70: 00 | W70: 00 | X70: 0 | Y70: 0 | Z70: 0 | AA70: 0 | AB70: 0 | AC70: 0 | AG70: 0 | AH70: 0 | AI70: 0 | AJ70: 0 | AK70: 0 | AL70: 0 | AM70: 0 | AN70: ='Controls Worksheet-2B'!$AF70 -> 0 | AO70: ='Controls Worksheet-2B'!$AG70 -> 0 | AP70: 0 | AQ70: 0 | AR70: 0 | AS70: 0 | AT70: =IF(AND('Controls Worksheet-2B'!J70<>" ",$AS70>15000),MIN(10,$AS70/'Controls Worksheet-2B'!$S70),IF($AS70<15000,$AS70,MIN(VLOOKUP($AS70,Table51[],2),$AS70/$E70))) -> 0 | AU70: 0 | AW70: 0
A71: 60 | E71: 0 | M71: 0 | N71: 0 | O71: 0 | P71: 0 | S71: 0 | T71: 0 | V71: 00 | W71: 00 | X71: 0 | Y71: 0 | Z71: 0 | AA71: 0 | AB71: 0 | AC71: 0 | AG71: 0 | AH71: 0 | AI71: 0 | AJ71: 0 | AK71: 0 | AL71: 0 | AM71: 0 | AN71: ='Controls Worksheet-2B'!$AF71 -> 0 | AO71: ='Controls Worksheet-2B'!$AG71 -> 0 | AP71: 0 | AQ71: 0 | AR71: 0 | AS71: 0 | AT71: =IF(AND('Controls Worksheet-2B'!J71<>" ",$AS71>15000),MIN(10,$AS71/'Controls Worksheet-2B'!$S71),IF($AS71<15000,$AS71,MIN(VLOOKUP($AS71,Table51[],2),$AS71/$E71))) -> 0 | AU71: 0 | AW71: 0
A72: 61 | E72: 0 | M72: 0 | N72: 0 | O72: 0 | P72: 0 | S72: 0 | T72: 0 | V72: 00 | W72: 00 | X72: 0 | Y72: 0 | Z72: 0 | AA72: 0 | AB72: 0 | AC72: 0 | AG72: 0 | AH72: 0 | AI72: 0 | AJ72: 0 | AK72: 0 | AL72: 0 | AM72: 0 | AN72: ='Controls Worksheet-2B'!$AF72 -> 0 | AO72: ='Controls Worksheet-2B'!$AG72 -> 0 | AP72: 0 | AQ72: 0 | AR72: 0 | AS72: 0 | AT72: =IF(AND('Controls Worksheet-2B'!J72<>" ",$AS72>15000),MIN(10,$AS72/'Controls Worksheet-2B'!$S72),IF($AS72<15000,$AS72,MIN(VLOOKUP($AS72,Table51[],2),$AS72/$E72))) -> 0 | AU72: 0 | AW72: 0
A73: 62 | E73: 0 | M73: 0 | N73: 0 | O73: 0 | P73: 0 | S73: 0 | T73: 0 | V73: 00 | W73: 00 | X73: 0 | Y73: 0 | Z73: 0 | AA73: 0 | AB73: 0 | AC73: 0 | AG73: 0 | AH73: 0 | AI73: 0 | AJ73: 0 | AK73: 0 | AL73: 0 | AM73: 0 | AN73: ='Controls Worksheet-2B'!$AF73 -> 0 | AO73: ='Controls Worksheet-2B'!$AG73 -> 0 | AP73: 0 | AQ73: 0 | AR73: 0 | AS73: 0 | AT73: =IF(AND('Controls Worksheet-2B'!J73<>" ",$AS73>15000),MIN(10,$AS73/'Controls Worksheet-2B'!$S73),IF($AS73<15000,$AS73,MIN(VLOOKUP($AS73,Table51[],2),$AS73/$E73))) -> 0 | AU73: 0 | AW73: 0
A74: 63 | E74: 0 | M74: 0 | N74: 0 | O74: 0 | P74: 0 | S74: 0 | T74: 0 | V74: 00 | W74: 00 | X74: 0 | Y74: 0 | Z74: 0 | AA74: 0 | AB74: 0 | AC74: 0 | AG74: 0 | AH74: 0 | AI74: 0 | AJ74: 0 | AK74: 0 | AL74: 0 | AM74: 0 | AN74: ='Controls Worksheet-2B'!$AF74 -> 0 | AO74: ='Controls Worksheet-2B'!$AG74 -> 0 | AP74: 0 | AQ74: 0 | AR74: 0 | AS74: 0 | AT74: =IF(AND('Controls Worksheet-2B'!J74<>" ",$AS74>15000),MIN(10,$AS74/'Controls Worksheet-2B'!$S74),IF($AS74<15000,$AS74,MIN(VLOOKUP($AS74,Table51[],2),$AS74/$E74))) -> 0 | AU74: 0 | AW74: 0
A75: 64 | E75: 0 | M75: =IFERROR(VLOOKUP($L75,NYDevCodes, 3, FALSE),0) -> 0 | N75: =IFERROR(VLOOKUP(M75,NYDevCodesWatts, 7, FALSE),0) -> 0 | O75: 0 | P75: 0 | S75: 0 | T75: 0 | V75: 00 | W75: 00 | X75: =IF(R75="LED Integral Lamp",T75*S75,S75) -> 0 | Y75: =IFERROR(VLOOKUP($W75,NYDevCodes, 3, FALSE),0) -> 0 | Z75: =IFERROR(VLOOKUP($V75,NYDevCodes, 3, FALSE),0) -> 0 | AA75: =IFERROR(VLOOKUP(Z75,NYDevCodesWatts, 7, FALSE),0) -> 0 | AB75: =IFERROR(E75*S75*AA75/1000,0) -> 0 | AC75: =IFERROR(S75*AA75/1000,0) -> 0 | AG75: 0 | AH75: 0 | AI75: 0 | AJ75: 0 | AK75: =IFERROR(IF(AND(B75="I",C75="Y"),($AJ$5*AI75),IF(AND(B75="I",C75="R"),($AO$4*AI75),0)),0) -> 0 | AL75: =IFERROR(IF(AND(B75="I",C75="Y"),($AJ$6*AJ75),IF(AND(B75="I",C75="R"),($AO$5*AJ75),0)),0) -> 0 | AM75: =IFERROR(IF(B75="I",($AJ$7*AI75),0),0) -> 0 | AN75: ='Controls Worksheet-2B'!$AF75 -> 0 | AO75: ='Controls Worksheet-2B'!$AG75 -> 0 | AP75: =IFERROR(IF(AND($B75="I",$C75="Y"),($AJ$5*$AN75),IF(AND($B75="I",$C75="R"),($AO$4*$AN75),0)),0) -> 0 | AQ75: =IFERROR(IF(AND($B75="I",$C75="Y"),($AJ$6*$AO75),IF(AND($B75="I",$C75="R"),($AO$5*$AO75),0)),0) -> 0 | AR75: 0 | AS75: =IFERROR(VLOOKUP(AF75,LightMeasEUL,3,FALSE),0) -> 0 | AT75: =IF(AND('Controls Worksheet-2B'!J75<>" ",$AS75>15000),MIN(10,$AS75/'Controls Worksheet-2B'!$S75),IF($AS75<15000,$AS75,MIN(VLOOKUP($AS75,Table51[],2),$AS75/$E75))) -> 0 | AU75: 0 | AW75: =IF(AF75="Custom",(AI75+AK75)*0.131,0) -> 0
A76: 65 | C76: =IF(B76="e","N"," ") ->  | E76: =IF(B76="E",4380,0) -> 0 | M76: 0 | N76: 0 | O76: 0 | P76: 0 | S76: 0 | T76: 0 | V76: 00 | W76: 00 | X76: 0 | Y76: 0 | Z76: 0 | AA76: 0 | AB76: 0 | AC76: 0 | AG76: =IFERROR(IF(AI76>=0,VLOOKUP(AF76,LightMeasEUL,2,FALSE),"Negative Energy Savings"),0) -> 0 | AH76: 0 | AI76: 0 | AJ76: 0 | AK76: 0 | AL76: 0 | AM76: 0 | AN76: ='Controls Worksheet-2B'!$AF76 -> 0 | AO76: ='Controls Worksheet-2B'!$AG76 -> 0 | AP76: 0 | AQ76: 0 | AR76: 0 | AS76: 0 | AT76: =IF(AND('Controls Worksheet-2B'!J76<>" ",$AS76>15000),MIN(10,$AS76/'Controls Worksheet-2B'!$S76),IF($AS76<15000,$AS76,MIN(VLOOKUP($AS76,Table51[],2),$AS76/$E76))) -> 0 | AU76: 0 | AW76: 0
A77: 66 | E77: 0 | L77: =IF(G77="LED Integral Lamp",G77&1&(I77*J77)&K77,G77&I77&J77&K77) ->  | M77: 0 | N77: 0 | O77: =IFERROR(E77*H77*N77/1000,0) -> 0 | P77: =IFERROR(H77*N77/1000,0) -> 0 | S77: =H77 -> 0 | T77: =IF(R77="LED Fixture",1,I77) -> 0 | V77: =IF(R77="LED Integral Lamp",R77&1&(T77*ROUNDUP(U77,0)),R77&T77&ROUNDUP(U77,0)) -> 00 | W77: =IF(R77="LED Integral Lamp",R77&1&ROUNDUP(U77,0),R77&T77&ROUNDUP(U77,0)) -> 00 | X77: 0 | Y77: 0 | Z77: 0 | AA77: 0 | AB77: 0 | AC77: 0 | AG77: 0 | AH77: =IFERROR(AG77*X77,0) -> 0 | AI77: =IF(LEFT(AF77,2)="93",((P77*E77)-((AC77*438)+(AC77*0.5*8322))),O77-AB77) -> 0 | AJ77: =IF(LEFT(AF77,2)="93",((P77-AC77)+(AC77-AC77*0.5)*(8322/E77))*1,IF(OR(AND(B77="E",E77=8760),B77="I"),(P77-AC77),0)) -> 0 | AK77: 0 | AL77: 0 | AM77: 0 | AN77: ='Controls Worksheet-2B'!$AF77 -> 0 | AO77: ='Controls Worksheet-2B'!$AG77 -> 0 | AP77: 0 | AQ77: 0 | AR77: =IFERROR(IF($B77="I",($AJ$7*AN77),0),0) -> 0 | AS77: 0 | AT77: =IF(AND('Controls Worksheet-2B'!J77<>" ",$AS77>15000),MIN(10,$AS77/'Controls Worksheet-2B'!$S77),IF($AS77<15000,$AS77,MIN(VLOOKUP($AS77,Table51[],2),$AS77/$E77))) -> 0 | AU77: =(IFERROR($AT77*($AI77+$AK77+$AN77+$AP77),0)) -> 0 | AW77: 0
A78: 67 | E78: 0 | M78: 0 | N78: 0 | O78: 0 | P78: 0 | S78: 0 | T78: 0 | V78: 00 | W78: 00 | X78: 0 | Y78: 0 | Z78: 0 | AA78: 0 | AB78: 0 | AC78: 0 | AG78: 0 | AH78: 0 | AI78: 0 | AJ78: 0 | AK78: 0 | AL78: 0 | AM78: 0 | AN78: ='Controls Worksheet-2B'!$AF78 -> 0 | AO78: ='Controls Worksheet-2B'!$AG78 -> 0 | AP78: 0 | AQ78: 0 | AR78: 0 | AS78: 0 | AT78: =IF(AND('Controls Worksheet-2B'!J78<>" ",$AS78>15000),MIN(10,$AS78/'Controls Worksheet-2B'!$S78),IF($AS78<15000,$AS78,MIN(VLOOKUP($AS78,Table51[],2),$AS78/$E78))) -> 0 | AU78: 0 | AW78: 0
A79: 68 | E79: 0 | M79: 0 | N79: 0 | O79: 0 | P79: 0 | S79: 0 | T79: 0 | V79: 00 | W79: 00 | X79: 0 | Y79: 0 | Z79: 0 | AA79: 0 | AB79: 0 | AC79: 0 | AG79: 0 | AH79: 0 | AI79: 0 | AJ79: 0 | AK79: 0 | AL79: 0 | AM79: 0 | AN79: ='Controls Worksheet-2B'!$AF79 -> 0 | AO79: ='Controls Worksheet-2B'!$AG79 -> 0 | AP79: 0 | AQ79: 0 | AR79: 0 | AS79: 0 | AT79: =IF(AND('Controls Worksheet-2B'!J79<>" ",$AS79>15000),MIN(10,$AS79/'Controls Worksheet-2B'!$S79),IF($AS79<15000,$AS79,MIN(VLOOKUP($AS79,Table51[],2),$AS79/$E79))) -> 0 | AU79: 0 | AW79: 0
A80: 69 | E80: 0 | M80: 0 | N80: 0 | O80: 0 | P80: 0 | S80: 0 | T80: 0 | V80: 00 | W80: 00 | X80: 0 | Y80: 0 | Z80: 0 | AA80: 0 | AB80: 0 | AC80: 0 | AG80: 0 | AH80: 0 | AI80: 0 | AJ80: 0 | AK80: 0 | AL80: 0 | AM80: 0 | AN80: ='Controls Worksheet-2B'!$AF80 -> 0 | AO80: ='Controls Worksheet-2B'!$AG80 -> 0 | AP80: 0 | AQ80: 0 | AR80: 0 | AS80: 0 | AT80: =IF(AND('Controls Worksheet-2B'!J80<>" ",$AS80>15000),MIN(10,$AS80/'Controls Worksheet-2B'!$S80),IF($AS80<15000,$AS80,MIN(VLOOKUP($AS80,Table51[],2),$AS80/$E80))) -> 0 | AU80: 0 | AW80: 0
A81: 70 | E81: 0 | M81: 0 | N81: 0 | O81: 0 | P81: 0 | S81: 0 | T81: 0 | V81: 00 | W81: 00 | X81: 0 | Y81: 0 | Z81: 0 | AA81: 0 | AB81: 0 | AC81: 0 | AG81: 0 | AH81: 0 | AI81: 0 | AJ81: 0 | AK81: 0 | AL81: 0 | AM81: 0 | AN81: ='Controls Worksheet-2B'!$AF81 -> 0 | AO81: ='Controls Worksheet-2B'!$AG81 -> 0 | AP81: 0 | AQ81: 0 | AR81: 0 | AS81: 0 | AT81: =IF(AND('Controls Worksheet-2B'!J81<>" ",$AS81>15000),MIN(10,$AS81/'Controls Worksheet-2B'!$S81),IF($AS81<15000,$AS81,MIN(VLOOKUP($AS81,Table51[],2),$AS81/$E81))) -> 0 | AU81: 0 | AW81: 0
A82: 71 | E82: 0 | M82: 0 | N82: 0 | O82: 0 | P82: 0 | S82: 0 | T82: 0 | V82: 00 | W82: 00 | X82: 0 | Y82: 0 | Z82: 0 | AA82: 0 | AB82: 0 | AC82: 0 | AG82: 0 | AH82: 0 | AI82: 0 | AJ82: 0 | AK82: 0 | AL82: 0 | AM82: 0 | AN82: ='Controls Worksheet-2B'!$AF82 -> 0 | AO82: ='Controls Worksheet-2B'!$AG82 -> 0 | AP82: 0 | AQ82: 0 | AR82: 0 | AS82: 0 | AT82: =IF(AND('Controls Worksheet-2B'!J82<>" ",$AS82>15000),MIN(10,$AS82/'Controls Worksheet-2B'!$S82),IF($AS82<15000,$AS82,MIN(VLOOKUP($AS82,Table51[],2),$AS82/$E82))) -> 0 | AU82: 0 | AW82: 0
A83: 72 | E83: 0 | M83: 0 | N83: 0 | O83: 0 | P83: 0 | S83: 0 | T83: 0 | V83: 00 | W83: 00 | X83: 0 | Y83: 0 | Z83: 0 | AA83: 0 | AB83: 0 | AC83: 0 | AG83: 0 | AH83: 0 | AI83: 0 | AJ83: 0 | AK83: 0 | AL83: 0 | AM83: 0 | AN83: ='Controls Worksheet-2B'!$AF83 -> 0 | AO83: ='Controls Worksheet-2B'!$AG83 -> 0 | AP83: 0 | AQ83: 0 | AR83: 0 | AS83: 0 | AT83: =IF(AND('Controls Worksheet-2B'!J83<>" ",$AS83>15000),MIN(10,$AS83/'Controls Worksheet-2B'!$S83),IF($AS83<15000,$AS83,MIN(VLOOKUP($AS83,Table51[],2),$AS83/$E83))) -> 0 | AU83: 0 | AW83: 0
A84: 73 | E84: 0 | M84: 0 | N84: 0 | O84: 0 | P84: 0 | S84: 0 | T84: 0 | V84: 00 | W84: 00 | X84: 0 | Y84: 0 | Z84: 0 | AA84: 0 | AB84: 0 | AC84: 0 | AG84: 0 | AH84: 0 | AI84: 0 | AJ84: 0 | AK84: 0 | AL84: 0 | AM84: 0 | AN84: ='Controls Worksheet-2B'!$AF84 -> 0 | AO84: ='Controls Worksheet-2B'!$AG84 -> 0 | AP84: 0 | AQ84: 0 | AR84: 0 | AS84: 0 | AT84: =IF(AND('Controls Worksheet-2B'!J84<>" ",$AS84>15000),MIN(10,$AS84/'Controls Worksheet-2B'!$S84),IF($AS84<15000,$AS84,MIN(VLOOKUP($AS84,Table51[],2),$AS84/$E84))) -> 0 | AU84: 0 | AW84: 0
A85: 74 | E85: 0 | M85: 0 | N85: 0 | O85: 0 | P85: 0 | S85: 0 | T85: 0 | V85: 00 | W85: 00 | X85: 0 | Y85: 0 | Z85: 0 | AA85: 0 | AB85: 0 | AC85: 0 | AG85: 0 | AH85: 0 | AI85: 0 | AJ85: 0 | AK85: 0 | AL85: 0 | AM85: 0 | AN85: ='Controls Worksheet-2B'!$AF85 -> 0 | AO85: ='Controls Worksheet-2B'!$AG85 -> 0 | AP85: 0 | AQ85: 0 | AR85: 0 | AS85: 0 | AT85: =IF(AND('Controls Worksheet-2B'!J85<>" ",$AS85>15000),MIN(10,$AS85/'Controls Worksheet-2B'!$S85),IF($AS85<15000,$AS85,MIN(VLOOKUP($AS85,Table51[],2),$AS85/$E85))) -> 0 | AU85: 0 | AW85: 0
A86: 75 | E86: 0 | M86: 0 | N86: 0 | O86: 0 | P86: 0 | S86: 0 | T86: 0 | V86: 00 | W86: 00 | X86: 0 | Y86: 0 | Z86: 0 | AA86: 0 | AB86: 0 | AC86: 0 | AG86: 0 | AH86: 0 | AI86: 0 | AJ86: 0 | AK86: 0 | AL86: 0 | AM86: 0 | AN86: ='Controls Worksheet-2B'!$AF86 -> 0 | AO86: ='Controls Worksheet-2B'!$AG86 -> 0 | AP86: 0 | AQ86: 0 | AR86: 0 | AS86: 0 | AT86: =IF(AND('Controls Worksheet-2B'!J86<>" ",$AS86>15000),MIN(10,$AS86/'Controls Worksheet-2B'!$S86),IF($AS86<15000,$AS86,MIN(VLOOKUP($AS86,Table51[],2),$AS86/$E86))) -> 0 | AU86: 0 | AW86: 0
A87: 76 | E87: 0 | M87: 0 | N87: 0 | O87: 0 | P87: 0 | S87: 0 | T87: 0 | V87: 00 | W87: 00 | X87: 0 | Y87: 0 | Z87: 0 | AA87: 0 | AB87: 0 | AC87: 0 | AG87: 0 | AH87: 0 | AI87: 0 | AJ87: 0 | AK87: 0 | AL87: 0 | AM87: 0 | AN87: ='Controls Worksheet-2B'!$AF87 -> 0 | AO87: ='Controls Worksheet-2B'!$AG87 -> 0 | AP87: 0 | AQ87: 0 | AR87: 0 | AS87: 0 | AT87: =IF(AND('Controls Worksheet-2B'!J87<>" ",$AS87>15000),MIN(10,$AS87/'Controls Worksheet-2B'!$S87),IF($AS87<15000,$AS87,MIN(VLOOKUP($AS87,Table51[],2),$AS87/$E87))) -> 0 | AU87: 0 | AW87: 0
A88: 77 | E88: 0 | M88: 0 | N88: 0 | O88: 0 | P88: 0 | S88: 0 | T88: 0 | V88: 00 | W88: 00 | X88: 0 | Y88: 0 | Z88: 0 | AA88: 0 | AB88: 0 | AC88: 0 | AG88: 0 | AH88: 0 | AI88: 0 | AJ88: 0 | AK88: 0 | AL88: 0 | AM88: 0 | AN88: ='Controls Worksheet-2B'!$AF88 -> 0 | AO88: ='Controls Worksheet-2B'!$AG88 -> 0 | AP88: 0 | AQ88: 0 | AR88: 0 | AS88: 0 | AT88: =IF(AND('Controls Worksheet-2B'!J88<>" ",$AS88>15000),MIN(10,$AS88/'Controls Worksheet-2B'!$S88),IF($AS88<15000,$AS88,MIN(VLOOKUP($AS88,Table51[],2),$AS88/$E88))) -> 0 | AU88: 0 | AW88: 0
A89: 78 | E89: 0 | M89: 0 | N89: 0 | O89: 0 | P89: 0 | S89: 0 | T89: 0 | V89: 00 | W89: 00 | X89: 0 | Y89: 0 | Z89: 0 | AA89: 0 | AB89: 0 | AC89: 0 | AG89: 0 | AH89: 0 | AI89: 0 | AJ89: 0 | AK89: 0 | AL89: 0 | AM89: 0 | AN89: ='Controls Worksheet-2B'!$AF89 -> 0 | AO89: ='Controls Worksheet-2B'!$AG89 -> 0 | AP89: 0 | AQ89: 0 | AR89: 0 | AS89: 0 | AT89: =IF(AND('Controls Worksheet-2B'!J89<>" ",$AS89>15000),MIN(10,$AS89/'Controls Worksheet-2B'!$S89),IF($AS89<15000,$AS89,MIN(VLOOKUP($AS89,Table51[],2),$AS89/$E89))) -> 0 | AU89: 0 | AW89: 0
A90: 79 | E90: 0 | M90: 0 | N90: 0 | O90: 0 | P90: 0 | S90: 0 | T90: 0 | V90: 00 | W90: 00 | X90: 0 | Y90: 0 | Z90: 0 | AA90: 0 | AB90: 0 | AC90: 0 | AG90: 0 | AH90: 0 | AI90: 0 | AJ90: 0 | AK90: 0 | AL90: 0 | AM90: 0 | AN90: ='Controls Worksheet-2B'!$AF90 -> 0 | AO90: ='Controls Worksheet-2B'!$AG90 -> 0 | AP90: 0 | AQ90: 0 | AR90: 0 | AS90: 0 | AT90: =IF(AND('Controls Worksheet-2B'!J90<>" ",$AS90>15000),MIN(10,$AS90/'Controls Worksheet-2B'!$S90),IF($AS90<15000,$AS90,MIN(VLOOKUP($AS90,Table51[],2),$AS90/$E90))) -> 0 | AU90: 0 | AW90: 0
A91: 80 | E91: 0 | M91: 0 | N91: 0 | O91: 0 | P91: 0 | S91: 0 | T91: 0 | V91: 00 | W91: 00 | X91: 0 | Y91: 0 | Z91: 0 | AA91: 0 | AB91: 0 | AC91: 0 | AG91: 0 | AH91: 0 | AI91: 0 | AJ91: 0 | AK91: 0 | AL91: 0 | AM91: 0 | AN91: ='Controls Worksheet-2B'!$AF91 -> 0 | AO91: ='Controls Worksheet-2B'!$AG91 -> 0 | AP91: 0 | AQ91: 0 | AR91: 0 | AS91: 0 | AT91: =IF(AND('Controls Worksheet-2B'!J91<>" ",$AS91>15000),MIN(10,$AS91/'Controls Worksheet-2B'!$S91),IF($AS91<15000,$AS91,MIN(VLOOKUP($AS91,Table51[],2),$AS91/$E91))) -> 0 | AU91: 0 | AW91: 0
A92: 81 | E92: 0 | M92: 0 | N92: 0 | O92: 0 | P92: 0 | S92: 0 | T92: 0 | V92: 00 | W92: 00 | X92: 0 | Y92: 0 | Z92: 0 | AA92: 0 | AB92: 0 | AC92: 0 | AG92: 0 | AH92: 0 | AI92: 0 | AJ92: 0 | AK92: 0 | AL92: 0 | AM92: 0 | AN92: ='Controls Worksheet-2B'!$AF92 -> 0 | AO92: ='Controls Worksheet-2B'!$AG92 -> 0 | AP92: 0 | AQ92: 0 | AR92: 0 | AS92: 0 | AT92: =IF(AND('Controls Worksheet-2B'!J92<>" ",$AS92>15000),MIN(10,$AS92/'Controls Worksheet-2B'!$S92),IF($AS92<15000,$AS92,MIN(VLOOKUP($AS92,Table51[],2),$AS92/$E92))) -> 0 | AU92: 0 | AW92: 0
A93: 82 | E93: 0 | M93: 0 | N93: 0 | O93: 0 | P93: 0 | S93: 0 | T93: 0 | V93: 00 | W93: 00 | X93: 0 | Y93: 0 | Z93: 0 | AA93: 0 | AB93: 0 | AC93: 0 | AG93: 0 | AH93: 0 | AI93: 0 | AJ93: 0 | AK93: 0 | AL93: 0 | AM93: 0 | AN93: ='Controls Worksheet-2B'!$AF93 -> 0 | AO93: ='Controls Worksheet-2B'!$AG93 -> 0 | AP93: 0 | AQ93: 0 | AR93: 0 | AS93: 0 | AT93: =IF(AND('Controls Worksheet-2B'!J93<>" ",$AS93>15000),MIN(10,$AS93/'Controls Worksheet-2B'!$S93),IF($AS93<15000,$AS93,MIN(VLOOKUP($AS93,Table51[],2),$AS93/$E93))) -> 0 | AU93: 0 | AW93: 0
A94: 83 | E94: 0 | M94: 0 | N94: 0 | O94: 0 | P94: 0 | S94: 0 | T94: 0 | V94: 00 | W94: 00 | X94: 0 | Y94: 0 | Z94: 0 | AA94: 0 | AB94: 0 | AC94: 0 | AG94: 0 | AH94: 0 | AI94: 0 | AJ94: 0 | AK94: 0 | AL94: 0 | AM94: 0 | AN94: ='Controls Worksheet-2B'!$AF94 -> 0 | AO94: ='Controls Worksheet-2B'!$AG94 -> 0 | AP94: 0 | AQ94: 0 | AR94: 0 | AS94: 0 | AT94: =IF(AND('Controls Worksheet-2B'!J94<>" ",$AS94>15000),MIN(10,$AS94/'Controls Worksheet-2B'!$S94),IF($AS94<15000,$AS94,MIN(VLOOKUP($AS94,Table51[],2),$AS94/$E94))) -> 0 | AU94: 0 | AW94: 0
A95: 84 | E95: 0 | M95: 0 | N95: 0 | O95: 0 | P95: 0 | S95: 0 | T95: 0 | V95: 00 | W95: 00 | X95: 0 | Y95: 0 | Z95: 0 | AA95: 0 | AB95: 0 | AC95: 0 | AG95: 0 | AH95: 0 | AI95: 0 | AJ95: 0 | AK95: 0 | AL95: 0 | AM95: 0 | AN95: ='Controls Worksheet-2B'!$AF95 -> 0 | AO95: ='Controls Worksheet-2B'!$AG95 -> 0 | AP95: 0 | AQ95: 0 | AR95: 0 | AS95: 0 | AT95: =IF(AND('Controls Worksheet-2B'!J95<>" ",$AS95>15000),MIN(10,$AS95/'Controls Worksheet-2B'!$S95),IF($AS95<15000,$AS95,MIN(VLOOKUP($AS95,Table51[],2),$AS95/$E95))) -> 0 | AU95: 0 | AW95: 0
A96: 85 | E96: 0 | M96: 0 | N96: 0 | O96: 0 | P96: 0 | S96: 0 | T96: 0 | V96: 00 | W96: 00 | X96: 0 | Y96: 0 | Z96: 0 | AA96: 0 | AB96: 0 | AC96: 0 | AG96: 0 | AH96: 0 | AI96: 0 | AJ96: 0 | AK96: 0 | AL96: 0 | AM96: 0 | AN96: ='Controls Worksheet-2B'!$AF96 -> 0 | AO96: ='Controls Worksheet-2B'!$AG96 -> 0 | AP96: 0 | AQ96: 0 | AR96: 0 | AS96: 0 | AT96: =IF(AND('Controls Worksheet-2B'!J96<>" ",$AS96>15000),MIN(10,$AS96/'Controls Worksheet-2B'!$S96),IF($AS96<15000,$AS96,MIN(VLOOKUP($AS96,Table51[],2),$AS96/$E96))) -> 0 | AU96: 0 | AW96: 0
A97: 86 | E97: 0 | M97: 0 | N97: 0 | O97: 0 | P97: 0 | S97: 0 | T97: 0 | V97: 00 | W97: 00 | X97: 0 | Y97: 0 | Z97: 0 | AA97: 0 | AB97: 0 | AC97: 0 | AG97: 0 | AH97: 0 | AI97: 0 | AJ97: 0 | AK97: 0 | AL97: 0 | AM97: 0 | AN97: ='Controls Worksheet-2B'!$AF97 -> 0 | AO97: ='Controls Worksheet-2B'!$AG97 -> 0 | AP97: 0 | AQ97: 0 | AR97: 0 | AS97: 0 | AT97: =IF(AND('Controls Worksheet-2B'!J97<>" ",$AS97>15000),MIN(10,$AS97/'Controls Worksheet-2B'!$S97),IF($AS97<15000,$AS97,MIN(VLOOKUP($AS97,Table51[],2),$AS97/$E97))) -> 0 | AU97: 0 | AW97: 0
A98: 87 | E98: 0 | M98: 0 | N98: 0 | O98: 0 | P98: 0 | S98: 0 | T98: 0 | V98: 00 | W98: 00 | X98: 0 | Y98: 0 | Z98: 0 | AA98: 0 | AB98: 0 | AC98: 0 | AG98: 0 | AH98: 0 | AI98: 0 | AJ98: 0 | AK98: 0 | AL98: 0 | AM98: 0 | AN98: ='Controls Worksheet-2B'!$AF98 -> 0 | AO98: ='Controls Worksheet-2B'!$AG98 -> 0 | AP98: 0 | AQ98: 0 | AR98: 0 | AS98: 0 | AT98: =IF(AND('Controls Worksheet-2B'!J98<>" ",$AS98>15000),MIN(10,$AS98/'Controls Worksheet-2B'!$S98),IF($AS98<15000,$AS98,MIN(VLOOKUP($AS98,Table51[],2),$AS98/$E98))) -> 0 | AU98: 0 | AW98: 0
A99: 88 | E99: 0 | M99: 0 | N99: 0 | O99: 0 | P99: 0 | S99: 0 | T99: 0 | V99: 00 | W99: 00 | X99: 0 | Y99: 0 | Z99: 0 | AA99: 0 | AB99: 0 | AC99: 0 | AG99: 0 | AH99: 0 | AI99: 0 | AJ99: 0 | AK99: 0 | AL99: 0 | AM99: 0 | AN99: ='Controls Worksheet-2B'!$AF99 -> 0 | AO99: ='Controls Worksheet-2B'!$AG99 -> 0 | AP99: 0 | AQ99: 0 | AR99: 0 | AS99: 0 | AT99: =IF(AND('Controls Worksheet-2B'!J99<>" ",$AS99>15000),MIN(10,$AS99/'Controls Worksheet-2B'!$S99),IF($AS99<15000,$AS99,MIN(VLOOKUP($AS99,Table51[],2),$AS99/$E99))) -> 0 | AU99: 0 | AW99: 0
A100: 89 | E100: 0 | M100: 0 | N100: 0 | O100: 0 | P100: 0 | S100: 0 | T100: 0 | V100: 00 | W100: 00 | X100: 0 | Y100: 0 | Z100: 0 | AA100: 0 | AB100: 0 | AC100: 0 | AG100: 0 | AH100: 0 | AI100: 0 | AJ100: 0 | AK100: 0 | AL100: 0 | AM100: 0 | AN100: ='Controls Worksheet-2B'!$AF100 -> 0 | AO100: ='Controls Worksheet-2B'!$AG100 -> 0 | AP100: 0 | AQ100: 0 | AR100: 0 | AS100: 0 | AT100: =IF(AND('Controls Worksheet-2B'!J100<>" ",$AS100>15000),MIN(10,$AS100/'Controls Worksheet-2B'!$S100),IF($AS100<15000,$AS100,MIN(VLOOKUP($AS100,Table51[],2),$AS100/$E100))) -> 0 | AU100: 0 | AW100: 0
A101: 90 | E101: 0 | M101: 0 | N101: 0 | O101: 0 | P101: 0 | S101: 0 | T101: 0 | V101: 00 | W101: 00 | X101: 0 | Y101: 0 | Z101: 0 | AA101: 0 | AB101: 0 | AC101: 0 | AG101: 0 | AH101: 0 | AI101: 0 | AJ101: 0 | AK101: 0 | AL101: 0 | AM101: 0 | AN101: ='Controls Worksheet-2B'!$AF101 -> 0 | AO101: ='Controls Worksheet-2B'!$AG101 -> 0 | AP101: 0 | AQ101: 0 | AR101: 0 | AS101: 0 | AT101: =IF(AND('Controls Worksheet-2B'!J101<>" ",$AS101>15000),MIN(10,$AS101/'Controls Worksheet-2B'!$S101),IF($AS101<15000,$AS101,MIN(VLOOKUP($AS101,Table51[],2),$AS101/$E101))) -> 0 | AU101: 0 | AW101: 0
A102: 91 | E102: 0 | M102: 0 | N102: 0 | O102: 0 | P102: 0 | S102: 0 | T102: 0 | V102: 00 | W102: 00 | X102: 0 | Y102: 0 | Z102: 0 | AA102: 0 | AB102: 0 | AC102: 0 | AG102: 0 | AH102: 0 | AI102: 0 | AJ102: 0 | AK102: 0 | AL102: 0 | AM102: 0 | AN102: ='Controls Worksheet-2B'!$AF102 -> 0 | AO102: ='Controls Worksheet-2B'!$AG102 -> 0 | AP102: 0 | AQ102: 0 | AR102: 0 | AS102: 0 | AT102: =IF(AND('Controls Worksheet-2B'!J102<>" ",$AS102>15000),MIN(10,$AS102/'Controls Worksheet-2B'!$S102),IF($AS102<15000,$AS102,MIN(VLOOKUP($AS102,Table51[],2),$AS102/$E102))) -> 0 | AU102: 0 | AW102: 0
A103: 92 | E103: 0 | M103: 0 | N103: 0 | O103: 0 | P103: 0 | S103: 0 | T103: 0 | V103: 00 | W103: 00 | X103: 0 | Y103: 0 | Z103: 0 | AA103: 0 | AB103: 0 | AC103: 0 | AG103: 0 | AH103: 0 | AI103: 0 | AJ103: 0 | AK103: 0 | AL103: 0 | AM103: 0 | AN103: ='Controls Worksheet-2B'!$AF103 -> 0 | AO103: ='Controls Worksheet-2B'!$AG103 -> 0 | AP103: 0 | AQ103: 0 | AR103: 0 | AS103: 0 | AT103: =IF(AND('Controls Worksheet-2B'!J103<>" ",$AS103>15000),MIN(10,$AS103/'Controls Worksheet-2B'!$S103),IF($AS103<15000,$AS103,MIN(VLOOKUP($AS103,Table51[],2),$AS103/$E103))) -> 0 | AU103: 0 | AW103: 0
A104: 93 | E104: 0 | M104: 0 | N104: 0 | O104: 0 | P104: 0 | S104: 0 | T104: 0 | V104: 00 | W104: 00 | X104: 0 | Y104: 0 | Z104: 0 | AA104: 0 | AB104: 0 | AC104: 0 | AG104: 0 | AH104: 0 | AI104: 0 | AJ104: 0 | AK104: 0 | AL104: 0 | AM104: 0 | AN104: ='Controls Worksheet-2B'!$AF104 -> 0 | AO104: ='Controls Worksheet-2B'!$AG104 -> 0 | AP104: 0 | AQ104: 0 | AR104: 0 | AS104: 0 | AT104: =IF(AND('Controls Worksheet-2B'!J104<>" ",$AS104>15000),MIN(10,$AS104/'Controls Worksheet-2B'!$S104),IF($AS104<15000,$AS104,MIN(VLOOKUP($AS104,Table51[],2),$AS104/$E104))) -> 0 | AU104: 0 | AW104: 0
A105: 94 | E105: 0 | M105: 0 | N105: 0 | O105: 0 | P105: 0 | S105: 0 | T105: 0 | V105: 00 | W105: 00 | X105: 0 | Y105: 0 | Z105: 0 | AA105: 0 | AB105: 0 | AC105: 0 | AG105: 0 | AH105: 0 | AI105: 0 | AJ105: 0 | AK105: 0 | AL105: 0 | AM105: 0 | AN105: ='Controls Worksheet-2B'!$AF105 -> 0 | AO105: ='Controls Worksheet-2B'!$AG105 -> 0 | AP105: 0 | AQ105: 0 | AR105: 0 | AS105: 0 | AT105: =IF(AND('Controls Worksheet-2B'!J105<>" ",$AS105>15000),MIN(10,$AS105/'Controls Worksheet-2B'!$S105),IF($AS105<15000,$AS105,MIN(VLOOKUP($AS105,Table51[],2),$AS105/$E105))) -> 0 | AU105: 0 | AW105: 0
A106: 95 | E106: 0 | M106: 0 | N106: 0 | O106: 0 | P106: 0 | S106: 0 | T106: 0 | V106: 00 | W106: 00 | X106: 0 | Y106: 0 | Z106: 0 | AA106: 0 | AB106: 0 | AC106: 0 | AG106: 0 | AH106: 0 | AI106: 0 | AJ106: 0 | AK106: 0 | AL106: 0 | AM106: 0 | AN106: ='Controls Worksheet-2B'!$AF106 -> 0 | AO106: ='Controls Worksheet-2B'!$AG106 -> 0 | AP106: 0 | AQ106: 0 | AR106: 0 | AS106: 0 | AT106: =IF(AND('Controls Worksheet-2B'!J106<>" ",$AS106>15000),MIN(10,$AS106/'Controls Worksheet-2B'!$S106),IF($AS106<15000,$AS106,MIN(VLOOKUP($AS106,Table51[],2),$AS106/$E106))) -> 0 | AU106: 0 | AW106: 0
A107: 96 | E107: 0 | M107: 0 | N107: 0 | O107: 0 | P107: 0 | S107: 0 | T107: 0 | V107: 00 | W107: 00 | X107: 0 | Y107: 0 | Z107: 0 | AA107: 0 | AB107: 0 | AC107: 0 | AG107: 0 | AH107: 0 | AI107: 0 | AJ107: 0 | AK107: 0 | AL107: 0 | AM107: 0 | AN107: ='Controls Worksheet-2B'!$AF107 -> 0 | AO107: ='Controls Worksheet-2B'!$AG107 -> 0 | AP107: 0 | AQ107: 0 | AR107: 0 | AS107: 0 | AT107: =IF(AND('Controls Worksheet-2B'!J107<>" ",$AS107>15000),MIN(10,$AS107/'Controls Worksheet-2B'!$S107),IF($AS107<15000,$AS107,MIN(VLOOKUP($AS107,Table51[],2),$AS107/$E107))) -> 0 | AU107: 0 | AW107: 0
A108: 97 | E108: 0 | M108: 0 | N108: 0 | O108: 0 | P108: 0 | S108: 0 | T108: 0 | V108: 00 | W108: 00 | X108: 0 | Y108: 0 | Z108: 0 | AA108: 0 | AB108: 0 | AC108: 0 | AG108: 0 | AH108: 0 | AI108: 0 | AJ108: 0 | AK108: 0 | AL108: 0 | AM108: 0 | AN108: ='Controls Worksheet-2B'!$AF108 -> 0 | AO108: ='Controls Worksheet-2B'!$AG108 -> 0 | AP108: 0 | AQ108: 0 | AR108: 0 | AS108: 0 | AT108: =IF(AND('Controls Worksheet-2B'!J108<>" ",$AS108>15000),MIN(10,$AS108/'Controls Worksheet-2B'!$S108),IF($AS108<15000,$AS108,MIN(VLOOKUP($AS108,Table51[],2),$AS108/$E108))) -> 0 | AU108: 0 | AW108: 0
A109: 98 | E109: 0 | M109: 0 | N109: 0 | O109: 0 | P109: 0 | S109: 0 | T109: 0 | V109: 00 | W109: 00 | X109: 0 | Y109: 0 | Z109: 0 | AA109: 0 | AB109: 0 | AC109: 0 | AG109: 0 | AH109: 0 | AI109: 0 | AJ109: 0 | AK109: 0 | AL109: 0 | AM109: 0 | AN109: ='Controls Worksheet-2B'!$AF109 -> 0 | AO109: ='Controls Worksheet-2B'!$AG109 -> 0 | AP109: 0 | AQ109: 0 | AR109: 0 | AS109: 0 | AT109: =IF(AND('Controls Worksheet-2B'!J109<>" ",$AS109>15000),MIN(10,$AS109/'Controls Worksheet-2B'!$S109),IF($AS109<15000,$AS109,MIN(VLOOKUP($AS109,Table51[],2),$AS109/$E109))) -> 0 | AU109: 0 | AW109: 0
A110: 99 | E110: 0 | M110: 0 | N110: 0 | O110: 0 | P110: 0 | S110: 0 | T110: 0 | V110: 00 | W110: 00 | X110: 0 | Y110: 0 | Z110: 0 | AA110: 0 | AB110: 0 | AC110: 0 | AG110: 0 | AH110: 0 | AI110: 0 | AJ110: 0 | AK110: 0 | AL110: 0 | AM110: 0 | AN110: ='Controls Worksheet-2B'!$AF110 -> 0 | AO110: ='Controls Worksheet-2B'!$AG110 -> 0 | AP110: 0 | AQ110: 0 | AR110: 0 | AS110: 0 | AT110: =IF(AND('Controls Worksheet-2B'!J110<>" ",$AS110>15000),MIN(10,$AS110/'Controls Worksheet-2B'!$S110),IF($AS110<15000,$AS110,MIN(VLOOKUP($AS110,Table51[],2),$AS110/$E110))) -> 0 | AU110: 0 | AW110: 0
A111: 100 | E111: 0 | M111: 0 | N111: 0 | O111: 0 | P111: 0 | S111: 0 | T111: 0 | V111: 00 | W111: 00 | X111: 0 | Y111: 0 | Z111: 0 | AA111: 0 | AB111: 0 | AC111: 0 | AG111: 0 | AH111: 0 | AI111: 0 | AJ111: 0 | AK111: 0 | AL111: 0 | AM111: 0 | AN111: ='Controls Worksheet-2B'!$AF111 -> 0 | AO111: ='Controls Worksheet-2B'!$AG111 -> 0 | AP111: 0 | AQ111: 0 | AR111: 0 | AS111: 0 | AT111: =IF(AND('Controls Worksheet-2B'!J111<>" ",$AS111>15000),MIN(10,$AS111/'Controls Worksheet-2B'!$S111),IF($AS111<15000,$AS111,MIN(VLOOKUP($AS111,Table51[],2),$AS111/$E111))) -> 0 | AU111: 0 | AW111: 0
A112: 101 | E112: 0 | M112: 0 | N112: 0 | O112: 0 | P112: 0 | S112: 0 | T112: 0 | V112: 00 | W112: 00 | X112: 0 | Y112: 0 | Z112: 0 | AA112: 0 | AB112: 0 | AC112: 0 | AG112: 0 | AH112: 0 | AI112: 0 | AJ112: 0 | AK112: 0 | AL112: 0 | AM112: 0 | AN112: ='Controls Worksheet-2B'!$AF112 -> 0 | AO112: ='Controls Worksheet-2B'!$AG112 -> 0 | AP112: 0 | AQ112: 0 | AR112: 0 | AS112: 0 | AT112: =IF(AND('Controls Worksheet-2B'!J112<>" ",$AS112>15000),MIN(10,$AS112/'Controls Worksheet-2B'!$S112),IF($AS112<15000,$AS112,MIN(VLOOKUP($AS112,Table51[],2),$AS112/$E112))) -> 0 | AU112: 0 | AW112: 0
A113: 102 | E113: 0 | M113: 0 | N113: 0 | O113: 0 | P113: 0 | S113: 0 | T113: 0 | V113: 00 | W113: 00 | X113: 0 | Y113: 0 | Z113: 0 | AA113: 0 | AB113: 0 | AC113: 0 | AG113: 0 | AH113: 0 | AI113: 0 | AJ113: 0 | AK113: 0 | AL113: 0 | AM113: 0 | AN113: ='Controls Worksheet-2B'!$AF113 -> 0 | AO113: ='Controls Worksheet-2B'!$AG113 -> 0 | AP113: 0 | AQ113: 0 | AR113: 0 | AS113: 0 | AT113: =IF(AND('Controls Worksheet-2B'!J113<>" ",$AS113>15000),MIN(10,$AS113/'Controls Worksheet-2B'!$S113),IF($AS113<15000,$AS113,MIN(VLOOKUP($AS113,Table51[],2),$AS113/$E113))) -> 0 | AU113: 0 | AW113: 0
A114: 103 | E114: 0 | M114: 0 | N114: 0 | O114: 0 | P114: 0 | S114: 0 | T114: 0 | V114: 00 | W114: 00 | X114: 0 | Y114: 0 | Z114: 0 | AA114: 0 | AB114: 0 | AC114: 0 | AG114: 0 | AH114: 0 | AI114: 0 | AJ114: 0 | AK114: 0 | AL114: 0 | AM114: 0 | AN114: ='Controls Worksheet-2B'!$AF114 -> 0 | AO114: ='Controls Worksheet-2B'!$AG114 -> 0 | AP114: 0 | AQ114: 0 | AR114: 0 | AS114: 0 | AT114: =IF(AND('Controls Worksheet-2B'!J114<>" ",$AS114>15000),MIN(10,$AS114/'Controls Worksheet-2B'!$S114),IF($AS114<15000,$AS114,MIN(VLOOKUP($AS114,Table51[],2),$AS114/$E114))) -> 0 | AU114: 0 | AW114: 0
A115: 104 | E115: 0 | M115: 0 | N115: 0 | O115: 0 | P115: 0 | S115: 0 | T115: 0 | V115: 00 | W115: 00 | X115: 0 | Y115: 0 | Z115: 0 | AA115: 0 | AB115: 0 | AC115: 0 | AG115: 0 | AH115: 0 | AI115: 0 | AJ115: 0 | AK115: 0 | AL115: 0 | AM115: 0 | AN115: ='Controls Worksheet-2B'!$AF115 -> 0 | AO115: ='Controls Worksheet-2B'!$AG115 -> 0 | AP115: 0 | AQ115: 0 | AR115: 0 | AS115: 0 | AT115: =IF(AND('Controls Worksheet-2B'!J115<>" ",$AS115>15000),MIN(10,$AS115/'Controls Worksheet-2B'!$S115),IF($AS115<15000,$AS115,MIN(VLOOKUP($AS115,Table51[],2),$AS115/$E115))) -> 0 | AU115: 0 | AW115: 0
A116: 105 | E116: 0 | M116: 0 | N116: 0 | O116: 0 | P116: 0 | S116: 0 | T116: 0 | V116: 00 | W116: 00 | X116: 0 | Y116: 0 | Z116: 0 | AA116: 0 | AB116: 0 | AC116: 0 | AG116: 0 | AH116: 0 | AI116: 0 | AJ116: 0 | AK116: 0 | AL116: 0 | AM116: 0 | AN116: ='Controls Worksheet-2B'!$AF116 -> 0 | AO116: ='Controls Worksheet-2B'!$AG116 -> 0 | AP116: 0 | AQ116: 0 | AR116: 0 | AS116: 0 | AT116: =IF(AND('Controls Worksheet-2B'!J116<>" ",$AS116>15000),MIN(10,$AS116/'Controls Worksheet-2B'!$S116),IF($AS116<15000,$AS116,MIN(VLOOKUP($AS116,Table51[],2),$AS116/$E116))) -> 0 | AU116: 0 | AW116: 0
A117: 106 | E117: 0 | M117: 0 | N117: 0 | O117: 0 | P117: 0 | S117: 0 | T117: 0 | V117: 00 | W117: 00 | X117: 0 | Y117: 0 | Z117: 0 | AA117: 0 | AB117: 0 | AC117: 0 | AG117: 0 | AH117: 0 | AI117: 0 | AJ117: 0 | AK117: 0 | AL117: 0 | AM117: 0 | AN117: ='Controls Worksheet-2B'!$AF117 -> 0 | AO117: ='Controls Worksheet-2B'!$AG117 -> 0 | AP117: 0 | AQ117: 0 | AR117: 0 | AS117: 0 | AT117: =IF(AND('Controls Worksheet-2B'!J117<>" ",$AS117>15000),MIN(10,$AS117/'Controls Worksheet-2B'!$S117),IF($AS117<15000,$AS117,MIN(VLOOKUP($AS117,Table51[],2),$AS117/$E117))) -> 0 | AU117: 0 | AW117: 0
A118: 107 | E118: 0 | M118: 0 | N118: 0 | O118: 0 | P118: 0 | S118: 0 | T118: 0 | V118: 00 | W118: 00 | X118: 0 | Y118: 0 | Z118: 0 | AA118: 0 | AB118: 0 | AC118: 0 | AG118: 0 | AH118: 0 | AI118: 0 | AJ118: 0 | AK118: 0 | AL118: 0 | AM118: 0 | AN118: ='Controls Worksheet-2B'!$AF118 -> 0 | AO118: ='Controls Worksheet-2B'!$AG118 -> 0 | AP118: 0 | AQ118: 0 | AR118: 0 | AS118: 0 | AT118: =IF(AND('Controls Worksheet-2B'!J118<>" ",$AS118>15000),MIN(10,$AS118/'Controls Worksheet-2B'!$S118),IF($AS118<15000,$AS118,MIN(VLOOKUP($AS118,Table51[],2),$AS118/$E118))) -> 0 | AU118: 0 | AW118: 0
A119: 108 | E119: 0 | M119: 0 | N119: 0 | O119: 0 | P119: 0 | S119: 0 | T119: 0 | V119: 00 | W119: 00 | X119: 0 | Y119: 0 | Z119: 0 | AA119: 0 | AB119: 0 | AC119: 0 | AG119: 0 | AH119: 0 | AI119: 0 | AJ119: 0 | AK119: 0 | AL119: 0 | AM119: 0 | AN119: ='Controls Worksheet-2B'!$AF119 -> 0 | AO119: ='Controls Worksheet-2B'!$AG119 -> 0 | AP119: 0 | AQ119: 0 | AR119: 0 | AS119: 0 | AT119: =IF(AND('Controls Worksheet-2B'!J119<>" ",$AS119>15000),MIN(10,$AS119/'Controls Worksheet-2B'!$S119),IF($AS119<15000,$AS119,MIN(VLOOKUP($AS119,Table51[],2),$AS119/$E119))) -> 0 | AU119: 0 | AW119: 0
A120: 109 | E120: 0 | M120: 0 | N120: 0 | O120: 0 | P120: 0 | S120: 0 | T120: 0 | V120: 00 | W120: 00 | X120: 0 | Y120: 0 | Z120: 0 | AA120: 0 | AB120: 0 | AC120: 0 | AG120: 0 | AH120: 0 | AI120: 0 | AJ120: 0 | AK120: 0 | AL120: 0 | AM120: 0 | AN120: ='Controls Worksheet-2B'!$AF120 -> 0 | AO120: ='Controls Worksheet-2B'!$AG120 -> 0 | AP120: 0 | AQ120: 0 | AR120: 0 | AS120: 0 | AT120: =IF(AND('Controls Worksheet-2B'!J120<>" ",$AS120>15000),MIN(10,$AS120/'Controls Worksheet-2B'!$S120),IF($AS120<15000,$AS120,MIN(VLOOKUP($AS120,Table51[],2),$AS120/$E120))) -> 0 | AU120: 0 | AW120: 0
A121: 110 | E121: 0 | M121: 0 | N121: 0 | O121: 0 | P121: 0 | S121: 0 | T121: 0 | V121: 00 | W121: 00 | X121: 0 | Y121: 0 | Z121: 0 | AA121: 0 | AB121: 0 | AC121: 0 | AG121: 0 | AH121: 0 | AI121: 0 | AJ121: 0 | AK121: 0 | AL121: 0 | AM121: 0 | AN121: ='Controls Worksheet-2B'!$AF121 -> 0 | AO121: ='Controls Worksheet-2B'!$AG121 -> 0 | AP121: 0 | AQ121: 0 | AR121: 0 | AS121: 0 | AT121: =IF(AND('Controls Worksheet-2B'!J121<>" ",$AS121>15000),MIN(10,$AS121/'Controls Worksheet-2B'!$S121),IF($AS121<15000,$AS121,MIN(VLOOKUP($AS121,Table51[],2),$AS121/$E121))) -> 0 | AU121: 0 | AW121: 0
A122: 111 | E122: 0 | M122: 0 | N122: 0 | O122: 0 | P122: 0 | S122: 0 | T122: 0 | V122: 00 | W122: 00 | X122: 0 | Y122: 0 | Z122: 0 | AA122: 0 | AB122: 0 | AC122: 0 | AG122: 0 | AH122: 0 | AI122: 0 | AJ122: 0 | AK122: 0 | AL122: 0 | AM122: 0 | AN122: ='Controls Worksheet-2B'!$AF122 -> 0 | AO122: ='Controls Worksheet-2B'!$AG122 -> 0 | AP122: 0 | AQ122: 0 | AR122: 0 | AS122: 0 | AT122: =IF(AND('Controls Worksheet-2B'!J122<>" ",$AS122>15000),MIN(10,$AS122/'Controls Worksheet-2B'!$S122),IF($AS122<15000,$AS122,MIN(VLOOKUP($AS122,Table51[],2),$AS122/$E122))) -> 0 | AU122: 0 | AW122: 0
A123: 112 | E123: 0 | M123: 0 | N123: 0 | O123: 0 | P123: 0 | S123: 0 | T123: 0 | V123: 00 | W123: 00 | X123: 0 | Y123: 0 | Z123: 0 | AA123: 0 | AB123: 0 | AC123: 0 | AG123: 0 | AH123: 0 | AI123: 0 | AJ123: 0 | AK123: 0 | AL123: 0 | AM123: 0 | AN123: ='Controls Worksheet-2B'!$AF123 -> 0 | AO123: ='Controls Worksheet-2B'!$AG123 -> 0 | AP123: 0 | AQ123: 0 | AR123: 0 | AS123: 0 | AT123: =IF(AND('Controls Worksheet-2B'!J123<>" ",$AS123>15000),MIN(10,$AS123/'Controls Worksheet-2B'!$S123),IF($AS123<15000,$AS123,MIN(VLOOKUP($AS123,Table51[],2),$AS123/$E123))) -> 0 | AU123: 0 | AW123: 0
A124: 113 | E124: 0 | M124: 0 | N124: 0 | O124: 0 | P124: 0 | S124: 0 | T124: 0 | V124: 00 | W124: 00 | X124: 0 | Y124: 0 | Z124: 0 | AA124: 0 | AB124: 0 | AC124: 0 | AG124: 0 | AH124: 0 | AI124: 0 | AJ124: 0 | AK124: 0 | AL124: 0 | AM124: 0 | AN124: ='Controls Worksheet-2B'!$AF124 -> 0 | AO124: ='Controls Worksheet-2B'!$AG124 -> 0 | AP124: 0 | AQ124: 0 | AR124: 0 | AS124: 0 | AT124: =IF(AND('Controls Worksheet-2B'!J124<>" ",$AS124>15000),MIN(10,$AS124/'Controls Worksheet-2B'!$S124),IF($AS124<15000,$AS124,MIN(VLOOKUP($AS124,Table51[],2),$AS124/$E124))) -> 0 | AU124: 0 | AW124: 0
A125: 114 | E125: 0 | M125: 0 | N125: 0 | O125: 0 | P125: 0 | S125: 0 | T125: 0 | V125: 00 | W125: 00 | X125: 0 | Y125: 0 | Z125: 0 | AA125: 0 | AB125: 0 | AC125: 0 | AG125: 0 | AH125: 0 | AI125: 0 | AJ125: 0 | AK125: 0 | AL125: 0 | AM125: 0 | AN125: ='Controls Worksheet-2B'!$AF125 -> 0 | AO125: ='Controls Worksheet-2B'!$AG125 -> 0 | AP125: 0 | AQ125: 0 | AR125: 0 | AS125: 0 | AT125: =IF(AND('Controls Worksheet-2B'!J125<>" ",$AS125>15000),MIN(10,$AS125/'Controls Worksheet-2B'!$S125),IF($AS125<15000,$AS125,MIN(VLOOKUP($AS125,Table51[],2),$AS125/$E125))) -> 0 | AU125: 0 | AW125: 0
A126: 115 | E126: 0 | M126: 0 | N126: 0 | O126: 0 | P126: 0 | S126: 0 | T126: 0 | V126: 00 | W126: 00 | X126: 0 | Y126: 0 | Z126: 0 | AA126: 0 | AB126: 0 | AC126: 0 | AG126: 0 | AH126: 0 | AI126: 0 | AJ126: 0 | AK126: 0 | AL126: 0 | AM126: 0 | AN126: ='Controls Worksheet-2B'!$AF126 -> 0 | AO126: ='Controls Worksheet-2B'!$AG126 -> 0 | AP126: 0 | AQ126: 0 | AR126: 0 | AS126: 0 | AT126: =IF(AND('Controls Worksheet-2B'!J126<>" ",$AS126>15000),MIN(10,$AS126/'Controls Worksheet-2B'!$S126),IF($AS126<15000,$AS126,MIN(VLOOKUP($AS126,Table51[],2),$AS126/$E126))) -> 0 | AU126: 0 | AW126: 0
A127: 116 | E127: 0 | M127: 0 | N127: 0 | O127: 0 | P127: 0 | S127: 0 | T127: 0 | V127: 00 | W127: 00 | X127: 0 | Y127: 0 | Z127: 0 | AA127: 0 | AB127: 0 | AC127: 0 | AG127: 0 | AH127: 0 | AI127: 0 | AJ127: 0 | AK127: 0 | AL127: 0 | AM127: 0 | AN127: ='Controls Worksheet-2B'!$AF127 -> 0 | AO127: ='Controls Worksheet-2B'!$AG127 -> 0 | AP127: 0 | AQ127: 0 | AR127: 0 | AS127: 0 | AT127: =IF(AND('Controls Worksheet-2B'!J127<>" ",$AS127>15000),MIN(10,$AS127/'Controls Worksheet-2B'!$S127),IF($AS127<15000,$AS127,MIN(VLOOKUP($AS127,Table51[],2),$AS127/$E127))) -> 0 | AU127: 0 | AW127: 0
A128: 117 | E128: 0 | M128: 0 | N128: 0 | O128: 0 | P128: 0 | S128: 0 | T128: 0 | V128: 00 | W128: 00 | X128: 0 | Y128: 0 | Z128: 0 | AA128: 0 | AB128: 0 | AC128: 0 | AG128: 0 | AH128: 0 | AI128: 0 | AJ128: 0 | AK128: 0 | AL128: 0 | AM128: 0 | AN128: ='Controls Worksheet-2B'!$AF128 -> 0 | AO128: ='Controls Worksheet-2B'!$AG128 -> 0 | AP128: 0 | AQ128: 0 | AR128: 0 | AS128: 0 | AT128: =IF(AND('Controls Worksheet-2B'!J128<>" ",$AS128>15000),MIN(10,$AS128/'Controls Worksheet-2B'!$S128),IF($AS128<15000,$AS128,MIN(VLOOKUP($AS128,Table51[],2),$AS128/$E128))) -> 0 | AU128: 0 | AW128: 0
A129: 118 | E129: 0 | M129: 0 | N129: 0 | O129: 0 | P129: 0 | S129: 0 | T129: 0 | V129: 00 | W129: 00 | X129: 0 | Y129: 0 | Z129: 0 | AA129: 0 | AB129: 0 | AC129: 0 | AG129: 0 | AH129: 0 | AI129: 0 | AJ129: 0 | AK129: 0 | AL129: 0 | AM129: 0 | AN129: ='Controls Worksheet-2B'!$AF129 -> 0 | AO129: ='Controls Worksheet-2B'!$AG129 -> 0 | AP129: 0 | AQ129: 0 | AR129: 0 | AS129: 0 | AT129: =IF(AND('Controls Worksheet-2B'!J129<>" ",$AS129>15000),MIN(10,$AS129/'Controls Worksheet-2B'!$S129),IF($AS129<15000,$AS129,MIN(VLOOKUP($AS129,Table51[],2),$AS129/$E129))) -> 0 | AU129: 0 | AW129: 0
A130: 119 | E130: 0 | M130: 0 | N130: 0 | O130: 0 | P130: 0 | S130: 0 | T130: 0 | V130: 00 | W130: 00 | X130: 0 | Y130: 0 | Z130: 0 | AA130: 0 | AB130: 0 | AC130: 0 | AG130: 0 | AH130: 0 | AI130: 0 | AJ130: 0 | AK130: 0 | AL130: 0 | AM130: 0 | AN130: ='Controls Worksheet-2B'!$AF130 -> 0 | AO130: ='Controls Worksheet-2B'!$AG130 -> 0 | AP130: 0 | AQ130: 0 | AR130: 0 | AS130: 0 | AT130: =IF(AND('Controls Worksheet-2B'!J130<>" ",$AS130>15000),MIN(10,$AS130/'Controls Worksheet-2B'!$S130),IF($AS130<15000,$AS130,MIN(VLOOKUP($AS130,Table51[],2),$AS130/$E130))) -> 0 | AU130: 0 | AW130: 0
A131: 120 | E131: 0 | M131: 0 | N131: 0 | O131: 0 | P131: 0 | S131: 0 | T131: 0 | V131: 00 | W131: 00 | X131: 0 | Y131: 0 | Z131: 0 | AA131: 0 | AB131: 0 | AC131: 0 | AG131: 0 | AH131: 0 | AI131: 0 | AJ131: 0 | AK131: 0 | AL131: 0 | AM131: 0 | AN131: ='Controls Worksheet-2B'!$AF131 -> 0 | AO131: ='Controls Worksheet-2B'!$AG131 -> 0 | AP131: 0 | AQ131: 0 | AR131: 0 | AS131: 0 | AT131: =IF(AND('Controls Worksheet-2B'!J131<>" ",$AS131>15000),MIN(10,$AS131/'Controls Worksheet-2B'!$S131),IF($AS131<15000,$AS131,MIN(VLOOKUP($AS131,Table51[],2),$AS131/$E131))) -> 0 | AU131: 0 | AW131: 0
A132: 121 | E132: 0 | M132: 0 | N132: 0 | O132: 0 | P132: 0 | S132: 0 | T132: 0 | V132: 00 | W132: 00 | X132: 0 | Y132: 0 | Z132: 0 | AA132: 0 | AB132: 0 | AC132: 0 | AG132: 0 | AH132: 0 | AI132: 0 | AJ132: 0 | AK132: 0 | AL132: 0 | AM132: 0 | AN132: ='Controls Worksheet-2B'!$AF132 -> 0 | AO132: ='Controls Worksheet-2B'!$AG132 -> 0 | AP132: 0 | AQ132: 0 | AR132: 0 | AS132: 0 | AT132: =IF(AND('Controls Worksheet-2B'!J132<>" ",$AS132>15000),MIN(10,$AS132/'Controls Worksheet-2B'!$S132),IF($AS132<15000,$AS132,MIN(VLOOKUP($AS132,Table51[],2),$AS132/$E132))) -> 0 | AU132: 0 | AW132: 0
A133: 122 | E133: 0 | M133: 0 | N133: 0 | O133: 0 | P133: 0 | S133: 0 | T133: 0 | V133: 00 | W133: 00 | X133: 0 | Y133: 0 | Z133: 0 | AA133: 0 | AB133: 0 | AC133: 0 | AG133: 0 | AH133: 0 | AI133: 0 | AJ133: 0 | AK133: 0 | AL133: 0 | AM133: 0 | AN133: ='Controls Worksheet-2B'!$AF133 -> 0 | AO133: ='Controls Worksheet-2B'!$AG133 -> 0 | AP133: 0 | AQ133: 0 | AR133: 0 | AS133: 0 | AT133: =IF(AND('Controls Worksheet-2B'!J133<>" ",$AS133>15000),MIN(10,$AS133/'Controls Worksheet-2B'!$S133),IF($AS133<15000,$AS133,MIN(VLOOKUP($AS133,Table51[],2),$AS133/$E133))) -> 0 | AU133: 0 | AW133: 0
A134: 123 | E134: 0 | M134: 0 | N134: 0 | O134: 0 | P134: 0 | S134: 0 | T134: 0 | V134: 00 | W134: 00 | X134: 0 | Y134: 0 | Z134: 0 | AA134: 0 | AB134: 0 | AC134: 0 | AG134: 0 | AH134: 0 | AI134: 0 | AJ134: 0 | AK134: 0 | AL134: 0 | AM134: 0 | AN134: ='Controls Worksheet-2B'!$AF134 -> 0 | AO134: ='Controls Worksheet-2B'!$AG134 -> 0 | AP134: 0 | AQ134: 0 | AR134: 0 | AS134: 0 | AT134: =IF(AND('Controls Worksheet-2B'!J134<>" ",$AS134>15000),MIN(10,$AS134/'Controls Worksheet-2B'!$S134),IF($AS134<15000,$AS134,MIN(VLOOKUP($AS134,Table51[],2),$AS134/$E134))) -> 0 | AU134: 0 | AW134: 0
A135: 124 | E135: 0 | M135: 0 | N135: 0 | O135: 0 | P135: 0 | S135: 0 | T135: 0 | V135: 00 | W135: 00 | X135: 0 | Y135: 0 | Z135: 0 | AA135: 0 | AB135: 0 | AC135: 0 | AG135: 0 | AH135: 0 | AI135: 0 | AJ135: 0 | AK135: 0 | AL135: 0 | AM135: 0 | AN135: ='Controls Worksheet-2B'!$AF135 -> 0 | AO135: ='Controls Worksheet-2B'!$AG135 -> 0 | AP135: 0 | AQ135: 0 | AR135: 0 | AS135: 0 | AT135: =IF(AND('Controls Worksheet-2B'!J135<>" ",$AS135>15000),MIN(10,$AS135/'Controls Worksheet-2B'!$S135),IF($AS135<15000,$AS135,MIN(VLOOKUP($AS135,Table51[],2),$AS135/$E135))) -> 0 | AU135: 0 | AW135: 0
A136: 125 | E136: 0 | M136: 0 | N136: 0 | O136: 0 | P136: 0 | S136: 0 | T136: 0 | V136: 00 | W136: 00 | X136: 0 | Y136: 0 | Z136: 0 | AA136: 0 | AB136: 0 | AC136: 0 | AG136: 0 | AH136: 0 | AI136: 0 | AJ136: 0 | AK136: 0 | AL136: 0 | AM136: 0 | AN136: ='Controls Worksheet-2B'!$AF136 -> 0 | AO136: ='Controls Worksheet-2B'!$AG136 -> 0 | AP136: 0 | AQ136: 0 | AR136: 0 | AS136: 0 | AT136: =IF(AND('Controls Worksheet-2B'!J136<>" ",$AS136>15000),MIN(10,$AS136/'Controls Worksheet-2B'!$S136),IF($AS136<15000,$AS136,MIN(VLOOKUP($AS136,Table51[],2),$AS136/$E136))) -> 0 | AU136: 0 | AW136: 0
A137: 126 | E137: 0 | M137: 0 | N137: 0 | O137: 0 | P137: 0 | S137: 0 | T137: 0 | V137: 00 | W137: 00 | X137: 0 | Y137: 0 | Z137: 0 | AA137: 0 | AB137: 0 | AC137: 0 | AG137: 0 | AH137: 0 | AI137: 0 | AJ137: 0 | AK137: 0 | AL137: 0 | AM137: 0 | AN137: ='Controls Worksheet-2B'!$AF137 -> 0 | AO137: ='Controls Worksheet-2B'!$AG137 -> 0 | AP137: 0 | AQ137: 0 | AR137: 0 | AS137: 0 | AT137: =IF(AND('Controls Worksheet-2B'!J137<>" ",$AS137>15000),MIN(10,$AS137/'Controls Worksheet-2B'!$S137),IF($AS137<15000,$AS137,MIN(VLOOKUP($AS137,Table51[],2),$AS137/$E137))) -> 0 | AU137: 0 | AW137: 0
A138: 127 | E138: 0 | M138: 0 | N138: 0 | O138: 0 | P138: 0 | S138: 0 | T138: 0 | V138: 00 | W138: 00 | X138: 0 | Y138: 0 | Z138: 0 | AA138: 0 | AB138: 0 | AC138: 0 | AG138: 0 | AH138: 0 | AI138: 0 | AJ138: 0 | AK138: 0 | AL138: 0 | AM138: 0 | AN138: ='Controls Worksheet-2B'!$AF138 -> 0 | AO138: ='Controls Worksheet-2B'!$AG138 -> 0 | AP138: 0 | AQ138: 0 | AR138: 0 | AS138: 0 | AT138: =IF(AND('Controls Worksheet-2B'!J138<>" ",$AS138>15000),MIN(10,$AS138/'Controls Worksheet-2B'!$S138),IF($AS138<15000,$AS138,MIN(VLOOKUP($AS138,Table51[],2),$AS138/$E138))) -> 0 | AU138: 0 | AW138: 0
A139: 128 | E139: 0 | M139: =IFERROR(VLOOKUP($L139,NYDevCodes, 3, FALSE),0) -> 0 | N139: =IFERROR(VLOOKUP(M139,NYDevCodesWatts, 7, FALSE),0) -> 0 | O139: 0 | P139: 0 | S139: 0 | T139: 0 | V139: 00 | W139: 00 | X139: =IF(R139="LED Integral Lamp",T139*S139,S139) -> 0 | Y139: =IFERROR(VLOOKUP($W139,NYDevCodes, 3, FALSE),0) -> 0 | Z139: =IFERROR(VLOOKUP($V139,NYDevCodes, 3, FALSE),0) -> 0 | AA139: =IFERROR(VLOOKUP(Z139,NYDevCodesWatts, 7, FALSE),0) -> 0 | AB139: =IFERROR(E139*S139*AA139/1000,0) -> 0 | AC139: =IFERROR(S139*AA139/1000,0) -> 0 | AG139: 0 | AH139: 0 | AI139: 0 | AJ139: 0 | AK139: =IFERROR(IF(AND(B139="I",C139="Y"),($AJ$5*AI139),IF(AND(B139="I",C139="R"),($AO$4*AI139),0)),0) -> 0 | AL139: =IFERROR(IF(AND(B139="I",C139="Y"),($AJ$6*AJ139),IF(AND(B139="I",C139="R"),($AO$5*AJ139),0)),0) -> 0 | AM139: =IFERROR(IF(B139="I",($AJ$7*AI139),0),0) -> 0 | AN139: ='Controls Worksheet-2B'!$AF139 -> 0 | AO139: ='Controls Worksheet-2B'!$AG139 -> 0 | AP139: =IFERROR(IF(AND($B139="I",$C139="Y"),($AJ$5*$AN139),IF(AND($B139="I",$C139="R"),($AO$4*$AN139),0)),0) -> 0 | AQ139: =IFERROR(IF(AND($B139="I",$C139="Y"),($AJ$6*$AO139),IF(AND($B139="I",$C139="R"),($AO$5*$AO139),0)),0) -> 0 | AR139: 0 | AS139: =IFERROR(VLOOKUP(AF139,LightMeasEUL,3,FALSE),0) -> 0 | AT139: =IF(AND('Controls Worksheet-2B'!J139<>" ",$AS139>15000),MIN(10,$AS139/'Controls Worksheet-2B'!$S139),IF($AS139<15000,$AS139,MIN(VLOOKUP($AS139,Table51[],2),$AS139/$E139))) -> 0 | AU139: 0 | AW139: =IF(AF139="Custom",(AI139+AK139)*0.131,0) -> 0
A140: 129 | C140: =IF(B140="e","N"," ") ->  | E140: =IF(B140="E",4380,0) -> 0 | M140: 0 | N140: 0 | O140: 0 | P140: 0 | S140: 0 | T140: 0 | V140: 00 | W140: 00 | X140: 0 | Y140: 0 | Z140: 0 | AA140: 0 | AB140: 0 | AC140: 0 | AG140: =IFERROR(IF(AI140>=0,VLOOKUP(AF140,LightMeasEUL,2,FALSE),"Negative Energy Savings"),0) -> 0 | AH140: 0 | AI140: 0 | AJ140: 0 | AK140: 0 | AL140: 0 | AM140: 0 | AN140: ='Controls Worksheet-2B'!$AF140 -> 0 | AO140: ='Controls Worksheet-2B'!$AG140 -> 0 | AP140: 0 | AQ140: 0 | AR140: 0 | AS140: 0 | AT140: =IF(AND('Controls Worksheet-2B'!J140<>" ",$AS140>15000),MIN(10,$AS140/'Controls Worksheet-2B'!$S140),IF($AS140<15000,$AS140,MIN(VLOOKUP($AS140,Table51[],2),$AS140/$E140))) -> 0 | AU140: 0 | AW140: 0
A141: 130 | E141: 0 | L141: =IF(G141="LED Integral Lamp",G141&1&(I141*J141)&K141,G141&I141&J141&K141) ->  | M141: 0 | N141: 0 | O141: =IFERROR(E141*H141*N141/1000,0) -> 0 | P141: =IFERROR(H141*N141/1000,0) -> 0 | S141: =H141 -> 0 | T141: =IF(R141="LED Fixture",1,I141) -> 0 | V141: =IF(R141="LED Integral Lamp",R141&1&(T141*ROUNDUP(U141,0)),R141&T141&ROUNDUP(U141,0)) -> 00 | W141: =IF(R141="LED Integral Lamp",R141&1&ROUNDUP(U141,0),R141&T141&ROUNDUP(U141,0)) -> 00 | X141: 0 | Y141: 0 | Z141: 0 | AA141: 0 | AB141: 0 | AC141: 0 | AG141: 0 | AH141: =IFERROR(AG141*X141,0) -> 0 | AI141: =IF(LEFT(AF141,2)="93",((P141*E141)-((AC141*438)+(AC141*0.5*8322))),O141-AB141) -> 0 | AJ141: =IF(LEFT(AF141,2)="93",((P141-AC141)+(AC141-AC141*0.5)*(8322/E141))*1,IF(OR(AND(B141="E",E141=8760),B141="I"),(P141-AC141),0)) -> 0 | AK141: 0 | AL141: 0 | AM141: 0 | AN141: ='Controls Worksheet-2B'!$AF141 -> 0 | AO141: ='Controls Worksheet-2B'!$AG141 -> 0 | AP141: 0 | AQ141: 0 | AR141: =IFERROR(IF($B141="I",($AJ$7*AN141),0),0) -> 0 | AS141: 0 | AT141: =IF(AND('Controls Worksheet-2B'!J141<>" ",$AS141>15000),MIN(10,$AS141/'Controls Worksheet-2B'!$S141),IF($AS141<15000,$AS141,MIN(VLOOKUP($AS141,Table51[],2),$AS141/$E141))) -> 0 | AU141: =(IFERROR($AT141*($AI141+$AK141+$AN141+$AP141),0)) -> 0 | AW141: 0
A142: 131 | E142: 0 | M142: 0 | N142: 0 | O142: 0 | P142: 0 | S142: 0 | T142: 0 | V142: 00 | W142: 00 | X142: 0 | Y142: 0 | Z142: 0 | AA142: 0 | AB142: 0 | AC142: 0 | AG142: 0 | AH142: 0 | AI142: 0 | AJ142: 0 | AK142: 0 | AL142: 0 | AM142: 0 | AN142: ='Controls Worksheet-2B'!$AF142 -> 0 | AO142: ='Controls Worksheet-2B'!$AG142 -> 0 | AP142: 0 | AQ142: 0 | AR142: 0 | AS142: 0 | AT142: =IF(AND('Controls Worksheet-2B'!J142<>" ",$AS142>15000),MIN(10,$AS142/'Controls Worksheet-2B'!$S142),IF($AS142<15000,$AS142,MIN(VLOOKUP($AS142,Table51[],2),$AS142/$E142))) -> 0 | AU142: 0 | AW142: 0
A143: 132 | E143: 0 | M143: 0 | N143: 0 | O143: 0 | P143: 0 | S143: 0 | T143: 0 | V143: 00 | W143: 00 | X143: 0 | Y143: 0 | Z143: 0 | AA143: 0 | AB143: 0 | AC143: 0 | AG143: 0 | AH143: 0 | AI143: 0 | AJ143: 0 | AK143: 0 | AL143: 0 | AM143: 0 | AN143: ='Controls Worksheet-2B'!$AF143 -> 0 | AO143: ='Controls Worksheet-2B'!$AG143 -> 0 | AP143: 0 | AQ143: 0 | AR143: 0 | AS143: 0 | AT143: =IF(AND('Controls Worksheet-2B'!J143<>" ",$AS143>15000),MIN(10,$AS143/'Controls Worksheet-2B'!$S143),IF($AS143<15000,$AS143,MIN(VLOOKUP($AS143,Table51[],2),$AS143/$E143))) -> 0 | AU143: 0 | AW143: 0
A144: 133 | E144: 0 | M144: 0 | N144: 0 | O144: 0 | P144: 0 | S144: 0 | T144: 0 | V144: 00 | W144: 00 | X144: 0 | Y144: 0 | Z144: 0 | AA144: 0 | AB144: 0 | AC144: 0 | AG144: 0 | AH144: 0 | AI144: 0 | AJ144: 0 | AK144: 0 | AL144: 0 | AM144: 0 | AN144: ='Controls Worksheet-2B'!$AF144 -> 0 | AO144: ='Controls Worksheet-2B'!$AG144 -> 0 | AP144: 0 | AQ144: 0 | AR144: 0 | AS144: 0 | AT144: =IF(AND('Controls Worksheet-2B'!J144<>" ",$AS144>15000),MIN(10,$AS144/'Controls Worksheet-2B'!$S144),IF($AS144<15000,$AS144,MIN(VLOOKUP($AS144,Table51[],2),$AS144/$E144))) -> 0 | AU144: 0 | AW144: 0
A145: 134 | E145: 0 | M145: 0 | N145: 0 | O145: 0 | P145: 0 | S145: 0 | T145: 0 | V145: 00 | W145: 00 | X145: 0 | Y145: 0 | Z145: 0 | AA145: 0 | AB145: 0 | AC145: 0 | AG145: 0 | AH145: 0 | AI145: 0 | AJ145: 0 | AK145: 0 | AL145: 0 | AM145: 0 | AN145: ='Controls Worksheet-2B'!$AF145 -> 0 | AO145: ='Controls Worksheet-2B'!$AG145 -> 0 | AP145: 0 | AQ145: 0 | AR145: 0 | AS145: 0 | AT145: =IF(AND('Controls Worksheet-2B'!J145<>" ",$AS145>15000),MIN(10,$AS145/'Controls Worksheet-2B'!$S145),IF($AS145<15000,$AS145,MIN(VLOOKUP($AS145,Table51[],2),$AS145/$E145))) -> 0 | AU145: 0 | AW145: 0
A146: 135 | E146: 0 | M146: 0 | N146: 0 | O146: 0 | P146: 0 | S146: 0 | T146: 0 | V146: 00 | W146: 00 | X146: 0 | Y146: 0 | Z146: 0 | AA146: 0 | AB146: 0 | AC146: 0 | AG146: 0 | AH146: 0 | AI146: 0 | AJ146: 0 | AK146: 0 | AL146: 0 | AM146: 0 | AN146: ='Controls Worksheet-2B'!$AF146 -> 0 | AO146: ='Controls Worksheet-2B'!$AG146 -> 0 | AP146: 0 | AQ146: 0 | AR146: 0 | AS146: 0 | AT146: =IF(AND('Controls Worksheet-2B'!J146<>" ",$AS146>15000),MIN(10,$AS146/'Controls Worksheet-2B'!$S146),IF($AS146<15000,$AS146,MIN(VLOOKUP($AS146,Table51[],2),$AS146/$E146))) -> 0 | AU146: 0 | AW146: 0
A147: 136 | E147: 0 | M147: 0 | N147: 0 | O147: 0 | P147: 0 | S147: 0 | T147: 0 | V147: 00 | W147: 00 | X147: 0 | Y147: 0 | Z147: 0 | AA147: 0 | AB147: 0 | AC147: 0 | AG147: 0 | AH147: 0 | AI147: 0 | AJ147: 0 | AK147: 0 | AL147: 0 | AM147: 0 | AN147: ='Controls Worksheet-2B'!$AF147 -> 0 | AO147: ='Controls Worksheet-2B'!$AG147 -> 0 | AP147: 0 | AQ147: 0 | AR147: 0 | AS147: 0 | AT147: =IF(AND('Controls Worksheet-2B'!J147<>" ",$AS147>15000),MIN(10,$AS147/'Controls Worksheet-2B'!$S147),IF($AS147<15000,$AS147,MIN(VLOOKUP($AS147,Table51[],2),$AS147/$E147))) -> 0 | AU147: 0 | AW147: 0
A148: 137 | E148: 0 | M148: 0 | N148: 0 | O148: 0 | P148: 0 | S148: 0 | T148: 0 | V148: 00 | W148: 00 | X148: 0 | Y148: 0 | Z148: 0 | AA148: 0 | AB148: 0 | AC148: 0 | AG148: 0 | AH148: 0 | AI148: 0 | AJ148: 0 | AK148: 0 | AL148: 0 | AM148: 0 | AN148: ='Controls Worksheet-2B'!$AF148 -> 0 | AO148: ='Controls Worksheet-2B'!$AG148 -> 0 | AP148: 0 | AQ148: 0 | AR148: 0 | AS148: 0 | AT148: =IF(AND('Controls Worksheet-2B'!J148<>" ",$AS148>15000),MIN(10,$AS148/'Controls Worksheet-2B'!$S148),IF($AS148<15000,$AS148,MIN(VLOOKUP($AS148,Table51[],2),$AS148/$E148))) -> 0 | AU148: 0 | AW148: 0
A149: 138 | E149: 0 | M149: 0 | N149: 0 | O149: 0 | P149: 0 | S149: 0 | T149: 0 | V149: 00 | W149: 00 | X149: 0 | Y149: 0 | Z149: 0 | AA149: 0 | AB149: 0 | AC149: 0 | AG149: 0 | AH149: 0 | AI149: 0 | AJ149: 0 | AK149: 0 | AL149: 0 | AM149: 0 | AN149: ='Controls Worksheet-2B'!$AF149 -> 0 | AO149: ='Controls Worksheet-2B'!$AG149 -> 0 | AP149: 0 | AQ149: 0 | AR149: 0 | AS149: 0 | AT149: =IF(AND('Controls Worksheet-2B'!J149<>" ",$AS149>15000),MIN(10,$AS149/'Controls Worksheet-2B'!$S149),IF($AS149<15000,$AS149,MIN(VLOOKUP($AS149,Table51[],2),$AS149/$E149))) -> 0 | AU149: 0 | AW149: 0
A150: 139 | E150: 0 | M150: 0 | N150: 0 | O150: 0 | P150: 0 | S150: 0 | T150: 0 | V150: 00 | W150: 00 | X150: 0 | Y150: 0 | Z150: 0 | AA150: 0 | AB150: 0 | AC150: 0 | AG150: 0 | AH150: 0 | AI150: 0 | AJ150: 0 | AK150: 0 | AL150: 0 | AM150: 0 | AN150: ='Controls Worksheet-2B'!$AF150 -> 0 | AO150: ='Controls Worksheet-2B'!$AG150 -> 0 | AP150: 0 | AQ150: 0 | AR150: 0 | AS150: 0 | AT150: =IF(AND('Controls Worksheet-2B'!J150<>" ",$AS150>15000),MIN(10,$AS150/'Controls Worksheet-2B'!$S150),IF($AS150<15000,$AS150,MIN(VLOOKUP($AS150,Table51[],2),$AS150/$E150))) -> 0 | AU150: 0 | AW150: 0
A151: 140 | E151: 0 | M151: 0 | N151: 0 | O151: 0 | P151: 0 | S151: 0 | T151: 0 | V151: 00 | W151: 00 | X151: 0 | Y151: 0 | Z151: 0 | AA151: 0 | AB151: 0 | AC151: 0 | AG151: 0 | AH151: 0 | AI151: 0 | AJ151: 0 | AK151: 0 | AL151: 0 | AM151: 0 | AN151: ='Controls Worksheet-2B'!$AF151 -> 0 | AO151: ='Controls Worksheet-2B'!$AG151 -> 0 | AP151: 0 | AQ151: 0 | AR151: 0 | AS151: 0 | AT151: =IF(AND('Controls Worksheet-2B'!J151<>" ",$AS151>15000),MIN(10,$AS151/'Controls Worksheet-2B'!$S151),IF($AS151<15000,$AS151,MIN(VLOOKUP($AS151,Table51[],2),$AS151/$E151))) -> 0 | AU151: 0 | AW151: 0
A152: 141 | E152: 0 | M152: 0 | N152: 0 | O152: 0 | P152: 0 | S152: 0 | T152: 0 | V152: 00 | W152: 00 | X152: 0 | Y152: 0 | Z152: 0 | AA152: 0 | AB152: 0 | AC152: 0 | AG152: 0 | AH152: 0 | AI152: 0 | AJ152: 0 | AK152: 0 | AL152: 0 | AM152: 0 | AN152: ='Controls Worksheet-2B'!$AF152 -> 0 | AO152: ='Controls Worksheet-2B'!$AG152 -> 0 | AP152: 0 | AQ152: 0 | AR152: 0 | AS152: 0 | AT152: =IF(AND('Controls Worksheet-2B'!J152<>" ",$AS152>15000),MIN(10,$AS152/'Controls Worksheet-2B'!$S152),IF($AS152<15000,$AS152,MIN(VLOOKUP($AS152,Table51[],2),$AS152/$E152))) -> 0 | AU152: 0 | AW152: 0
A153: 142 | E153: 0 | M153: 0 | N153: 0 | O153: 0 | P153: 0 | S153: 0 | T153: 0 | V153: 00 | W153: 00 | X153: 0 | Y153: 0 | Z153: 0 | AA153: 0 | AB153: 0 | AC153: 0 | AG153: 0 | AH153: 0 | AI153: 0 | AJ153: 0 | AK153: 0 | AL153: 0 | AM153: 0 | AN153: ='Controls Worksheet-2B'!$AF153 -> 0 | AO153: ='Controls Worksheet-2B'!$AG153 -> 0 | AP153: 0 | AQ153: 0 | AR153: 0 | AS153: 0 | AT153: =IF(AND('Controls Worksheet-2B'!J153<>" ",$AS153>15000),MIN(10,$AS153/'Controls Worksheet-2B'!$S153),IF($AS153<15000,$AS153,MIN(VLOOKUP($AS153,Table51[],2),$AS153/$E153))) -> 0 | AU153: 0 | AW153: 0
A154: 143 | E154: 0 | M154: 0 | N154: 0 | O154: 0 | P154: 0 | S154: 0 | T154: 0 | V154: 00 | W154: 00 | X154: 0 | Y154: 0 | Z154: 0 | AA154: 0 | AB154: 0 | AC154: 0 | AG154: 0 | AH154: 0 | AI154: 0 | AJ154: 0 | AK154: 0 | AL154: 0 | AM154: 0 | AN154: ='Controls Worksheet-2B'!$AF154 -> 0 | AO154: ='Controls Worksheet-2B'!$AG154 -> 0 | AP154: 0 | AQ154: 0 | AR154: 0 | AS154: 0 | AT154: =IF(AND('Controls Worksheet-2B'!J154<>" ",$AS154>15000),MIN(10,$AS154/'Controls Worksheet-2B'!$S154),IF($AS154<15000,$AS154,MIN(VLOOKUP($AS154,Table51[],2),$AS154/$E154))) -> 0 | AU154: 0 | AW154: 0
A155: 144 | E155: 0 | M155: 0 | N155: 0 | O155: 0 | P155: 0 | S155: 0 | T155: 0 | V155: 00 | W155: 00 | X155: 0 | Y155: 0 | Z155: 0 | AA155: 0 | AB155: 0 | AC155: 0 | AG155: 0 | AH155: 0 | AI155: 0 | AJ155: 0 | AK155: 0 | AL155: 0 | AM155: 0 | AN155: ='Controls Worksheet-2B'!$AF155 -> 0 | AO155: ='Controls Worksheet-2B'!$AG155 -> 0 | AP155: 0 | AQ155: 0 | AR155: 0 | AS155: 0 | AT155: =IF(AND('Controls Worksheet-2B'!J155<>" ",$AS155>15000),MIN(10,$AS155/'Controls Worksheet-2B'!$S155),IF($AS155<15000,$AS155,MIN(VLOOKUP($AS155,Table51[],2),$AS155/$E155))) -> 0 | AU155: 0 | AW155: 0
A156: 145 | E156: 0 | M156: 0 | N156: 0 | O156: 0 | P156: 0 | S156: 0 | T156: 0 | V156: 00 | W156: 00 | X156: 0 | Y156: 0 | Z156: 0 | AA156: 0 | AB156: 0 | AC156: 0 | AG156: 0 | AH156: 0 | AI156: 0 | AJ156: 0 | AK156: 0 | AL156: 0 | AM156: 0 | AN156: ='Controls Worksheet-2B'!$AF156 -> 0 | AO156: ='Controls Worksheet-2B'!$AG156 -> 0 | AP156: 0 | AQ156: 0 | AR156: 0 | AS156: 0 | AT156: =IF(AND('Controls Worksheet-2B'!J156<>" ",$AS156>15000),MIN(10,$AS156/'Controls Worksheet-2B'!$S156),IF($AS156<15000,$AS156,MIN(VLOOKUP($AS156,Table51[],2),$AS156/$E156))) -> 0 | AU156: 0 | AW156: 0
A157: 146 | E157: 0 | M157: 0 | N157: 0 | O157: 0 | P157: 0 | S157: 0 | T157: 0 | V157: 00 | W157: 00 | X157: 0 | Y157: 0 | Z157: 0 | AA157: 0 | AB157: 0 | AC157: 0 | AG157: 0 | AH157: 0 | AI157: 0 | AJ157: 0 | AK157: 0 | AL157: 0 | AM157: 0 | AN157: ='Controls Worksheet-2B'!$AF157 -> 0 | AO157: ='Controls Worksheet-2B'!$AG157 -> 0 | AP157: 0 | AQ157: 0 | AR157: 0 | AS157: 0 | AT157: =IF(AND('Controls Worksheet-2B'!J157<>" ",$AS157>15000),MIN(10,$AS157/'Controls Worksheet-2B'!$S157),IF($AS157<15000,$AS157,MIN(VLOOKUP($AS157,Table51[],2),$AS157/$E157))) -> 0 | AU157: 0 | AW157: 0
A158: 147 | E158: 0 | M158: 0 | N158: 0 | O158: 0 | P158: 0 | S158: 0 | T158: 0 | V158: 00 | W158: 00 | X158: 0 | Y158: 0 | Z158: 0 | AA158: 0 | AB158: 0 | AC158: 0 | AG158: 0 | AH158: 0 | AI158: 0 | AJ158: 0 | AK158: 0 | AL158: 0 | AM158: 0 | AN158: ='Controls Worksheet-2B'!$AF158 -> 0 | AO158: ='Controls Worksheet-2B'!$AG158 -> 0 | AP158: 0 | AQ158: 0 | AR158: 0 | AS158: 0 | AT158: =IF(AND('Controls Worksheet-2B'!J158<>" ",$AS158>15000),MIN(10,$AS158/'Controls Worksheet-2B'!$S158),IF($AS158<15000,$AS158,MIN(VLOOKUP($AS158,Table51[],2),$AS158/$E158))) -> 0 | AU158: 0 | AW158: 0
A159: 148 | E159: 0 | M159: 0 | N159: 0 | O159: 0 | P159: 0 | S159: 0 | T159: 0 | V159: 00 | W159: 00 | X159: 0 | Y159: 0 | Z159: 0 | AA159: 0 | AB159: 0 | AC159: 0 | AG159: 0 | AH159: 0 | AI159: 0 | AJ159: 0 | AK159: 0 | AL159: 0 | AM159: 0 | AN159: ='Controls Worksheet-2B'!$AF159 -> 0 | AO159: ='Controls Worksheet-2B'!$AG159 -> 0 | AP159: 0 | AQ159: 0 | AR159: 0 | AS159: 0 | AT159: =IF(AND('Controls Worksheet-2B'!J159<>" ",$AS159>15000),MIN(10,$AS159/'Controls Worksheet-2B'!$S159),IF($AS159<15000,$AS159,MIN(VLOOKUP($AS159,Table51[],2),$AS159/$E159))) -> 0 | AU159: 0 | AW159: 0
A160: 149 | E160: 0 | M160: 0 | N160: 0 | O160: 0 | P160: 0 | S160: 0 | T160: 0 | V160: 00 | W160: 00 | X160: 0 | Y160: 0 | Z160: 0 | AA160: 0 | AB160: 0 | AC160: 0 | AG160: 0 | AH160: 0 | AI160: 0 | AJ160: 0 | AK160: 0 | AL160: 0 | AM160: 0 | AN160: ='Controls Worksheet-2B'!$AF160 -> 0 | AO160: ='Controls Worksheet-2B'!$AG160 -> 0 | AP160: 0 | AQ160: 0 | AR160: 0 | AS160: 0 | AT160: =IF(AND('Controls Worksheet-2B'!J160<>" ",$AS160>15000),MIN(10,$AS160/'Controls Worksheet-2B'!$S160),IF($AS160<15000,$AS160,MIN(VLOOKUP($AS160,Table51[],2),$AS160/$E160))) -> 0 | AU160: 0 | AW160: 0
A161: 150 | E161: 0 | M161: 0 | N161: 0 | O161: 0 | P161: 0 | S161: 0 | T161: 0 | V161: 00 | W161: 00 | X161: 0 | Y161: 0 | Z161: 0 | AA161: 0 | AB161: 0 | AC161: 0 | AG161: 0 | AH161: 0 | AI161: 0 | AJ161: 0 | AK161: 0 | AL161: 0 | AM161: 0 | AN161: ='Controls Worksheet-2B'!$AF161 -> 0 | AO161: ='Controls Worksheet-2B'!$AG161 -> 0 | AP161: 0 | AQ161: 0 | AR161: 0 | AS161: 0 | AT161: =IF(AND('Controls Worksheet-2B'!J161<>" ",$AS161>15000),MIN(10,$AS161/'Controls Worksheet-2B'!$S161),IF($AS161<15000,$AS161,MIN(VLOOKUP($AS161,Table51[],2),$AS161/$E161))) -> 0 | AU161: 0 | AW161: 0
A162: 151 | E162: 0 | M162: 0 | N162: 0 | O162: 0 | P162: 0 | S162: 0 | T162: 0 | V162: 00 | W162: 00 | X162: 0 | Y162: 0 | Z162: 0 | AA162: 0 | AB162: 0 | AC162: 0 | AG162: 0 | AH162: 0 | AI162: 0 | AJ162: 0 | AK162: 0 | AL162: 0 | AM162: 0 | AN162: ='Controls Worksheet-2B'!$AF162 -> 0 | AO162: ='Controls Worksheet-2B'!$AG162 -> 0 | AP162: 0 | AQ162: 0 | AR162: 0 | AS162: 0 | AT162: =IF(AND('Controls Worksheet-2B'!J162<>" ",$AS162>15000),MIN(10,$AS162/'Controls Worksheet-2B'!$S162),IF($AS162<15000,$AS162,MIN(VLOOKUP($AS162,Table51[],2),$AS162/$E162))) -> 0 | AU162: 0 | AW162: 0
A163: 152 | E163: 0 | M163: 0 | N163: 0 | O163: 0 | P163: 0 | S163: 0 | T163: 0 | V163: 00 | W163: 00 | X163: 0 | Y163: 0 | Z163: 0 | AA163: 0 | AB163: 0 | AC163: 0 | AG163: 0 | AH163: 0 | AI163: 0 | AJ163: 0 | AK163: 0 | AL163: 0 | AM163: 0 | AN163: ='Controls Worksheet-2B'!$AF163 -> 0 | AO163: ='Controls Worksheet-2B'!$AG163 -> 0 | AP163: 0 | AQ163: 0 | AR163: 0 | AS163: 0 | AT163: =IF(AND('Controls Worksheet-2B'!J163<>" ",$AS163>15000),MIN(10,$AS163/'Controls Worksheet-2B'!$S163),IF($AS163<15000,$AS163,MIN(VLOOKUP($AS163,Table51[],2),$AS163/$E163))) -> 0 | AU163: 0 | AW163: 0
A164: 153 | E164: 0 | M164: 0 | N164: 0 | O164: 0 | P164: 0 | S164: 0 | T164: 0 | V164: 00 | W164: 00 | X164: 0 | Y164: 0 | Z164: 0 | AA164: 0 | AB164: 0 | AC164: 0 | AG164: 0 | AH164: 0 | AI164: 0 | AJ164: 0 | AK164: 0 | AL164: 0 | AM164: 0 | AN164: ='Controls Worksheet-2B'!$AF164 -> 0 | AO164: ='Controls Worksheet-2B'!$AG164 -> 0 | AP164: 0 | AQ164: 0 | AR164: 0 | AS164: 0 | AT164: =IF(AND('Controls Worksheet-2B'!J164<>" ",$AS164>15000),MIN(10,$AS164/'Controls Worksheet-2B'!$S164),IF($AS164<15000,$AS164,MIN(VLOOKUP($AS164,Table51[],2),$AS164/$E164))) -> 0 | AU164: 0 | AW164: 0
A165: 154 | E165: 0 | M165: 0 | N165: 0 | O165: 0 | P165: 0 | S165: 0 | T165: 0 | V165: 00 | W165: 00 | X165: 0 | Y165: 0 | Z165: 0 | AA165: 0 | AB165: 0 | AC165: 0 | AG165: 0 | AH165: 0 | AI165: 0 | AJ165: 0 | AK165: 0 | AL165: 0 | AM165: 0 | AN165: ='Controls Worksheet-2B'!$AF165 -> 0 | AO165: ='Controls Worksheet-2B'!$AG165 -> 0 | AP165: 0 | AQ165: 0 | AR165: 0 | AS165: 0 | AT165: =IF(AND('Controls Worksheet-2B'!J165<>" ",$AS165>15000),MIN(10,$AS165/'Controls Worksheet-2B'!$S165),IF($AS165<15000,$AS165,MIN(VLOOKUP($AS165,Table51[],2),$AS165/$E165))) -> 0 | AU165: 0 | AW165: 0
A166: 155 | E166: 0 | M166: 0 | N166: 0 | O166: 0 | P166: 0 | S166: 0 | T166: 0 | V166: 00 | W166: 00 | X166: 0 | Y166: 0 | Z166: 0 | AA166: 0 | AB166: 0 | AC166: 0 | AG166: 0 | AH166: 0 | AI166: 0 | AJ166: 0 | AK166: 0 | AL166: 0 | AM166: 0 | AN166: ='Controls Worksheet-2B'!$AF166 -> 0 | AO166: ='Controls Worksheet-2B'!$AG166 -> 0 | AP166: 0 | AQ166: 0 | AR166: 0 | AS166: 0 | AT166: =IF(AND('Controls Worksheet-2B'!J166<>" ",$AS166>15000),MIN(10,$AS166/'Controls Worksheet-2B'!$S166),IF($AS166<15000,$AS166,MIN(VLOOKUP($AS166,Table51[],2),$AS166/$E166))) -> 0 | AU166: 0 | AW166: 0
A167: 156 | E167: 0 | M167: 0 | N167: 0 | O167: 0 | P167: 0 | S167: 0 | T167: 0 | V167: 00 | W167: 00 | X167: 0 | Y167: 0 | Z167: 0 | AA167: 0 | AB167: 0 | AC167: 0 | AG167: 0 | AH167: 0 | AI167: 0 | AJ167: 0 | AK167: 0 | AL167: 0 | AM167: 0 | AN167: ='Controls Worksheet-2B'!$AF167 -> 0 | AO167: ='Controls Worksheet-2B'!$AG167 -> 0 | AP167: 0 | AQ167: 0 | AR167: 0 | AS167: 0 | AT167: =IF(AND('Controls Worksheet-2B'!J167<>" ",$AS167>15000),MIN(10,$AS167/'Controls Worksheet-2B'!$S167),IF($AS167<15000,$AS167,MIN(VLOOKUP($AS167,Table51[],2),$AS167/$E167))) -> 0 | AU167: 0 | AW167: 0
A168: 157 | E168: 0 | M168: 0 | N168: 0 | O168: 0 | P168: 0 | S168: 0 | T168: 0 | V168: 00 | W168: 00 | X168: 0 | Y168: 0 | Z168: 0 | AA168: 0 | AB168: 0 | AC168: 0 | AG168: 0 | AH168: 0 | AI168: 0 | AJ168: 0 | AK168: 0 | AL168: 0 | AM168: 0 | AN168: ='Controls Worksheet-2B'!$AF168 -> 0 | AO168: ='Controls Worksheet-2B'!$AG168 -> 0 | AP168: 0 | AQ168: 0 | AR168: 0 | AS168: 0 | AT168: =IF(AND('Controls Worksheet-2B'!J168<>" ",$AS168>15000),MIN(10,$AS168/'Controls Worksheet-2B'!$S168),IF($AS168<15000,$AS168,MIN(VLOOKUP($AS168,Table51[],2),$AS168/$E168))) -> 0 | AU168: 0 | AW168: 0
A169: 158 | E169: 0 | M169: 0 | N169: 0 | O169: 0 | P169: 0 | S169: 0 | T169: 0 | V169: 00 | W169: 00 | X169: 0 | Y169: 0 | Z169: 0 | AA169: 0 | AB169: 0 | AC169: 0 | AG169: 0 | AH169: 0 | AI169: 0 | AJ169: 0 | AK169: 0 | AL169: 0 | AM169: 0 | AN169: ='Controls Worksheet-2B'!$AF169 -> 0 | AO169: ='Controls Worksheet-2B'!$AG169 -> 0 | AP169: 0 | AQ169: 0 | AR169: 0 | AS169: 0 | AT169: =IF(AND('Controls Worksheet-2B'!J169<>" ",$AS169>15000),MIN(10,$AS169/'Controls Worksheet-2B'!$S169),IF($AS169<15000,$AS169,MIN(VLOOKUP($AS169,Table51[],2),$AS169/$E169))) -> 0 | AU169: 0 | AW169: 0
A170: 159 | E170: 0 | M170: 0 | N170: 0 | O170: 0 | P170: 0 | S170: 0 | T170: 0 | V170: 00 | W170: 00 | X170: 0 | Y170: 0 | Z170: 0 | AA170: 0 | AB170: 0 | AC170: 0 | AG170: 0 | AH170: 0 | AI170: 0 | AJ170: 0 | AK170: 0 | AL170: 0 | AM170: 0 | AN170: ='Controls Worksheet-2B'!$AF170 -> 0 | AO170: ='Controls Worksheet-2B'!$AG170 -> 0 | AP170: 0 | AQ170: 0 | AR170: 0 | AS170: 0 | AT170: =IF(AND('Controls Worksheet-2B'!J170<>" ",$AS170>15000),MIN(10,$AS170/'Controls Worksheet-2B'!$S170),IF($AS170<15000,$AS170,MIN(VLOOKUP($AS170,Table51[],2),$AS170/$E170))) -> 0 | AU170: 0 | AW170: 0
A171: 160 | E171: 0 | M171: 0 | N171: 0 | O171: 0 | P171: 0 | S171: 0 | T171: 0 | V171: 00 | W171: 00 | X171: 0 | Y171: 0 | Z171: 0 | AA171: 0 | AB171: 0 | AC171: 0 | AG171: 0 | AH171: 0 | AI171: 0 | AJ171: 0 | AK171: 0 | AL171: 0 | AM171: 0 | AN171: ='Controls Worksheet-2B'!$AF171 -> 0 | AO171: ='Controls Worksheet-2B'!$AG171 -> 0 | AP171: 0 | AQ171: 0 | AR171: 0 | AS171: 0 | AT171: =IF(AND('Controls Worksheet-2B'!J171<>" ",$AS171>15000),MIN(10,$AS171/'Controls Worksheet-2B'!$S171),IF($AS171<15000,$AS171,MIN(VLOOKUP($AS171,Table51[],2),$AS171/$E171))) -> 0 | AU171: 0 | AW171: 0
A172: 161 | E172: 0 | M172: 0 | N172: 0 | O172: 0 | P172: 0 | S172: 0 | T172: 0 | V172: 00 | W172: 00 | X172: 0 | Y172: 0 | Z172: 0 | AA172: 0 | AB172: 0 | AC172: 0 | AG172: 0 | AH172: 0 | AI172: 0 | AJ172: 0 | AK172: 0 | AL172: 0 | AM172: 0 | AN172: ='Controls Worksheet-2B'!$AF172 -> 0 | AO172: ='Controls Worksheet-2B'!$AG172 -> 0 | AP172: 0 | AQ172: 0 | AR172: 0 | AS172: 0 | AT172: =IF(AND('Controls Worksheet-2B'!J172<>" ",$AS172>15000),MIN(10,$AS172/'Controls Worksheet-2B'!$S172),IF($AS172<15000,$AS172,MIN(VLOOKUP($AS172,Table51[],2),$AS172/$E172))) -> 0 | AU172: 0 | AW172: 0
A173: 162 | E173: 0 | M173: 0 | N173: 0 | O173: 0 | P173: 0 | S173: 0 | T173: 0 | V173: 00 | W173: 00 | X173: 0 | Y173: 0 | Z173: 0 | AA173: 0 | AB173: 0 | AC173: 0 | AG173: 0 | AH173: 0 | AI173: 0 | AJ173: 0 | AK173: 0 | AL173: 0 | AM173: 0 | AN173: ='Controls Worksheet-2B'!$AF173 -> 0 | AO173: ='Controls Worksheet-2B'!$AG173 -> 0 | AP173: 0 | AQ173: 0 | AR173: 0 | AS173: 0 | AT173: =IF(AND('Controls Worksheet-2B'!J173<>" ",$AS173>15000),MIN(10,$AS173/'Controls Worksheet-2B'!$S173),IF($AS173<15000,$AS173,MIN(VLOOKUP($AS173,Table51[],2),$AS173/$E173))) -> 0 | AU173: 0 | AW173: 0
A174: 163 | E174: 0 | M174: 0 | N174: 0 | O174: 0 | P174: 0 | S174: 0 | T174: 0 | V174: 00 | W174: 00 | X174: 0 | Y174: 0 | Z174: 0 | AA174: 0 | AB174: 0 | AC174: 0 | AG174: 0 | AH174: 0 | AI174: 0 | AJ174: 0 | AK174: 0 | AL174: 0 | AM174: 0 | AN174: ='Controls Worksheet-2B'!$AF174 -> 0 | AO174: ='Controls Worksheet-2B'!$AG174 -> 0 | AP174: 0 | AQ174: 0 | AR174: 0 | AS174: 0 | AT174: =IF(AND('Controls Worksheet-2B'!J174<>" ",$AS174>15000),MIN(10,$AS174/'Controls Worksheet-2B'!$S174),IF($AS174<15000,$AS174,MIN(VLOOKUP($AS174,Table51[],2),$AS174/$E174))) -> 0 | AU174: 0 | AW174: 0
A175: 164 | E175: 0 | M175: 0 | N175: 0 | O175: 0 | P175: 0 | S175: 0 | T175: 0 | V175: 00 | W175: 00 | X175: 0 | Y175: 0 | Z175: 0 | AA175: 0 | AB175: 0 | AC175: 0 | AG175: 0 | AH175: 0 | AI175: 0 | AJ175: 0 | AK175: 0 | AL175: 0 | AM175: 0 | AN175: ='Controls Worksheet-2B'!$AF175 -> 0 | AO175: ='Controls Worksheet-2B'!$AG175 -> 0 | AP175: 0 | AQ175: 0 | AR175: 0 | AS175: 0 | AT175: =IF(AND('Controls Worksheet-2B'!J175<>" ",$AS175>15000),MIN(10,$AS175/'Controls Worksheet-2B'!$S175),IF($AS175<15000,$AS175,MIN(VLOOKUP($AS175,Table51[],2),$AS175/$E175))) -> 0 | AU175: 0 | AW175: 0
A176: 165 | E176: 0 | M176: 0 | N176: 0 | O176: 0 | P176: 0 | S176: 0 | T176: 0 | V176: 00 | W176: 00 | X176: 0 | Y176: 0 | Z176: 0 | AA176: 0 | AB176: 0 | AC176: 0 | AG176: 0 | AH176: 0 | AI176: 0 | AJ176: 0 | AK176: 0 | AL176: 0 | AM176: 0 | AN176: ='Controls Worksheet-2B'!$AF176 -> 0 | AO176: ='Controls Worksheet-2B'!$AG176 -> 0 | AP176: 0 | AQ176: 0 | AR176: 0 | AS176: 0 | AT176: =IF(AND('Controls Worksheet-2B'!J176<>" ",$AS176>15000),MIN(10,$AS176/'Controls Worksheet-2B'!$S176),IF($AS176<15000,$AS176,MIN(VLOOKUP($AS176,Table51[],2),$AS176/$E176))) -> 0 | AU176: 0 | AW176: 0
A177: 166 | E177: 0 | M177: 0 | N177: 0 | O177: 0 | P177: 0 | S177: 0 | T177: 0 | V177: 00 | W177: 00 | X177: 0 | Y177: 0 | Z177: 0 | AA177: 0 | AB177: 0 | AC177: 0 | AG177: 0 | AH177: 0 | AI177: 0 | AJ177: 0 | AK177: 0 | AL177: 0 | AM177: 0 | AN177: ='Controls Worksheet-2B'!$AF177 -> 0 | AO177: ='Controls Worksheet-2B'!$AG177 -> 0 | AP177: 0 | AQ177: 0 | AR177: 0 | AS177: 0 | AT177: =IF(AND('Controls Worksheet-2B'!J177<>" ",$AS177>15000),MIN(10,$AS177/'Controls Worksheet-2B'!$S177),IF($AS177<15000,$AS177,MIN(VLOOKUP($AS177,Table51[],2),$AS177/$E177))) -> 0 | AU177: 0 | AW177: 0
A178: 167 | E178: 0 | M178: 0 | N178: 0 | O178: 0 | P178: 0 | S178: 0 | T178: 0 | V178: 00 | W178: 00 | X178: 0 | Y178: 0 | Z178: 0 | AA178: 0 | AB178: 0 | AC178: 0 | AG178: 0 | AH178: 0 | AI178: 0 | AJ178: 0 | AK178: 0 | AL178: 0 | AM178: 0 | AN178: ='Controls Worksheet-2B'!$AF178 -> 0 | AO178: ='Controls Worksheet-2B'!$AG178 -> 0 | AP178: 0 | AQ178: 0 | AR178: 0 | AS178: 0 | AT178: =IF(AND('Controls Worksheet-2B'!J178<>" ",$AS178>15000),MIN(10,$AS178/'Controls Worksheet-2B'!$S178),IF($AS178<15000,$AS178,MIN(VLOOKUP($AS178,Table51[],2),$AS178/$E178))) -> 0 | AU178: 0 | AW178: 0
A179: 168 | E179: 0 | M179: 0 | N179: 0 | O179: 0 | P179: 0 | S179: 0 | T179: 0 | V179: 00 | W179: 00 | X179: 0 | Y179: 0 | Z179: 0 | AA179: 0 | AB179: 0 | AC179: 0 | AG179: 0 | AH179: 0 | AI179: 0 | AJ179: 0 | AK179: 0 | AL179: 0 | AM179: 0 | AN179: ='Controls Worksheet-2B'!$AF179 -> 0 | AO179: ='Controls Worksheet-2B'!$AG179 -> 0 | AP179: 0 | AQ179: 0 | AR179: 0 | AS179: 0 | AT179: =IF(AND('Controls Worksheet-2B'!J179<>" ",$AS179>15000),MIN(10,$AS179/'Controls Worksheet-2B'!$S179),IF($AS179<15000,$AS179,MIN(VLOOKUP($AS179,Table51[],2),$AS179/$E179))) -> 0 | AU179: 0 | AW179: 0
A180: 169 | E180: 0 | M180: 0 | N180: 0 | O180: 0 | P180: 0 | S180: 0 | T180: 0 | V180: 00 | W180: 00 | X180: 0 | Y180: 0 | Z180: 0 | AA180: 0 | AB180: 0 | AC180: 0 | AG180: 0 | AH180: 0 | AI180: 0 | AJ180: 0 | AK180: 0 | AL180: 0 | AM180: 0 | AN180: ='Controls Worksheet-2B'!$AF180 -> 0 | AO180: ='Controls Worksheet-2B'!$AG180 -> 0 | AP180: 0 | AQ180: 0 | AR180: 0 | AS180: 0 | AT180: =IF(AND('Controls Worksheet-2B'!J180<>" ",$AS180>15000),MIN(10,$AS180/'Controls Worksheet-2B'!$S180),IF($AS180<15000,$AS180,MIN(VLOOKUP($AS180,Table51[],2),$AS180/$E180))) -> 0 | AU180: 0 | AW180: 0
A181: 170 | E181: 0 | M181: 0 | N181: 0 | O181: 0 | P181: 0 | S181: 0 | T181: 0 | V181: 00 | W181: 00 | X181: 0 | Y181: 0 | Z181: 0 | AA181: 0 | AB181: 0 | AC181: 0 | AG181: 0 | AH181: 0 | AI181: 0 | AJ181: 0 | AK181: 0 | AL181: 0 | AM181: 0 | AN181: ='Controls Worksheet-2B'!$AF181 -> 0 | AO181: ='Controls Worksheet-2B'!$AG181 -> 0 | AP181: 0 | AQ181: 0 | AR181: 0 | AS181: 0 | AT181: =IF(AND('Controls Worksheet-2B'!J181<>" ",$AS181>15000),MIN(10,$AS181/'Controls Worksheet-2B'!$S181),IF($AS181<15000,$AS181,MIN(VLOOKUP($AS181,Table51[],2),$AS181/$E181))) -> 0 | AU181: 0 | AW181: 0
A182: 171 | E182: 0 | M182: 0 | N182: 0 | O182: 0 | P182: 0 | S182: 0 | T182: 0 | V182: 00 | W182: 00 | X182: 0 | Y182: 0 | Z182: 0 | AA182: 0 | AB182: 0 | AC182: 0 | AG182: 0 | AH182: 0 | AI182: 0 | AJ182: 0 | AK182: 0 | AL182: 0 | AM182: 0 | AN182: ='Controls Worksheet-2B'!$AF182 -> 0 | AO182: ='Controls Worksheet-2B'!$AG182 -> 0 | AP182: 0 | AQ182: 0 | AR182: 0 | AS182: 0 | AT182: =IF(AND('Controls Worksheet-2B'!J182<>" ",$AS182>15000),MIN(10,$AS182/'Controls Worksheet-2B'!$S182),IF($AS182<15000,$AS182,MIN(VLOOKUP($AS182,Table51[],2),$AS182/$E182))) -> 0 | AU182: 0 | AW182: 0
A183: 172 | E183: 0 | M183: 0 | N183: 0 | O183: 0 | P183: 0 | S183: 0 | T183: 0 | V183: 00 | W183: 00 | X183: 0 | Y183: 0 | Z183: 0 | AA183: 0 | AB183: 0 | AC183: 0 | AG183: 0 | AH183: 0 | AI183: 0 | AJ183: 0 | AK183: 0 | AL183: 0 | AM183: 0 | AN183: ='Controls Worksheet-2B'!$AF183 -> 0 | AO183: ='Controls Worksheet-2B'!$AG183 -> 0 | AP183: 0 | AQ183: 0 | AR183: 0 | AS183: 0 | AT183: =IF(AND('Controls Worksheet-2B'!J183<>" ",$AS183>15000),MIN(10,$AS183/'Controls Worksheet-2B'!$S183),IF($AS183<15000,$AS183,MIN(VLOOKUP($AS183,Table51[],2),$AS183/$E183))) -> 0 | AU183: 0 | AW183: 0
A184: 173 | E184: 0 | M184: 0 | N184: 0 | O184: 0 | P184: 0 | S184: 0 | T184: 0 | V184: 00 | W184: 00 | X184: 0 | Y184: 0 | Z184: 0 | AA184: 0 | AB184: 0 | AC184: 0 | AG184: 0 | AH184: 0 | AI184: 0 | AJ184: 0 | AK184: 0 | AL184: 0 | AM184: 0 | AN184: ='Controls Worksheet-2B'!$AF184 -> 0 | AO184: ='Controls Worksheet-2B'!$AG184 -> 0 | AP184: 0 | AQ184: 0 | AR184: 0 | AS184: 0 | AT184: =IF(AND('Controls Worksheet-2B'!J184<>" ",$AS184>15000),MIN(10,$AS184/'Controls Worksheet-2B'!$S184),IF($AS184<15000,$AS184,MIN(VLOOKUP($AS184,Table51[],2),$AS184/$E184))) -> 0 | AU184: 0 | AW184: 0
A185: 174 | E185: 0 | M185: 0 | N185: 0 | O185: 0 | P185: 0 | S185: 0 | T185: 0 | V185: 00 | W185: 00 | X185: 0 | Y185: 0 | Z185: 0 | AA185: 0 | AB185: 0 | AC185: 0 | AG185: 0 | AH185: 0 | AI185: 0 | AJ185: 0 | AK185: 0 | AL185: 0 | AM185: 0 | AN185: ='Controls Worksheet-2B'!$AF185 -> 0 | AO185: ='Controls Worksheet-2B'!$AG185 -> 0 | AP185: 0 | AQ185: 0 | AR185: 0 | AS185: 0 | AT185: =IF(AND('Controls Worksheet-2B'!J185<>" ",$AS185>15000),MIN(10,$AS185/'Controls Worksheet-2B'!$S185),IF($AS185<15000,$AS185,MIN(VLOOKUP($AS185,Table51[],2),$AS185/$E185))) -> 0 | AU185: 0 | AW185: 0
A186: 175 | E186: 0 | M186: 0 | N186: 0 | O186: 0 | P186: 0 | S186: 0 | T186: 0 | V186: 00 | W186: 00 | X186: 0 | Y186: 0 | Z186: 0 | AA186: 0 | AB186: 0 | AC186: 0 | AG186: 0 | AH186: 0 | AI186: 0 | AJ186: 0 | AK186: 0 | AL186: 0 | AM186: 0 | AN186: ='Controls Worksheet-2B'!$AF186 -> 0 | AO186: ='Controls Worksheet-2B'!$AG186 -> 0 | AP186: 0 | AQ186: 0 | AR186: 0 | AS186: 0 | AT186: =IF(AND('Controls Worksheet-2B'!J186<>" ",$AS186>15000),MIN(10,$AS186/'Controls Worksheet-2B'!$S186),IF($AS186<15000,$AS186,MIN(VLOOKUP($AS186,Table51[],2),$AS186/$E186))) -> 0 | AU186: 0 | AW186: 0
A187: 176 | E187: 0 | M187: 0 | N187: 0 | O187: 0 | P187: 0 | S187: 0 | T187: 0 | V187: 00 | W187: 00 | X187: 0 | Y187: 0 | Z187: 0 | AA187: 0 | AB187: 0 | AC187: 0 | AG187: 0 | AH187: 0 | AI187: 0 | AJ187: 0 | AK187: 0 | AL187: 0 | AM187: 0 | AN187: ='Controls Worksheet-2B'!$AF187 -> 0 | AO187: ='Controls Worksheet-2B'!$AG187 -> 0 | AP187: 0 | AQ187: 0 | AR187: 0 | AS187: 0 | AT187: =IF(AND('Controls Worksheet-2B'!J187<>" ",$AS187>15000),MIN(10,$AS187/'Controls Worksheet-2B'!$S187),IF($AS187<15000,$AS187,MIN(VLOOKUP($AS187,Table51[],2),$AS187/$E187))) -> 0 | AU187: 0 | AW187: 0
A188: 177 | E188: 0 | M188: 0 | N188: 0 | O188: 0 | P188: 0 | S188: 0 | T188: 0 | V188: 00 | W188: 00 | X188: 0 | Y188: 0 | Z188: 0 | AA188: 0 | AB188: 0 | AC188: 0 | AG188: 0 | AH188: 0 | AI188: 0 | AJ188: 0 | AK188: 0 | AL188: 0 | AM188: 0 | AN188: ='Controls Worksheet-2B'!$AF188 -> 0 | AO188: ='Controls Worksheet-2B'!$AG188 -> 0 | AP188: 0 | AQ188: 0 | AR188: 0 | AS188: 0 | AT188: =IF(AND('Controls Worksheet-2B'!J188<>" ",$AS188>15000),MIN(10,$AS188/'Controls Worksheet-2B'!$S188),IF($AS188<15000,$AS188,MIN(VLOOKUP($AS188,Table51[],2),$AS188/$E188))) -> 0 | AU188: 0 | AW188: 0
A189: 178 | E189: 0 | M189: 0 | N189: 0 | O189: 0 | P189: 0 | S189: 0 | T189: 0 | V189: 00 | W189: 00 | X189: 0 | Y189: 0 | Z189: 0 | AA189: 0 | AB189: 0 | AC189: 0 | AG189: 0 | AH189: 0 | AI189: 0 | AJ189: 0 | AK189: 0 | AL189: 0 | AM189: 0 | AN189: ='Controls Worksheet-2B'!$AF189 -> 0 | AO189: ='Controls Worksheet-2B'!$AG189 -> 0 | AP189: 0 | AQ189: 0 | AR189: 0 | AS189: 0 | AT189: =IF(AND('Controls Worksheet-2B'!J189<>" ",$AS189>15000),MIN(10,$AS189/'Controls Worksheet-2B'!$S189),IF($AS189<15000,$AS189,MIN(VLOOKUP($AS189,Table51[],2),$AS189/$E189))) -> 0 | AU189: 0 | AW189: 0
A190: 179 | E190: 0 | M190: 0 | N190: 0 | O190: 0 | P190: 0 | S190: 0 | T190: 0 | V190: 00 | W190: 00 | X190: 0 | Y190: 0 | Z190: 0 | AA190: 0 | AB190: 0 | AC190: 0 | AG190: 0 | AH190: 0 | AI190: 0 | AJ190: 0 | AK190: 0 | AL190: 0 | AM190: 0 | AN190: ='Controls Worksheet-2B'!$AF190 -> 0 | AO190: ='Controls Worksheet-2B'!$AG190 -> 0 | AP190: 0 | AQ190: 0 | AR190: 0 | AS190: 0 | AT190: =IF(AND('Controls Worksheet-2B'!J190<>" ",$AS190>15000),MIN(10,$AS190/'Controls Worksheet-2B'!$S190),IF($AS190<15000,$AS190,MIN(VLOOKUP($AS190,Table51[],2),$AS190/$E190))) -> 0 | AU190: 0 | AW190: 0
A191: 180 | E191: 0 | M191: 0 | N191: 0 | O191: 0 | P191: 0 | S191: 0 | T191: 0 | V191: 00 | W191: 00 | X191: 0 | Y191: 0 | Z191: 0 | AA191: 0 | AB191: 0 | AC191: 0 | AG191: 0 | AH191: 0 | AI191: 0 | AJ191: 0 | AK191: 0 | AL191: 0 | AM191: 0 | AN191: ='Controls Worksheet-2B'!$AF191 -> 0 | AO191: ='Controls Worksheet-2B'!$AG191 -> 0 | AP191: 0 | AQ191: 0 | AR191: 0 | AS191: 0 | AT191: =IF(AND('Controls Worksheet-2B'!J191<>" ",$AS191>15000),MIN(10,$AS191/'Controls Worksheet-2B'!$S191),IF($AS191<15000,$AS191,MIN(VLOOKUP($AS191,Table51[],2),$AS191/$E191))) -> 0 | AU191: 0 | AW191: 0
A192: 181 | E192: 0 | M192: 0 | N192: 0 | O192: 0 | P192: 0 | S192: 0 | T192: 0 | V192: 00 | W192: 00 | X192: 0 | Y192: 0 | Z192: 0 | AA192: 0 | AB192: 0 | AC192: 0 | AG192: 0 | AH192: 0 | AI192: 0 | AJ192: 0 | AK192: 0 | AL192: 0 | AM192: 0 | AN192: ='Controls Worksheet-2B'!$AF192 -> 0 | AO192: ='Controls Worksheet-2B'!$AG192 -> 0 | AP192: 0 | AQ192: 0 | AR192: 0 | AS192: 0 | AT192: =IF(AND('Controls Worksheet-2B'!J192<>" ",$AS192>15000),MIN(10,$AS192/'Controls Worksheet-2B'!$S192),IF($AS192<15000,$AS192,MIN(VLOOKUP($AS192,Table51[],2),$AS192/$E192))) -> 0 | AU192: 0 | AW192: 0
A193: 182 | E193: 0 | M193: 0 | N193: 0 | O193: 0 | P193: 0 | S193: 0 | T193: 0 | V193: 00 | W193: 00 | X193: 0 | Y193: 0 | Z193: 0 | AA193: 0 | AB193: 0 | AC193: 0 | AG193: 0 | AH193: 0 | AI193: 0 | AJ193: 0 | AK193: 0 | AL193: 0 | AM193: 0 | AN193: ='Controls Worksheet-2B'!$AF193 -> 0 | AO193: ='Controls Worksheet-2B'!$AG193 -> 0 | AP193: 0 | AQ193: 0 | AR193: 0 | AS193: 0 | AT193: =IF(AND('Controls Worksheet-2B'!J193<>" ",$AS193>15000),MIN(10,$AS193/'Controls Worksheet-2B'!$S193),IF($AS193<15000,$AS193,MIN(VLOOKUP($AS193,Table51[],2),$AS193/$E193))) -> 0 | AU193: 0 | AW193: 0
A194: 183 | E194: 0 | M194: 0 | N194: 0 | O194: 0 | P194: 0 | S194: 0 | T194: 0 | V194: 00 | W194: 00 | X194: 0 | Y194: 0 | Z194: 0 | AA194: 0 | AB194: 0 | AC194: 0 | AG194: 0 | AH194: 0 | AI194: 0 | AJ194: 0 | AK194: 0 | AL194: 0 | AM194: 0 | AN194: ='Controls Worksheet-2B'!$AF194 -> 0 | AO194: ='Controls Worksheet-2B'!$AG194 -> 0 | AP194: 0 | AQ194: 0 | AR194: 0 | AS194: 0 | AT194: =IF(AND('Controls Worksheet-2B'!J194<>" ",$AS194>15000),MIN(10,$AS194/'Controls Worksheet-2B'!$S194),IF($AS194<15000,$AS194,MIN(VLOOKUP($AS194,Table51[],2),$AS194/$E194))) -> 0 | AU194: 0 | AW194: 0
A195: 184 | E195: 0 | M195: 0 | N195: 0 | O195: 0 | P195: 0 | S195: 0 | T195: 0 | V195: 00 | W195: 00 | X195: 0 | Y195: 0 | Z195: 0 | AA195: 0 | AB195: 0 | AC195: 0 | AG195: 0 | AH195: 0 | AI195: 0 | AJ195: 0 | AK195: 0 | AL195: 0 | AM195: 0 | AN195: ='Controls Worksheet-2B'!$AF195 -> 0 | AO195: ='Controls Worksheet-2B'!$AG195 -> 0 | AP195: 0 | AQ195: 0 | AR195: 0 | AS195: 0 | AT195: =IF(AND('Controls Worksheet-2B'!J195<>" ",$AS195>15000),MIN(10,$AS195/'Controls Worksheet-2B'!$S195),IF($AS195<15000,$AS195,MIN(VLOOKUP($AS195,Table51[],2),$AS195/$E195))) -> 0 | AU195: 0 | AW195: 0
A196: 185 | E196: 0 | M196: 0 | N196: 0 | O196: 0 | P196: 0 | S196: 0 | T196: 0 | V196: 00 | W196: 00 | X196: 0 | Y196: 0 | Z196: 0 | AA196: 0 | AB196: 0 | AC196: 0 | AG196: 0 | AH196: 0 | AI196: 0 | AJ196: 0 | AK196: 0 | AL196: 0 | AM196: 0 | AN196: ='Controls Worksheet-2B'!$AF196 -> 0 | AO196: ='Controls Worksheet-2B'!$AG196 -> 0 | AP196: 0 | AQ196: 0 | AR196: 0 | AS196: 0 | AT196: =IF(AND('Controls Worksheet-2B'!J196<>" ",$AS196>15000),MIN(10,$AS196/'Controls Worksheet-2B'!$S196),IF($AS196<15000,$AS196,MIN(VLOOKUP($AS196,Table51[],2),$AS196/$E196))) -> 0 | AU196: 0 | AW196: 0
A197: 186 | E197: 0 | M197: 0 | N197: 0 | O197: 0 | P197: 0 | S197: 0 | T197: 0 | V197: 00 | W197: 00 | X197: 0 | Y197: 0 | Z197: 0 | AA197: 0 | AB197: 0 | AC197: 0 | AG197: 0 | AH197: 0 | AI197: 0 | AJ197: 0 | AK197: 0 | AL197: 0 | AM197: 0 | AN197: ='Controls Worksheet-2B'!$AF197 -> 0 | AO197: ='Controls Worksheet-2B'!$AG197 -> 0 | AP197: 0 | AQ197: 0 | AR197: 0 | AS197: 0 | AT197: =IF(AND('Controls Worksheet-2B'!J197<>" ",$AS197>15000),MIN(10,$AS197/'Controls Worksheet-2B'!$S197),IF($AS197<15000,$AS197,MIN(VLOOKUP($AS197,Table51[],2),$AS197/$E197))) -> 0 | AU197: 0 | AW197: 0
A198: 187 | E198: 0 | M198: 0 | N198: 0 | O198: 0 | P198: 0 | S198: 0 | T198: 0 | V198: 00 | W198: 00 | X198: 0 | Y198: 0 | Z198: 0 | AA198: 0 | AB198: 0 | AC198: 0 | AG198: 0 | AH198: 0 | AI198: 0 | AJ198: 0 | AK198: 0 | AL198: 0 | AM198: 0 | AN198: ='Controls Worksheet-2B'!$AF198 -> 0 | AO198: ='Controls Worksheet-2B'!$AG198 -> 0 | AP198: 0 | AQ198: 0 | AR198: 0 | AS198: 0 | AT198: =IF(AND('Controls Worksheet-2B'!J198<>" ",$AS198>15000),MIN(10,$AS198/'Controls Worksheet-2B'!$S198),IF($AS198<15000,$AS198,MIN(VLOOKUP($AS198,Table51[],2),$AS198/$E198))) -> 0 | AU198: 0 | AW198: 0
A199: 188 | E199: 0 | M199: 0 | N199: 0 | O199: 0 | P199: 0 | S199: 0 | T199: 0 | V199: 00 | W199: 00 | X199: 0 | Y199: 0 | Z199: 0 | AA199: 0 | AB199: 0 | AC199: 0 | AG199: 0 | AH199: 0 | AI199: 0 | AJ199: 0 | AK199: 0 | AL199: 0 | AM199: 0 | AN199: ='Controls Worksheet-2B'!$AF199 -> 0 | AO199: ='Controls Worksheet-2B'!$AG199 -> 0 | AP199: 0 | AQ199: 0 | AR199: 0 | AS199: 0 | AT199: =IF(AND('Controls Worksheet-2B'!J199<>" ",$AS199>15000),MIN(10,$AS199/'Controls Worksheet-2B'!$S199),IF($AS199<15000,$AS199,MIN(VLOOKUP($AS199,Table51[],2),$AS199/$E199))) -> 0 | AU199: 0 | AW199: 0
A200: 189 | E200: 0 | M200: 0 | N200: 0 | O200: 0 | P200: 0 | S200: 0 | T200: 0 | V200: 00 | W200: 00 | X200: 0 | Y200: 0 | Z200: 0 | AA200: 0 | AB200: 0 | AC200: 0 | AG200: 0 | AH200: 0 | AI200: 0 | AJ200: 0 | AK200: 0 | AL200: 0 | AM200: 0 | AN200: ='Controls Worksheet-2B'!$AF200 -> 0 | AO200: ='Controls Worksheet-2B'!$AG200 -> 0 | AP200: 0 | AQ200: 0 | AR200: 0 | AS200: 0 | AT200: =IF(AND('Controls Worksheet-2B'!J200<>" ",$AS200>15000),MIN(10,$AS200/'Controls Worksheet-2B'!$S200),IF($AS200<15000,$AS200,MIN(VLOOKUP($AS200,Table51[],2),$AS200/$E200))) -> 0 | AU200: 0 | AW200: 0
... 317 more rows

Sheet Controls Worksheet-2B
AJ1: Energy Savings Factor | AO1: =VLOOKUP('App Cust Info'!A23,Table7[],4,FALSE) -> 
A2: ='App & Instructions'!A2 -> Commercial & Industrial Retrofit Program | AJ2: Occupancy Sensor | AM2: 0.2 | AO2: =IF(O8>AO1,"high","normal") -> 
A3: Lighting Systems & Controls Application | AJ3: Daylight Continuous Dimming Control | AM3: 0.3
A4: Table 2B: Lighting Controls Inventory Worksheet | AJ4: Daylight Stepped Control | AM4: 0.2
AJ5: Occ. Sensing & Daylight Dim. | AM5: 0.35
AJ6: Networked Lighting Control | AM6: 0.4
A7: ='App Cust Info'!A9 -> 0 | AJ7: Networked Lighting Control - High Occ Hours | AM7: 0.47
B8: Complete Grey | D8: cells in each applicable row | O8: =IFERROR(AVERAGEIFS(O12:O311,AO12:AO311,"=1"),MIN(O12:O311)) -> 0 | AJ8: 24/7 photocell | AM8: 0.5
P9: 1 | T9: 2 | X9: 3 | AB9: 4
A10: Line Item | B10: Location | C10: Measure Code | D10: Type of Lighting Controls | E10: Fixture/Lamp/Ballast Description | F10: Fixture NY Device Code | G10: Prescript. In demand Device Code | H10: Prescript. InDemand Fixt. Qty | I10: Proposed Watts per Fixt./ Luminaire | J10: Quantity of Controls | K10: # of Fixtures Being Controlled | L10: Total Watts per Control | M10: Control Operation | N10: # of Controlled Levels | O10: Annual Operating Hours** | P10: % Power | Q10: Total Controlled Power (W) | R10: Cntrl Savings Factor | S10: Hours/ Year | T10: % Power | U10: Total Controlled Power (W) | V10: Cntrl Savings Factor | W10: Hours/ Year | X10: % Power | Y10: Total Controlled Power (W) | Z10: Cntrl Savings Factor | AA10: Hours/ Year | AB10: % Power | AC10: Total Controlled Power (W) | AD10: Cntrl Savings Factor | AE10: Hours/ Year | AF10: Control kWh Savings | AG10: Control kW Savings | AH10: Per Controller Incentive | AI10: Total Controls Incentive | AJ10: Notes | AP10: Custom Incentives
A11: Ex. | B11: ='Lighting Worksheet-2A'!D11 -> office | C11: 61 - Remote Mounted Occupancy Sensor | D11: Occupancy Sensor | E11: ='Lighting Worksheet-2A'!Q11 -> 2x4 lensed troffer | F11: ='Lighting Worksheet-2A'!Z11 -> ILED036 | G11: ='Lighting Worksheet-2A'!Y11 -> ILED012 | H11: ='Controls Worksheet-2B'!K11*'Lighting Worksheet-2A'!T11 -> 30 | I11: ='Lighting Worksheet-2A'!AA11 -> 36 | J11: 2 | K11: ='Lighting Worksheet-2A'!S11 -> 10 | L11: =IFERROR(K11*I11/$J11,0) -> 180 | M11: =IF(J11=" ",0,IF(AND(J11>0,D11="Scene"),"Scene","TRM")) -> TRM | N11: =IF(D11="Scene","#?",1) -> 1 | O11: ='Lighting Worksheet-2A'!E11 -> 3200 | P11: =IF(OR($N11=0,$N11="#?"),0,IF($M11="TRM",1,IF($P$9>$N11,0,"%Pwr?"))) -> 1 | Q11: =IF(OR($N11=0,$N11="#?",$P11="%Pwr?"),0,$P11*I11*K11) -> 360 | R11: =IF(OR($N11=0,$N11="#?"),0,IF($M11="TRM",($AN11),IF($P$9>$N11,0,"SF?"))) -> 0.2 | S11: =IF(OR($N11=0,$N11="#?",$R11="SF?"),0,$R11*$O11) -> 640 | T11: =IF(OR($N11=0,$N11="#?"),0,IF($T$9>$N11,0,"%Pwr?")) -> 0 | U11: =IF(OR($N11=0,$N11="#?",$T11="%Pwr?"),0,$T11*I11*K11) -> 0 | V11: =IF(OR($N11=0,$N11="#?"),0,IF($M11="On/Off",0,IF($T$9>$N11,0,"SF?"))) -> 0 | W11: =IF(OR(R11=0,R11="#?",V11="SF?"),0,V11*O11) -> 0 | X11: =IF(OR($N11=0,$N11="#?"),0,IF($X$9>$N11,0,"%Pwr?")) -> 0 | Y11: =IF(OR($N11=0,$N11="#?",$X11="%Pwr?"),0,$X11*I11*K11) -> 0 | Z11: =IF(OR($N11=0,$N11="#?"),0,IF($M11="On/Off",0,IF($X$9>$N11,0,"SF?"))) -> 0 | AA11: =IF(OR($N11=0,$N11="#?",$Z11="SF?"),0,$Z11*$O11) -> 0 | AB11: =IF(OR($N11=0,$N11="#?"),0,IF($AB$9>$N11,0,"%Pwr?")) -> 0 | AC11: =IF(OR($N11=0,$N11="#?",$AB11="%Pwr?"),0,$AB11*I11*K11) -> 0 | AD11: =IF(OR($N11=0,$N11="#?"),0,IF($M11="On/Off",0,IF($AB$9>$N11,0,"SF?"))) -> 0 | AE11: =IF(OR($N11=0,$N11="#?",$AD11="SF?"),0,$AD11*$O11) -> 0 | AF11: =IF($M11=0,0,IF($M11="TRM",$Q11*$S11/1000,($Q11*$S11+$U11*$W11+$Y11*$AA11+$AC11*$AE11)/1000)) -> 230.4 | AG11: =IFERROR(IF($M11=0,0,($Q11*$S11+$U11*$W11+$Y11*$AA11+$AC11*$AE11)/($O11*1000)),0) -> 0.072 | AH11: =IFERROR(VLOOKUP(C11,ControlIncentives,2,FALSE),0) -> 20 | AI11: =IF(AM11=1,(AH11*K11),IF(AM11=2,(AH11*J11),0)) -> 40 | AM11: =IF(OR(LEFT(C11,2)={"62","63","68"}),1,2) -> 2 | AN11: =INDEX($AM$2:$AM$8,MATCH(D11,$AJ$2:$AJ$8,0)) -> 0.2 | AO11: =IF(LEFT(C11,2)="63",1,0) -> 0 | AP11: =IF(C11="Custom",(AF11+'Lighting Worksheet-2A'!AP11)*0.131,0) -> 0
A12: 1 | B12: ='Lighting Worksheet-2A'!D12 -> 0 | D12: =IFERROR(IF(C12=0,0,VLOOKUP(C12,Table18[[Lighting Controls]:[Control Type]],MATCH('Controls Worksheet-2B'!$AO$2,Table18[[#Headers],[Lighting Controls]:[Control Type]],0),0)),"Select Bldg Type & HVAC System on App Cust Info") -> 0 | E12: ='Lighting Worksheet-2A'!Q12 -> 0 | F12: ='Lighting Worksheet-2A'!Z12 -> 0 | G12: ='Lighting Worksheet-2A'!Y12 -> 0 | H12: ='Controls Worksheet-2B'!K12*'Lighting Worksheet-2A'!T12 -> 0 | I12: ='Lighting Worksheet-2A'!AA12 -> 0 | J12: =IF(OR(C12={0," "})," ","#?") ->  | K12: ='Lighting Worksheet-2A'!S12 -> 0 | L12: =IFERROR(K12*I12/$J12,0) -> 0 | M12: 0 | N12: 1 | O12: ='Lighting Worksheet-2A'!E12 -> 0 | P12: %Pwr? | Q12: 0 | R12: SF? | S12: 0 | T12: 0 | U12: 0 | V12: 0 | W12: 0 | X12: =IF(OR($N12=0,$N12="#?"),0,IF($X$9>$N12,0,"%Pwr?")) -> 0 | Y12: 0 | Z12: =IF(OR($N12=0,$N12="#?"),0,IF($M12="On/Off",0,IF($X$9>$N12,0,"SF?"))) -> 0 | AA12: =IF(OR($N12=0,$N12="#?",$Z12="SF?"),0,$Z12*$O12) -> 0 | AB12: =IF(OR($N12=0,$N12="#?"),0,IF($AB$9>$N12,0,"%Pwr?")) -> 0 | AC12: 0 | AD12: =IF(OR($N12=0,$N12="#?"),0,IF($M12="On/Off",0,IF($AB$9>$N12,0,"SF?"))) -> 0 | AE12: =IF(OR($N12=0,$N12="#?",$AD12="SF?"),0,$AD12*$O12) -> 0 | AF12: =IF($M12=0,0,IF($M12="TRM",$Q12*$S12/1000,($Q12*$S12+$U12*$W12+$Y12*$AA12+$AC12*$AE12)/1000)) -> 0 | AG12: =IFERROR(IF($M12=0,0,($Q12*$S12+$U12*$W12+$Y12*$AA12+$AC12*$AE12)/($O12*1000)),0) -> 0 | AH12: 0 | AI12: =IFERROR(IF(AM12=1,(AH12*K12),IF(AM12=2,(AH12*J12),0)),0) -> 0 | AM12: =IF(OR(LEFT(C12,2)={"62","63","68"}),1,2) -> 2 | AO12: =IF(LEFT(C12,2)="63",1,0) -> 0 | AP12: =IF(C12="Custom",(AF12+'Lighting Worksheet-2A'!AP12)*0.131,0) -> 0
A13: 2 | B13: ='Lighting Worksheet-2A'!D13 -> 0 | D13: =IFERROR(IF(C13=0,0,VLOOKUP(C13,Table18[[Lighting Controls]:[Control Type]],MATCH('Controls Worksheet-2B'!$AO$2,Table18[[#Headers],[Lighting Controls]:[Control Type]],0),0)),"Select Bldg Type & HVAC System on App Cust Info") -> 0 | E13: ='Lighting Worksheet-2A'!Q13 -> 0 | F13: ='Lighting Worksheet-2A'!Z13 -> 0 | G13: ='Lighting Worksheet-2A'!Y13 -> 0 | H13: ='Controls Worksheet-2B'!K13*'Lighting Worksheet-2A'!T13 -> 0 | I13: ='Lighting Worksheet-2A'!AA13 -> 0 | J13: =IF(OR(C13={0," "})," ","#?") ->  | K13: ='Lighting Worksheet-2A'!S13 -> 0 | L13: =IFERROR(K13*I13/$J13,0) -> 0 | M13: 0 | N13: 1 | O13: ='Lighting Worksheet-2A'!E13 -> 0 | P13: %Pwr? | Q13: 0 | R13: SF? | S13: 0 | T13: 0 | U13: 0 | V13: 0 | W13: =IF(OR(R13=0,R13="#?",V13="SF?"),0,V13*O13) -> 0 | X13: =IF(OR($N13=0,$N13="#?"),0,IF($X$9>$N13,0,"%Pwr?")) -> 0 | Y13: 0 | Z13: 0 | AA13: 0 | AB13: =IF(OR($N13=0,$N13="#?"),0,IF($AB$9>$N13,0,"%Pwr?")) -> 0 | AC13: 0 | AD13: 0 | AE13: 0 | AF13: =IF($M13=0,0,IF($M13="TRM",$Q13*$S13/1000,($Q13*$S13+$U13*$W13+$Y13*$AA13+$AC13*$AE13)/1000)) -> 0 | AG13: =IFERROR(IF($M13=0,0,IF($M13="On/Off",(($L13*$J13)/1000)*$AM$2*1,($Q13*$S13+$U13*$W13+$Y13*$AA13+$AC13*$AE13)/($O13*1000))),0) -> 0 | AH13: 0 | AI13: =IFERROR(IF(AM13=1,(AH13*K13),IF(AM13=2,(AH13*J13),0)),0) -> 0 | AM13: =IF(OR(LEFT(C13,2)={"62","63","68"}),1,2) -> 2 | AO13: 0 | AP13: =IF(C13="Custom",(AF13+'Lighting Worksheet-2A'!AP13)*0.131,0) -> 0
A14: 3 | B14: ='Lighting Worksheet-2A'!D14 -> 0 | D14: =IFERROR(IF(C14=0,0,VLOOKUP(C14,Table18[[Lighting Controls]:[Control Type]],MATCH('Controls Worksheet-2B'!$AO$2,Table18[[#Headers],[Lighting Controls]:[Control Type]],0),0)),"Select Bldg Type & HVAC System on App Cust Info") -> 0 | E14: ='Lighting Worksheet-2A'!Q14 -> 0 | F14: ='Lighting Worksheet-2A'!Z14 -> 0 | G14: ='Lighting Worksheet-2A'!Y14 -> 0 | H14: ='Controls Worksheet-2B'!K14*'Lighting Worksheet-2A'!T14 -> 0 | I14: ='Lighting Worksheet-2A'!AA14 -> 0 | J14: =IF(OR(C14={0," "})," ","#?") ->  | K14: ='Lighting Worksheet-2A'!S14 -> 0 | L14: 0 | M14: 0 | N14: 1 | O14: ='Lighting Worksheet-2A'!E14 -> 0 | P14: %Pwr? | Q14: 0 | R14: SF? | S14: 0 | T14: 0 | U14: 0 | V14: 0 | W14: =IF(OR(R14=0,R14="#?",V14="SF?"),0,V14*O14) -> 0 | X14: 0 | Y14: 0 | Z14: 0 | AA14: 0 | AB14: 0 | AC14: 0 | AD14: 0 | AE14: 0 | AF14: 0 | AG14: 0 | AH14: 0 | AI14: 0 | AM14: =IF(OR(LEFT(C14,2)={"62","63","68"}),1,2) -> 2 | AO14: 0 | AP14: =IF(C14="Custom",(AF14+'Lighting Worksheet-2A'!AP14)*0.131,0) -> 0
A15: 4 | B15: ='Lighting Worksheet-2A'!D15 -> 0 | D15: =IFERROR(IF(C15=0,0,VLOOKUP(C15,Table18[[Lighting Controls]:[Control Type]],MATCH('Controls Worksheet-2B'!$AO$2,Table18[[#Headers],[Lighting Controls]:[Control Type]],0),0)),"Select Bldg Type & HVAC System on App Cust Info") -> 0 | E15: ='Lighting Worksheet-2A'!Q15 -> 0 | F15: ='Lighting Worksheet-2A'!Z15 -> 0 | G15: ='Lighting Worksheet-2A'!Y15 -> 0 | H15: ='Controls Worksheet-2B'!K15*'Lighting Worksheet-2A'!T15 -> 0 | I15: ='Lighting Worksheet-2A'!AA15 -> 0 | J15: =IF(OR(C15={0," "})," ","#?") ->  | K15: ='Lighting Worksheet-2A'!S15 -> 0 | L15: 0 | M15: 0 | N15: 1 | O15: ='Lighting Worksheet-2A'!E15 -> 0 | P15: %Pwr? | Q15: 0 | R15: SF? | S15: 0 | T15: 0 | U15: 0 | V15: 0 | W15: 0 | X15: 0 | Y15: 0 | Z15: 0 | AA15: 0 | AB15: 0 | AC15: 0 | AD15: 0 | AE15: 0 | AF15: 0 | AG15: 0 | AH15: 0 | AI15: 0 | AM15: =IF(OR(LEFT(C15,2)={"62","63","68"}),1,2) -> 2 | AO15: 0 | AP15: =IF(C15="Custom",(AF15+'Lighting Worksheet-2A'!AP15)*0.131,0) -> 0
A16: 5 | B16: ='Lighting Worksheet-2A'!D16 -> 0 | D16: =IFERROR(IF(C16=0,0,VLOOKUP(C16,Table18[[Lighting Controls]:[Control Type]],MATCH('Controls Worksheet-2B'!$AO$2,Table18[[#Headers],[Lighting Controls]:[Control Type]],0),0)),"Select Bldg Type & HVAC System on App Cust Info") -> 0 | E16: ='Lighting Worksheet-2A'!Q16 -> 0 | F16: ='Lighting Worksheet-2A'!Z16 -> 0 | G16: ='Lighting Worksheet-2A'!Y16 -> 0 | H16: ='Controls Worksheet-2B'!K16*'Lighting Worksheet-2A'!T16 -> 0 | I16: ='Lighting Worksheet-2A'!AA16 -> 0 | J16: =IF(OR(C16={0," "})," ","#?") ->  | K16: ='Lighting Worksheet-2A'!S16 -> 0 | L16: 0 | M16: 0 | N16: 1 | O16: ='Lighting Worksheet-2A'!E16 -> 0 | P16: %Pwr? | Q16: 0 | R16: SF? | S16: 0 | T16: 0 | U16: 0 | V16: 0 | W16: 0 | X16: 0 | Y16: 0 | Z16: 0 | AA16: 0 | AB16: 0 | AC16: 0 | AD16: 0 | AE16: 0 | AF16: 0 | AG16: 0 | AH16: 0 | AI16: 0 | AM16: =IF(OR(LEFT(C16,2)={"62","63","68"}),1,2) -> 2 | AO16: 0 | AP16: =IF(C16="Custom",(AF16+'Lighting Worksheet-2A'!AP16)*0.131,0) -> 0
A17: 6 | B17: ='Lighting Worksheet-2A'!D17 -> 0 | D17: =IFERROR(IF(C17=0,0,VLOOKUP(C17,Table18[[Lighting Controls]:[Control Type]],MATCH('Controls Worksheet-2B'!$AO$2,Table18[[#Headers],[Lighting Controls]:[Control Type]],0),0)),"Select Bldg Type & HVAC System on App Cust Info") -> 0 | E17: ='Lighting Worksheet-2A'!Q17 -> 0 | F17: ='Lighting Worksheet-2A'!Z17 -> 0 | G17: ='Lighting Worksheet-2A'!Y17 -> 0 | H17: ='Controls Worksheet-2B'!K17*'Lighting Worksheet-2A'!T17 -> 0 | I17: ='Lighting Worksheet-2A'!AA17 -> 0 | J17: =IF(OR(C17={0," "})," ","#?") ->  | K17: ='Lighting Worksheet-2A'!S17 -> 0 | L17: 0 | M17: 0 | N17: 1 | O17: ='Lighting Worksheet-2A'!E17 -> 0 | P17: %Pwr? | Q17: 0 | R17: SF? | S17: 0 | T17: 0 | U17: 0 | V17: 0 | W17: 0 | X17: 0 | Y17: 0 | Z17: 0 | AA17: 0 | AB17: 0 | AC17: 0 | AD17: 0 | AE17: 0 | AF17: 0 | AG17: 0 | AH17: 0 | AI17: 0 | AM17: =IF(OR(LEFT(C17,2)={"62","63","68"}),1,2) -> 2 | AO17: 0 | AP17: =IF(C17="Custom",(AF17+'Lighting Worksheet-2A'!AP17)*0.131,0) -> 0
A18: 7 | B18: ='Lighting Worksheet-2A'!D18 -> 0 | D18: =IFERROR(IF(C18=0,0,VLOOKUP(C18,Table18[[Lighting Controls]:[Control Type]],MATCH('Controls Worksheet-2B'!$AO$2,Table18[[#Headers],[Lighting Controls]:[Control Type]],0),0)),"Select Bldg Type & HVAC System on App Cust Info") -> 0 | E18: ='Lighting Worksheet-2A'!Q18 -> 0 | F18: ='Lighting Worksheet-2A'!Z18 -> 0 | G18: ='Lighting Worksheet-2A'!Y18 -> 0 | H18: ='Controls Worksheet-2B'!K18*'Lighting Worksheet-2A'!T18 -> 0 | I18: ='Lighting Worksheet-2A'!AA18 -> 0 | J18: =IF(OR(C18={0," "})," ","#?") ->  | K18: ='Lighting Worksheet-2A'!S18 -> 0 | L18: 0 | M18: 0 | N18: 1 | O18: ='Lighting Worksheet-2A'!E18 -> 0 | P18: %Pwr? | Q18: 0 | R18: SF? | S18: 0 | T18: 0 | U18: 0 | V18: 0 | W18: 0 | X18: 0 | Y18: 0 | Z18: 0 | AA18: 0 | AB18: 0 | AC18: 0 | AD18: 0 | AE18: 0 | AF18: 0 | AG18: 0 | AH18: 0 | AI18: 0 | AM18: =IF(OR(LEFT(C18,2)={"62","63","68"}),1,2) -> 2 | AO18: 0 | AP18: =IF(C18="Custom",(AF18+'Lighting Worksheet-2A'!AP18)*0.131,0) -> 0
A19: 8 | B19: ='Lighting Worksheet-2A'!D19 -> 0 | D19: =IFERROR(IF(C19=0,0,VLOOKUP(C19,Table18[[Lighting Controls]:[Control Type]],MATCH('Controls Worksheet-2B'!$AO$2,Table18[[#Headers],[Lighting Controls]:[Control Type]],0),0)),"Select Bldg Type & HVAC System on App Cust Info") -> 0 | E19: ='Lighting Worksheet-2A'!Q19 -> 0 | F19: ='Lighting Worksheet-2A'!Z19 -> 0 | G19: ='Lighting Worksheet-2A'!Y19 -> 0 | H19: ='Controls Worksheet-2B'!K19*'Lighting Worksheet-2A'!T19 -> 0 | I19: ='Lighting Worksheet-2A'!AA19 -> 0 | J19: =IF(OR(C19={0," "})," ","#?") ->  | K19: ='Lighting Worksheet-2A'!S19 -> 0 | L19: 0 | M19: 0 | N19: 1 | O19: ='Lighting Worksheet-2A'!E19 -> 0 | P19: %Pwr? | Q19: 0 | R19: SF? | S19: 0 | T19: 0 | U19: 0 | V19: 0 | W19: 0 | X19: 0 | Y19: 0 | Z19: 0 | AA19: 0 | AB19: 0 | AC19: 0 | AD19: 0 | AE19: 0 | AF19: 0 | AG19: 0 | AH19: 0 | AI19: 0 | AM19: =IF(OR(LEFT(C19,2)={"62","63","68"}),1,2) -> 2 | AO19: 0 | AP19: =IF(C19="Custom",(AF19+'Lighting Worksheet-2A'!AP19)*0.131,0) -> 0
A20: 9 | B20: ='Lighting Worksheet-2A'!D20 -> 0 | D20: =IFERROR(IF(C20=0,0,VLOOKUP(C20,Table18[[Lighting Controls]:[Control Type]],MATCH('Controls Worksheet-2B'!$AO$2,Table18[[#Headers],[Lighting Controls]:[Control Type]],0),0)),"Select Bldg Type & HVAC System on App Cust Info") -> 0 | E20: ='Lighting Worksheet-2A'!Q20 -> 0 | F20: ='Lighting Worksheet-2A'!Z20 -> 0 | G20: ='Lighting Worksheet-2A'!Y20 -> 0 | H20: ='Controls Worksheet-2B'!K20*'Lighting Worksheet-2A'!T20 -> 0 | I20: ='Lighting Worksheet-2A'!AA20 -> 0 | J20: =IF(OR(C20={0," "})," ","#?") ->  | K20: ='Lighting Worksheet-2A'!S20 -> 0 | L20: 0 | M20: 0 | N20: 1 | O20: ='Lighting Worksheet-2A'!E20 -> 0 | P20: %Pwr? | Q20: 0 | R20: SF? | S20: 0 | T20: 0 | U20: 0 | V20: 0 | W20: 0 | X20: 0 | Y20: 0 | Z20: 0 | AA20: 0 | AB20: 0 | AC20: 0 | AD20: 0 | AE20: 0 | AF20: 0 | AG20: 0 | AH20: 0 | AI20: 0 | AM20: =IF(OR(LEFT(C20,2)={"62","63","68"}),1,2) -> 2 | AO20: 0 | AP20: =IF(C20="Custom",(AF20+'Lighting Worksheet-2A'!AP20)*0.131,0) -> 0
A21: 10 | B21: ='Lighting Worksheet-2A'!D21 -> 0 | D21: =IFERROR(IF(C21=0,0,VLOOKUP(C21,Table18[[Lighting Controls]:[Control Type]],MATCH('Controls Worksheet-2B'!$AO$2,Table18[[#Headers],[Lighting Controls]:[Control Type]],0),0)),"Select Bldg Type & HVAC System on App Cust Info") -> 0 | E21: ='Lighting Worksheet-2A'!Q21 -> 0 | F21: ='Lighting Worksheet-2A'!Z21 -> 0 | G21: ='Lighting Worksheet-2A'!Y21 -> 0 | H21: ='Controls Worksheet-2B'!K21*'Lighting Worksheet-2A'!T21 -> 0 | I21: ='Lighting Worksheet-2A'!AA21 -> 0 | J21: =IF(OR(C21={0," "})," ","#?") ->  | K21: ='Lighting Worksheet-2A'!S21 -> 0 | L21: 0 | M21: 0 | N21: 1 | O21: ='Lighting Worksheet-2A'!E21 -> 0 | P21: %Pwr? | Q21: 0 | R21: SF? | S21: 0 | T21: 0 | U21: 0 | V21: 0 | W21: 0 | X21: 0 | Y21: 0 | Z21: 0 | AA21: 0 | AB21: 0 | AC21: 0 | AD21: 0 | AE21: 0 | AF21: 0 | AG21: 0 | AH21: 0 | AI21: 0 | AM21: =IF(OR(LEFT(C21,2)={"62","63","68"}),1,2) -> 2 | AO21: 0 | AP21: =IF(C21="Custom",(AF21+'Lighting Worksheet-2A'!AP21)*0.131,0) -> 0
A22: 11 | B22: ='Lighting Worksheet-2A'!D22 -> 0 | D22: =IFERROR(IF(C22=0,0,VLOOKUP(C22,Table18[[Lighting Controls]:[Control Type]],MATCH('Controls Worksheet-2B'!$AO$2,Table18[[#Headers],[Lighting Controls]:[Control Type]],0),0)),"Select Bldg Type & HVAC System on App Cust Info") -> 0 | E22: ='Lighting Worksheet-2A'!Q22 -> 0 | F22: ='Lighting Worksheet-2A'!Z22 -> 0 | G22: ='Lighting Worksheet-2A'!Y22 -> 0 | H22: ='Controls Worksheet-2B'!K22*'Lighting Worksheet-2A'!T22 -> 0 | I22: ='Lighting Worksheet-2A'!AA22 -> 0 | J22: =IF(OR(C22={0," "})," ","#?") ->  | K22: ='Lighting Worksheet-2A'!S22 -> 0 | L22: 0 | M22: 0 | N22: 1 | O22: ='Lighting Worksheet-2A'!E22 -> 0 | P22: %Pwr? | Q22: 0 | R22: SF? | S22: 0 | T22: 0 | U22: 0 | V22: 0 | W22: 0 | X22: 0 | Y22: 0 | Z22: 0 | AA22: 0 | AB22: 0 | AC22: 0 | AD22: 0 | AE22: 0 | AF22: 0 | AG22: 0 | AH22: 0 | AI22: 0 | AM22: =IF(OR(LEFT(C22,2)={"62","63","68"}),1,2) -> 2 | AO22: 0 | AP22: =IF(C22="Custom",(AF22+'Lighting Worksheet-2A'!AP22)*0.131,0) -> 0
A23: 12 | B23: ='Lighting Worksheet-2A'!D23 -> 0 | D23: =IFERROR(IF(C23=0,0,VLOOKUP(C23,Table18[[Lighting Controls]:[Control Type]],MATCH('Controls Worksheet-2B'!$AO$2,Table18[[#Headers],[Lighting Controls]:[Control Type]],0),0)),"Select Bldg Type & HVAC System on App Cust Info") -> 0 | E23: ='Lighting Worksheet-2A'!Q23 -> 0 | F23: ='Lighting Worksheet-2A'!Z23 -> 0 | G23: ='Lighting Worksheet-2A'!Y23 -> 0 | H23: ='Controls Worksheet-2B'!K23*'Lighting Worksheet-2A'!T23 -> 0 | I23: ='Lighting Worksheet-2A'!AA23 -> 0 | J23: =IF(OR(C23={0," "})," ","#?") ->  | K23: ='Lighting Worksheet-2A'!S23 -> 0 | L23: 0 | M23: 0 | N23: 1 | O23: ='Lighting Worksheet-2A'!E23 -> 0 | P23: %Pwr? | Q23: 0 | R23: SF? | S23: 0 | T23: 0 | U23: 0 | V23: 0 | W23: 0 | X23: 0 | Y23: 0 | Z23: 0 | AA23: 0 | AB23: 0 | AC23: 0 | AD23: 0 | AE23: 0 | AF23: 0 | AG23: 0 | AH23: 0 | AI23: 0 | AM23: =IF(OR(LEFT(C23,2)={"62","63","68"}),1,2) -> 2 | AO23: 0 | AP23: =IF(C23="Custom",(AF23+'Lighting Worksheet-2A'!AP23)*0.131,0) -> 0
A24: 13 | B24: ='Lighting Worksheet-2A'!D24 -> 0 | D24: =IFERROR(IF(C24=0,0,VLOOKUP(C24,Table18[[Lighting Controls]:[Control Type]],MATCH('Controls Worksheet-2B'!$AO$2,Table18[[#Headers],[Lighting Controls]:[Control Type]],0),0)),"Select Bldg Type & HVAC System on App Cust Info") -> 0 | E24: ='Lighting Worksheet-2A'!Q24 -> 0 | F24: ='Lighting Worksheet-2A'!Z24 -> 0 | G24: ='Lighting Worksheet-2A'!Y24 -> 0 | H24: ='Controls Worksheet-2B'!K24*'Lighting Worksheet-2A'!T24 -> 0 | I24: ='Lighting Worksheet-2A'!AA24 -> 0 | J24: =IF(OR(C24={0," "})," ","#?") ->  | K24: ='Lighting Worksheet-2A'!S24 -> 0 | L24: 0 | M24: 0 | N24: 1 | O24: ='Lighting Worksheet-2A'!E24 -> 0 | P24: %Pwr? | Q24: 0 | R24: SF? | S24: 0 | T24: 0 | U24: 0 | V24: 0 | W24: 0 | X24: 0 | Y24: 0 | Z24: 0 | AA24: 0 | AB24: 0 | AC24: 0 | AD24: 0 | AE24: 0 | AF24: 0 | AG24: 0 | AH24: 0 | AI24: 0 | AM24: =IF(OR(LEFT(C24,2)={"62","63","68"}),1,2) -> 2 | AO24: 0 | AP24: =IF(C24="Custom",(AF24+'Lighting Worksheet-2A'!AP24)*0.131,0) -> 0
A25: 14 | B25: ='Lighting Worksheet-2A'!D25 -> 0 | D25: =IFERROR(IF(C25=0,0,VLOOKUP(C25,Table18[[Lighting Controls]:[Control Type]],MATCH('Controls Worksheet-2B'!$AO$2,Table18[[#Headers],[Lighting Controls]:[Control Type]],0),0)),"Select Bldg Type & HVAC System on App Cust Info") -> 0 | E25: ='Lighting Worksheet-2A'!Q25 -> 0 | F25: ='Lighting Worksheet-2A'!Z25 -> 0 | G25: ='Lighting Worksheet-2A'!Y25 -> 0 | H25: ='Controls Worksheet-2B'!K25*'Lighting Worksheet-2A'!T25 -> 0 | I25: ='Lighting Worksheet-2A'!AA25 -> 0 | J25: =IF(OR(C25={0," "})," ","#?") ->  | K25: ='Lighting Worksheet-2A'!S25 -> 0 | L25: 0 | M25: 0 | N25: 1 | O25: ='Lighting Worksheet-2A'!E25 -> 0 | P25: %Pwr? | Q25: 0 | R25: SF? | S25: 0 | T25: 0 | U25: 0 | V25: 0 | W25: 0 | X25: 0 | Y25: 0 | Z25: 0 | AA25: 0 | AB25: 0 | AC25: 0 | AD25: 0 | AE25: 0 | AF25: 0 | AG25: 0 | AH25: 0 | AI25: 0 | AM25: =IF(OR(LEFT(C25,2)={"62","63","68"}),1,2) -> 2 | AO25: 0 | AP25: =IF(C25="Custom",(AF25+'Lighting Worksheet-2A'!AP25)*0.131,0) -> 0
A26: 15 | B26: ='Lighting Worksheet-2A'!D26 -> 0 | D26: =IFERROR(IF(C26=0,0,VLOOKUP(C26,Table18[[Lighting Controls]:[Control Type]],MATCH('Controls Worksheet-2B'!$AO$2,Table18[[#Headers],[Lighting Controls]:[Control Type]],0),0)),"Select Bldg Type & HVAC System on App Cust Info") -> 0 | E26: ='Lighting Worksheet-2A'!Q26 -> 0 | F26: ='Lighting Worksheet-2A'!Z26 -> 0 | G26: ='Lighting Worksheet-2A'!Y26 -> 0 | H26: ='Controls Worksheet-2B'!K26*'Lighting Worksheet-2A'!T26 -> 0 | I26: ='Lighting Worksheet-2A'!AA26 -> 0 | J26: =IF(OR(C26={0," "})," ","#?") ->  | K26: ='Lighting Worksheet-2A'!S26 -> 0 | L26: 0 | M26: 0 | N26: 1 | O26: ='Lighting Worksheet-2A'!E26 -> 0 | P26: %Pwr? | Q26: 0 | R26: SF? | S26: 0 | T26: 0 | U26: 0 | V26: 0 | W26: 0 | X26: 0 | Y26: 0 | Z26: 0 | AA26: 0 | AB26: 0 | AC26: 0 | AD26: 0 | AE26: 0 | AF26: 0 | AG26: 0 | AH26: 0 | AI26: 0 | AM26: =IF(OR(LEFT(C26,2)={"62","63","68"}),1,2) -> 2 | AO26: 0 | AP26: =IF(C26="Custom",(AF26+'Lighting Worksheet-2A'!AP26)*0.131,0) -> 0
A27: 16 | B27: ='Lighting Worksheet-2A'!D27 -> 0 | D27: =IFERROR(IF(C27=0,0,VLOOKUP(C27,Table18[[Lighting Controls]:[Control Type]],MATCH('Controls Worksheet-2B'!$AO$2,Table18[[#Headers],[Lighting Controls]:[Control Type]],0),0)),"Select Bldg Type & HVAC System on App Cust Info") -> 0 | E27: ='Lighting Worksheet-2A'!Q27 -> 0 | F27: ='Lighting Worksheet-2A'!Z27 -> 0 | G27: ='Lighting Worksheet-2A'!Y27 -> 0 | H27: ='Controls Worksheet-2B'!K27*'Lighting Worksheet-2A'!T27 -> 0 | I27: ='Lighting Worksheet-2A'!AA27 -> 0 | J27: =IF(OR(C27={0," "})," ","#?") ->  | K27: ='Lighting Worksheet-2A'!S27 -> 0 | L27: 0 | M27: 0 | N27: 1 | O27: ='Lighting Worksheet-2A'!E27 -> 0 | P27: %Pwr? | Q27: 0 | R27: SF? | S27: 0 | T27: 0 | U27: 0 | V27: 0 | W27: 0 | X27: 0 | Y27: 0 | Z27: 0 | AA27: 0 | AB27: 0 | AC27: 0 | AD27: 0 | AE27: 0 | AF27: 0 | AG27: 0 | AH27: 0 | AI27: 0 | AM27: =IF(OR(LEFT(C27,2)={"62","63","68"}),1,2) -> 2 | AO27: 0 | AP27: =IF(C27="Custom",(AF27+'Lighting Worksheet-2A'!AP27)*0.131,0) -> 0
A28: 17 | B28: ='Lighting Worksheet-2A'!D28 -> 0 | D28: =IFERROR(IF(C28=0,0,VLOOKUP(C28,Table18[[Lighting Controls]:[Control Type]],MATCH('Controls Worksheet-2B'!$AO$2,Table18[[#Headers],[Lighting Controls]:[Control Type]],0),0)),"Select Bldg Type & HVAC System on App Cust Info") -> 0 | E28: ='Lighting Worksheet-2A'!Q28 -> 0 | F28: ='Lighting Worksheet-2A'!Z28 -> 0 | G28: ='Lighting Worksheet-2A'!Y28 -> 0 | H28: ='Controls Worksheet-2B'!K28*'Lighting Worksheet-2A'!T28 -> 0 | I28: ='Lighting Worksheet-2A'!AA28 -> 0 | J28: =IF(OR(C28={0," "})," ","#?") ->  | K28: ='Lighting Worksheet-2A'!S28 -> 0 | L28: 0 | M28: 0 | N28: 1 | O28: ='Lighting Worksheet-2A'!E28 -> 0 | P28: %Pwr? | Q28: 0 | R28: SF? | S28: 0 | T28: 0 | U28: 0 | V28: 0 | W28: 0 | X28: 0 | Y28: 0 | Z28: 0 | AA28: 0 | AB28: 0 | AC28: 0 | AD28: 0 | AE28: 0 | AF28: 0 | AG28: 0 | AH28: 0 | AI28: 0 | AM28: =IF(OR(LEFT(C28,2)={"62","63","68"}),1,2) -> 2 | AO28: 0 | AP28: =IF(C28="Custom",(AF28+'Lighting Worksheet-2A'!AP28)*0.131,0) -> 0
A29: 18 | B29: ='Lighting Worksheet-2A'!D29 -> 0 | D29: =IFERROR(IF(C29=0,0,VLOOKUP(C29,Table18[[Lighting Controls]:[Control Type]],MATCH('Controls Worksheet-2B'!$AO$2,Table18[[#Headers],[Lighting Controls]:[Control Type]],0),0)),"Select Bldg Type & HVAC System on App Cust Info") -> 0 | E29: ='Lighting Worksheet-2A'!Q29 -> 0 | F29: ='Lighting Worksheet-2A'!Z29 -> 0 | G29: ='Lighting Worksheet-2A'!Y29 -> 0 | H29: ='Controls Worksheet-2B'!K29*'Lighting Worksheet-2A'!T29 -> 0 | I29: ='Lighting Worksheet-2A'!AA29 -> 0 | J29: =IF(OR(C29={0," "})," ","#?") ->  | K29: ='Lighting Worksheet-2A'!S29 -> 0 | L29: 0 | M29: 0 | N29: 1 | O29: ='Lighting Worksheet-2A'!E29 -> 0 | P29: %Pwr? | Q29: 0 | R29: SF? | S29: 0 | T29: 0 | U29: 0 | V29: 0 | W29: 0 | X29: 0 | Y29: 0 | Z29: 0 | AA29: 0 | AB29: 0 | AC29: 0 | AD29: 0 | AE29: 0 | AF29: 0 | AG29: 0 | AH29: 0 | AI29: 0 | AM29: =IF(OR(LEFT(C29,2)={"62","63","68"}),1,2) -> 2 | AO29: 0 | AP29: =IF(C29="Custom",(AF29+'Lighting Worksheet-2A'!AP29)*0.131,0) -> 0
A30: 19 | B30: ='Lighting Worksheet-2A'!D30 -> 0 | D30: =IFERROR(IF(C30=0,0,VLOOKUP(C30,Table18[[Lighting Controls]:[Control Type]],MATCH('Controls Worksheet-2B'!$AO$2,Table18[[#Headers],[Lighting Controls]:[Control Type]],0),0)),"Select Bldg Type & HVAC System on App Cust Info") -> 0 | E30: ='Lighting Worksheet-2A'!Q30 -> 0 | F30: ='Lighting Worksheet-2A'!Z30 -> 0 | G30: ='Lighting Worksheet-2A'!Y30 -> 0 | H30: ='Controls Worksheet-2B'!K30*'Lighting Worksheet-2A'!T30 -> 0 | I30: ='Lighting Worksheet-2A'!AA30 -> 0 | J30: =IF(OR(C30={0," "})," ","#?") ->  | K30: ='Lighting Worksheet-2A'!S30 -> 0 | L30: 0 | M30: 0 | N30: 1 | O30: ='Lighting Worksheet-2A'!E30 -> 0 | P30: %Pwr? | Q30: 0 | R30: SF? | S30: 0 | T30: 0 | U30: 0 | V30: 0 | W30: 0 | X30: 0 | Y30: 0 | Z30: 0 | AA30: 0 | AB30: 0 | AC30: 0 | AD30: 0 | AE30: 0 | AF30: 0 | AG30: 0 | AH30: 0 | AI30: 0 | AM30: =IF(OR(LEFT(C30,2)={"62","63","68"}),1,2) -> 2 | AO30: 0 | AP30: =IF(C30="Custom",(AF30+'Lighting Worksheet-2A'!AP30)*0.131,0) -> 0
A31: 20 | B31: ='Lighting Worksheet-2A'!D31 -> 0 | D31: =IFERROR(IF(C31=0,0,VLOOKUP(C31,Table18[[Lighting Controls]:[Control Type]],MATCH('Controls Worksheet-2B'!$AO$2,Table18[[#Headers],[Lighting Controls]:[Control Type]],0),0)),"Select Bldg Type & HVAC System on App Cust Info") -> 0 | E31: ='Lighting Worksheet-2A'!Q31 -> 0 | F31: ='Lighting Worksheet-2A'!Z31 -> 0 | G31: ='Lighting Worksheet-2A'!Y31 -> 0 | H31: ='Controls Worksheet-2B'!K31*'Lighting Worksheet-2A'!T31 -> 0 | I31: ='Lighting Worksheet-2A'!AA31 -> 0 | J31: =IF(OR(C31={0," "})," ","#?") ->  | K31: ='Lighting Worksheet-2A'!S31 -> 0 | L31: 0 | M31: 0 | N31: 1 | O31: ='Lighting Worksheet-2A'!E31 -> 0 | P31: %Pwr? | Q31: 0 | R31: SF? | S31: 0 | T31: 0 | U31: 0 | V31: 0 | W31: 0 | X31: 0 | Y31: 0 | Z31: 0 | AA31: 0 | AB31: 0 | AC31: 0 | AD31: 0 | AE31: 0 | AF31: 0 | AG31: 0 | AH31: 0 | AI31: 0 | AM31: =IF(OR(LEFT(C31,2)={"62","63","68"}),1,2) -> 2 | AO31: 0 | AP31: =IF(C31="Custom",(AF31+'Lighting Worksheet-2A'!AP31)*0.131,0) -> 0
A32: 21 | B32: ='Lighting Worksheet-2A'!D32 -> 0 | D32: =IFERROR(IF(C32=0,0,VLOOKUP(C32,Table18[[Lighting Controls]:[Control Type]],MATCH('Controls Worksheet-2B'!$AO$2,Table18[[#Headers],[Lighting Controls]:[Control Type]],0),0)),"Select Bldg Type & HVAC System on App Cust Info") -> 0 | E32: ='Lighting Worksheet-2A'!Q32 -> 0 | F32: ='Lighting Worksheet-2A'!Z32 -> 0 | G32: ='Lighting Worksheet-2A'!Y32 -> 0 | H32: ='Controls Worksheet-2B'!K32*'Lighting Worksheet-2A'!T32 -> 0 | I32: ='Lighting Worksheet-2A'!AA32 -> 0 | J32: =IF(OR(C32={0," "})," ","#?") ->  | K32: ='Lighting Worksheet-2A'!S32 -> 0 | L32: 0 | M32: 0 | N32: 1 | O32: ='Lighting Worksheet-2A'!E32 -> 0 | P32: %Pwr? | Q32: 0 | R32: SF? | S32: 0 | T32: 0 | U32: 0 | V32: 0 | W32: 0 | X32: 0 | Y32: 0 | Z32: 0 | AA32: 0 | AB32: 0 | AC32: 0 | AD32: 0 | AE32: 0 | AF32: 0 | AG32: 0 | AH32: 0 | AI32: 0 | AM32: =IF(OR(LEFT(C32,2)={"62","63","68"}),1,2) -> 2 | AO32: 0 | AP32: =IF(C32="Custom",(AF32+'Lighting Worksheet-2A'!AP32)*0.131,0) -> 0
A33: 22 | B33: ='Lighting Worksheet-2A'!D33 -> 0 | D33: =IFERROR(IF(C33=0,0,VLOOKUP(C33,Table18[[Lighting Controls]:[Control Type]],MATCH('Controls Worksheet-2B'!$AO$2,Table18[[#Headers],[Lighting Controls]:[Control Type]],0),0)),"Select Bldg Type & HVAC System on App Cust Info") -> 0 | E33: ='Lighting Worksheet-2A'!Q33 -> 0 | F33: ='Lighting Worksheet-2A'!Z33 -> 0 | G33: ='Lighting Worksheet-2A'!Y33 -> 0 | H33: ='Controls Worksheet-2B'!K33*'Lighting Worksheet-2A'!T33 -> 0 | I33: ='Lighting Worksheet-2A'!AA33 -> 0 | J33: =IF(OR(C33={0," "})," ","#?") ->  | K33: ='Lighting Worksheet-2A'!S33 -> 0 | L33: 0 | M33: 0 | N33: 1 | O33: ='Lighting Worksheet-2A'!E33 -> 0 | P33: %Pwr? | Q33: 0 | R33: SF? | S33: 0 | T33: 0 | U33: 0 | V33: 0 | W33: 0 | X33: 0 | Y33: 0 | Z33: 0 | AA33: 0 | AB33: 0 | AC33: 0 | AD33: 0 | AE33: 0 | AF33: 0 | AG33: 0 | AH33: 0 | AI33: 0 | AM33: =IF(OR(LEFT(C33,2)={"62","63","68"}),1,2) -> 2 | AO33: 0 | AP33: =IF(C33="Custom",(AF33+'Lighting Worksheet-2A'!AP33)*0.131,0) -> 0
A34: 23 | B34: ='Lighting Worksheet-2A'!D34 -> 0 | D34: =IFERROR(IF(C34=0,0,VLOOKUP(C34,Table18[[Lighting Controls]:[Control Type]],MATCH('Controls Worksheet-2B'!$AO$2,Table18[[#Headers],[Lighting Controls]:[Control Type]],0),0)),"Select Bldg Type & HVAC System on App Cust Info") -> 0 | E34: ='Lighting Worksheet-2A'!Q34 -> 0 | F34: ='Lighting Worksheet-2A'!Z34 -> 0 | G34: ='Lighting Worksheet-2A'!Y34 -> 0 | H34: ='Controls Worksheet-2B'!K34*'Lighting Worksheet-2A'!T34 -> 0 | I34: ='Lighting Worksheet-2A'!AA34 -> 0 | J34: =IF(OR(C34={0," "})," ","#?") ->  | K34: ='Lighting Worksheet-2A'!S34 -> 0 | L34: 0 | M34: 0 | N34: 1 | O34: ='Lighting Worksheet-2A'!E34 -> 0 | P34: %Pwr? | Q34: 0 | R34: SF? | S34: 0 | T34: 0 | U34: 0 | V34: 0 | W34: 0 | X34: 0 | Y34: 0 | Z34: 0 | AA34: 0 | AB34: 0 | AC34: 0 | AD34: 0 | AE34: 0 | AF34: 0 | AG34: 0 | AH34: 0 | AI34: 0 | AM34: =IF(OR(LEFT(C34,2)={"62","63","68"}),1,2) -> 2 | AO34: 0 | AP34: =IF(C34="Custom",(AF34+'Lighting Worksheet-2A'!AP34)*0.131,0) -> 0
A35: 24 | B35: ='Lighting Worksheet-2A'!D35 -> 0 | D35: =IFERROR(IF(C35=0,0,VLOOKUP(C35,Table18[[Lighting Controls]:[Control Type]],MATCH('Controls Worksheet-2B'!$AO$2,Table18[[#Headers],[Lighting Controls]:[Control Type]],0),0)),"Select Bldg Type & HVAC System on App Cust Info") -> 0 | E35: ='Lighting Worksheet-2A'!Q35 -> 0 | F35: ='Lighting Worksheet-2A'!Z35 -> 0 | G35: ='Lighting Worksheet-2A'!Y35 -> 0 | H35: ='Controls Worksheet-2B'!K35*'Lighting Worksheet-2A'!T35 -> 0 | I35: ='Lighting Worksheet-2A'!AA35 -> 0 | J35: =IF(OR(C35={0," "})," ","#?") ->  | K35: ='Lighting Worksheet-2A'!S35 -> 0 | L35: 0 | M35: 0 | N35: 1 | O35: ='Lighting Worksheet-2A'!E35 -> 0 | P35: %Pwr? | Q35: 0 | R35: SF? | S35: 0 | T35: 0 | U35: 0 | V35: 0 | W35: 0 | X35: 0 | Y35: 0 | Z35: 0 | AA35: 0 | AB35: 0 | AC35: 0 | AD35: 0 | AE35: 0 | AF35: 0 | AG35: 0 | AH35: 0 | AI35: 0 | AM35: =IF(OR(LEFT(C35,2)={"62","63","68"}),1,2) -> 2 | AO35: 0 | AP35: =IF(C35="Custom",(AF35+'Lighting Worksheet-2A'!AP35)*0.131,0) -> 0
A36: 25 | B36: ='Lighting Worksheet-2A'!D36 -> 0 | D36: =IFERROR(IF(C36=0,0,VLOOKUP(C36,Table18[[Lighting Controls]:[Control Type]],MATCH('Controls Worksheet-2B'!$AO$2,Table18[[#Headers],[Lighting Controls]:[Control Type]],0),0)),"Select Bldg Type & HVAC System on App Cust Info") -> 0 | E36: ='Lighting Worksheet-2A'!Q36 -> 0 | F36: ='Lighting Worksheet-2A'!Z36 -> 0 | G36: ='Lighting Worksheet-2A'!Y36 -> 0 | H36: ='Controls Worksheet-2B'!K36*'Lighting Worksheet-2A'!T36 -> 0 | I36: ='Lighting Worksheet-2A'!AA36 -> 0 | J36: =IF(OR(C36={0," "})," ","#?") ->  | K36: ='Lighting Worksheet-2A'!S36 -> 0 | L36: 0 | M36: 0 | N36: 1 | O36: ='Lighting Worksheet-2A'!E36 -> 0 | P36: %Pwr? | Q36: 0 | R36: SF? | S36: 0 | T36: 0 | U36: 0 | V36: 0 | W36: 0 | X36: 0 | Y36: 0 | Z36: 0 | AA36: 0 | AB36: 0 | AC36: 0 | AD36: 0 | AE36: 0 | AF36: 0 | AG36: 0 | AH36: 0 | AI36: 0 | AM36: =IF(OR(LEFT(C36,2)={"62","63","68"}),1,2) -> 2 | AO36: 0 | AP36: =IF(C36="Custom",(AF36+'Lighting Worksheet-2A'!AP36)*0.131,0) -> 0
A37: 26 | B37: ='Lighting Worksheet-2A'!D37 -> 0 | D37: =IFERROR(IF(C37=0,0,VLOOKUP(C37,Table18[[Lighting Controls]:[Control Type]],MATCH('Controls Worksheet-2B'!$AO$2,Table18[[#Headers],[Lighting Controls]:[Control Type]],0),0)),"Select Bldg Type & HVAC System on App Cust Info") -> 0 | E37: ='Lighting Worksheet-2A'!Q37 -> 0 | F37: ='Lighting Worksheet-2A'!Z37 -> 0 | G37: ='Lighting Worksheet-2A'!Y37 -> 0 | H37: ='Controls Worksheet-2B'!K37*'Lighting Worksheet-2A'!T37 -> 0 | I37: ='Lighting Worksheet-2A'!AA37 -> 0 | J37: =IF(OR(C37={0," "})," ","#?") ->  | K37: ='Lighting Worksheet-2A'!S37 -> 0 | L37: 0 | M37: 0 | N37: 1 | O37: ='Lighting Worksheet-2A'!E37 -> 0 | P37: %Pwr? | Q37: 0 | R37: SF? | S37: 0 | T37: 0 | U37: 0 | V37: 0 | W37: 0 | X37: 0 | Y37: 0 | Z37: 0 | AA37: 0 | AB37: 0 | AC37: 0 | AD37: 0 | AE37: 0 | AF37: 0 | AG37: 0 | AH37: 0 | AI37: 0 | AM37: =IF(OR(LEFT(C37,2)={"62","63","68"}),1,2) -> 2 | AO37: 0 | AP37: =IF(C37="Custom",(AF37+'Lighting Worksheet-2A'!AP37)*0.131,0) -> 0 | AQ37: =IFERROR(INDEX('NY Device Codes & Rated Wattage'!$C$3:$C$1926, SMALL(IF(#REF!='NY Device Codes & Rated Wattage'!$B$3:$B$1926, ROW('NY Device Codes & Rated Wattage'!$B$3:$B$1926)-ROW(#REF!)+2), ROW(#REF!))),"" ) -> 
A38: 27 | B38: ='Lighting Worksheet-2A'!D38 -> 0 | D38: =IFERROR(IF(C38=0,0,VLOOKUP(C38,Table18[[Lighting Controls]:[Control Type]],MATCH('Controls Worksheet-2B'!$AO$2,Table18[[#Headers],[Lighting Controls]:[Control Type]],0),0)),"Select Bldg Type & HVAC System on App Cust Info") -> 0 | E38: ='Lighting Worksheet-2A'!Q38 -> 0 | F38: ='Lighting Worksheet-2A'!Z38 -> 0 | G38: ='Lighting Worksheet-2A'!Y38 -> 0 | H38: ='Controls Worksheet-2B'!K38*'Lighting Worksheet-2A'!T38 -> 0 | I38: ='Lighting Worksheet-2A'!AA38 -> 0 | J38: =IF(OR(C38={0," "})," ","#?") ->  | K38: ='Lighting Worksheet-2A'!S38 -> 0 | L38: 0 | M38: 0 | N38: 1 | O38: ='Lighting Worksheet-2A'!E38 -> 0 | P38: %Pwr? | Q38: 0 | R38: SF? | S38: 0 | T38: 0 | U38: 0 | V38: 0 | W38: 0 | X38: 0 | Y38: 0 | Z38: 0 | AA38: 0 | AB38: 0 | AC38: 0 | AD38: 0 | AE38: 0 | AF38: 0 | AG38: 0 | AH38: 0 | AI38: 0 | AM38: =IF(OR(LEFT(C38,2)={"62","63","68"}),1,2) -> 2 | AO38: 0 | AP38: =IF(C38="Custom",(AF38+'Lighting Worksheet-2A'!AP38)*0.131,0) -> 0 | AQ38: =IFERROR(INDEX('NY Device Codes & Rated Wattage'!$C$3:$C$1926, SMALL(IF(#REF!='NY Device Codes & Rated Wattage'!$B$3:$B$1926, ROW('NY Device Codes & Rated Wattage'!$B$3:$B$1926)-ROW(#REF!)+2), ROW(#REF!))),"" ) -> 
A39: 28 | B39: ='Lighting Worksheet-2A'!D39 -> 0 | D39: =IFERROR(IF(C39=0,0,VLOOKUP(C39,Table18[[Lighting Controls]:[Control Type]],MATCH('Controls Worksheet-2B'!$AO$2,Table18[[#Headers],[Lighting Controls]:[Control Type]],0),0)),"Select Bldg Type & HVAC System on App Cust Info") -> 0 | E39: ='Lighting Worksheet-2A'!Q39 -> 0 | F39: ='Lighting Worksheet-2A'!Z39 -> 0 | G39: ='Lighting Worksheet-2A'!Y39 -> 0 | H39: ='Controls Worksheet-2B'!K39*'Lighting Worksheet-2A'!T39 -> 0 | I39: ='Lighting Worksheet-2A'!AA39 -> 0 | J39: =IF(OR(C39={0," "})," ","#?") ->  | K39: ='Lighting Worksheet-2A'!S39 -> 0 | L39: 0 | M39: 0 | N39: 1 | O39: ='Lighting Worksheet-2A'!E39 -> 0 | P39: %Pwr? | Q39: 0 | R39: SF? | S39: 0 | T39: 0 | U39: 0 | V39: 0 | W39: 0 | X39: 0 | Y39: 0 | Z39: 0 | AA39: 0 | AB39: 0 | AC39: 0 | AD39: 0 | AE39: 0 | AF39: 0 | AG39: 0 | AH39: 0 | AI39: 0 | AM39: =IF(OR(LEFT(C39,2)={"62","63","68"}),1,2) -> 2 | AO39: 0 | AP39: =IF(C39="Custom",(AF39+'Lighting Worksheet-2A'!AP39)*0.131,0) -> 0 | AQ39: =IFERROR(INDEX('NY Device Codes & Rated Wattage'!$C$3:$C$1926, SMALL(IF(#REF!='NY Device Codes & Rated Wattage'!$B$3:$B$1926, ROW('NY Device Codes & Rated Wattage'!$B$3:$B$1926)-ROW(#REF!)+2), ROW(#REF!))),"" ) -> 
A40: 29 | B40: ='Lighting Worksheet-2A'!D40 -> 0 | D40: =IFERROR(IF(C40=0,0,VLOOKUP(C40,Table18[[Lighting Controls]:[Control Type]],MATCH('Controls Worksheet-2B'!$AO$2,Table18[[#Headers],[Lighting Controls]:[Control Type]],0),0)),"Select Bldg Type & HVAC System on App Cust Info") -> 0 | E40: ='Lighting Worksheet-2A'!Q40 -> 0 | F40: ='Lighting Worksheet-2A'!Z40 -> 0 | G40: ='Lighting Worksheet-2A'!Y40 -> 0 | H40: ='Controls Worksheet-2B'!K40*'Lighting Worksheet-2A'!T40 -> 0 | I40: ='Lighting Worksheet-2A'!AA40 -> 0 | J40: =IF(OR(C40={0," "})," ","#?") ->  | K40: ='Lighting Worksheet-2A'!S40 -> 0 | L40: 0 | M40: 0 | N40: 1 | O40: ='Lighting Worksheet-2A'!E40 -> 0 | P40: %Pwr? | Q40: 0 | R40: SF? | S40: 0 | T40: 0 | U40: 0 | V40: 0 | W40: 0 | X40: 0 | Y40: 0 | Z40: 0 | AA40: 0 | AB40: 0 | AC40: 0 | AD40: 0 | AE40: 0 | AF40: 0 | AG40: 0 | AH40: 0 | AI40: 0 | AM40: =IF(OR(LEFT(C40,2)={"62","63","68"}),1,2) -> 2 | AO40: 0 | AP40: =IF(C40="Custom",(AF40+'Lighting Worksheet-2A'!AP40)*0.131,0) -> 0 | AQ40: =IFERROR(INDEX('NY Device Codes & Rated Wattage'!$C$3:$C$1926, SMALL(IF(#REF!='NY Device Codes & Rated Wattage'!$B$3:$B$1926, ROW('NY Device Codes & Rated Wattage'!$B$3:$B$1926)-ROW(#REF!)+2), ROW(#REF!))),"" ) -> 
A41: 30 | B41: ='Lighting Worksheet-2A'!D41 -> 0 | D41: =IFERROR(IF(C41=0,0,VLOOKUP(C41,Table18[[Lighting Controls]:[Control Type]],MATCH('Controls Worksheet-2B'!$AO$2,Table18[[#Headers],[Lighting Controls]:[Control Type]],0),0)),"Select Bldg Type & HVAC System on App Cust Info") -> 0 | E41: ='Lighting Worksheet-2A'!Q41 -> 0 | F41: ='Lighting Worksheet-2A'!Z41 -> 0 | G41: ='Lighting Worksheet-2A'!Y41 -> 0 | H41: ='Controls Worksheet-2B'!K41*'Lighting Worksheet-2A'!T41 -> 0 | I41: ='Lighting Worksheet-2A'!AA41 -> 0 | J41: =IF(OR(C41={0," "})," ","#?") ->  | K41: ='Lighting Worksheet-2A'!S41 -> 0 | L41: 0 | M41: 0 | N41: 1 | O41: ='Lighting Worksheet-2A'!E41 -> 0 | P41: %Pwr? | Q41: 0 | R41: SF? | S41: 0 | T41: 0 | U41: 0 | V41: 0 | W41: 0 | X41: 0 | Y41: 0 | Z41: 0 | AA41: 0 | AB41: 0 | AC41: 0 | AD41: 0 | AE41: 0 | AF41: 0 | AG41: 0 | AH41: 0 | AI41: 0 | AM41: =IF(OR(LEFT(C41,2)={"62","63","68"}),1,2) -> 2 | AO41: 0 | AP41: =IF(C41="Custom",(AF41+'Lighting Worksheet-2A'!AP41)*0.131,0) -> 0 | AQ41: =IFERROR(INDEX('NY Device Codes & Rated Wattage'!$C$3:$C$1926, SMALL(IF(#REF!='NY Device Codes & Rated Wattage'!$B$3:$B$1926, ROW('NY Device Codes & Rated Wattage'!$B$3:$B$1926)-ROW(#REF!)+2), ROW(#REF!))),"" ) -> 
A42: 31 | B42: ='Lighting Worksheet-2A'!D42 -> 0 | D42: =IFERROR(IF(C42=0,0,VLOOKUP(C42,Table18[[Lighting Controls]:[Control Type]],MATCH('Controls Worksheet-2B'!$AO$2,Table18[[#Headers],[Lighting Controls]:[Control Type]],0),0)),"Select Bldg Type & HVAC System on App Cust Info") -> 0 | E42: ='Lighting Worksheet-2A'!Q42 -> 0 | F42: ='Lighting Worksheet-2A'!Z42 -> 0 | G42: ='Lighting Worksheet-2A'!Y42 -> 0 | H42: ='Controls Worksheet-2B'!K42*'Lighting Worksheet-2A'!T42 -> 0 | I42: ='Lighting Worksheet-2A'!AA42 -> 0 | J42: =IF(OR(C42={0," "})," ","#?") ->  | K42: ='Lighting Worksheet-2A'!S42 -> 0 | L42: 0 | M42: 0 | N42: 1 | O42: ='Lighting Worksheet-2A'!E42 -> 0 | P42: %Pwr? | Q42: 0 | R42: SF? | S42: 0 | T42: 0 | U42: 0 | V42: 0 | W42: 0 | X42: 0 | Y42: 0 | Z42: 0 | AA42: 0 | AB42: 0 | AC42: 0 | AD42: 0 | AE42: 0 | AF42: 0 | AG42: 0 | AH42: 0 | AI42: 0 | AM42: =IF(OR(LEFT(C42,2)={"62","63","68"}),1,2) -> 2 | AO42: 0 | AP42: =IF(C42="Custom",(AF42+'Lighting Worksheet-2A'!AP42)*0.131,0) -> 0 | AQ42: =IFERROR(INDEX('NY Device Codes & Rated Wattage'!$C$3:$C$1926, SMALL(IF(#REF!='NY Device Codes & Rated Wattage'!$B$3:$B$1926, ROW('NY Device Codes & Rated Wattage'!$B$3:$B$1926)-ROW(#REF!)+2), ROW(#REF!))),"" ) -> 
A43: 32 | B43: ='Lighting Worksheet-2A'!D43 -> 0 | D43: =IFERROR(IF(C43=0,0,VLOOKUP(C43,Table18[[Lighting Controls]:[Control Type]],MATCH('Controls Worksheet-2B'!$AO$2,Table18[[#Headers],[Lighting Controls]:[Control Type]],0),0)),"Select Bldg Type & HVAC System on App Cust Info") -> 0 | E43: ='Lighting Worksheet-2A'!Q43 -> 0 | F43: ='Lighting Worksheet-2A'!Z43 -> 0 | G43: ='Lighting Worksheet-2A'!Y43 -> 0 | H43: ='Controls Worksheet-2B'!K43*'Lighting Worksheet-2A'!T43 -> 0 | I43: ='Lighting Worksheet-2A'!AA43 -> 0 | J43: =IF(OR(C43={0," "})," ","#?") ->  | K43: ='Lighting Worksheet-2A'!S43 -> 0 | L43: 0 | M43: 0 | N43: 1 | O43: ='Lighting Worksheet-2A'!E43 -> 0 | P43: %Pwr? | Q43: 0 | R43: SF? | S43: 0 | T43: 0 | U43: 0 | V43: 0 | W43: 0 | X43: 0 | Y43: 0 | Z43: 0 | AA43: 0 | AB43: 0 | AC43: 0 | AD43: 0 | AE43: 0 | AF43: 0 | AG43: 0 | AH43: 0 | AI43: 0 | AM43: =IF(OR(LEFT(C43,2)={"62","63","68"}),1,2) -> 2 | AO43: 0 | AP43: =IF(C43="Custom",(AF43+'Lighting Worksheet-2A'!AP43)*0.131,0) -> 0 | AQ43: =IFERROR(INDEX('NY Device Codes & Rated Wattage'!$C$3:$C$1926, SMALL(IF(#REF!='NY Device Codes & Rated Wattage'!$B$3:$B$1926, ROW('NY Device Codes & Rated Wattage'!$B$3:$B$1926)-ROW(#REF!)+2), ROW(#REF!))),"" ) -> 
A44: 33 | B44: ='Lighting Worksheet-2A'!D44 -> 0 | D44: =IFERROR(IF(C44=0,0,VLOOKUP(C44,Table18[[Lighting Controls]:[Control Type]],MATCH('Controls Worksheet-2B'!$AO$2,Table18[[#Headers],[Lighting Controls]:[Control Type]],0),0)),"Select Bldg Type & HVAC System on App Cust Info") -> 0 | E44: ='Lighting Worksheet-2A'!Q44 -> 0 | F44: ='Lighting Worksheet-2A'!Z44 -> 0 | G44: ='Lighting Worksheet-2A'!Y44 -> 0 | H44: ='Controls Worksheet-2B'!K44*'Lighting Worksheet-2A'!T44 -> 0 | I44: ='Lighting Worksheet-2A'!AA44 -> 0 | J44: =IF(OR(C44={0," "})," ","#?") ->  | K44: ='Lighting Worksheet-2A'!S44 -> 0 | L44: 0 | M44: 0 | N44: 1 | O44: ='Lighting Worksheet-2A'!E44 -> 0 | P44: %Pwr? | Q44: 0 | R44: SF? | S44: 0 | T44: 0 | U44: 0 | V44: 0 | W44: 0 | X44: 0 | Y44: 0 | Z44: 0 | AA44: 0 | AB44: 0 | AC44: 0 | AD44: 0 | AE44: 0 | AF44: 0 | AG44: 0 | AH44: 0 | AI44: 0 | AM44: =IF(OR(LEFT(C44,2)={"62","63","68"}),1,2) -> 2 | AO44: 0 | AP44: =IF(C44="Custom",(AF44+'Lighting Worksheet-2A'!AP44)*0.131,0) -> 0 | AQ44: =IFERROR(INDEX('NY Device Codes & Rated Wattage'!$C$3:$C$1926, SMALL(IF(#REF!='NY Device Codes & Rated Wattage'!$B$3:$B$1926, ROW('NY Device Codes & Rated Wattage'!$B$3:$B$1926)-ROW(#REF!)+2), ROW(#REF!))),"" ) -> 
A45: 34 | B45: ='Lighting Worksheet-2A'!D45 -> 0 | D45: =IFERROR(IF(C45=0,0,VLOOKUP(C45,Table18[[Lighting Controls]:[Control Type]],MATCH('Controls Worksheet-2B'!$AO$2,Table18[[#Headers],[Lighting Controls]:[Control Type]],0),0)),"Select Bldg Type & HVAC System on App Cust Info") -> 0 | E45: ='Lighting Worksheet-2A'!Q45 -> 0 | F45: ='Lighting Worksheet-2A'!Z45 -> 0 | G45: ='Lighting Worksheet-2A'!Y45 -> 0 | H45: ='Controls Worksheet-2B'!K45*'Lighting Worksheet-2A'!T45 -> 0 | I45: ='Lighting Worksheet-2A'!AA45 -> 0 | J45: =IF(OR(C45={0," "})," ","#?") ->  | K45: ='Lighting Worksheet-2A'!S45 -> 0 | L45: 0 | M45: 0 | N45: 1 | O45: ='Lighting Worksheet-2A'!E45 -> 0 | P45: %Pwr? | Q45: 0 | R45: SF? | S45: 0 | T45: 0 | U45: 0 | V45: 0 | W45: 0 | X45: 0 | Y45: 0 | Z45: 0 | AA45: 0 | AB45: 0 | AC45: 0 | AD45: 0 | AE45: 0 | AF45: 0 | AG45: 0 | AH45: 0 | AI45: 0 | AM45: =IF(OR(LEFT(C45,2)={"62","63","68"}),1,2) -> 2 | AO45: 0 | AP45: =IF(C45="Custom",(AF45+'Lighting Worksheet-2A'!AP45)*0.131,0) -> 0 | AQ45: =IFERROR(INDEX('NY Device Codes & Rated Wattage'!$C$3:$C$1926, SMALL(IF(#REF!='NY Device Codes & Rated Wattage'!$B$3:$B$1926, ROW('NY Device Codes & Rated Wattage'!$B$3:$B$1926)-ROW(#REF!)+2), ROW(#REF!))),"" ) -> 
A46: 35 | B46: ='Lighting Worksheet-2A'!D46 -> 0 | D46: =IFERROR(IF(C46=0,0,VLOOKUP(C46,Table18[[Lighting Controls]:[Control Type]],MATCH('Controls Worksheet-2B'!$AO$2,Table18[[#Headers],[Lighting Controls]:[Control Type]],0),0)),"Select Bldg Type & HVAC System on App Cust Info") -> 0 | E46: ='Lighting Worksheet-2A'!Q46 -> 0 | F46: ='Lighting Worksheet-2A'!Z46 -> 0 | G46: ='Lighting Worksheet-2A'!Y46 -> 0 | H46: ='Controls Worksheet-2B'!K46*'Lighting Worksheet-2A'!T46 -> 0 | I46: ='Lighting Worksheet-2A'!AA46 -> 0 | J46: =IF(OR(C46={0," "})," ","#?") ->  | K46: ='Lighting Worksheet-2A'!S46 -> 0 | L46: 0 | M46: 0 | N46: 1 | O46: ='Lighting Worksheet-2A'!E46 -> 0 | P46: %Pwr? | Q46: 0 | R46: SF? | S46: 0 | T46: 0 | U46: 0 | V46: 0 | W46: 0 | X46: 0 | Y46: 0 | Z46: 0 | AA46: 0 | AB46: 0 | AC46: 0 | AD46: 0 | AE46: 0 | AF46: 0 | AG46: 0 | AH46: 0 | AI46: 0 | AM46: =IF(OR(LEFT(C46,2)={"62","63","68"}),1,2) -> 2 | AO46: 0 | AP46: =IF(C46="Custom",(AF46+'Lighting Worksheet-2A'!AP46)*0.131,0) -> 0 | AQ46: =IFERROR(INDEX('NY Device Codes & Rated Wattage'!$C$3:$C$1926, SMALL(IF(#REF!='NY Device Codes & Rated Wattage'!$B$3:$B$1926, ROW('NY Device Codes & Rated Wattage'!$B$3:$B$1926)-ROW(#REF!)+2), ROW(37:37))),"" ) -> 
A47: 36 | B47: ='Lighting Worksheet-2A'!D47 -> 0 | D47: =IFERROR(IF(C47=0,0,VLOOKUP(C47,Table18[[Lighting Controls]:[Control Type]],MATCH('Controls Worksheet-2B'!$AO$2,Table18[[#Headers],[Lighting Controls]:[Control Type]],0),0)),"Select Bldg Type & HVAC System on App Cust Info") -> 0 | E47: ='Lighting Worksheet-2A'!Q47 -> 0 | F47: ='Lighting Worksheet-2A'!Z47 -> 0 | G47: ='Lighting Worksheet-2A'!Y47 -> 0 | H47: ='Controls Worksheet-2B'!K47*'Lighting Worksheet-2A'!T47 -> 0 | I47: ='Lighting Worksheet-2A'!AA47 -> 0 | J47: =IF(OR(C47={0," "})," ","#?") ->  | K47: ='Lighting Worksheet-2A'!S47 -> 0 | L47: 0 | M47: 0 | N47: 1 | O47: ='Lighting Worksheet-2A'!E47 -> 0 | P47: %Pwr? | Q47: 0 | R47: SF? | S47: 0 | T47: 0 | U47: 0 | V47: 0 | W47: 0 | X47: 0 | Y47: 0 | Z47: 0 | AA47: 0 | AB47: 0 | AC47: 0 | AD47: 0 | AE47: 0 | AF47: 0 | AG47: 0 | AH47: 0 | AI47: 0 | AM47: =IF(OR(LEFT(C47,2)={"62","63","68"}),1,2) -> 2 | AO47: 0 | AP47: =IF(C47="Custom",(AF47+'Lighting Worksheet-2A'!AP47)*0.131,0) -> 0 | AQ47: =IFERROR(INDEX('NY Device Codes & Rated Wattage'!$C$3:$C$1926, SMALL(IF(#REF!='NY Device Codes & Rated Wattage'!$B$3:$B$1926, ROW('NY Device Codes & Rated Wattage'!$B$3:$B$1926)-ROW(#REF!)+2), ROW(38:38))),"" ) -> 
A48: 37 | B48: ='Lighting Worksheet-2A'!D48 -> 0 | D48: =IFERROR(IF(C48=0,0,VLOOKUP(C48,Table18[[Lighting Controls]:[Control Type]],MATCH('Controls Worksheet-2B'!$AO$2,Table18[[#Headers],[Lighting Controls]:[Control Type]],0),0)),"Select Bldg Type & HVAC System on App Cust Info") -> 0 | E48: ='Lighting Worksheet-2A'!Q48 -> 0 | F48: ='Lighting Worksheet-2A'!Z48 -> 0 | G48: ='Lighting Worksheet-2A'!Y48 -> 0 | H48: ='Controls Worksheet-2B'!K48*'Lighting Worksheet-2A'!T48 -> 0 | I48: ='Lighting Worksheet-2A'!AA48 -> 0 | J48: =IF(OR(C48={0," "})," ","#?") ->  | K48: ='Lighting Worksheet-2A'!S48 -> 0 | L48: 0 | M48: 0 | N48: 1 | O48: ='Lighting Worksheet-2A'!E48 -> 0 | P48: %Pwr? | Q48: 0 | R48: SF? | S48: 0 | T48: 0 | U48: 0 | V48: 0 | W48: 0 | X48: 0 | Y48: 0 | Z48: 0 | AA48: 0 | AB48: 0 | AC48: 0 | AD48: 0 | AE48: 0 | AF48: 0 | AG48: 0 | AH48: 0 | AI48: 0 | AM48: =IF(OR(LEFT(C48,2)={"62","63","68"}),1,2) -> 2 | AO48: 0 | AP48: =IF(C48="Custom",(AF48+'Lighting Worksheet-2A'!AP48)*0.131,0) -> 0 | AQ48: =IFERROR(INDEX('NY Device Codes & Rated Wattage'!$C$3:$C$1926, SMALL(IF(#REF!='NY Device Codes & Rated Wattage'!$B$3:$B$1926, ROW('NY Device Codes & Rated Wattage'!$B$3:$B$1926)-ROW(#REF!)+2), ROW(39:39))),"" ) -> 
A49: 38 | B49: ='Lighting Worksheet-2A'!D49 -> 0 | D49: =IFERROR(IF(C49=0,0,VLOOKUP(C49,Table18[[Lighting Controls]:[Control Type]],MATCH('Controls Worksheet-2B'!$AO$2,Table18[[#Headers],[Lighting Controls]:[Control Type]],0),0)),"Select Bldg Type & HVAC System on App Cust Info") -> 0 | E49: ='Lighting Worksheet-2A'!Q49 -> 0 | F49: ='Lighting Worksheet-2A'!Z49 -> 0 | G49: ='Lighting Worksheet-2A'!Y49 -> 0 | H49: ='Controls Worksheet-2B'!K49*'Lighting Worksheet-2A'!T49 -> 0 | I49: ='Lighting Worksheet-2A'!AA49 -> 0 | J49: =IF(OR(C49={0," "})," ","#?") ->  | K49: ='Lighting Worksheet-2A'!S49 -> 0 | L49: 0 | M49: 0 | N49: 1 | O49: ='Lighting Worksheet-2A'!E49 -> 0 | P49: %Pwr? | Q49: 0 | R49: SF? | S49: 0 | T49: 0 | U49: 0 | V49: 0 | W49: 0 | X49: 0 | Y49: 0 | Z49: 0 | AA49: 0 | AB49: 0 | AC49: 0 | AD49: 0 | AE49: 0 | AF49: 0 | AG49: 0 | AH49: 0 | AI49: 0 | AM49: =IF(OR(LEFT(C49,2)={"62","63","68"}),1,2) -> 2 | AO49: 0 | AP49: =IF(C49="Custom",(AF49+'Lighting Worksheet-2A'!AP49)*0.131,0) -> 0 | AQ49: =IFERROR(INDEX('NY Device Codes & Rated Wattage'!$C$3:$C$1926, SMALL(IF(#REF!='NY Device Codes & Rated Wattage'!$B$3:$B$1926, ROW('NY Device Codes & Rated Wattage'!$B$3:$B$1926)-ROW(#REF!)+2), ROW(40:40))),"" ) -> 
A50: 39 | B50: ='Lighting Worksheet-2A'!D50 -> 0 | D50: =IFERROR(IF(C50=0,0,VLOOKUP(C50,Table18[[Lighting Controls]:[Control Type]],MATCH('Controls Worksheet-2B'!$AO$2,Table18[[#Headers],[Lighting Controls]:[Control Type]],0),0)),"Select Bldg Type & HVAC System on App Cust Info") -> 0 | E50: ='Lighting Worksheet-2A'!Q50 -> 0 | F50: ='Lighting Worksheet-2A'!Z50 -> 0 | G50: ='Lighting Worksheet-2A'!Y50 -> 0 | H50: ='Controls Worksheet-2B'!K50*'Lighting Worksheet-2A'!T50 -> 0 | I50: ='Lighting Worksheet-2A'!AA50 -> 0 | J50: =IF(OR(C50={0," "})," ","#?") ->  | K50: ='Lighting Worksheet-2A'!S50 -> 0 | L50: 0 | M50: 0 | N50: 1 | O50: ='Lighting Worksheet-2A'!E50 -> 0 | P50: %Pwr? | Q50: 0 | R50: SF? | S50: 0 | T50: 0 | U50: 0 | V50: 0 | W50: 0 | X50: 0 | Y50: 0 | Z50: 0 | AA50: 0 | AB50: 0 | AC50: 0 | AD50: 0 | AE50: 0 | AF50: 0 | AG50: 0 | AH50: 0 | AI50: 0 | AM50: =IF(OR(LEFT(C50,2)={"62","63","68"}),1,2) -> 2 | AO50: 0 | AP50: =IF(C50="Custom",(AF50+'Lighting Worksheet-2A'!AP50)*0.131,0) -> 0 | AQ50: =IFERROR(INDEX('NY Device Codes & Rated Wattage'!$C$3:$C$1926, SMALL(IF(#REF!='NY Device Codes & Rated Wattage'!$B$3:$B$1926, ROW('NY Device Codes & Rated Wattage'!$B$3:$B$1926)-ROW(#REF!)+2), ROW(41:41))),"" ) -> 
A51: 40 | B51: ='Lighting Worksheet-2A'!D51 -> 0 | D51: =IFERROR(IF(C51=0,0,VLOOKUP(C51,Table18[[Lighting Controls]:[Control Type]],MATCH('Controls Worksheet-2B'!$AO$2,Table18[[#Headers],[Lighting Controls]:[Control Type]],0),0)),"Select Bldg Type & HVAC System on App Cust Info") -> 0 | E51: ='Lighting Worksheet-2A'!Q51 -> 0 | F51: ='Lighting Worksheet-2A'!Z51 -> 0 | G51: ='Lighting Worksheet-2A'!Y51 -> 0 | H51: ='Controls Worksheet-2B'!K51*'Lighting Worksheet-2A'!T51 -> 0 | I51: ='Lighting Worksheet-2A'!AA51 -> 0 | J51: =IF(OR(C51={0," "})," ","#?") ->  | K51: ='Lighting Worksheet-2A'!S51 -> 0 | L51: 0 | M51: 0 | N51: 1 | O51: ='Lighting Worksheet-2A'!E51 -> 0 | P51: %Pwr? | Q51: 0 | R51: SF? | S51: 0 | T51: 0 | U51: 0 | V51: 0 | W51: 0 | X51: 0 | Y51: 0 | Z51: 0 | AA51: 0 | AB51: 0 | AC51: 0 | AD51: 0 | AE51: 0 | AF51: 0 | AG51: 0 | AH51: 0 | AI51: 0 | AM51: =IF(OR(LEFT(C51,2)={"62","63","68"}),1,2) -> 2 | AO51: 0 | AP51: =IF(C51="Custom",(AF51+'Lighting Worksheet-2A'!AP51)*0.131,0) -> 0 | AQ51: =IFERROR(INDEX('NY Device Codes & Rated Wattage'!$C$3:$C$1926, SMALL(IF(#REF!='NY Device Codes & Rated Wattage'!$B$3:$B$1926, ROW('NY Device Codes & Rated Wattage'!$B$3:$B$1926)-ROW(#REF!)+2), ROW(42:42))),"" ) -> 
A52: 41 | B52: ='Lighting Worksheet-2A'!D52 -> 0 | D52: =IFERROR(IF(C52=0,0,VLOOKUP(C52,Table18[[Lighting Controls]:[Control Type]],MATCH('Controls Worksheet-2B'!$AO$2,Table18[[#Headers],[Lighting Controls]:[Control Type]],0),0)),"Select Bldg Type & HVAC System on App Cust Info") -> 0 | E52: ='Lighting Worksheet-2A'!Q52 -> 0 | F52: ='Lighting Worksheet-2A'!Z52 -> 0 | G52: ='Lighting Worksheet-2A'!Y52 -> 0 | H52: ='Controls Worksheet-2B'!K52*'Lighting Worksheet-2A'!T52 -> 0 | I52: ='Lighting Worksheet-2A'!AA52 -> 0 | J52: =IF(OR(C52={0," "})," ","#?") ->  | K52: ='Lighting Worksheet-2A'!S52 -> 0 | L52: 0 | M52: 0 | N52: 1 | O52: ='Lighting Worksheet-2A'!E52 -> 0 | P52: %Pwr? | Q52: 0 | R52: SF? | S52: 0 | T52: 0 | U52: 0 | V52: 0 | W52: 0 | X52: 0 | Y52: 0 | Z52: 0 | AA52: 0 | AB52: 0 | AC52: 0 | AD52: 0 | AE52: 0 | AF52: 0 | AG52: 0 | AH52: 0 | AI52: 0 | AM52: =IF(OR(LEFT(C52,2)={"62","63","68"}),1,2) -> 2 | AO52: 0 | AP52: =IF(C52="Custom",(AF52+'Lighting Worksheet-2A'!AP52)*0.131,0) -> 0 | AQ52: =IFERROR(INDEX('NY Device Codes & Rated Wattage'!$C$3:$C$1926, SMALL(IF(#REF!='NY Device Codes & Rated Wattage'!$B$3:$B$1926, ROW('NY Device Codes & Rated Wattage'!$B$3:$B$1926)-ROW(#REF!)+2), ROW(43:43))),"" ) -> 
A53: 42 | B53: ='Lighting Worksheet-2A'!D53 -> 0 | D53: =IFERROR(IF(C53=0,0,VLOOKUP(C53,Table18[[Lighting Controls]:[Control Type]],MATCH('Controls Worksheet-2B'!$AO$2,Table18[[#Headers],[Lighting Controls]:[Control Type]],0),0)),"Select Bldg Type & HVAC System on App Cust Info") -> 0 | E53: ='Lighting Worksheet-2A'!Q53 -> 0 | F53: ='Lighting Worksheet-2A'!Z53 -> 0 | G53: ='Lighting Worksheet-2A'!Y53 -> 0 | H53: ='Controls Worksheet-2B'!K53*'Lighting Worksheet-2A'!T53 -> 0 | I53: ='Lighting Worksheet-2A'!AA53 -> 0 | J53: =IF(OR(C53={0," "})," ","#?") ->  | K53: ='Lighting Worksheet-2A'!S53 -> 0 | L53: 0 | M53: 0 | N53: 1 | O53: ='Lighting Worksheet-2A'!E53 -> 0 | P53: %Pwr? | Q53: 0 | R53: SF? | S53: 0 | T53: 0 | U53: 0 | V53: 0 | W53: 0 | X53: 0 | Y53: 0 | Z53: 0 | AA53: 0 | AB53: 0 | AC53: 0 | AD53: 0 | AE53: 0 | AF53: 0 | AG53: 0 | AH53: 0 | AI53: 0 | AM53: =IF(OR(LEFT(C53,2)={"62","63","68"}),1,2) -> 2 | AO53: 0 | AP53: =IF(C53="Custom",(AF53+'Lighting Worksheet-2A'!AP53)*0.131,0) -> 0 | AQ53: =IFERROR(INDEX('NY Device Codes & Rated Wattage'!$C$3:$C$1926, SMALL(IF(#REF!='NY Device Codes & Rated Wattage'!$B$3:$B$1926, ROW('NY Device Codes & Rated Wattage'!$B$3:$B$1926)-ROW(#REF!)+2), ROW(44:44))),"" ) -> 
A54: 43 | B54: ='Lighting Worksheet-2A'!D54 -> 0 | D54: =IFERROR(IF(C54=0,0,VLOOKUP(C54,Table18[[Lighting Controls]:[Control Type]],MATCH('Controls Worksheet-2B'!$AO$2,Table18[[#Headers],[Lighting Controls]:[Control Type]],0),0)),"Select Bldg Type & HVAC System on App Cust Info") -> 0 | E54: ='Lighting Worksheet-2A'!Q54 -> 0 | F54: ='Lighting Worksheet-2A'!Z54 -> 0 | G54: ='Lighting Worksheet-2A'!Y54 -> 0 | H54: ='Controls Worksheet-2B'!K54*'Lighting Worksheet-2A'!T54 -> 0 | I54: ='Lighting Worksheet-2A'!AA54 -> 0 | J54: =IF(OR(C54={0," "})," ","#?") ->  | K54: ='Lighting Worksheet-2A'!S54 -> 0 | L54: 0 | M54: 0 | N54: 1 | O54: ='Lighting Worksheet-2A'!E54 -> 0 | P54: %Pwr? | Q54: 0 | R54: SF? | S54: 0 | T54: 0 | U54: 0 | V54: 0 | W54: 0 | X54: 0 | Y54: 0 | Z54: 0 | AA54: 0 | AB54: 0 | AC54: 0 | AD54: 0 | AE54: 0 | AF54: 0 | AG54: 0 | AH54: 0 | AI54: 0 | AM54: =IF(OR(LEFT(C54,2)={"62","63","68"}),1,2) -> 2 | AO54: 0 | AP54: =IF(C54="Custom",(AF54+'Lighting Worksheet-2A'!AP54)*0.131,0) -> 0 | AQ54: =IFERROR(INDEX('NY Device Codes & Rated Wattage'!$C$3:$C$1926, SMALL(IF(#REF!='NY Device Codes & Rated Wattage'!$B$3:$B$1926, ROW('NY Device Codes & Rated Wattage'!$B$3:$B$1926)-ROW(#REF!)+2), ROW(45:45))),"" ) -> 
A55: 44 | B55: ='Lighting Worksheet-2A'!D55 -> 0 | D55: =IFERROR(IF(C55=0,0,VLOOKUP(C55,Table18[[Lighting Controls]:[Control Type]],MATCH('Controls Worksheet-2B'!$AO$2,Table18[[#Headers],[Lighting Controls]:[Control Type]],0),0)),"Select Bldg Type & HVAC System on App Cust Info") -> 0 | E55: ='Lighting Worksheet-2A'!Q55 -> 0 | F55: ='Lighting Worksheet-2A'!Z55 -> 0 | G55: ='Lighting Worksheet-2A'!Y55 -> 0 | H55: ='Controls Worksheet-2B'!K55*'Lighting Worksheet-2A'!T55 -> 0 | I55: ='Lighting Worksheet-2A'!AA55 -> 0 | J55: =IF(OR(C55={0," "})," ","#?") ->  | K55: ='Lighting Worksheet-2A'!S55 -> 0 | L55: 0 | M55: 0 | N55: 1 | O55: ='Lighting Worksheet-2A'!E55 -> 0 | P55: %Pwr? | Q55: 0 | R55: SF? | S55: 0 | T55: 0 | U55: 0 | V55: 0 | W55: 0 | X55: 0 | Y55: 0 | Z55: 0 | AA55: 0 | AB55: 0 | AC55: 0 | AD55: 0 | AE55: 0 | AF55: 0 | AG55: 0 | AH55: 0 | AI55: 0 | AM55: =IF(OR(LEFT(C55,2)={"62","63","68"}),1,2) -> 2 | AO55: 0 | AP55: =IF(C55="Custom",(AF55+'Lighting Worksheet-2A'!AP55)*0.131,0) -> 0 | AQ55: =IFERROR(INDEX('NY Device Codes & Rated Wattage'!$C$3:$C$1926, SMALL(IF(#REF!='NY Device Codes & Rated Wattage'!$B$3:$B$1926, ROW('NY Device Codes & Rated Wattage'!$B$3:$B$1926)-ROW(#REF!)+2), ROW(46:46))),"" ) -> 
A56: 45 | B56: ='Lighting Worksheet-2A'!D56 -> 0 | D56: =IFERROR(IF(C56=0,0,VLOOKUP(C56,Table18[[Lighting Controls]:[Control Type]],MATCH('Controls Worksheet-2B'!$AO$2,Table18[[#Headers],[Lighting Controls]:[Control Type]],0),0)),"Select Bldg Type & HVAC System on App Cust Info") -> 0 | E56: ='Lighting Worksheet-2A'!Q56 -> 0 | F56: ='Lighting Worksheet-2A'!Z56 -> 0 | G56: ='Lighting Worksheet-2A'!Y56 -> 0 | H56: ='Controls Worksheet-2B'!K56*'Lighting Worksheet-2A'!T56 -> 0 | I56: ='Lighting Worksheet-2A'!AA56 -> 0 | J56: =IF(OR(C56={0," "})," ","#?") ->  | K56: ='Lighting Worksheet-2A'!S56 -> 0 | L56: 0 | M56: 0 | N56: 1 | O56: ='Lighting Worksheet-2A'!E56 -> 0 | P56: %Pwr? | Q56: 0 | R56: SF? | S56: 0 | T56: 0 | U56: 0 | V56: 0 | W56: 0 | X56: 0 | Y56: 0 | Z56: 0 | AA56: 0 | AB56: 0 | AC56: 0 | AD56: 0 | AE56: 0 | AF56: 0 | AG56: 0 | AH56: 0 | AI56: 0 | AM56: =IF(OR(LEFT(C56,2)={"62","63","68"}),1,2) -> 2 | AO56: 0 | AP56: =IF(C56="Custom",(AF56+'Lighting Worksheet-2A'!AP56)*0.131,0) -> 0 | AQ56: =IFERROR(INDEX('NY Device Codes & Rated Wattage'!$C$3:$C$1926, SMALL(IF(#REF!='NY Device Codes & Rated Wattage'!$B$3:$B$1926, ROW('NY Device Codes & Rated Wattage'!$B$3:$B$1926)-ROW(#REF!)+2), ROW(47:47))),"" ) -> 
A57: 46 | B57: ='Lighting Worksheet-2A'!D57 -> 0 | D57: =IFERROR(IF(C57=0,0,VLOOKUP(C57,Table18[[Lighting Controls]:[Control Type]],MATCH('Controls Worksheet-2B'!$AO$2,Table18[[#Headers],[Lighting Controls]:[Control Type]],0),0)),"Select Bldg Type & HVAC System on App Cust Info") -> 0 | E57: ='Lighting Worksheet-2A'!Q57 -> 0 | F57: ='Lighting Worksheet-2A'!Z57 -> 0 | G57: ='Lighting Worksheet-2A'!Y57 -> 0 | H57: ='Controls Worksheet-2B'!K57*'Lighting Worksheet-2A'!T57 -> 0 | I57: ='Lighting Worksheet-2A'!AA57 -> 0 | J57: =IF(OR(C57={0," "})," ","#?") ->  | K57: ='Lighting Worksheet-2A'!S57 -> 0 | L57: 0 | M57: 0 | N57: 1 | O57: ='Lighting Worksheet-2A'!E57 -> 0 | P57: %Pwr? | Q57: 0 | R57: SF? | S57: 0 | T57: 0 | U57: 0 | V57: 0 | W57: 0 | X57: 0 | Y57: 0 | Z57: 0 | AA57: 0 | AB57: 0 | AC57: 0 | AD57: 0 | AE57: 0 | AF57: 0 | AG57: 0 | AH57: 0 | AI57: 0 | AM57: =IF(OR(LEFT(C57,2)={"62","63","68"}),1,2) -> 2 | AO57: 0 | AP57: =IF(C57="Custom",(AF57+'Lighting Worksheet-2A'!AP57)*0.131,0) -> 0 | AQ57: =IFERROR(INDEX('NY Device Codes & Rated Wattage'!$C$3:$C$1926, SMALL(IF(#REF!='NY Device Codes & Rated Wattage'!$B$3:$B$1926, ROW('NY Device Codes & Rated Wattage'!$B$3:$B$1926)-ROW(#REF!)+2), ROW(48:48))),"" ) -> 
A58: 47 | B58: ='Lighting Worksheet-2A'!D58 -> 0 | D58: =IFERROR(IF(C58=0,0,VLOOKUP(C58,Table18[[Lighting Controls]:[Control Type]],MATCH('Controls Worksheet-2B'!$AO$2,Table18[[#Headers],[Lighting Controls]:[Control Type]],0),0)),"Select Bldg Type & HVAC System on App Cust Info") -> 0 | E58: ='Lighting Worksheet-2A'!Q58 -> 0 | F58: ='Lighting Worksheet-2A'!Z58 -> 0 | G58: ='Lighting Worksheet-2A'!Y58 -> 0 | H58: ='Controls Worksheet-2B'!K58*'Lighting Worksheet-2A'!T58 -> 0 | I58: ='Lighting Worksheet-2A'!AA58 -> 0 | J58: =IF(OR(C58={0," "})," ","#?") ->  | K58: ='Lighting Worksheet-2A'!S58 -> 0 | L58: 0 | M58: 0 | N58: 1 | O58: ='Lighting Worksheet-2A'!E58 -> 0 | P58: %Pwr? | Q58: 0 | R58: SF? | S58: 0 | T58: 0 | U58: 0 | V58: 0 | W58: 0 | X58: 0 | Y58: 0 | Z58: 0 | AA58: 0 | AB58: 0 | AC58: 0 | AD58: 0 | AE58: 0 | AF58: 0 | AG58: 0 | AH58: 0 | AI58: 0 | AM58: =IF(OR(LEFT(C58,2)={"62","63","68"}),1,2) -> 2 | AO58: 0 | AP58: =IF(C58="Custom",(AF58+'Lighting Worksheet-2A'!AP58)*0.131,0) -> 0 | AQ58: =IFERROR(INDEX('NY Device Codes & Rated Wattage'!$C$3:$C$1926, SMALL(IF(#REF!='NY Device Codes & Rated Wattage'!$B$3:$B$1926, ROW('NY Device Codes & Rated Wattage'!$B$3:$B$1926)-ROW(#REF!)+2), ROW(49:49))),"" ) -> 
A59: 48 | B59: ='Lighting Worksheet-2A'!D59 -> 0 | D59: =IFERROR(IF(C59=0,0,VLOOKUP(C59,Table18[[Lighting Controls]:[Control Type]],MATCH('Controls Worksheet-2B'!$AO$2,Table18[[#Headers],[Lighting Controls]:[Control Type]],0),0)),"Select Bldg Type & HVAC System on App Cust Info") -> 0 | E59: ='Lighting Worksheet-2A'!Q59 -> 0 | F59: ='Lighting Worksheet-2A'!Z59 -> 0 | G59: ='Lighting Worksheet-2A'!Y59 -> 0 | H59: ='Controls Worksheet-2B'!K59*'Lighting Worksheet-2A'!T59 -> 0 | I59: ='Lighting Worksheet-2A'!AA59 -> 0 | J59: =IF(OR(C59={0," "})," ","#?") ->  | K59: ='Lighting Worksheet-2A'!S59 -> 0 | L59: 0 | M59: 0 | N59: 1 | O59: ='Lighting Worksheet-2A'!E59 -> 0 | P59: %Pwr? | Q59: 0 | R59: SF? | S59: 0 | T59: 0 | U59: 0 | V59: 0 | W59: 0 | X59: 0 | Y59: 0 | Z59: 0 | AA59: 0 | AB59: 0 | AC59: 0 | AD59: 0 | AE59: 0 | AF59: 0 | AG59: 0 | AH59: 0 | AI59: 0 | AM59: =IF(OR(LEFT(C59,2)={"62","63","68"}),1,2) -> 2 | AO59: 0 | AP59: =IF(C59="Custom",(AF59+'Lighting Worksheet-2A'!AP59)*0.131,0) -> 0 | AQ59: =IFERROR(INDEX('NY Device Codes & Rated Wattage'!$C$3:$C$1926, SMALL(IF(#REF!='NY Device Codes & Rated Wattage'!$B$3:$B$1926, ROW('NY Device Codes & Rated Wattage'!$B$3:$B$1926)-ROW(#REF!)+2), ROW(50:50))),"" ) -> 
A60: 49 | B60: ='Lighting Worksheet-2A'!D60 -> 0 | D60: =IFERROR(IF(C60=0,0,VLOOKUP(C60,Table18[[Lighting Controls]:[Control Type]],MATCH('Controls Worksheet-2B'!$AO$2,Table18[[#Headers],[Lighting Controls]:[Control Type]],0),0)),"Select Bldg Type & HVAC System on App Cust Info") -> 0 | E60: ='Lighting Worksheet-2A'!Q60 -> 0 | F60: ='Lighting Worksheet-2A'!Z60 -> 0 | G60: ='Lighting Worksheet-2A'!Y60 -> 0 | H60: ='Controls Worksheet-2B'!K60*'Lighting Worksheet-2A'!T60 -> 0 | I60: ='Lighting Worksheet-2A'!AA60 -> 0 | J60: =IF(OR(C60={0," "})," ","#?") ->  | K60: ='Lighting Worksheet-2A'!S60 -> 0 | L60: 0 | M60: 0 | N60: 1 | O60: ='Lighting Worksheet-2A'!E60 -> 0 | P60: %Pwr? | Q60: 0 | R60: SF? | S60: 0 | T60: 0 | U60: 0 | V60: 0 | W60: 0 | X60: 0 | Y60: 0 | Z60: 0 | AA60: 0 | AB60: 0 | AC60: 0 | AD60: 0 | AE60: 0 | AF60: 0 | AG60: 0 | AH60: 0 | AI60: 0 | AM60: =IF(OR(LEFT(C60,2)={"62","63","68"}),1,2) -> 2 | AO60: 0 | AP60: =IF(C60="Custom",(AF60+'Lighting Worksheet-2A'!AP60)*0.131,0) -> 0 | AQ60: =IFERROR(INDEX('NY Device Codes & Rated Wattage'!$C$3:$C$1926, SMALL(IF(#REF!='NY Device Codes & Rated Wattage'!$B$3:$B$1926, ROW('NY Device Codes & Rated Wattage'!$B$3:$B$1926)-ROW(#REF!)+2), ROW(51:51))),"" ) -> 
A61: 50 | B61: ='Lighting Worksheet-2A'!D61 -> 0 | D61: =IFERROR(IF(C61=0,0,VLOOKUP(C61,Table18[[Lighting Controls]:[Control Type]],MATCH('Controls Worksheet-2B'!$AO$2,Table18[[#Headers],[Lighting Controls]:[Control Type]],0),0)),"Select Bldg Type & HVAC System on App Cust Info") -> 0 | E61: ='Lighting Worksheet-2A'!Q61 -> 0 | F61: ='Lighting Worksheet-2A'!Z61 -> 0 | G61: ='Lighting Worksheet-2A'!Y61 -> 0 | H61: ='Controls Worksheet-2B'!K61*'Lighting Worksheet-2A'!T61 -> 0 | I61: ='Lighting Worksheet-2A'!AA61 -> 0 | J61: =IF(OR(C61={0," "})," ","#?") ->  | K61: ='Lighting Worksheet-2A'!S61 -> 0 | L61: 0 | M61: 0 | N61: 1 | O61: ='Lighting Worksheet-2A'!E61 -> 0 | P61: %Pwr? | Q61: 0 | R61: SF? | S61: 0 | T61: 0 | U61: 0 | V61: 0 | W61: 0 | X61: 0 | Y61: 0 | Z61: 0 | AA61: 0 | AB61: 0 | AC61: 0 | AD61: 0 | AE61: 0 | AF61: 0 | AG61: 0 | AH61: 0 | AI61: 0 | AM61: =IF(OR(LEFT(C61,2)={"62","63","68"}),1,2) -> 2 | AO61: 0 | AP61: =IF(C61="Custom",(AF61+'Lighting Worksheet-2A'!AP61)*0.131,0) -> 0 | AQ61: =IFERROR(INDEX('NY Device Codes & Rated Wattage'!$C$3:$C$1926, SMALL(IF(#REF!='NY Device Codes & Rated Wattage'!$B$3:$B$1926, ROW('NY Device Codes & Rated Wattage'!$B$3:$B$1926)-ROW(#REF!)+2), ROW(52:52))),"" ) -> 
A62: 51 | B62: ='Lighting Worksheet-2A'!D62 -> 0 | D62: =IFERROR(IF(C62=0,0,VLOOKUP(C62,Table18[[Lighting Controls]:[Control Type]],MATCH('Controls Worksheet-2B'!$AO$2,Table18[[#Headers],[Lighting Controls]:[Control Type]],0),0)),"Select Bldg Type & HVAC System on App Cust Info") -> 0 | E62: ='Lighting Worksheet-2A'!Q62 -> 0 | F62: ='Lighting Worksheet-2A'!Z62 -> 0 | G62: ='Lighting Worksheet-2A'!Y62 -> 0 | H62: ='Controls Worksheet-2B'!K62*'Lighting Worksheet-2A'!T62 -> 0 | I62: ='Lighting Worksheet-2A'!AA62 -> 0 | J62: =IF(OR(C62={0," "})," ","#?") ->  | K62: ='Lighting Worksheet-2A'!S62 -> 0 | L62: 0 | M62: 0 | N62: 1 | O62: ='Lighting Worksheet-2A'!E62 -> 0 | P62: %Pwr? | Q62: 0 | R62: SF? | S62: 0 | T62: 0 | U62: 0 | V62: 0 | W62: 0 | X62: 0 | Y62: 0 | Z62: 0 | AA62: 0 | AB62: 0 | AC62: 0 | AD62: 0 | AE62: 0 | AF62: 0 | AG62: 0 | AH62: 0 | AI62: 0 | AM62: =IF(OR(LEFT(C62,2)={"62","63","68"}),1,2) -> 2 | AO62: 0 | AP62: =IF(C62="Custom",(AF62+'Lighting Worksheet-2A'!AP62)*0.131,0) -> 0 | AQ62: =IFERROR(INDEX('NY Device Codes & Rated Wattage'!$C$3:$C$1926, SMALL(IF(#REF!='NY Device Codes & Rated Wattage'!$B$3:$B$1926, ROW('NY Device Codes & Rated Wattage'!$B$3:$B$1926)-ROW(#REF!)+2), ROW(53:53))),"" ) -> 
A63: 52 | B63: ='Lighting Worksheet-2A'!D63 -> 0 | D63: =IFERROR(IF(C63=0,0,VLOOKUP(C63,Table18[[Lighting Controls]:[Control Type]],MATCH('Controls Worksheet-2B'!$AO$2,Table18[[#Headers],[Lighting Controls]:[Control Type]],0),0)),"Select Bldg Type & HVAC System on App Cust Info") -> 0 | E63: ='Lighting Worksheet-2A'!Q63 -> 0 | F63: ='Lighting Worksheet-2A'!Z63 -> 0 | G63: ='Lighting Worksheet-2A'!Y63 -> 0 | H63: ='Controls Worksheet-2B'!K63*'Lighting Worksheet-2A'!T63 -> 0 | I63: ='Lighting Worksheet-2A'!AA63 -> 0 | J63: =IF(OR(C63={0," "})," ","#?") ->  | K63: ='Lighting Worksheet-2A'!S63 -> 0 | L63: 0 | M63: 0 | N63: 1 | O63: ='Lighting Worksheet-2A'!E63 -> 0 | P63: %Pwr? | Q63: 0 | R63: SF? | S63: 0 | T63: 0 | U63: 0 | V63: 0 | W63: 0 | X63: 0 | Y63: 0 | Z63: 0 | AA63: 0 | AB63: 0 | AC63: 0 | AD63: 0 | AE63: 0 | AF63: 0 | AG63: 0 | AH63: 0 | AI63: 0 | AM63: =IF(OR(LEFT(C63,2)={"62","63","68"}),1,2) -> 2 | AO63: 0 | AP63: =IF(C63="Custom",(AF63+'Lighting Worksheet-2A'!AP63)*0.131,0) -> 0 | AQ63: =IFERROR(INDEX('NY Device Codes & Rated Wattage'!$C$3:$C$1926, SMALL(IF(#REF!='NY Device Codes & Rated Wattage'!$B$3:$B$1926, ROW('NY Device Codes & Rated Wattage'!$B$3:$B$1926)-ROW(#REF!)+2), ROW(54:54))),"" ) -> 
A64: 53 | B64: ='Lighting Worksheet-2A'!D64 -> 0 | D64: =IFERROR(IF(C64=0,0,VLOOKUP(C64,Table18[[Lighting Controls]:[Control Type]],MATCH('Controls Worksheet-2B'!$AO$2,Table18[[#Headers],[Lighting Controls]:[Control Type]],0),0)),"Select Bldg Type & HVAC System on App Cust Info") -> 0 | E64: ='Lighting Worksheet-2A'!Q64 -> 0 | F64: ='Lighting Worksheet-2A'!Z64 -> 0 | G64: ='Lighting Worksheet-2A'!Y64 -> 0 | H64: ='Controls Worksheet-2B'!K64*'Lighting Worksheet-2A'!T64 -> 0 | I64: ='Lighting Worksheet-2A'!AA64 -> 0 | J64: =IF(OR(C64={0," "})," ","#?") ->  | K64: ='Lighting Worksheet-2A'!S64 -> 0 | L64: 0 | M64: 0 | N64: 1 | O64: ='Lighting Worksheet-2A'!E64 -> 0 | P64: %Pwr? | Q64: 0 | R64: SF? | S64: 0 | T64: 0 | U64: 0 | V64: 0 | W64: 0 | X64: 0 | Y64: 0 | Z64: 0 | AA64: 0 | AB64: 0 | AC64: 0 | AD64: 0 | AE64: 0 | AF64: 0 | AG64: 0 | AH64: 0 | AI64: 0 | AM64: =IF(OR(LEFT(C64,2)={"62","63","68"}),1,2) -> 2 | AO64: 0 | AP64: =IF(C64="Custom",(AF64+'Lighting Worksheet-2A'!AP64)*0.131,0) -> 0 | AQ64: =IFERROR(INDEX('NY Device Codes & Rated Wattage'!$C$3:$C$1926, SMALL(IF(#REF!='NY Device Codes & Rated Wattage'!$B$3:$B$1926, ROW('NY Device Codes & Rated Wattage'!$B$3:$B$1926)-ROW(#REF!)+2), ROW(55:55))),"" ) -> 
A65: 54 | B65: ='Lighting Worksheet-2A'!D65 -> 0 | D65: =IFERROR(IF(C65=0,0,VLOOKUP(C65,Table18[[Lighting Controls]:[Control Type]],MATCH('Controls Worksheet-2B'!$AO$2,Table18[[#Headers],[Lighting Controls]:[Control Type]],0),0)),"Select Bldg Type & HVAC System on App Cust Info") -> 0 | E65: ='Lighting Worksheet-2A'!Q65 -> 0 | F65: ='Lighting Worksheet-2A'!Z65 -> 0 | G65: ='Lighting Worksheet-2A'!Y65 -> 0 | H65: ='Controls Worksheet-2B'!K65*'Lighting Worksheet-2A'!T65 -> 0 | I65: ='Lighting Worksheet-2A'!AA65 -> 0 | J65: =IF(OR(C65={0," "})," ","#?") ->  | K65: ='Lighting Worksheet-2A'!S65 -> 0 | L65: 0 | M65: 0 | N65: 1 | O65: ='Lighting Worksheet-2A'!E65 -> 0 | P65: %Pwr? | Q65: 0 | R65: SF? | S65: 0 | T65: 0 | U65: 0 | V65: 0 | W65: 0 | X65: 0 | Y65: 0 | Z65: 0 | AA65: 0 | AB65: 0 | AC65: 0 | AD65: 0 | AE65: 0 | AF65: 0 | AG65: 0 | AH65: 0 | AI65: 0 | AM65: =IF(OR(LEFT(C65,2)={"62","63","68"}),1,2) -> 2 | AO65: 0 | AP65: =IF(C65="Custom",(AF65+'Lighting Worksheet-2A'!AP65)*0.131,0) -> 0 | AQ65: =IFERROR(INDEX('NY Device Codes & Rated Wattage'!$C$3:$C$1926, SMALL(IF(#REF!='NY Device Codes & Rated Wattage'!$B$3:$B$1926, ROW('NY Device Codes & Rated Wattage'!$B$3:$B$1926)-ROW(#REF!)+2), ROW(56:56))),"" ) -> 
A66: 55 | B66: ='Lighting Worksheet-2A'!D66 -> 0 | D66: =IFERROR(IF(C66=0,0,VLOOKUP(C66,Table18[[Lighting Controls]:[Control Type]],MATCH('Controls Worksheet-2B'!$AO$2,Table18[[#Headers],[Lighting Controls]:[Control Type]],0),0)),"Select Bldg Type & HVAC System on App Cust Info") -> 0 | E66: ='Lighting Worksheet-2A'!Q66 -> 0 | F66: ='Lighting Worksheet-2A'!Z66 -> 0 | G66: ='Lighting Worksheet-2A'!Y66 -> 0 | H66: ='Controls Worksheet-2B'!K66*'Lighting Worksheet-2A'!T66 -> 0 | I66: ='Lighting Worksheet-2A'!AA66 -> 0 | J66: =IF(OR(C66={0," "})," ","#?") ->  | K66: ='Lighting Worksheet-2A'!S66 -> 0 | L66: 0 | M66: 0 | N66: 1 | O66: ='Lighting Worksheet-2A'!E66 -> 0 | P66: %Pwr? | Q66: 0 | R66: SF? | S66: 0 | T66: 0 | U66: 0 | V66: 0 | W66: 0 | X66: 0 | Y66: 0 | Z66: 0 | AA66: 0 | AB66: 0 | AC66: 0 | AD66: 0 | AE66: 0 | AF66: 0 | AG66: 0 | AH66: 0 | AI66: 0 | AM66: =IF(OR(LEFT(C66,2)={"62","63","68"}),1,2) -> 2 | AO66: 0 | AP66: =IF(C66="Custom",(AF66+'Lighting Worksheet-2A'!AP66)*0.131,0) -> 0 | AQ66: =IFERROR(INDEX('NY Device Codes & Rated Wattage'!$C$3:$C$1926, SMALL(IF(#REF!='NY Device Codes & Rated Wattage'!$B$3:$B$1926, ROW('NY Device Codes & Rated Wattage'!$B$3:$B$1926)-ROW(#REF!)+2), ROW(57:57))),"" ) -> 
A67: 56 | B67: ='Lighting Worksheet-2A'!D67 -> 0 | D67: =IFERROR(IF(C67=0,0,VLOOKUP(C67,Table18[[Lighting Controls]:[Control Type]],MATCH('Controls Worksheet-2B'!$AO$2,Table18[[#Headers],[Lighting Controls]:[Control Type]],0),0)),"Select Bldg Type & HVAC System on App Cust Info") -> 0 | E67: ='Lighting Worksheet-2A'!Q67 -> 0 | F67: ='Lighting Worksheet-2A'!Z67 -> 0 | G67: ='Lighting Worksheet-2A'!Y67 -> 0 | H67: ='Controls Worksheet-2B'!K67*'Lighting Worksheet-2A'!T67 -> 0 | I67: ='Lighting Worksheet-2A'!AA67 -> 0 | J67: =IF(OR(C67={0," "})," ","#?") ->  | K67: ='Lighting Worksheet-2A'!S67 -> 0 | L67: 0 | M67: 0 | N67: 1 | O67: ='Lighting Worksheet-2A'!E67 -> 0 | P67: %Pwr? | Q67: 0 | R67: SF? | S67: 0 | T67: 0 | U67: 0 | V67: 0 | W67: 0 | X67: 0 | Y67: 0 | Z67: 0 | AA67: 0 | AB67: 0 | AC67: 0 | AD67: 0 | AE67: 0 | AF67: 0 | AG67: 0 | AH67: 0 | AI67: 0 | AM67: =IF(OR(LEFT(C67,2)={"62","63","68"}),1,2) -> 2 | AO67: 0 | AP67: =IF(C67="Custom",(AF67+'Lighting Worksheet-2A'!AP67)*0.131,0) -> 0 | AQ67: =IFERROR(INDEX('NY Device Codes & Rated Wattage'!$C$3:$C$1926, SMALL(IF(#REF!='NY Device Codes & Rated Wattage'!$B$3:$B$1926, ROW('NY Device Codes & Rated Wattage'!$B$3:$B$1926)-ROW(#REF!)+2), ROW(58:58))),"" ) -> 
A68: 57 | B68: ='Lighting Worksheet-2A'!D68 -> 0 | D68: =IFERROR(IF(C68=0,0,VLOOKUP(C68,Table18[[Lighting Controls]:[Control Type]],MATCH('Controls Worksheet-2B'!$AO$2,Table18[[#Headers],[Lighting Controls]:[Control Type]],0),0)),"Select Bldg Type & HVAC System on App Cust Info") -> 0 | E68: ='Lighting Worksheet-2A'!Q68 -> 0 | F68: ='Lighting Worksheet-2A'!Z68 -> 0 | G68: ='Lighting Worksheet-2A'!Y68 -> 0 | H68: ='Controls Worksheet-2B'!K68*'Lighting Worksheet-2A'!T68 -> 0 | I68: ='Lighting Worksheet-2A'!AA68 -> 0 | J68: =IF(OR(C68={0," "})," ","#?") ->  | K68: ='Lighting Worksheet-2A'!S68 -> 0 | L68: 0 | M68: 0 | N68: 1 | O68: ='Lighting Worksheet-2A'!E68 -> 0 | P68: %Pwr? | Q68: 0 | R68: SF? | S68: 0 | T68: 0 | U68: 0 | V68: 0 | W68: 0 | X68: 0 | Y68: 0 | Z68: 0 | AA68: 0 | AB68: 0 | AC68: 0 | AD68: 0 | AE68: 0 | AF68: 0 | AG68: 0 | AH68: 0 | AI68: 0 | AM68: =IF(OR(LEFT(C68,2)={"62","63","68"}),1,2) -> 2 | AO68: 0 | AP68: =IF(C68="Custom",(AF68+'Lighting Worksheet-2A'!AP68)*0.131,0) -> 0 | AQ68: =IFERROR(INDEX('NY Device Codes & Rated Wattage'!$C$3:$C$1926, SMALL(IF(#REF!='NY Device Codes & Rated Wattage'!$B$3:$B$1926, ROW('NY Device Codes & Rated Wattage'!$B$3:$B$1926)-ROW(#REF!)+2), ROW(59:59))),"" ) -> 
A69: 58 | B69: ='Lighting Worksheet-2A'!D69 -> 0 | D69: =IFERROR(IF(C69=0,0,VLOOKUP(C69,Table18[[Lighting Controls]:[Control Type]],MATCH('Controls Worksheet-2B'!$AO$2,Table18[[#Headers],[Lighting Controls]:[Control Type]],0),0)),"Select Bldg Type & HVAC System on App Cust Info") -> 0 | E69: ='Lighting Worksheet-2A'!Q69 -> 0 | F69: ='Lighting Worksheet-2A'!Z69 -> 0 | G69: ='Lighting Worksheet-2A'!Y69 -> 0 | H69: ='Controls Worksheet-2B'!K69*'Lighting Worksheet-2A'!T69 -> 0 | I69: ='Lighting Worksheet-2A'!AA69 -> 0 | J69: =IF(OR(C69={0," "})," ","#?") ->  | K69: ='Lighting Worksheet-2A'!S69 -> 0 | L69: 0 | M69: 0 | N69: 1 | O69: ='Lighting Worksheet-2A'!E69 -> 0 | P69: %Pwr? | Q69: 0 | R69: SF? | S69: 0 | T69: 0 | U69: 0 | V69: 0 | W69: 0 | X69: 0 | Y69: 0 | Z69: 0 | AA69: 0 | AB69: 0 | AC69: 0 | AD69: 0 | AE69: 0 | AF69: 0 | AG69: 0 | AH69: 0 | AI69: 0 | AM69: =IF(OR(LEFT(C69,2)={"62","63","68"}),1,2) -> 2 | AO69: 0 | AP69: =IF(C69="Custom",(AF69+'Lighting Worksheet-2A'!AP69)*0.131,0) -> 0 | AQ69: =IFERROR(INDEX('NY Device Codes & Rated Wattage'!$C$3:$C$1926, SMALL(IF(#REF!='NY Device Codes & Rated Wattage'!$B$3:$B$1926, ROW('NY Device Codes & Rated Wattage'!$B$3:$B$1926)-ROW(#REF!)+2), ROW(60:60))),"" ) -> 
A70: 59 | B70: ='Lighting Worksheet-2A'!D70 -> 0 | D70: =IFERROR(IF(C70=0,0,VLOOKUP(C70,Table18[[Lighting Controls]:[Control Type]],MATCH('Controls Worksheet-2B'!$AO$2,Table18[[#Headers],[Lighting Controls]:[Control Type]],0),0)),"Select Bldg Type & HVAC System on App Cust Info") -> 0 | E70: ='Lighting Worksheet-2A'!Q70 -> 0 | F70: ='Lighting Worksheet-2A'!Z70 -> 0 | G70: ='Lighting Worksheet-2A'!Y70 -> 0 | H70: ='Controls Worksheet-2B'!K70*'Lighting Worksheet-2A'!T70 -> 0 | I70: ='Lighting Worksheet-2A'!AA70 -> 0 | J70: =IF(OR(C70={0," "})," ","#?") ->  | K70: ='Lighting Worksheet-2A'!S70 -> 0 | L70: 0 | M70: 0 | N70: 1 | O70: ='Lighting Worksheet-2A'!E70 -> 0 | P70: %Pwr? | Q70: 0 | R70: SF? | S70: 0 | T70: 0 | U70: 0 | V70: 0 | W70: 0 | X70: 0 | Y70: 0 | Z70: 0 | AA70: 0 | AB70: 0 | AC70: 0 | AD70: 0 | AE70: 0 | AF70: 0 | AG70: 0 | AH70: 0 | AI70: 0 | AM70: =IF(OR(LEFT(C70,2)={"62","63","68"}),1,2) -> 2 | AO70: 0 | AP70: =IF(C70="Custom",(AF70+'Lighting Worksheet-2A'!AP70)*0.131,0) -> 0 | AQ70: =IFERROR(INDEX('NY Device Codes & Rated Wattage'!$C$3:$C$1926, SMALL(IF(#REF!='NY Device Codes & Rated Wattage'!$B$3:$B$1926, ROW('NY Device Codes & Rated Wattage'!$B$3:$B$1926)-ROW(#REF!)+2), ROW(61:61))),"" ) -> 
A71: 60 | B71: ='Lighting Worksheet-2A'!D71 -> 0 | D71: =IFERROR(IF(C71=0,0,VLOOKUP(C71,Table18[[Lighting Controls]:[Control Type]],MATCH('Controls Worksheet-2B'!$AO$2,Table18[[#Headers],[Lighting Controls]:[Control Type]],0),0)),"Select Bldg Type & HVAC System on App Cust Info") -> 0 | E71: ='Lighting Worksheet-2A'!Q71 -> 0 | F71: ='Lighting Worksheet-2A'!Z71 -> 0 | G71: ='Lighting Worksheet-2A'!Y71 -> 0 | H71: ='Controls Worksheet-2B'!K71*'Lighting Worksheet-2A'!T71 -> 0 | I71: ='Lighting Worksheet-2A'!AA71 -> 0 | J71: =IF(OR(C71={0," "})," ","#?") ->  | K71: ='Lighting Worksheet-2A'!S71 -> 0 | L71: 0 | M71: 0 | N71: 1 | O71: ='Lighting Worksheet-2A'!E71 -> 0 | P71: %Pwr? | Q71: 0 | R71: SF? | S71: 0 | T71: 0 | U71: 0 | V71: 0 | W71: 0 | X71: 0 | Y71: 0 | Z71: 0 | AA71: 0 | AB71: 0 | AC71: 0 | AD71: 0 | AE71: 0 | AF71: 0 | AG71: 0 | AH71: 0 | AI71: 0 | AM71: =IF(OR(LEFT(C71,2)={"62","63","68"}),1,2) -> 2 | AO71: 0 | AP71: =IF(C71="Custom",(AF71+'Lighting Worksheet-2A'!AP71)*0.131,0) -> 0 | AQ71: =IFERROR(INDEX('NY Device Codes & Rated Wattage'!$C$3:$C$1926, SMALL(IF(#REF!='NY Device Codes & Rated Wattage'!$B$3:$B$1926, ROW('NY Device Codes & Rated Wattage'!$B$3:$B$1926)-ROW(#REF!)+2), ROW(62:62))),"" ) -> 
A72: 61 | B72: ='Lighting Worksheet-2A'!D72 -> 0 | D72: =IFERROR(IF(C72=0,0,VLOOKUP(C72,Table18[[Lighting Controls]:[Control Type]],MATCH('Controls Worksheet-2B'!$AO$2,Table18[[#Headers],[Lighting Controls]:[Control Type]],0),0)),"Select Bldg Type & HVAC System on App Cust Info") -> 0 | E72: ='Lighting Worksheet-2A'!Q72 -> 0 | F72: ='Lighting Worksheet-2A'!Z72 -> 0 | G72: ='Lighting Worksheet-2A'!Y72 -> 0 | H72: ='Controls Worksheet-2B'!K72*'Lighting Worksheet-2A'!T72 -> 0 | I72: ='Lighting Worksheet-2A'!AA72 -> 0 | J72: =IF(OR(C72={0," "})," ","#?") ->  | K72: ='Lighting Worksheet-2A'!S72 -> 0 | L72: 0 | M72: 0 | N72: 1 | O72: ='Lighting Worksheet-2A'!E72 -> 0 | P72: %Pwr? | Q72: 0 | R72: SF? | S72: 0 | T72: 0 | U72: 0 | V72: 0 | W72: 0 | X72: 0 | Y72: 0 | Z72: 0 | AA72: 0 | AB72: 0 | AC72: 0 | AD72: 0 | AE72: 0 | AF72: 0 | AG72: 0 | AH72: 0 | AI72: 0 | AM72: =IF(OR(LEFT(C72,2)={"62","63","68"}),1,2) -> 2 | AO72: 0 | AP72: =IF(C72="Custom",(AF72+'Lighting Worksheet-2A'!AP72)*0.131,0) -> 0 | AQ72: =IFERROR(INDEX('NY Device Codes & Rated Wattage'!$C$3:$C$1926, SMALL(IF(#REF!='NY Device Codes & Rated Wattage'!$B$3:$B$1926, ROW('NY Device Codes & Rated Wattage'!$B$3:$B$1926)-ROW(#REF!)+2), ROW(63:63))),"" ) -> 
A73: 62 | B73: ='Lighting Worksheet-2A'!D73 -> 0 | D73: =IFERROR(IF(C73=0,0,VLOOKUP(C73,Table18[[Lighting Controls]:[Control Type]],MATCH('Controls Worksheet-2B'!$AO$2,Table18[[#Headers],[Lighting Controls]:[Control Type]],0),0)),"Select Bldg Type & HVAC System on App Cust Info") -> 0 | E73: ='Lighting Worksheet-2A'!Q73 -> 0 | F73: ='Lighting Worksheet-2A'!Z73 -> 0 | G73: ='Lighting Worksheet-2A'!Y73 -> 0 | H73: ='Controls Worksheet-2B'!K73*'Lighting Worksheet-2A'!T73 -> 0 | I73: ='Lighting Worksheet-2A'!AA73 -> 0 | J73: =IF(OR(C73={0," "})," ","#?") ->  | K73: ='Lighting Worksheet-2A'!S73 -> 0 | L73: 0 | M73: 0 | N73: 1 | O73: ='Lighting Worksheet-2A'!E73 -> 0 | P73: %Pwr? | Q73: 0 | R73: SF? | S73: 0 | T73: 0 | U73: 0 | V73: 0 | W73: 0 | X73: 0 | Y73: 0 | Z73: 0 | AA73: 0 | AB73: 0 | AC73: 0 | AD73: 0 | AE73: 0 | AF73: 0 | AG73: 0 | AH73: 0 | AI73: 0 | AM73: =IF(OR(LEFT(C73,2)={"62","63","68"}),1,2) -> 2 | AO73: 0 | AP73: =IF(C73="Custom",(AF73+'Lighting Worksheet-2A'!AP73)*0.131,0) -> 0 | AQ73: =IFERROR(INDEX('NY Device Codes & Rated Wattage'!$C$3:$C$1926, SMALL(IF(#REF!='NY Device Codes & Rated Wattage'!$B$3:$B$1926, ROW('NY Device Codes & Rated Wattage'!$B$3:$B$1926)-ROW(#REF!)+2), ROW(64:64))),"" ) -> 
A74: 63 | B74: ='Lighting Worksheet-2A'!D74 -> 0 | D74: =IFERROR(IF(C74=0,0,VLOOKUP(C74,Table18[[Lighting Controls]:[Control Type]],MATCH('Controls Worksheet-2B'!$AO$2,Table18[[#Headers],[Lighting Controls]:[Control Type]],0),0)),"Select Bldg Type & HVAC System on App Cust Info") -> 0 | E74: ='Lighting Worksheet-2A'!Q74 -> 0 | F74: ='Lighting Worksheet-2A'!Z74 -> 0 | G74: ='Lighting Worksheet-2A'!Y74 -> 0 | H74: ='Controls Worksheet-2B'!K74*'Lighting Worksheet-2A'!T74 -> 0 | I74: ='Lighting Worksheet-2A'!AA74 -> 0 | J74: =IF(OR(C74={0," "})," ","#?") ->  | K74: ='Lighting Worksheet-2A'!S74 -> 0 | L74: 0 | M74: 0 | N74: 1 | O74: ='Lighting Worksheet-2A'!E74 -> 0 | P74: %Pwr? | Q74: 0 | R74: SF? | S74: 0 | T74: 0 | U74: 0 | V74: 0 | W74: 0 | X74: 0 | Y74: 0 | Z74: 0 | AA74: 0 | AB74: 0 | AC74: 0 | AD74: 0 | AE74: 0 | AF74: 0 | AG74: 0 | AH74: 0 | AI74: 0 | AM74: =IF(OR(LEFT(C74,2)={"62","63","68"}),1,2) -> 2 | AO74: 0 | AP74: =IF(C74="Custom",(AF74+'Lighting Worksheet-2A'!AP74)*0.131,0) -> 0 | AQ74: =IFERROR(INDEX('NY Device Codes & Rated Wattage'!$C$3:$C$1926, SMALL(IF(#REF!='NY Device Codes & Rated Wattage'!$B$3:$B$1926, ROW('NY Device Codes & Rated Wattage'!$B$3:$B$1926)-ROW(#REF!)+2), ROW(65:65))),"" ) -> 
A75: 64 | B75: ='Lighting Worksheet-2A'!D75 -> 0 | D75: =IFERROR(IF(C75=0,0,VLOOKUP(C75,Table18[[Lighting Controls]:[Control Type]],MATCH('Controls Worksheet-2B'!$AO$2,Table18[[#Headers],[Lighting Controls]:[Control Type]],0),0)),"Select Bldg Type & HVAC System on App Cust Info") -> 0 | E75: ='Lighting Worksheet-2A'!Q75 -> 0 | F75: ='Lighting Worksheet-2A'!Z75 -> 0 | G75: ='Lighting Worksheet-2A'!Y75 -> 0 | H75: ='Controls Worksheet-2B'!K75*'Lighting Worksheet-2A'!T75 -> 0 | I75: ='Lighting Worksheet-2A'!AA75 -> 0 | J75: =IF(OR(C75={0," "})," ","#?") ->  | K75: ='Lighting Worksheet-2A'!S75 -> 0 | L75: 0 | M75: =IF(J75=" ",0,IF(AND(J75>0,D75="Scene"),"Scene","TRM")) -> 0 | N75: =IF(D75="Scene","#?",1) -> 1 | O75: ='Lighting Worksheet-2A'!E75 -> 0 | P75: %Pwr? | Q75: =IF(OR($N75=0,$N75="#?",$P75="%Pwr?"),0,$P75*I75*K75) -> 0 | R75: SF? | S75: 0 | T75: 0 | U75: =IF(OR($N75=0,$N75="#?",$T75="%Pwr?"),0,$T75*I75*K75) -> 0 | V75: 0 | W75: 0 | X75: 0 | Y75: =IF(OR($N75=0,$N75="#?",$X75="%Pwr?"),0,$X75*I75*K75) -> 0 | Z75: 0 | AA75: 0 | AB75: 0 | AC75: =IF(OR($N75=0,$N75="#?",$AB75="%Pwr?"),0,$AB75*I75*K75) -> 0 | AD75: 0 | AE75: 0 | AF75: 0 | AG75: 0 | AH75: =IFERROR(VLOOKUP(C75,ControlIncentives,2,FALSE),0) -> 0 | AI75: 0 | AM75: =IF(OR(LEFT(C75,2)={"62","63","68"}),1,2) -> 2 | AN75: =INDEX($AM$2:$AM$8,MATCH(D75,$AJ$2:$AJ$8,0)) ->  | AO75: 0 | AP75: =IF(C75="Custom",(AF75+'Lighting Worksheet-2A'!AP75)*0.131,0) -> 0 | AQ75: =IFERROR(INDEX('NY Device Codes & Rated Wattage'!$C$3:$C$1926, SMALL(IF(#REF!='NY Device Codes & Rated Wattage'!$B$3:$B$1926, ROW('NY Device Codes & Rated Wattage'!$B$3:$B$1926)-ROW(#REF!)+2), ROW(66:66))),"" ) -> 
A76: 65 | B76: ='Lighting Worksheet-2A'!D76 -> 0 | D76: =IFERROR(IF(C76=0,0,VLOOKUP(C76,Table18[[Lighting Controls]:[Control Type]],MATCH('Controls Worksheet-2B'!$AO$2,Table18[[#Headers],[Lighting Controls]:[Control Type]],0),0)),"Select Bldg Type & HVAC System on App Cust Info") -> 0 | E76: ='Lighting Worksheet-2A'!Q76 -> 0 | F76: ='Lighting Worksheet-2A'!Z76 -> 0 | G76: ='Lighting Worksheet-2A'!Y76 -> 0 | H76: ='Controls Worksheet-2B'!K76*'Lighting Worksheet-2A'!T76 -> 0 | I76: ='Lighting Worksheet-2A'!AA76 -> 0 | J76: =IF(OR(C76={0," "})," ","#?") ->  | K76: ='Lighting Worksheet-2A'!S76 -> 0 | L76: 0 | M76: 0 | N76: 1 | O76: ='Lighting Worksheet-2A'!E76 -> 0 | P76: %Pwr? | Q76: 0 | R76: SF? | S76: =IF(OR($N76=0,$N76="#?",$R76="SF?"),0,$R76*$O76) -> 0 | T76: =IF(OR($N76=0,$N76="#?"),0,IF($T$9>$N76,0,"%Pwr?")) -> 0 | U76: 0 | V76: =IF(OR($N76=0,$N76="#?"),0,IF($M76="On/Off",0,IF($T$9>$N76,0,"SF?"))) -> 0 | W76: 0 | X76: 0 | Y76: 0 | Z76: =IF(OR($N76=0,$N76="#?"),0,IF($M76="On/Off",0,IF($X$9>$N76,0,"SF?"))) -> 0 | AA76: =IF(OR($N76=0,$N76="#?",$Z76="SF?"),0,$Z76*$O76) -> 0 | AB76: 0 | AC76: 0 | AD76: =IF(OR($N76=0,$N76="#?"),0,IF($M76="On/Off",0,IF($AB$9>$N76,0,"SF?"))) -> 0 | AE76: =IF(OR($N76=0,$N76="#?",$AD76="SF?"),0,$AD76*$O76) -> 0 | AF76: 0 | AG76: 0 | AH76: 0 | AI76: =IFERROR(IF(AM76=1,(AH76*K76),IF(AM76=2,(AH76*J76),0)),0) -> 0 | AM76: =IF(OR(LEFT(C76,2)={"62","63","68"}),1,2) -> 2 | AO76: =IF(LEFT(C76,2)="63",1,0) -> 0 | AP76: =IF(C76="Custom",(AF76+'Lighting Worksheet-2A'!AP76)*0.131,0) -> 0 | AQ76: =IFERROR(INDEX('NY Device Codes & Rated Wattage'!$C$3:$C$1926, SMALL(IF(#REF!='NY Device Codes & Rated Wattage'!$B$3:$B$1926, ROW('NY Device Codes & Rated Wattage'!$B$3:$B$1926)-ROW(#REF!)+2), ROW(67:67))),"" ) -> 
A77: 66 | B77: ='Lighting Worksheet-2A'!D77 -> 0 | D77: =IFERROR(IF(C77=0,0,VLOOKUP(C77,Table18[[Lighting Controls]:[Control Type]],MATCH('Controls Worksheet-2B'!$AO$2,Table18[[#Headers],[Lighting Controls]:[Control Type]],0),0)),"Select Bldg Type & HVAC System on App Cust Info") -> 0 | E77: ='Lighting Worksheet-2A'!Q77 -> 0 | F77: ='Lighting Worksheet-2A'!Z77 -> 0 | G77: ='Lighting Worksheet-2A'!Y77 -> 0 | H77: ='Controls Worksheet-2B'!K77*'Lighting Worksheet-2A'!T77 -> 0 | I77: ='Lighting Worksheet-2A'!AA77 -> 0 | J77: =IF(OR(C77={0," "})," ","#?") ->  | K77: ='Lighting Worksheet-2A'!S77 -> 0 | L77: =IFERROR(K77*I77/$J77,0) -> 0 | M77: 0 | N77: 1 | O77: ='Lighting Worksheet-2A'!E77 -> 0 | P77: =IF(OR($N77=0,$N77="#?"),0,IF($M77="TRM",1,IF($P$9>$N77,0,"%Pwr?"))) -> %Pwr? | Q77: 0 | R77: =IF(OR($N77=0,$N77="#?"),0,IF($M77="TRM",($AN77),IF($P$9>$N77,0,"SF?"))) -> SF? | S77: 0 | T77: 0 | U77: 0 | V77: 0 | W77: =IF(OR(R77=0,R77="#?",V77="SF?"),0,V77*O77) -> 0 | X77: =IF(OR($N77=0,$N77="#?"),0,IF($X$9>$N77,0,"%Pwr?")) -> 0 | Y77: 0 | Z77: 0 | AA77: 0 | AB77: =IF(OR($N77=0,$N77="#?"),0,IF($AB$9>$N77,0,"%Pwr?")) -> 0 | AC77: 0 | AD77: 0 | AE77: 0 | AF77: =IF($M77=0,0,IF($M77="TRM",$Q77*$S77/1000,($Q77*$S77+$U77*$W77+$Y77*$AA77+$AC77*$AE77)/1000)) -> 0 | AG77: =IFERROR(IF($M77=0,0,IF($M77="On/Off",(($L77*$J77)/1000)*$AM$2*1,($Q77*$S77+$U77*$W77+$Y77*$AA77+$AC77*$AE77)/($O77*1000))),0) -> 0 | AH77: 0 | AI77: 0 | AM77: =IF(OR(LEFT(C77,2)={"62","63","68"}),1,2) -> 2 | AO77: 0 | AP77: =IF(C77="Custom",(AF77+'Lighting Worksheet-2A'!AP77)*0.131,0) -> 0 | AQ77: =IFERROR(INDEX('NY Device Codes & Rated Wattage'!$C$3:$C$1926, SMALL(IF(#REF!='NY Device Codes & Rated Wattage'!$B$3:$B$1926, ROW('NY Device Codes & Rated Wattage'!$B$3:$B$1926)-ROW(#REF!)+2), ROW(68:68))),"" ) -> 
A78: 67 | B78: ='Lighting Worksheet-2A'!D78 -> 0 | D78: =IFERROR(IF(C78=0,0,VLOOKUP(C78,Table18[[Lighting Controls]:[Control Type]],MATCH('Controls Worksheet-2B'!$AO$2,Table18[[#Headers],[Lighting Controls]:[Control Type]],0),0)),"Select Bldg Type & HVAC System on App Cust Info") -> 0 | E78: ='Lighting Worksheet-2A'!Q78 -> 0 | F78: ='Lighting Worksheet-2A'!Z78 -> 0 | G78: ='Lighting Worksheet-2A'!Y78 -> 0 | H78: ='Controls Worksheet-2B'!K78*'Lighting Worksheet-2A'!T78 -> 0 | I78: ='Lighting Worksheet-2A'!AA78 -> 0 | J78: =IF(OR(C78={0," "})," ","#?") ->  | K78: ='Lighting Worksheet-2A'!S78 -> 0 | L78: 0 | M78: 0 | N78: 1 | O78: ='Lighting Worksheet-2A'!E78 -> 0 | P78: %Pwr? | Q78: 0 | R78: SF? | S78: 0 | T78: 0 | U78: 0 | V78: 0 | W78: 0 | X78: 0 | Y78: 0 | Z78: 0 | AA78: 0 | AB78: 0 | AC78: 0 | AD78: 0 | AE78: 0 | AF78: 0 | AG78: 0 | AH78: 0 | AI78: 0 | AM78: =IF(OR(LEFT(C78,2)={"62","63","68"}),1,2) -> 2 | AO78: 0 | AP78: =IF(C78="Custom",(AF78+'Lighting Worksheet-2A'!AP78)*0.131,0) -> 0 | AQ78: =IFERROR(INDEX('NY Device Codes & Rated Wattage'!$C$3:$C$1926, SMALL(IF(#REF!='NY Device Codes & Rated Wattage'!$B$3:$B$1926, ROW('NY Device Codes & Rated Wattage'!$B$3:$B$1926)-ROW(#REF!)+2), ROW(69:69))),"" ) -> 
A79: 68 | B79: ='Lighting Worksheet-2A'!D79 -> 0 | D79: =IFERROR(IF(C79=0,0,VLOOKUP(C79,Table18[[Lighting Controls]:[Control Type]],MATCH('Controls Worksheet-2B'!$AO$2,Table18[[#Headers],[Lighting Controls]:[Control Type]],0),0)),"Select Bldg Type & HVAC System on App Cust Info") -> 0 | E79: ='Lighting Worksheet-2A'!Q79 -> 0 | F79: ='Lighting Worksheet-2A'!Z79 -> 0 | G79: ='Lighting Worksheet-2A'!Y79 -> 0 | H79: ='Controls Worksheet-2B'!K79*'Lighting Worksheet-2A'!T79 -> 0 | I79: ='Lighting Worksheet-2A'!AA79 -> 0 | J79: =IF(OR(C79={0," "})," ","#?") ->  | K79: ='Lighting Worksheet-2A'!S79 -> 0 | L79: 0 | M79: 0 | N79: 1 | O79: ='Lighting Worksheet-2A'!E79 -> 0 | P79: %Pwr? | Q79: 0 | R79: SF? | S79: 0 | T79: 0 | U79: 0 | V79: 0 | W79: 0 | X79: 0 | Y79: 0 | Z79: 0 | AA79: 0 | AB79: 0 | AC79: 0 | AD79: 0 | AE79: 0 | AF79: 0 | AG79: 0 | AH79: 0 | AI79: 0 | AM79: =IF(OR(LEFT(C79,2)={"62","63","68"}),1,2) -> 2 | AO79: 0 | AP79: =IF(C79="Custom",(AF79+'Lighting Worksheet-2A'!AP79)*0.131,0) -> 0 | AQ79: =IFERROR(INDEX('NY Device Codes & Rated Wattage'!$C$3:$C$1926, SMALL(IF(#REF!='NY Device Codes & Rated Wattage'!$B$3:$B$1926, ROW('NY Device Codes & Rated Wattage'!$B$3:$B$1926)-ROW(#REF!)+2), ROW(70:70))),"" ) -> 
A80: 69 | B80: ='Lighting Worksheet-2A'!D80 -> 0 | D80: =IFERROR(IF(C80=0,0,VLOOKUP(C80,Table18[[Lighting Controls]:[Control Type]],MATCH('Controls Worksheet-2B'!$AO$2,Table18[[#Headers],[Lighting Controls]:[Control Type]],0),0)),"Select Bldg Type & HVAC System on App Cust Info") -> 0 | E80: ='Lighting Worksheet-2A'!Q80 -> 0 | F80: ='Lighting Worksheet-2A'!Z80 -> 0 | G80: ='Lighting Worksheet-2A'!Y80 -> 0 | H80: ='Controls Worksheet-2B'!K80*'Lighting Worksheet-2A'!T80 -> 0 | I80: ='Lighting Worksheet-2A'!AA80 -> 0 | J80: =IF(OR(C80={0," "})," ","#?") ->  | K80: ='Lighting Worksheet-2A'!S80 -> 0 | L80: 0 | M80: 0 | N80: 1 | O80: ='Lighting Worksheet-2A'!E80 -> 0 | P80: %Pwr? | Q80: 0 | R80: SF? | S80: 0 | T80: 0 | U80: 0 | V80: 0 | W80: 0 | X80: 0 | Y80: 0 | Z80: 0 | AA80: 0 | AB80: 0 | AC80: 0 | AD80: 0 | AE80: 0 | AF80: 0 | AG80: 0 | AH80: 0 | AI80: 0 | AM80: =IF(OR(LEFT(C80,2)={"62","63","68"}),1,2) -> 2 | AO80: 0 | AP80: =IF(C80="Custom",(AF80+'Lighting Worksheet-2A'!AP80)*0.131,0) -> 0 | AQ80: =IFERROR(INDEX('NY Device Codes & Rated Wattage'!$C$3:$C$1926, SMALL(IF(#REF!='NY Device Codes & Rated Wattage'!$B$3:$B$1926, ROW('NY Device Codes & Rated Wattage'!$B$3:$B$1926)-ROW(#REF!)+2), ROW(71:71))),"" ) -> 
A81: 70 | B81: ='Lighting Worksheet-2A'!D81 -> 0 | D81: =IFERROR(IF(C81=0,0,VLOOKUP(C81,Table18[[Lighting Controls]:[Control Type]],MATCH('Controls Worksheet-2B'!$AO$2,Table18[[#Headers],[Lighting Controls]:[Control Type]],0),0)),"Select Bldg Type & HVAC System on App Cust Info") -> 0 | E81: ='Lighting Worksheet-2A'!Q81 -> 0 | F81: ='Lighting Worksheet-2A'!Z81 -> 0 | G81: ='Lighting Worksheet-2A'!Y81 -> 0 | H81: ='Controls Worksheet-2B'!K81*'Lighting Worksheet-2A'!T81 -> 0 | I81: ='Lighting Worksheet-2A'!AA81 -> 0 | J81: =IF(OR(C81={0," "})," ","#?") ->  | K81: ='Lighting Worksheet-2A'!S81 -> 0 | L81: 0 | M81: 0 | N81: 1 | O81: ='Lighting Worksheet-2A'!E81 -> 0 | P81: %Pwr? | Q81: 0 | R81: SF? | S81: 0 | T81: 0 | U81: 0 | V81: 0 | W81: 0 | X81: 0 | Y81: 0 | Z81: 0 | AA81: 0 | AB81: 0 | AC81: 0 | AD81: 0 | AE81: 0 | AF81: 0 | AG81: 0 | AH81: 0 | AI81: 0 | AM81: =IF(OR(LEFT(C81,2)={"62","63","68"}),1,2) -> 2 | AO81: 0 | AP81: =IF(C81="Custom",(AF81+'Lighting Worksheet-2A'!AP81)*0.131,0) -> 0 | AQ81: =IFERROR(INDEX('NY Device Codes & Rated Wattage'!$C$3:$C$1926, SMALL(IF(#REF!='NY Device Codes & Rated Wattage'!$B$3:$B$1926, ROW('NY Device Codes & Rated Wattage'!$B$3:$B$1926)-ROW(#REF!)+2), ROW(72:72))),"" ) -> 
A82: 71 | B82: ='Lighting Worksheet-2A'!D82 -> 0 | D82: =IFERROR(IF(C82=0,0,VLOOKUP(C82,Table18[[Lighting Controls]:[Control Type]],MATCH('Controls Worksheet-2B'!$AO$2,Table18[[#Headers],[Lighting Controls]:[Control Type]],0),0)),"Select Bldg Type & HVAC System on App Cust Info") -> 0 | E82: ='Lighting Worksheet-2A'!Q82 -> 0 | F82: ='Lighting Worksheet-2A'!Z82 -> 0 | G82: ='Lighting Worksheet-2A'!Y82 -> 0 | H82: ='Controls Worksheet-2B'!K82*'Lighting Worksheet-2A'!T82 -> 0 | I82: ='Lighting Worksheet-2A'!AA82 -> 0 | J82: =IF(OR(C82={0," "})," ","#?") ->  | K82: ='Lighting Worksheet-2A'!S82 -> 0 | L82: 0 | M82: 0 | N82: 1 | O82: ='Lighting Worksheet-2A'!E82 -> 0 | P82: %Pwr? | Q82: 0 | R82: SF? | S82: 0 | T82: 0 | U82: 0 | V82: 0 | W82: 0 | X82: 0 | Y82: 0 | Z82: 0 | AA82: 0 | AB82: 0 | AC82: 0 | AD82: 0 | AE82: 0 | AF82: 0 | AG82: 0 | AH82: 0 | AI82: 0 | AM82: =IF(OR(LEFT(C82,2)={"62","63","68"}),1,2) -> 2 | AO82: 0 | AP82: =IF(C82="Custom",(AF82+'Lighting Worksheet-2A'!AP82)*0.131,0) -> 0 | AQ82: =IFERROR(INDEX('NY Device Codes & Rated Wattage'!$C$3:$C$1926, SMALL(IF(#REF!='NY Device Codes & Rated Wattage'!$B$3:$B$1926, ROW('NY Device Codes & Rated Wattage'!$B$3:$B$1926)-ROW(#REF!)+2), ROW(73:73))),"" ) -> 
A83: 72 | B83: ='Lighting Worksheet-2A'!D83 -> 0 | D83: =IFERROR(IF(C83=0,0,VLOOKUP(C83,Table18[[Lighting Controls]:[Control Type]],MATCH('Controls Worksheet-2B'!$AO$2,Table18[[#Headers],[Lighting Controls]:[Control Type]],0),0)),"Select Bldg Type & HVAC System on App Cust Info") -> 0 | E83: ='Lighting Worksheet-2A'!Q83 -> 0 | F83: ='Lighting Worksheet-2A'!Z83 -> 0 | G83: ='Lighting Worksheet-2A'!Y83 -> 0 | H83: ='Controls Worksheet-2B'!K83*'Lighting Worksheet-2A'!T83 -> 0 | I83: ='Lighting Worksheet-2A'!AA83 -> 0 | J83: =IF(OR(C83={0," "})," ","#?") ->  | K83: ='Lighting Worksheet-2A'!S83 -> 0 | L83: 0 | M83: 0 | N83: 1 | O83: ='Lighting Worksheet-2A'!E83 -> 0 | P83: %Pwr? | Q83: 0 | R83: SF? | S83: 0 | T83: 0 | U83: 0 | V83: 0 | W83: 0 | X83: 0 | Y83: 0 | Z83: 0 | AA83: 0 | AB83: 0 | AC83: 0 | AD83: 0 | AE83: 0 | AF83: 0 | AG83: 0 | AH83: 0 | AI83: 0 | AM83: =IF(OR(LEFT(C83,2)={"62","63","68"}),1,2) -> 2 | AO83: 0 | AP83: =IF(C83="Custom",(AF83+'Lighting Worksheet-2A'!AP83)*0.131,0) -> 0 | AQ83: =IFERROR(INDEX('NY Device Codes & Rated Wattage'!$C$3:$C$1926, SMALL(IF(#REF!='NY Device Codes & Rated Wattage'!$B$3:$B$1926, ROW('NY Device Codes & Rated Wattage'!$B$3:$B$1926)-ROW(#REF!)+2), ROW(74:74))),"" ) -> 
A84: 73 | B84: ='Lighting Worksheet-2A'!D84 -> 0 | D84: =IFERROR(IF(C84=0,0,VLOOKUP(C84,Table18[[Lighting Controls]:[Control Type]],MATCH('Controls Worksheet-2B'!$AO$2,Table18[[#Headers],[Lighting Controls]:[Control Type]],0),0)),"Select Bldg Type & HVAC System on App Cust Info") -> 0 | E84: ='Lighting Worksheet-2A'!Q84 -> 0 | F84: ='Lighting Worksheet-2A'!Z84 -> 0 | G84: ='Lighting Worksheet-2A'!Y84 -> 0 | H84: ='Controls Worksheet-2B'!K84*'Lighting Worksheet-2A'!T84 -> 0 | I84: ='Lighting Worksheet-2A'!AA84 -> 0 | J84: =IF(OR(C84={0," "})," ","#?") ->  | K84: ='Lighting Worksheet-2A'!S84 -> 0 | L84: 0 | M84: 0 | N84: 1 | O84: ='Lighting Worksheet-2A'!E84 -> 0 | P84: %Pwr? | Q84: 0 | R84: SF? | S84: 0 | T84: 0 | U84: 0 | V84: 0 | W84: 0 | X84: 0 | Y84: 0 | Z84: 0 | AA84: 0 | AB84: 0 | AC84: 0 | AD84: 0 | AE84: 0 | AF84: 0 | AG84: 0 | AH84: 0 | AI84: 0 | AM84: =IF(OR(LEFT(C84,2)={"62","63","68"}),1,2) -> 2 | AO84: 0 | AP84: =IF(C84="Custom",(AF84+'Lighting Worksheet-2A'!AP84)*0.131,0) -> 0 | AQ84: =IFERROR(INDEX('NY Device Codes & Rated Wattage'!$C$3:$C$1926, SMALL(IF(#REF!='NY Device Codes & Rated Wattage'!$B$3:$B$1926, ROW('NY Device Codes & Rated Wattage'!$B$3:$B$1926)-ROW(#REF!)+2), ROW(75:75))),"" ) -> 
A85: 74 | B85: ='Lighting Worksheet-2A'!D85 -> 0 | D85: =IFERROR(IF(C85=0,0,VLOOKUP(C85,Table18[[Lighting Controls]:[Control Type]],MATCH('Controls Worksheet-2B'!$AO$2,Table18[[#Headers],[Lighting Controls]:[Control Type]],0),0)),"Select Bldg Type & HVAC System on App Cust Info") -> 0 | E85: ='Lighting Worksheet-2A'!Q85 -> 0 | F85: ='Lighting Worksheet-2A'!Z85 -> 0 | G85: ='Lighting Worksheet-2A'!Y85 -> 0 | H85: ='Controls Worksheet-2B'!K85*'Lighting Worksheet-2A'!T85 -> 0 | I85: ='Lighting Worksheet-2A'!AA85 -> 0 | J85: =IF(OR(C85={0," "})," ","#?") ->  | K85: ='Lighting Worksheet-2A'!S85 -> 0 | L85: 0 | M85: 0 | N85: 1 | O85: ='Lighting Worksheet-2A'!E85 -> 0 | P85: %Pwr? | Q85: 0 | R85: SF? | S85: 0 | T85: 0 | U85: 0 | V85: 0 | W85: 0 | X85: 0 | Y85: 0 | Z85: 0 | AA85: 0 | AB85: 0 | AC85: 0 | AD85: 0 | AE85: 0 | AF85: 0 | AG85: 0 | AH85: 0 | AI85: 0 | AM85: =IF(OR(LEFT(C85,2)={"62","63","68"}),1,2) -> 2 | AO85: 0 | AP85: =IF(C85="Custom",(AF85+'Lighting Worksheet-2A'!AP85)*0.131,0) -> 0 | AQ85: =IFERROR(INDEX('NY Device Codes & Rated Wattage'!$C$3:$C$1926, SMALL(IF(#REF!='NY Device Codes & Rated Wattage'!$B$3:$B$1926, ROW('NY Device Codes & Rated Wattage'!$B$3:$B$1926)-ROW(#REF!)+2), ROW(76:76))),"" ) -> 
A86: 75 | B86: ='Lighting Worksheet-2A'!D86 -> 0 | D86: =IFERROR(IF(C86=0,0,VLOOKUP(C86,Table18[[Lighting Controls]:[Control Type]],MATCH('Controls Worksheet-2B'!$AO$2,Table18[[#Headers],[Lighting Controls]:[Control Type]],0),0)),"Select Bldg Type & HVAC System on App Cust Info") -> 0 | E86: ='Lighting Worksheet-2A'!Q86 -> 0 | F86: ='Lighting Worksheet-2A'!Z86 -> 0 | G86: ='Lighting Worksheet-2A'!Y86 -> 0 | H86: ='Controls Worksheet-2B'!K86*'Lighting Worksheet-2A'!T86 -> 0 | I86: ='Lighting Worksheet-2A'!AA86 -> 0 | J86: =IF(OR(C86={0," "})," ","#?") ->  | K86: ='Lighting Worksheet-2A'!S86 -> 0 | L86: 0 | M86: 0 | N86: 1 | O86: ='Lighting Worksheet-2A'!E86 -> 0 | P86: %Pwr? | Q86: 0 | R86: SF? | S86: 0 | T86: 0 | U86: 0 | V86: 0 | W86: 0 | X86: 0 | Y86: 0 | Z86: 0 | AA86: 0 | AB86: 0 | AC86: 0 | AD86: 0 | AE86: 0 | AF86: 0 | AG86: 0 | AH86: 0 | AI86: 0 | AM86: =IF(OR(LEFT(C86,2)={"62","63","68"}),1,2) -> 2 | AO86: 0 | AP86: =IF(C86="Custom",(AF86+'Lighting Worksheet-2A'!AP86)*0.131,0) -> 0 | AQ86: =IFERROR(INDEX('NY Device Codes & Rated Wattage'!$C$3:$C$1926, SMALL(IF(#REF!='NY Device Codes & Rated Wattage'!$B$3:$B$1926, ROW('NY Device Codes & Rated Wattage'!$B$3:$B$1926)-ROW(#REF!)+2), ROW(77:77))),"" ) -> 
A87: 76 | B87: ='Lighting Worksheet-2A'!D87 -> 0 | D87: =IFERROR(IF(C87=0,0,VLOOKUP(C87,Table18[[Lighting Controls]:[Control Type]],MATCH('Controls Worksheet-2B'!$AO$2,Table18[[#Headers],[Lighting Controls]:[Control Type]],0),0)),"Select Bldg Type & HVAC System on App Cust Info") -> 0 | E87: ='Lighting Worksheet-2A'!Q87 -> 0 | F87: ='Lighting Worksheet-2A'!Z87 -> 0 | G87: ='Lighting Worksheet-2A'!Y87 -> 0 | H87: ='Controls Worksheet-2B'!K87*'Lighting Worksheet-2A'!T87 -> 0 | I87: ='Lighting Worksheet-2A'!AA87 -> 0 | J87: =IF(OR(C87={0," "})," ","#?") ->  | K87: ='Lighting Worksheet-2A'!S87 -> 0 | L87: 0 | M87: 0 | N87: 1 | O87: ='Lighting Worksheet-2A'!E87 -> 0 | P87: %Pwr? | Q87: 0 | R87: SF? | S87: 0 | T87: 0 | U87: 0 | V87: 0 | W87: 0 | X87: 0 | Y87: 0 | Z87: 0 | AA87: 0 | AB87: 0 | AC87: 0 | AD87: 0 | AE87: 0 | AF87: 0 | AG87: 0 | AH87: 0 | AI87: 0 | AM87: =IF(OR(LEFT(C87,2)={"62","63","68"}),1,2) -> 2 | AO87: 0 | AP87: =IF(C87="Custom",(AF87+'Lighting Worksheet-2A'!AP87)*0.131,0) -> 0 | AQ87: =IFERROR(INDEX('NY Device Codes & Rated Wattage'!$C$3:$C$1926, SMALL(IF(#REF!='NY Device Codes & Rated Wattage'!$B$3:$B$1926, ROW('NY Device Codes & Rated Wattage'!$B$3:$B$1926)-ROW(#REF!)+2), ROW(78:78))),"" ) -> 
A88: 77 | B88: ='Lighting Worksheet-2A'!D88 -> 0 | D88: =IFERROR(IF(C88=0,0,VLOOKUP(C88,Table18[[Lighting Controls]:[Control Type]],MATCH('Controls Worksheet-2B'!$AO$2,Table18[[#Headers],[Lighting Controls]:[Control Type]],0),0)),"Select Bldg Type & HVAC System on App Cust Info") -> 0 | E88: ='Lighting Worksheet-2A'!Q88 -> 0 | F88: ='Lighting Worksheet-2A'!Z88 -> 0 | G88: ='Lighting Worksheet-2A'!Y88 -> 0 | H88: ='Controls Worksheet-2B'!K88*'Lighting Worksheet-2A'!T88 -> 0 | I88: ='Lighting Worksheet-2A'!AA88 -> 0 | J88: =IF(OR(C88={0," "})," ","#?") ->  | K88: ='Lighting Worksheet-2A'!S88 -> 0 | L88: 0 | M88: 0 | N88: 1 | O88: ='Lighting Worksheet-2A'!E88 -> 0 | P88: %Pwr? | Q88: 0 | R88: SF? | S88: 0 | T88: 0 | U88: 0 | V88: 0 | W88: 0 | X88: 0 | Y88: 0 | Z88: 0 | AA88: 0 | AB88: 0 | AC88: 0 | AD88: 0 | AE88: 0 | AF88: 0 | AG88: 0 | AH88: 0 | AI88: 0 | AM88: =IF(OR(LEFT(C88,2)={"62","63","68"}),1,2) -> 2 | AO88: 0 | AP88: =IF(C88="Custom",(AF88+'Lighting Worksheet-2A'!AP88)*0.131,0) -> 0 | AQ88: =IFERROR(INDEX('NY Device Codes & Rated Wattage'!$C$3:$C$1926, SMALL(IF(#REF!='NY Device Codes & Rated Wattage'!$B$3:$B$1926, ROW('NY Device Codes & Rated Wattage'!$B$3:$B$1926)-ROW(#REF!)+2), ROW(79:79))),"" ) -> 
A89: 78 | B89: ='Lighting Worksheet-2A'!D89 -> 0 | D89: =IFERROR(IF(C89=0,0,VLOOKUP(C89,Table18[[Lighting Controls]:[Control Type]],MATCH('Controls Worksheet-2B'!$AO$2,Table18[[#Headers],[Lighting Controls]:[Control Type]],0),0)),"Select Bldg Type & HVAC System on App Cust Info") -> 0 | E89: ='Lighting Worksheet-2A'!Q89 -> 0 | F89: ='Lighting Worksheet-2A'!Z89 -> 0 | G89: ='Lighting Worksheet-2A'!Y89 -> 0 | H89: ='Controls Worksheet-2B'!K89*'Lighting Worksheet-2A'!T89 -> 0 | I89: ='Lighting Worksheet-2A'!AA89 -> 0 | J89: =IF(OR(C89={0," "})," ","#?") ->  | K89: ='Lighting Worksheet-2A'!S89 -> 0 | L89: 0 | M89: 0 | N89: 1 | O89: ='Lighting Worksheet-2A'!E89 -> 0 | P89: %Pwr? | Q89: 0 | R89: SF? | S89: 0 | T89: 0 | U89: 0 | V89: 0 | W89: 0 | X89: 0 | Y89: 0 | Z89: 0 | AA89: 0 | AB89: 0 | AC89: 0 | AD89: 0 | AE89: 0 | AF89: 0 | AG89: 0 | AH89: 0 | AI89: 0 | AM89: =IF(OR(LEFT(C89,2)={"62","63","68"}),1,2) -> 2 | AO89: 0 | AP89: =IF(C89="Custom",(AF89+'Lighting Worksheet-2A'!AP89)*0.131,0) -> 0 | AQ89: =IFERROR(INDEX('NY Device Codes & Rated Wattage'!$C$3:$C$1926, SMALL(IF(#REF!='NY Device Codes & Rated Wattage'!$B$3:$B$1926, ROW('NY Device Codes & Rated Wattage'!$B$3:$B$1926)-ROW(#REF!)+2), ROW(80:80))),"" ) -> 
A90: 79 | B90: ='Lighting Worksheet-2A'!D90 -> 0 | D90: =IFERROR(IF(C90=0,0,VLOOKUP(C90,Table18[[Lighting Controls]:[Control Type]],MATCH('Controls Worksheet-2B'!$AO$2,Table18[[#Headers],[Lighting Controls]:[Control Type]],0),0)),"Select Bldg Type & HVAC System on App Cust Info") -> 0 | E90: ='Lighting Worksheet-2A'!Q90 -> 0 | F90: ='Lighting Worksheet-2A'!Z90 -> 0 | G90: ='Lighting Worksheet-2A'!Y90 -> 0 | H90: ='Controls Worksheet-2B'!K90*'Lighting Worksheet-2A'!T90 -> 0 | I90: ='Lighting Worksheet-2A'!AA90 -> 0 | J90: =IF(OR(C90={0," "})," ","#?") ->  | K90: ='Lighting Worksheet-2A'!S90 -> 0 | L90: 0 | M90: 0 | N90: 1 | O90: ='Lighting Worksheet-2A'!E90 -> 0 | P90: %Pwr? | Q90: 0 | R90: SF? | S90: 0 | T90: 0 | U90: 0 | V90: 0 | W90: 0 | X90: 0 | Y90: 0 | Z90: 0 | AA90: 0 | AB90: 0 | AC90: 0 | AD90: 0 | AE90: 0 | AF90: 0 | AG90: 0 | AH90: 0 | AI90: 0 | AM90: =IF(OR(LEFT(C90,2)={"62","63","68"}),1,2) -> 2 | AO90: 0 | AP90: =IF(C90="Custom",(AF90+'Lighting Worksheet-2A'!AP90)*0.131,0) -> 0 | AQ90: =IFERROR(INDEX('NY Device Codes & Rated Wattage'!$C$3:$C$1926, SMALL(IF(#REF!='NY Device Codes & Rated Wattage'!$B$3:$B$1926, ROW('NY Device Codes & Rated Wattage'!$B$3:$B$1926)-ROW(#REF!)+2), ROW(81:81))),"" ) -> 
A91: 80 | B91: ='Lighting Worksheet-2A'!D91 -> 0 | D91: =IFERROR(IF(C91=0,0,VLOOKUP(C91,Table18[[Lighting Controls]:[Control Type]],MATCH('Controls Worksheet-2B'!$AO$2,Table18[[#Headers],[Lighting Controls]:[Control Type]],0),0)),"Select Bldg Type & HVAC System on App Cust Info") -> 0 | E91: ='Lighting Worksheet-2A'!Q91 -> 0 | F91: ='Lighting Worksheet-2A'!Z91 -> 0 | G91: ='Lighting Worksheet-2A'!Y91 -> 0 | H91: ='Controls Worksheet-2B'!K91*'Lighting Worksheet-2A'!T91 -> 0 | I91: ='Lighting Worksheet-2A'!AA91 -> 0 | J91: =IF(OR(C91={0," "})," ","#?") ->  | K91: ='Lighting Worksheet-2A'!S91 -> 0 | L91: 0 | M91: 0 | N91: 1 | O91: ='Lighting Worksheet-2A'!E91 -> 0 | P91: %Pwr? | Q91: 0 | R91: SF? | S91: 0 | T91: 0 | U91: 0 | V91: 0 | W91: 0 | X91: 0 | Y91: 0 | Z91: 0 | AA91: 0 | AB91: 0 | AC91: 0 | AD91: 0 | AE91: 0 | AF91: 0 | AG91: 0 | AH91: 0 | AI91: 0 | AM91: =IF(OR(LEFT(C91,2)={"62","63","68"}),1,2) -> 2 | AO91: 0 | AP91: =IF(C91="Custom",(AF91+'Lighting Worksheet-2A'!AP91)*0.131,0) -> 0 | AQ91: =IFERROR(INDEX('NY Device Codes & Rated Wattage'!$C$3:$C$1926, SMALL(IF(#REF!='NY Device Codes & Rated Wattage'!$B$3:$B$1926, ROW('NY Device Codes & Rated Wattage'!$B$3:$B$1926)-ROW(#REF!)+2), ROW(82:82))),"" ) -> 
A92: 81 | B92: ='Lighting Worksheet-2A'!D92 -> 0 | D92: =IFERROR(IF(C92=0,0,VLOOKUP(C92,Table18[[Lighting Controls]:[Control Type]],MATCH('Controls Worksheet-2B'!$AO$2,Table18[[#Headers],[Lighting Controls]:[Control Type]],0),0)),"Select Bldg Type & HVAC System on App Cust Info") -> 0 | E92: ='Lighting Worksheet-2A'!Q92 -> 0 | F92: ='Lighting Worksheet-2A'!Z92 -> 0 | G92: ='Lighting Worksheet-2A'!Y92 -> 0 | H92: ='Controls Worksheet-2B'!K92*'Lighting Worksheet-2A'!T92 -> 0 | I92: ='Lighting Worksheet-2A'!AA92 -> 0 | J92: =IF(OR(C92={0," "})," ","#?") ->  | K92: ='Lighting Worksheet-2A'!S92 -> 0 | L92: 0 | M92: 0 | N92: 1 | O92: ='Lighting Worksheet-2A'!E92 -> 0 | P92: %Pwr? | Q92: 0 | R92: SF? | S92: 0 | T92: 0 | U92: 0 | V92: 0 | W92: 0 | X92: 0 | Y92: 0 | Z92: 0 | AA92: 0 | AB92: 0 | AC92: 0 | AD92: 0 | AE92: 0 | AF92: 0 | AG92: 0 | AH92: 0 | AI92: 0 | AM92: =IF(OR(LEFT(C92,2)={"62","63","68"}),1,2) -> 2 | AO92: 0 | AP92: =IF(C92="Custom",(AF92+'Lighting Worksheet-2A'!AP92)*0.131,0) -> 0 | AQ92: =IFERROR(INDEX('NY Device Codes & Rated Wattage'!$C$3:$C$1926, SMALL(IF(#REF!='NY Device Codes & Rated Wattage'!$B$3:$B$1926, ROW('NY Device Codes & Rated Wattage'!$B$3:$B$1926)-ROW(#REF!)+2), ROW(83:83))),"" ) -> 
A93: 82 | B93: ='Lighting Worksheet-2A'!D93 -> 0 | D93: =IFERROR(IF(C93=0,0,VLOOKUP(C93,Table18[[Lighting Controls]:[Control Type]],MATCH('Controls Worksheet-2B'!$AO$2,Table18[[#Headers],[Lighting Controls]:[Control Type]],0),0)),"Select Bldg Type & HVAC System on App Cust Info") -> 0 | E93: ='Lighting Worksheet-2A'!Q93 -> 0 | F93: ='Lighting Worksheet-2A'!Z93 -> 0 | G93: ='Lighting Worksheet-2A'!Y93 -> 0 | H93: ='Controls Worksheet-2B'!K93*'Lighting Worksheet-2A'!T93 -> 0 | I93: ='Lighting Worksheet-2A'!AA93 -> 0 | J93: =IF(OR(C93={0," "})," ","#?") ->  | K93: ='Lighting Worksheet-2A'!S93 -> 0 | L93: 0 | M93: 0 | N93: 1 | O93: ='Lighting Worksheet-2A'!E93 -> 0 | P93: %Pwr? | Q93: 0 | R93: SF? | S93: 0 | T93: 0 | U93: 0 | V93: 0 | W93: 0 | X93: 0 | Y93: 0 | Z93: 0 | AA93: 0 | AB93: 0 | AC93: 0 | AD93: 0 | AE93: 0 | AF93: 0 | AG93: 0 | AH93: 0 | AI93: 0 | AM93: =IF(OR(LEFT(C93,2)={"62","63","68"}),1,2) -> 2 | AO93: 0 | AP93: =IF(C93="Custom",(AF93+'Lighting Worksheet-2A'!AP93)*0.131,0) -> 0 | AQ93: =IFERROR(INDEX('NY Device Codes & Rated Wattage'!$C$3:$C$1926, SMALL(IF(#REF!='NY Device Codes & Rated Wattage'!$B$3:$B$1926, ROW('NY Device Codes & Rated Wattage'!$B$3:$B$1926)-ROW(#REF!)+2), ROW(84:84))),"" ) -> 
A94: 83 | B94: ='Lighting Worksheet-2A'!D94 -> 0 | D94: =IFERROR(IF(C94=0,0,VLOOKUP(C94,Table18[[Lighting Controls]:[Control Type]],MATCH('Controls Worksheet-2B'!$AO$2,Table18[[#Headers],[Lighting Controls]:[Control Type]],0),0)),"Select Bldg Type & HVAC System on App Cust Info") -> 0 | E94: ='Lighting Worksheet-2A'!Q94 -> 0 | F94: ='Lighting Worksheet-2A'!Z94 -> 0 | G94: ='Lighting Worksheet-2A'!Y94 -> 0 | H94: ='Controls Worksheet-2B'!K94*'Lighting Worksheet-2A'!T94 -> 0 | I94: ='Lighting Worksheet-2A'!AA94 -> 0 | J94: =IF(OR(C94={0," "})," ","#?") ->  | K94: ='Lighting Worksheet-2A'!S94 -> 0 | L94: 0 | M94: 0 | N94: 1 | O94: ='Lighting Worksheet-2A'!E94 -> 0 | P94: %Pwr? | Q94: 0 | R94: SF? | S94: 0 | T94: 0 | U94: 0 | V94: 0 | W94: 0 | X94: 0 | Y94: 0 | Z94: 0 | AA94: 0 | AB94: 0 | AC94: 0 | AD94: 0 | AE94: 0 | AF94: 0 | AG94: 0 | AH94: 0 | AI94: 0 | AM94: =IF(OR(LEFT(C94,2)={"62","63","68"}),1,2) -> 2 | AO94: 0 | AP94: =IF(C94="Custom",(AF94+'Lighting Worksheet-2A'!AP94)*0.131,0) -> 0 | AQ94: =IFERROR(INDEX('NY Device Codes & Rated Wattage'!$C$3:$C$1926, SMALL(IF(#REF!='NY Device Codes & Rated Wattage'!$B$3:$B$1926, ROW('NY Device Codes & Rated Wattage'!$B$3:$B$1926)-ROW(#REF!)+2), ROW(85:85))),"" ) -> 
A95: 84 | B95: ='Lighting Worksheet-2A'!D95 -> 0 | D95: =IFERROR(IF(C95=0,0,VLOOKUP(C95,Table18[[Lighting Controls]:[Control Type]],MATCH('Controls Worksheet-2B'!$AO$2,Table18[[#Headers],[Lighting Controls]:[Control Type]],0),0)),"Select Bldg Type & HVAC System on App Cust Info") -> 0 | E95: ='Lighting Worksheet-2A'!Q95 -> 0 | F95: ='Lighting Worksheet-2A'!Z95 -> 0 | G95: ='Lighting Worksheet-2A'!Y95 -> 0 | H95: ='Controls Worksheet-2B'!K95*'Lighting Worksheet-2A'!T95 -> 0 | I95: ='Lighting Worksheet-2A'!AA95 -> 0 | J95: =IF(OR(C95={0," "})," ","#?") ->  | K95: ='Lighting Worksheet-2A'!S95 -> 0 | L95: 0 | M95: 0 | N95: 1 | O95: ='Lighting Worksheet-2A'!E95 -> 0 | P95: %Pwr? | Q95: 0 | R95: SF? | S95: 0 | T95: 0 | U95: 0 | V95: 0 | W95: 0 | X95: 0 | Y95: 0 | Z95: 0 | AA95: 0 | AB95: 0 | AC95: 0 | AD95: 0 | AE95: 0 | AF95: 0 | AG95: 0 | AH95: 0 | AI95: 0 | AM95: =IF(OR(LEFT(C95,2)={"62","63","68"}),1,2) -> 2 | AO95: 0 | AP95: =IF(C95="Custom",(AF95+'Lighting Worksheet-2A'!AP95)*0.131,0) -> 0 | AQ95: =IFERROR(INDEX('NY Device Codes & Rated Wattage'!$C$3:$C$1926, SMALL(IF(#REF!='NY Device Codes & Rated Wattage'!$B$3:$B$1926, ROW('NY Device Codes & Rated Wattage'!$B$3:$B$1926)-ROW(#REF!)+2), ROW(86:86))),"" ) -> 
A96: 85 | B96: ='Lighting Worksheet-2A'!D96 -> 0 | D96: =IFERROR(IF(C96=0,0,VLOOKUP(C96,Table18[[Lighting Controls]:[Control Type]],MATCH('Controls Worksheet-2B'!$AO$2,Table18[[#Headers],[Lighting Controls]:[Control Type]],0),0)),"Select Bldg Type & HVAC System on App Cust Info") -> 0 | E96: ='Lighting Worksheet-2A'!Q96 -> 0 | F96: ='Lighting Worksheet-2A'!Z96 -> 0 | G96: ='Lighting Worksheet-2A'!Y96 -> 0 | H96: ='Controls Worksheet-2B'!K96*'Lighting Worksheet-2A'!T96 -> 0 | I96: ='Lighting Worksheet-2A'!AA96 -> 0 | J96: =IF(OR(C96={0," "})," ","#?") ->  | K96: ='Lighting Worksheet-2A'!S96 -> 0 | L96: 0 | M96: 0 | N96: 1 | O96: ='Lighting Worksheet-2A'!E96 -> 0 | P96: %Pwr? | Q96: 0 | R96: SF? | S96: 0 | T96: 0 | U96: 0 | V96: 0 | W96: 0 | X96: 0 | Y96: 0 | Z96: 0 | AA96: 0 | AB96: 0 | AC96: 0 | AD96: 0 | AE96: 0 | AF96: 0 | AG96: 0 | AH96: 0 | AI96: 0 | AM96: =IF(OR(LEFT(C96,2)={"62","63","68"}),1,2) -> 2 | AO96: 0 | AP96: =IF(C96="Custom",(AF96+'Lighting Worksheet-2A'!AP96)*0.131,0) -> 0 | AQ96: =IFERROR(INDEX('NY Device Codes & Rated Wattage'!$C$3:$C$1926, SMALL(IF(#REF!='NY Device Codes & Rated Wattage'!$B$3:$B$1926, ROW('NY Device Codes & Rated Wattage'!$B$3:$B$1926)-ROW(#REF!)+2), ROW(87:87))),"" ) -> 
A97: 86 | B97: ='Lighting Worksheet-2A'!D97 -> 0 | D97: =IFERROR(IF(C97=0,0,VLOOKUP(C97,Table18[[Lighting Controls]:[Control Type]],MATCH('Controls Worksheet-2B'!$AO$2,Table18[[#Headers],[Lighting Controls]:[Control Type]],0),0)),"Select Bldg Type & HVAC System on App Cust Info") -> 0 | E97: ='Lighting Worksheet-2A'!Q97 -> 0 | F97: ='Lighting Worksheet-2A'!Z97 -> 0 | G97: ='Lighting Worksheet-2A'!Y97 -> 0 | H97: ='Controls Worksheet-2B'!K97*'Lighting Worksheet-2A'!T97 -> 0 | I97: ='Lighting Worksheet-2A'!AA97 -> 0 | J97: =IF(OR(C97={0," "})," ","#?") ->  | K97: ='Lighting Worksheet-2A'!S97 -> 0 | L97: 0 | M97: 0 | N97: 1 | O97: ='Lighting Worksheet-2A'!E97 -> 0 | P97: %Pwr? | Q97: 0 | R97: SF? | S97: 0 | T97: 0 | U97: 0 | V97: 0 | W97: 0 | X97: 0 | Y97: 0 | Z97: 0 | AA97: 0 | AB97: 0 | AC97: 0 | AD97: 0 | AE97: 0 | AF97: 0 | AG97: 0 | AH97: 0 | AI97: 0 | AM97: =IF(OR(LEFT(C97,2)={"62","63","68"}),1,2) -> 2 | AO97: 0 | AP97: =IF(C97="Custom",(AF97+'Lighting Worksheet-2A'!AP97)*0.131,0) -> 0 | AQ97: =IFERROR(INDEX('NY Device Codes & Rated Wattage'!$C$3:$C$1926, SMALL(IF(#REF!='NY Device Codes & Rated Wattage'!$B$3:$B$1926, ROW('NY Device Codes & Rated Wattage'!$B$3:$B$1926)-ROW(#REF!)+2), ROW(88:88))),"" ) -> 
A98: 87 | B98: ='Lighting Worksheet-2A'!D98 -> 0 | D98: =IFERROR(IF(C98=0,0,VLOOKUP(C98,Table18[[Lighting Controls]:[Control Type]],MATCH('Controls Worksheet-2B'!$AO$2,Table18[[#Headers],[Lighting Controls]:[Control Type]],0),0)),"Select Bldg Type & HVAC System on App Cust Info") -> 0 | E98: ='Lighting Worksheet-2A'!Q98 -> 0 | F98: ='Lighting Worksheet-2A'!Z98 -> 0 | G98: ='Lighting Worksheet-2A'!Y98 -> 0 | H98: ='Controls Worksheet-2B'!K98*'Lighting Worksheet-2A'!T98 -> 0 | I98: ='Lighting Worksheet-2A'!AA98 -> 0 | J98: =IF(OR(C98={0," "})," ","#?") ->  | K98: ='Lighting Worksheet-2A'!S98 -> 0 | L98: 0 | M98: 0 | N98: 1 | O98: ='Lighting Worksheet-2A'!E98 -> 0 | P98: %Pwr? | Q98: 0 | R98: SF? | S98: 0 | T98: 0 | U98: 0 | V98: 0 | W98: 0 | X98: 0 | Y98: 0 | Z98: 0 | AA98: 0 | AB98: 0 | AC98: 0 | AD98: 0 | AE98: 0 | AF98: 0 | AG98: 0 | AH98: 0 | AI98: 0 | AM98: =IF(OR(LEFT(C98,2)={"62","63","68"}),1,2) -> 2 | AO98: 0 | AP98: =IF(C98="Custom",(AF98+'Lighting Worksheet-2A'!AP98)*0.131,0) -> 0 | AQ98: =IFERROR(INDEX('NY Device Codes & Rated Wattage'!$C$3:$C$1926, SMALL(IF(#REF!='NY Device Codes & Rated Wattage'!$B$3:$B$1926, ROW('NY Device Codes & Rated Wattage'!$B$3:$B$1926)-ROW(#REF!)+2), ROW(89:89))),"" ) -> 
A99: 88 | B99: ='Lighting Worksheet-2A'!D99 -> 0 | D99: =IFERROR(IF(C99=0,0,VLOOKUP(C99,Table18[[Lighting Controls]:[Control Type]],MATCH('Controls Worksheet-2B'!$AO$2,Table18[[#Headers],[Lighting Controls]:[Control Type]],0),0)),"Select Bldg Type & HVAC System on App Cust Info") -> 0 | E99: ='Lighting Worksheet-2A'!Q99 -> 0 | F99: ='Lighting Worksheet-2A'!Z99 -> 0 | G99: ='Lighting Worksheet-2A'!Y99 -> 0 | H99: ='Controls Worksheet-2B'!K99*'Lighting Worksheet-2A'!T99 -> 0 | I99: ='Lighting Worksheet-2A'!AA99 -> 0 | J99: =IF(OR(C99={0," "})," ","#?") ->  | K99: ='Lighting Worksheet-2A'!S99 -> 0 | L99: 0 | M99: 0 | N99: 1 | O99: ='Lighting Worksheet-2A'!E99 -> 0 | P99: %Pwr? | Q99: 0 | R99: SF? | S99: 0 | T99: 0 | U99: 0 | V99: 0 | W99: 0 | X99: 0 | Y99: 0 | Z99: 0 | AA99: 0 | AB99: 0 | AC99: 0 | AD99: 0 | AE99: 0 | AF99: 0 | AG99: 0 | AH99: 0 | AI99: 0 | AM99: =IF(OR(LEFT(C99,2)={"62","63","68"}),1,2) -> 2 | AO99: 0 | AP99: =IF(C99="Custom",(AF99+'Lighting Worksheet-2A'!AP99)*0.131,0) -> 0 | AQ99: =IFERROR(INDEX('NY Device Codes & Rated Wattage'!$C$3:$C$1926, SMALL(IF(#REF!='NY Device Codes & Rated Wattage'!$B$3:$B$1926, ROW('NY Device Codes & Rated Wattage'!$B$3:$B$1926)-ROW(#REF!)+2), ROW(90:90))),"" ) -> 
A100: 89 | B100: ='Lighting Worksheet-2A'!D100 -> 0 | D100: =IFERROR(IF(C100=0,0,VLOOKUP(C100,Table18[[Lighting Controls]:[Control Type]],MATCH('Controls Worksheet-2B'!$AO$2,Table18[[#Headers],[Lighting Controls]:[Control Type]],0),0)),"Select Bldg Type & HVAC System on App Cust Info") -> 0 | E100: ='Lighting Worksheet-2A'!Q100 -> 0 | F100: ='Lighting Worksheet-2A'!Z100 -> 0 | G100: ='Lighting Worksheet-2A'!Y100 -> 0 | H100: ='Controls Worksheet-2B'!K100*'Lighting Worksheet-2A'!T100 -> 0 | I100: ='Lighting Worksheet-2A'!AA100 -> 0 | J100: =IF(OR(C100={0," "})," ","#?") ->  | K100: ='Lighting Worksheet-2A'!S100 -> 0 | L100: 0 | M100: 0 | N100: 1 | O100: ='Lighting Worksheet-2A'!E100 -> 0 | P100: %Pwr? | Q100: 0 | R100: SF? | S100: 0 | T100: 0 | U100: 0 | V100: 0 | W100: 0 | X100: 0 | Y100: 0 | Z100: 0 | AA100: 0 | AB100: 0 | AC100: 0 | AD100: 0 | AE100: 0 | AF100: 0 | AG100: 0 | AH100: 0 | AI100: 0 | AM100: =IF(OR(LEFT(C100,2)={"62","63","68"}),1,2) -> 2 | AO100: 0 | AP100: =IF(C100="Custom",(AF100+'Lighting Worksheet-2A'!AP100)*0.131,0) -> 0 | AQ100: =IFERROR(INDEX('NY Device Codes & Rated Wattage'!$C$3:$C$1926, SMALL(IF(#REF!='NY Device Codes & Rated Wattage'!$B$3:$B$1926, ROW('NY Device Codes & Rated Wattage'!$B$3:$B$1926)-ROW(#REF!)+2), ROW(91:91))),"" ) -> 
A101: 90 | B101: ='Lighting Worksheet-2A'!D101 -> 0 | D101: =IFERROR(IF(C101=0,0,VLOOKUP(C101,Table18[[Lighting Controls]:[Control Type]],MATCH('Controls Worksheet-2B'!$AO$2,Table18[[#Headers],[Lighting Controls]:[Control Type]],0),0)),"Select Bldg Type & HVAC System on App Cust Info") -> 0 | E101: ='Lighting Worksheet-2A'!Q101 -> 0 | F101: ='Lighting Worksheet-2A'!Z101 -> 0 | G101: ='Lighting Worksheet-2A'!Y101 -> 0 | H101: ='Controls Worksheet-2B'!K101*'Lighting Worksheet-2A'!T101 -> 0 | I101: ='Lighting Worksheet-2A'!AA101 -> 0 | J101: =IF(OR(C101={0," "})," ","#?") ->  | K101: ='Lighting Worksheet-2A'!S101 -> 0 | L101: 0 | M101: 0 | N101: 1 | O101: ='Lighting Worksheet-2A'!E101 -> 0 | P101: %Pwr? | Q101: 0 | R101: SF? | S101: 0 | T101: 0 | U101: 0 | V101: 0 | W101: 0 | X101: 0 | Y101: 0 | Z101: 0 | AA101: 0 | AB101: 0 | AC101: 0 | AD101: 0 | AE101: 0 | AF101: 0 | AG101: 0 | AH101: 0 | AI101: 0 | AM101: =IF(OR(LEFT(C101,2)={"62","63","68"}),1,2) -> 2 | AO101: 0 | AP101: =IF(C101="Custom",(AF101+'Lighting Worksheet-2A'!AP101)*0.131,0) -> 0 | AQ101: =IFERROR(INDEX('NY Device Codes & Rated Wattage'!$C$3:$C$1926, SMALL(IF(#REF!='NY Device Codes & Rated Wattage'!$B$3:$B$1926, ROW('NY Device Codes & Rated Wattage'!$B$3:$B$1926)-ROW(#REF!)+2), ROW(92:92))),"" ) -> 
A102: 91 | B102: ='Lighting Worksheet-2A'!D102 -> 0 | D102: =IFERROR(IF(C102=0,0,VLOOKUP(C102,Table18[[Lighting Controls]:[Control Type]],MATCH('Controls Worksheet-2B'!$AO$2,Table18[[#Headers],[Lighting Controls]:[Control Type]],0),0)),"Select Bldg Type & HVAC System on App Cust Info") -> 0 | E102: ='Lighting Worksheet-2A'!Q102 -> 0 | F102: ='Lighting Worksheet-2A'!Z102 -> 0 | G102: ='Lighting Worksheet-2A'!Y102 -> 0 | H102: ='Controls Worksheet-2B'!K102*'Lighting Worksheet-2A'!T102 -> 0 | I102: ='Lighting Worksheet-2A'!AA102 -> 0 | J102: =IF(OR(C102={0," "})," ","#?") ->  | K102: ='Lighting Worksheet-2A'!S102 -> 0 | L102: 0 | M102: 0 | N102: 1 | O102: ='Lighting Worksheet-2A'!E102 -> 0 | P102: %Pwr? | Q102: 0 | R102: SF? | S102: 0 | T102: 0 | U102: 0 | V102: 0 | W102: 0 | X102: 0 | Y102: 0 | Z102: 0 | AA102: 0 | AB102: 0 | AC102: 0 | AD102: 0 | AE102: 0 | AF102: 0 | AG102: 0 | AH102: 0 | AI102: 0 | AM102: =IF(OR(LEFT(C102,2)={"62","63","68"}),1,2) -> 2 | AO102: 0 | AP102: =IF(C102="Custom",(AF102+'Lighting Worksheet-2A'!AP102)*0.131,0) -> 0 | AQ102: =IFERROR(INDEX('NY Device Codes & Rated Wattage'!$C$3:$C$1926, SMALL(IF(#REF!='NY Device Codes & Rated Wattage'!$B$3:$B$1926, ROW('NY Device Codes & Rated Wattage'!$B$3:$B$1926)-ROW(#REF!)+2), ROW(93:93))),"" ) -> 
A103: 92 | B103: ='Lighting Worksheet-2A'!D103 -> 0 | D103: =IFERROR(IF(C103=0,0,VLOOKUP(C103,Table18[[Lighting Controls]:[Control Type]],MATCH('Controls Worksheet-2B'!$AO$2,Table18[[#Headers],[Lighting Controls]:[Control Type]],0),0)),"Select Bldg Type & HVAC System on App Cust Info") -> 0 | E103: ='Lighting Worksheet-2A'!Q103 -> 0 | F103: ='Lighting Worksheet-2A'!Z103 -> 0 | G103: ='Lighting Worksheet-2A'!Y103 -> 0 | H103: ='Controls Worksheet-2B'!K103*'Lighting Worksheet-2A'!T103 -> 0 | I103: ='Lighting Worksheet-2A'!AA103 -> 0 | J103: =IF(OR(C103={0," "})," ","#?") ->  | K103: ='Lighting Worksheet-2A'!S103 -> 0 | L103: 0 | M103: 0 | N103: 1 | O103: ='Lighting Worksheet-2A'!E103 -> 0 | P103: %Pwr? | Q103: 0 | R103: SF? | S103: 0 | T103: 0 | U103: 0 | V103: 0 | W103: 0 | X103: 0 | Y103: 0 | Z103: 0 | AA103: 0 | AB103: 0 | AC103: 0 | AD103: 0 | AE103: 0 | AF103: 0 | AG103: 0 | AH103: 0 | AI103: 0 | AM103: =IF(OR(LEFT(C103,2)={"62","63","68"}),1,2) -> 2 | AO103: 0 | AP103: =IF(C103="Custom",(AF103+'Lighting Worksheet-2A'!AP103)*0.131,0) -> 0 | AQ103: =IFERROR(INDEX('NY Device Codes & Rated Wattage'!$C$3:$C$1926, SMALL(IF(#REF!='NY Device Codes & Rated Wattage'!$B$3:$B$1926, ROW('NY Device Codes & Rated Wattage'!$B$3:$B$1926)-ROW(#REF!)+2), ROW(94:94))),"" ) -> 
A104: 93 | B104: ='Lighting Worksheet-2A'!D104 -> 0 | D104: =IFERROR(IF(C104=0,0,VLOOKUP(C104,Table18[[Lighting Controls]:[Control Type]],MATCH('Controls Worksheet-2B'!$AO$2,Table18[[#Headers],[Lighting Controls]:[Control Type]],0),0)),"Select Bldg Type & HVAC System on App Cust Info") -> 0 | E104: ='Lighting Worksheet-2A'!Q104 -> 0 | F104: ='Lighting Worksheet-2A'!Z104 -> 0 | G104: ='Lighting Worksheet-2A'!Y104 -> 0 | H104: ='Controls Worksheet-2B'!K104*'Lighting Worksheet-2A'!T104 -> 0 | I104: ='Lighting Worksheet-2A'!AA104 -> 0 | J104: =IF(OR(C104={0," "})," ","#?") ->  | K104: ='Lighting Worksheet-2A'!S104 -> 0 | L104: 0 | M104: 0 | N104: 1 | O104: ='Lighting Worksheet-2A'!E104 -> 0 | P104: %Pwr? | Q104: 0 | R104: SF? | S104: 0 | T104: 0 | U104: 0 | V104: 0 | W104: 0 | X104: 0 | Y104: 0 | Z104: 0 | AA104: 0 | AB104: 0 | AC104: 0 | AD104: 0 | AE104: 0 | AF104: 0 | AG104: 0 | AH104: 0 | AI104: 0 | AM104: =IF(OR(LEFT(C104,2)={"62","63","68"}),1,2) -> 2 | AO104: 0 | AP104: =IF(C104="Custom",(AF104+'Lighting Worksheet-2A'!AP104)*0.131,0) -> 0 | AQ104: =IFERROR(INDEX('NY Device Codes & Rated Wattage'!$C$3:$C$1926, SMALL(IF(#REF!='NY Device Codes & Rated Wattage'!$B$3:$B$1926, ROW('NY Device Codes & Rated Wattage'!$B$3:$B$1926)-ROW(#REF!)+2), ROW(95:95))),"" ) -> 
A105: 94 | B105: ='Lighting Worksheet-2A'!D105 -> 0 | D105: =IFERROR(IF(C105=0,0,VLOOKUP(C105,Table18[[Lighting Controls]:[Control Type]],MATCH('Controls Worksheet-2B'!$AO$2,Table18[[#Headers],[Lighting Controls]:[Control Type]],0),0)),"Select Bldg Type & HVAC System on App Cust Info") -> 0 | E105: ='Lighting Worksheet-2A'!Q105 -> 0 | F105: ='Lighting Worksheet-2A'!Z105 -> 0 | G105: ='Lighting Worksheet-2A'!Y105 -> 0 | H105: ='Controls Worksheet-2B'!K105*'Lighting Worksheet-2A'!T105 -> 0 | I105: ='Lighting Worksheet-2A'!AA105 -> 0 | J105: =IF(OR(C105={0," "})," ","#?") ->  | K105: ='Lighting Worksheet-2A'!S105 -> 0 | L105: 0 | M105: 0 | N105: 1 | O105: ='Lighting Worksheet-2A'!E105 -> 0 | P105: %Pwr? | Q105: 0 | R105: SF? | S105: 0 | T105: 0 | U105: 0 | V105: 0 | W105: 0 | X105: 0 | Y105: 0 | Z105: 0 | AA105: 0 | AB105: 0 | AC105: 0 | AD105: 0 | AE105: 0 | AF105: 0 | AG105: 0 | AH105: 0 | AI105: 0 | AM105: =IF(OR(LEFT(C105,2)={"62","63","68"}),1,2) -> 2 | AO105: 0 | AP105: =IF(C105="Custom",(AF105+'Lighting Worksheet-2A'!AP105)*0.131,0) -> 0 | AQ105: =IFERROR(INDEX('NY Device Codes & Rated Wattage'!$C$3:$C$1926, SMALL(IF(#REF!='NY Device Codes & Rated Wattage'!$B$3:$B$1926, ROW('NY Device Codes & Rated Wattage'!$B$3:$B$1926)-ROW(#REF!)+2), ROW(96:96))),"" ) -> 
A106: 95 | B106: ='Lighting Worksheet-2A'!D106 -> 0 | D106: =IFERROR(IF(C106=0,0,VLOOKUP(C106,Table18[[Lighting Controls]:[Control Type]],MATCH('Controls Worksheet-2B'!$AO$2,Table18[[#Headers],[Lighting Controls]:[Control Type]],0),0)),"Select Bldg Type & HVAC System on App Cust Info") -> 0 | E106: ='Lighting Worksheet-2A'!Q106 -> 0 | F106: ='Lighting Worksheet-2A'!Z106 -> 0 | G106: ='Lighting Worksheet-2A'!Y106 -> 0 | H106: ='Controls Worksheet-2B'!K106*'Lighting Worksheet-2A'!T106 -> 0 | I106: ='Lighting Worksheet-2A'!AA106 -> 0 | J106: =IF(OR(C106={0," "})," ","#?") ->  | K106: ='Lighting Worksheet-2A'!S106 -> 0 | L106: 0 | M106: 0 | N106: 1 | O106: ='Lighting Worksheet-2A'!E106 -> 0 | P106: %Pwr? | Q106: 0 | R106: SF? | S106: 0 | T106: 0 | U106: 0 | V106: 0 | W106: 0 | X106: 0 | Y106: 0 | Z106: 0 | AA106: 0 | AB106: 0 | AC106: 0 | AD106: 0 | AE106: 0 | AF106: 0 | AG106: 0 | AH106: 0 | AI106: 0 | AM106: =IF(OR(LEFT(C106,2)={"62","63","68"}),1,2) -> 2 | AO106: 0 | AP106: =IF(C106="Custom",(AF106+'Lighting Worksheet-2A'!AP106)*0.131,0) -> 0 | AQ106: =IFERROR(INDEX('NY Device Codes & Rated Wattage'!$C$3:$C$1926, SMALL(IF(#REF!='NY Device Codes & Rated Wattage'!$B$3:$B$1926, ROW('NY Device Codes & Rated Wattage'!$B$3:$B$1926)-ROW(#REF!)+2), ROW(97:97))),"" ) -> 
A107: 96 | B107: ='Lighting Worksheet-2A'!D107 -> 0 | D107: =IFERROR(IF(C107=0,0,VLOOKUP(C107,Table18[[Lighting Controls]:[Control Type]],MATCH('Controls Worksheet-2B'!$AO$2,Table18[[#Headers],[Lighting Controls]:[Control Type]],0),0)),"Select Bldg Type & HVAC System on App Cust Info") -> 0 | E107: ='Lighting Worksheet-2A'!Q107 -> 0 | F107: ='Lighting Worksheet-2A'!Z107 -> 0 | G107: ='Lighting Worksheet-2A'!Y107 -> 0 | H107: ='Controls Worksheet-2B'!K107*'Lighting Worksheet-2A'!T107 -> 0 | I107: ='Lighting Worksheet-2A'!AA107 -> 0 | J107: =IF(OR(C107={0," "})," ","#?") ->  | K107: ='Lighting Worksheet-2A'!S107 -> 0 | L107: 0 | M107: 0 | N107: 1 | O107: ='Lighting Worksheet-2A'!E107 -> 0 | P107: %Pwr? | Q107: 0 | R107: SF? | S107: 0 | T107: 0 | U107: 0 | V107: 0 | W107: 0 | X107: 0 | Y107: 0 | Z107: 0 | AA107: 0 | AB107: 0 | AC107: 0 | AD107: 0 | AE107: 0 | AF107: 0 | AG107: 0 | AH107: 0 | AI107: 0 | AM107: =IF(OR(LEFT(C107,2)={"62","63","68"}),1,2) -> 2 | AO107: 0 | AP107: =IF(C107="Custom",(AF107+'Lighting Worksheet-2A'!AP107)*0.131,0) -> 0 | AQ107: =IFERROR(INDEX('NY Device Codes & Rated Wattage'!$C$3:$C$1926, SMALL(IF(#REF!='NY Device Codes & Rated Wattage'!$B$3:$B$1926, ROW('NY Device Codes & Rated Wattage'!$B$3:$B$1926)-ROW(#REF!)+2), ROW(98:98))),"" ) -> 
A108: 97 | B108: ='Lighting Worksheet-2A'!D108 -> 0 | D108: =IFERROR(IF(C108=0,0,VLOOKUP(C108,Table18[[Lighting Controls]:[Control Type]],MATCH('Controls Worksheet-2B'!$AO$2,Table18[[#Headers],[Lighting Controls]:[Control Type]],0),0)),"Select Bldg Type & HVAC System on App Cust Info") -> 0 | E108: ='Lighting Worksheet-2A'!Q108 -> 0 | F108: ='Lighting Worksheet-2A'!Z108 -> 0 | G108: ='Lighting Worksheet-2A'!Y108 -> 0 | H108: ='Controls Worksheet-2B'!K108*'Lighting Worksheet-2A'!T108 -> 0 | I108: ='Lighting Worksheet-2A'!AA108 -> 0 | J108: =IF(OR(C108={0," "})," ","#?") ->  | K108: ='Lighting Worksheet-2A'!S108 -> 0 | L108: 0 | M108: 0 | N108: 1 | O108: ='Lighting Worksheet-2A'!E108 -> 0 | P108: %Pwr? | Q108: 0 | R108: SF? | S108: 0 | T108: 0 | U108: 0 | V108: 0 | W108: 0 | X108: 0 | Y108: 0 | Z108: 0 | AA108: 0 | AB108: 0 | AC108: 0 | AD108: 0 | AE108: 0 | AF108: 0 | AG108: 0 | AH108: 0 | AI108: 0 | AM108: =IF(OR(LEFT(C108,2)={"62","63","68"}),1,2) -> 2 | AO108: 0 | AP108: =IF(C108="Custom",(AF108+'Lighting Worksheet-2A'!AP108)*0.131,0) -> 0 | AQ108: =IFERROR(INDEX('NY Device Codes & Rated Wattage'!$C$3:$C$1926, SMALL(IF(#REF!='NY Device Codes & Rated Wattage'!$B$3:$B$1926, ROW('NY Device Codes & Rated Wattage'!$B$3:$B$1926)-ROW(#REF!)+2), ROW(99:99))),"" ) -> 
A109: 98 | B109: ='Lighting Worksheet-2A'!D109 -> 0 | D109: =IFERROR(IF(C109=0,0,VLOOKUP(C109,Table18[[Lighting Controls]:[Control Type]],MATCH('Controls Worksheet-2B'!$AO$2,Table18[[#Headers],[Lighting Controls]:[Control Type]],0),0)),"Select Bldg Type & HVAC System on App Cust Info") -> 0 | E109: ='Lighting Worksheet-2A'!Q109 -> 0 | F109: ='Lighting Worksheet-2A'!Z109 -> 0 | G109: ='Lighting Worksheet-2A'!Y109 -> 0 | H109: ='Controls Worksheet-2B'!K109*'Lighting Worksheet-2A'!T109 -> 0 | I109: ='Lighting Worksheet-2A'!AA109 -> 0 | J109: =IF(OR(C109={0," "})," ","#?") ->  | K109: ='Lighting Worksheet-2A'!S109 -> 0 | L109: 0 | M109: 0 | N109: 1 | O109: ='Lighting Worksheet-2A'!E109 -> 0 | P109: %Pwr? | Q109: 0 | R109: SF? | S109: 0 | T109: 0 | U109: 0 | V109: 0 | W109: 0 | X109: 0 | Y109: 0 | Z109: 0 | AA109: 0 | AB109: 0 | AC109: 0 | AD109: 0 | AE109: 0 | AF109: 0 | AG109: 0 | AH109: 0 | AI109: 0 | AM109: =IF(OR(LEFT(C109,2)={"62","63","68"}),1,2) -> 2 | AO109: 0 | AP109: =IF(C109="Custom",(AF109+'Lighting Worksheet-2A'!AP109)*0.131,0) -> 0 | AQ109: =IFERROR(INDEX('NY Device Codes & Rated Wattage'!$C$3:$C$1926, SMALL(IF(#REF!='NY Device Codes & Rated Wattage'!$B$3:$B$1926, ROW('NY Device Codes & Rated Wattage'!$B$3:$B$1926)-ROW(#REF!)+2), ROW(100:100))),"" ) -> 
